Workbook

Sheet Select School
B3: =VLOOKUP(C3,SchList!$I$1:$J$500,2,FALSE) -> 9999 | C3: 1

Sheet PRE G3-5
A1: Click Here to "Select School" Page
A2: ='Select School'!$B$3 -> 9999
A3: 2014-15 Writing Pre-Test Report (Opinion Prompt): Grades 3-5 | N3: ="9999"&"-"&VLOOKUP("9999",SchList!$A$1:$B$499,2,FALSE) -> 9999-District
A4: =TEXT(A2,"0000")&"-"&VLOOKUP(TEXT(A2,"0000"),SchList!$A$1:$B$499,2,FALSE) -> 9999-District
A5: School: % Proficient | E5: District: % Proficient
N6: Group | O6: Grade | P6: PFO | Q6: EE | R6: Conventions
N7: District | O7: G03 | P7: =SUM(VLOOKUP(9999,'PRE G3'!$A$3:$S$500,10,FALSE),VLOOKUP(9999,'PRE G3'!$A$3:$S$500,11,FALSE))/VLOOKUP(9999,'PRE G3'!$A$3:$S$500,5,FALSE)*100 -> 6.820212852 | Q7: =SUM(VLOOKUP(9999,'PRE G3'!$A$3:$S$500,15,FALSE),VLOOKUP(9999,'PRE G3'!$A$3:$S$500,16,FALSE))/VLOOKUP(9999,'PRE G3'!$A$3:$S$500,5,FALSE)*100 -> 4.309854578 | R7: =VLOOKUP(9999,'PRE G3'!$A$3:$S$500,19,FALSE)/VLOOKUP(9999,'PRE G3'!$A$3:$S$500,5,FALSE)*100 -> 17.2028597
N8: District | O8: G04 | P8: =SUM(VLOOKUP(9999,'PRE G4'!$A$3:$S$500,10,FALSE),VLOOKUP(9999,'PRE G4'!$A$3:$S$500,11,FALSE))/VLOOKUP(9999,'PRE G4'!$A$3:$S$500,5,FALSE)*100 -> 10.47423939 | Q8: =SUM(VLOOKUP(9999,'PRE G4'!$A$3:$S$500,15,FALSE),VLOOKUP(9999,'PRE G4'!$A$3:$S$500,16,FALSE))/VLOOKUP(9999,'PRE G4'!$A$3:$S$500,5,FALSE)*100 -> 5.766716067 | R8: =VLOOKUP(9999,'PRE G4'!$A$3:$S$500,19,FALSE)/VLOOKUP(9999,'PRE G4'!$A$3:$S$500,5,FALSE)*100 -> 22.77046465
N9: District | O9: G05 | P9: =SUM(VLOOKUP(9999,'PRE G5'!$A$3:$S$500,10,FALSE),VLOOKUP(9999,'PRE G5'!$A$3:$S$500,11,FALSE))/VLOOKUP(9999,'PRE G5'!$A$3:$S$500,5,FALSE)*100 -> 18.95762965 | Q9: =SUM(VLOOKUP(9999,'PRE G5'!$A$3:$S$500,15,FALSE),VLOOKUP(9999,'PRE G5'!$A$3:$S$500,16,FALSE))/VLOOKUP(9999,'PRE G5'!$A$3:$S$500,5,FALSE)*100 -> 12.20231733 | R9: =VLOOKUP(9999,'PRE G5'!$A$3:$S$500,19,FALSE)/VLOOKUP(9999,'PRE G5'!$A$3:$S$500,5,FALSE)*100 -> 34.55042969
N10: =A4 -> 9999-District
N11: School | O11: G03 | P11: =B17 -> 7 | Q11: =B18 -> 4 | R11: =B19 -> 17
N12: School | O12: G04 | P12: =B24 -> 10 | Q12: =B25 -> 6 | R12: =B26 -> 23
N13: School | O13: G05 | P13: =B31 -> 19 | Q13: =B32 -> 12 | R13: =B33 -> 35
A14: Grade: | B14: =IFERROR(VLOOKUP($A$2,'PRE G3'!$A$3:$S$500,3,FALSE),"NA") -> 3 | C14: Enrollment: | F14: =IFERROR(VLOOKUP(TEXT($A$2,"0000"),'Mem11-14-2014'!$A$3:$O$500,7,FALSE),"NA") -> 27912 | G14: Number Tested: | I14: =IFERROR(VLOOKUP($A$2,'PRE G3'!$A$3:$S$500,5,FALSE),"NA") -> 24618 | J14: % Tested: | L14: =IFERROR(IF(OR(I14<10,I14="NA"),"NA",IF(I14>F14,1,I14/F14)),"NA") -> 0.8819862425
A15: Domain | B15: % Proficient | C15: Number and Percentage of Students at Each Score
C16: Score of 0 | E16: Score of 1 | G16: Score of 2 | I16: Score of 3 | K16: Score of 4
A17: Purpose, Focus, and Organization (PFO) | B17: =IF(I14<10,#N/A,IFERROR(ROUND(SUM(I17,K17)/I14*100,0),#N/A)) -> 7 | C17: =IF($I14<10,"NA",VLOOKUP($A$2,'PRE G3'!$A$3:$S$500,7,FALSE)) -> 5891 | D17: =IFERROR(ROUND(C17/$I14*100,0),"NA") -> 24 | E17: =IF($I14<10,"NA",VLOOKUP($A$2,'PRE G3'!$A$3:$S$500,8,FALSE)) -> 11139 | F17: =IFERROR(ROUND(E17/$I14*100,0),"NA") -> 45 | G17: =IF($I14<10,"NA",VLOOKUP($A$2,'PRE G3'!$A$3:$S$500,9,FALSE)) -> 5909 | H17: =IFERROR(ROUND(G17/$I14*100,0),"NA") -> 24 | I17: =IF($I14<10,"NA",VLOOKUP($A$2,'PRE G3'!$A$3:$S$500,10,FALSE)) -> 1544 | J17: =IFERROR(ROUND(I17/$I14*100,0),"NA") -> 6 | K17: =IF($I14<10,"NA",VLOOKUP($A$2,'PRE G3'!$A$3:$S$500,11,FALSE)) -> 135 | L17: =IFERROR(ROUND(K17/$I14*100,0),"NA") -> 1
A18: Evidence and Elaboration (EE) | B18: =IF(I14<10,#N/A,IFERROR(ROUND(SUM(I18,K18)/I14*100,0),#N/A)) -> 4 | C18: =IF($I14<10,"NA",VLOOKUP($A$2,'PRE G3'!$A$3:$S$500,12,FALSE)) -> 7060 | D18: =IFERROR(ROUND(C18/$I14*100,0),"NA") -> 29 | E18: =IF($I14<10,"NA",VLOOKUP($A$2,'PRE G3'!$A$3:$S$500,13,FALSE)) -> 11680 | F18: =IFERROR(ROUND(E18/$I14*100,0),"NA") -> 47 | G18: =IF($I14<10,"NA",VLOOKUP($A$2,'PRE G3'!$A$3:$S$500,14,FALSE)) -> 4817 | H18: =IFERROR(ROUND(G18/$I14*100,0),"NA") -> 20 | I18: =IF($I14<10,"NA",VLOOKUP($A$2,'PRE G3'!$A$3:$S$500,15,FALSE)) -> 995 | J18: =IFERROR(ROUND(I18/$I14*100,0),"NA") -> 4 | K18: =IF($I14<10,"NA",VLOOKUP($A$2,'PRE G3'!$A$3:$S$500,16,FALSE)) -> 66 | L18: =IFERROR(ROUND(K18/$I14*100,0),"NA") -> 0
A19: Conventions of Standard English | B19: =IF(OR(I14<10,I14="NA"),#N/A,H19) -> 17 | C19: =IF($I14<10,"NA",VLOOKUP($A$2,'PRE G3'!$A$3:$S$500,17,FALSE)) -> 8126 | D19: =IFERROR(ROUND(C19/$I14*100,0),"NA") -> 33 | E19: =IF($I14<10,"NA",VLOOKUP($A$2,'PRE G3'!$A$3:$S$500,18,FALSE)) -> 12257 | F19: =IFERROR(ROUND(E19/$I14*100,0),"NA") -> 50 | G19: =IF($I14<10,"NA",VLOOKUP($A$2,'PRE G3'!$A$3:$S$500,19,FALSE)) -> 4235 | H19: =IFERROR(ROUND(G19/$I14*100,0),"NA") -> 17
A21: Grade: | B21: =IFERROR(VLOOKUP($A$2,'PRE G4'!$A$3:$S$500,3,FALSE),"NA") -> 4 | C21: Enrollment: | F21: =IFERROR(VLOOKUP(TEXT($A$2,"0000"),'Mem11-14-2014'!$A$3:$O$500,8,FALSE),"NA") -> 24855 | G21: Number Tested: | I21: =IFERROR(VLOOKUP($A$2,'PRE G4'!$A$3:$S$500,5,FALSE),"NA") -> 22942 | J21: % Tested: | L21: =IFERROR(IF(OR(I21<10,I21="NA"),"NA",IF(I21>F21,1,I21/F21)),"NA") -> 0.9230335949
A22: Domain | B22: % Proficient | C22: Number and Percentage of Students at Each Score
C23: Score of 0 | E23: Score of 1 | G23: Score of 2 | I23: Score of 3 | K23: Score of 4
A24: Purpose, Focus, and Organization (PFO) | B24: =IF(I21<10,#N/A,IFERROR(ROUND(SUM(I24,K24)/I21*100,0),#N/A)) -> 10 | C24: =IF($I21<10,"NA",VLOOKUP($A$2,'PRE G4'!$A$3:$S$500,7,FALSE)) -> 3163 | D24: =IFERROR(ROUND(C24/$I21*100,0),"NA") -> 14 | E24: =IF($I21<10,"NA",VLOOKUP($A$2,'PRE G4'!$A$3:$S$500,8,FALSE)) -> 9936 | F24: =IFERROR(ROUND(E24/$I21*100,0),"NA") -> 43 | G24: =IF($I21<10,"NA",VLOOKUP($A$2,'PRE G4'!$A$3:$S$500,9,FALSE)) -> 7440 | H24: =IFERROR(ROUND(G24/$I21*100,0),"NA") -> 32 | I24: =IF($I21<10,"NA",VLOOKUP($A$2,'PRE G4'!$A$3:$S$500,10,FALSE)) -> 2188 | J24: =IFERROR(ROUND(I24/$I21*100,0),"NA") -> 10 | K24: =IF($I21<10,"NA",VLOOKUP($A$2,'PRE G4'!$A$3:$S$500,11,FALSE)) -> 215 | L24: =IFERROR(ROUND(K24/$I21*100,0),"NA") -> 1
A25: Evidence and Elaboration (EE) | B25: =IF(I21<10,#N/A,IFERROR(ROUND(SUM(I25,K25)/I21*100,0),#N/A)) -> 6 | C25: =IF($I21<10,"NA",VLOOKUP($A$2,'PRE G4'!$A$3:$S$500,12,FALSE)) -> 4014 | D25: =IFERROR(ROUND(C25/$I21*100,0),"NA") -> 17 | E25: =IF($I21<10,"NA",VLOOKUP($A$2,'PRE G4'!$A$3:$S$500,13,FALSE)) -> 11257 | F25: =IFERROR(ROUND(E25/$I21*100,0),"NA") -> 49 | G25: =IF($I21<10,"NA",VLOOKUP($A$2,'PRE G4'!$A$3:$S$500,14,FALSE)) -> 6348 | H25: =IFERROR(ROUND(G25/$I21*100,0),"NA") -> 28 | I25: =IF($I21<10,"NA",VLOOKUP($A$2,'PRE G4'!$A$3:$S$500,15,FALSE)) -> 1239 | J25: =IFERROR(ROUND(I25/$I21*100,0),"NA") -> 5 | K25: =IF($I21<10,"NA",VLOOKUP($A$2,'PRE G4'!$A$3:$S$500,16,FALSE)) -> 84 | L25: =IFERROR(ROUND(K25/$I21*100,0),"NA") -> 0
A26: Conventions of Standard English | B26: =IF(OR(I21<10,I21="NA"),#N/A,H26) -> 23 | C26: =IF($I21<10,"NA",VLOOKUP($A$2,'PRE G4'!$A$3:$S$500,17,FALSE)) -> 5284 | D26: =IFERROR(ROUND(C26/$I21*100,0),"NA") -> 23 | E26: =IF($I21<10,"NA",VLOOKUP($A$2,'PRE G4'!$A$3:$S$500,18,FALSE)) -> 12434 | F26: =IFERROR(ROUND(E26/$I21*100,0),"NA") -> 54 | G26: =IF($I21<10,"NA",VLOOKUP($A$2,'PRE G4'!$A$3:$S$500,19,FALSE)) -> 5224 | H26: =IFERROR(ROUND(G26/$I21*100,0),"NA") -> 23
A28: Grade: | B28: =IFERROR(VLOOKUP($A$2,'PRE G5'!$A$3:$S$500,3,FALSE),"NA") -> 5 | C28: Enrollment: | F28: =IFERROR(VLOOKUP(TEXT($A$2,"0000"),'Mem11-14-2014'!$A$3:$O$500,9,FALSE),"NA") -> 25262 | G28: Number Tested: | I28: =IFERROR(VLOOKUP($A$2,'PRE G5'!$A$3:$S$500,5,FALSE),"NA") -> 23389 | J28: % Tested: | L28: =IFERROR(IF(OR(I28<10,I28="NA"),"NA",IF(I28>F28,1,I28/F28)),"NA") -> 0.9258570184
A29: Domain | B29: % Proficient | C29: Number and Percentage of Students at Each Score
C30: Score of 0 | E30: Score of 1 | G30: Score of 2 | I30: Score of 3 | K30: Score of 4
A31: Purpose, Focus, and Organization (PFO) | B31: =IF(I28<10,#N/A,IFERROR(ROUND(SUM(I31,K31)/I28*100,0),#N/A)) -> 19 | C31: =IF($I28<10,"NA",VLOOKUP($A$2,'PRE G5'!$A$3:$S$500,7,FALSE)) -> 2311 | D31: =IFERROR(ROUND(C31/$I28*100,0),"NA") -> 10 | E31: =IF($I28<10,"NA",VLOOKUP($A$2,'PRE G5'!$A$3:$S$500,8,FALSE)) -> 8187 | F31: =IFERROR(ROUND(E31/$I28*100,0),"NA") -> 35 | G31: =IF($I28<10,"NA",VLOOKUP($A$2,'PRE G5'!$A$3:$S$500,9,FALSE)) -> 8457 | H31: =IFERROR(ROUND(G31/$I28*100,0),"NA") -> 36 | I31: =IF($I28<10,"NA",VLOOKUP($A$2,'PRE G5'!$A$3:$S$500,10,FALSE)) -> 3895 | J31: =IFERROR(ROUND(I31/$I28*100,0),"NA") -> 17 | K31: =IF($I28<10,"NA",VLOOKUP($A$2,'PRE G5'!$A$3:$S$500,11,FALSE)) -> 539 | L31: =IFERROR(ROUND(K31/$I28*100,0),"NA") -> 2
A32: Evidence and Elaboration (EE) | B32: =IF(I28<10,#N/A,IFERROR(ROUND(SUM(I32,K32)/I28*100,0),#N/A)) -> 12 | C32: =IF($I28<10,"NA",VLOOKUP($A$2,'PRE G5'!$A$3:$S$500,12,FALSE)) -> 2916 | D32: =IFERROR(ROUND(C32/$I28*100,0),"NA") -> 12 | E32: =IF($I28<10,"NA",VLOOKUP($A$2,'PRE G5'!$A$3:$S$500,13,FALSE)) -> 9798 | F32: =IFERROR(ROUND(E32/$I28*100,0),"NA") -> 42 | G32: =IF($I28<10,"NA",VLOOKUP($A$2,'PRE G5'!$A$3:$S$500,14,FALSE)) -> 7821 | H32: =IFERROR(ROUND(G32/$I28*100,0),"NA") -> 33 | I32: =IF($I28<10,"NA",VLOOKUP($A$2,'PRE G5'!$A$3:$S$500,15,FALSE)) -> 2584 | J32: =IFERROR(ROUND(I32/$I28*100,0),"NA") -> 11 | K32: =IF($I28<10,"NA",VLOOKUP($A$2,'PRE G5'!$A$3:$S$500,16,FALSE)) -> 270 | L32: =IFERROR(ROUND(K32/$I28*100,0),"NA") -> 1
A33: Conventions of Standard English | B33: =IF(OR(I28<10,I28="NA"),#N/A,H33) -> 35 | C33: =IF($I28<10,"NA",VLOOKUP($A$2,'PRE G5'!$A$3:$S$500,17,FALSE)) -> 3511 | D33: =IFERROR(ROUND(C33/$I28*100,0),"NA") -> 15 | E33: =IF($I28<10,"NA",VLOOKUP($A$2,'PRE G5'!$A$3:$S$500,18,FALSE)) -> 11797 | F33: =IFERROR(ROUND(E33/$I28*100,0),"NA") -> 50 | G33: =IF($I28<10,"NA",VLOOKUP($A$2,'PRE G5'!$A$3:$S$500,19,FALSE)) -> 8081 | H33: =IFERROR(ROUND(G33/$I28*100,0),"NA") -> 35

Sheet POST G3-5
A1: Click Here to "Select School" Page
A2: ='Select School'!$B$3 -> 9999
A3: 2014-15 Writing Post-Test Report (Opinion Prompt): Grades 3-5 | N3: ="9999"&"-"&VLOOKUP("9999",SchList!$A$1:$B$499,2,FALSE) -> 9999-District
A4: =TEXT(A2,"0000")&"-"&VLOOKUP(TEXT(A2,"0000"),SchList!$A$1:$B$499,2,FALSE) -> 9999-District
A5: School: % Proficient | E5: District: % Proficient
N6: Group | O6: Grade | P6: PFO | Q6: EE | R6: Conventions
N7: District | O7: G03 | P7: =SUM(VLOOKUP(9999,'POST G3'!$A$3:$S$501,10,FALSE),VLOOKUP(9999,'POST G3'!$A$3:$S$501,11,FALSE))/VLOOKUP(9999,'POST G3'!$A$3:$S$501,5,FALSE)*100 -> 23.97949219 | Q7: =SUM(VLOOKUP(9999,'POST G3'!$A$3:$S$501,15,FALSE),VLOOKUP(9999,'POST G3'!$A$3:$S$501,16,FALSE))/VLOOKUP(9999,'POST G3'!$A$3:$S$501,5,FALSE)*100 -> 16.90429688 | R7: =VLOOKUP(9999,'POST G3'!$A$3:$S$501,19,FALSE)/VLOOKUP(9999,'POST G3'!$A$3:$S$501,5,FALSE)*100 -> 35.77636719
N8: District | O8: G04 | P8: =SUM(VLOOKUP(9999,'POST G4'!$A$3:$S$501,10,FALSE),VLOOKUP(9999,'POST G4'!$A$3:$S$501,11,FALSE))/VLOOKUP(9999,'POST G4'!$A$3:$S$501,5,FALSE)*100 -> 35.54798699 | Q8: =SUM(VLOOKUP(9999,'POST G4'!$A$3:$S$501,15,FALSE),VLOOKUP(9999,'POST G4'!$A$3:$S$501,16,FALSE))/VLOOKUP(9999,'POST G4'!$A$3:$S$501,5,FALSE)*100 -> 21.00955673 | R8: =VLOOKUP(9999,'POST G4'!$A$3:$S$501,19,FALSE)/VLOOKUP(9999,'POST G4'!$A$3:$S$501,5,FALSE)*100 -> 44.16429443
N9: District | O9: G05 | P9: =SUM(VLOOKUP(9999,'POST G5'!$A$3:$S$501,10,FALSE),VLOOKUP(9999,'POST G5'!$A$3:$S$501,11,FALSE))/VLOOKUP(9999,'POST G5'!$A$3:$S$501,5,FALSE)*100 -> 43.40366691 | Q9: =SUM(VLOOKUP(9999,'POST G5'!$A$3:$S$501,15,FALSE),VLOOKUP(9999,'POST G5'!$A$3:$S$501,16,FALSE))/VLOOKUP(9999,'POST G5'!$A$3:$S$501,5,FALSE)*100 -> 30.06760217 | R9: =VLOOKUP(9999,'POST G5'!$A$3:$S$501,19,FALSE)/VLOOKUP(9999,'POST G5'!$A$3:$S$501,5,FALSE)*100 -> 54.94212844
N10: =A4 -> 9999-District
N11: School | O11: G03 | P11: =B17 -> 24 | Q11: =B18 -> 17 | R11: =B19 -> 36
N12: School | O12: G04 | P12: =B24 -> 36 | Q12: =B25 -> 21 | R12: =B26 -> 44
N13: School | O13: G05 | P13: =B31 -> 43 | Q13: =B32 -> 30 | R13: =B33 -> 55
A14: Grade: | B14: =IFERROR(VLOOKUP($A$2,'POST G3'!$A$3:$S$501,3,FALSE),"NA") -> 3 | C14: Enrollment: | F14: =IFERROR(VLOOKUP(TEXT($A$2,"0000"),'Mem01-27-2015'!$A$3:$O$500,7,FALSE),"NA") -> 27889 | G14: Number Tested: | I14: =IFERROR(VLOOKUP($A$2,'POST G3'!$A$3:$S$501,5,FALSE),"NA") -> 20480 | J14: % Tested: | L14: =IFERROR(IF(OR(I14<10,I14="NA"),"NA",IF(I14>F14,1,I14/F14)),"NA") -> 0.7343397038
A15: Domain | B15: % Proficient | C15: Number and Percentage of Students at Each Score
C16: Score of 0 | E16: Score of 1 | G16: Score of 2 | I16: Score of 3 | K16: Score of 4
A17: Purpose, Focus, and Organization (PFO) | B17: =IF(I14<10,#N/A,IFERROR(ROUND(SUM(I17,K17)/I14*100,0),#N/A)) -> 24 | C17: =IF($I14<10,"NA",VLOOKUP($A$2,'POST G3'!$A$3:$S$501,7,FALSE)) -> 2347 | D17: =IFERROR(ROUND(C17/$I14*100,0),"NA") -> 11 | E17: =IF($I14<10,"NA",VLOOKUP($A$2,'POST G3'!$A$3:$S$501,8,FALSE)) -> 6323 | F17: =IFERROR(ROUND(E17/$I14*100,0),"NA") -> 31 | G17: =IF($I14<10,"NA",VLOOKUP($A$2,'POST G3'!$A$3:$S$501,9,FALSE)) -> 6899 | H17: =IFERROR(ROUND(G17/$I14*100,0),"NA") -> 34 | I17: =IF($I14<10,"NA",VLOOKUP($A$2,'POST G3'!$A$3:$S$501,10,FALSE)) -> 4004 | J17: =IFERROR(ROUND(I17/$I14*100,0),"NA") -> 20 | K17: =IF($I14<10,"NA",VLOOKUP($A$2,'POST G3'!$A$3:$S$501,11,FALSE)) -> 907 | L17: =IFERROR(ROUND(K17/$I14*100,0),"NA") -> 4
A18: Evidence and Elaboration (EE) | B18: =IF(I14<10,#N/A,IFERROR(ROUND(SUM(I18,K18)/I14*100,0),#N/A)) -> 17 | C18: =IF($I14<10,"NA",VLOOKUP($A$2,'POST G3'!$A$3:$S$501,12,FALSE)) -> 2918 | D18: =IFERROR(ROUND(C18/$I14*100,0),"NA") -> 14 | E18: =IF($I14<10,"NA",VLOOKUP($A$2,'POST G3'!$A$3:$S$501,13,FALSE)) -> 7529 | F18: =IFERROR(ROUND(E18/$I14*100,0),"NA") -> 37 | G18: =IF($I14<10,"NA",VLOOKUP($A$2,'POST G3'!$A$3:$S$501,14,FALSE)) -> 6571 | H18: =IFERROR(ROUND(G18/$I14*100,0),"NA") -> 32 | I18: =IF($I14<10,"NA",VLOOKUP($A$2,'POST G3'!$A$3:$S$501,15,FALSE)) -> 2960 | J18: =IFERROR(ROUND(I18/$I14*100,0),"NA") -> 14 | K18: =IF($I14<10,"NA",VLOOKUP($A$2,'POST G3'!$A$3:$S$501,16,FALSE)) -> 502 | L18: =IFERROR(ROUND(K18/$I14*100,0),"NA") -> 2
A19: Conventions of Standard English | B19: =IF(OR(I14<10,I14="NA"),#N/A,H19) -> 36 | C19: =IF($I14<10,"NA",VLOOKUP($A$2,'POST G3'!$A$3:$S$501,17,FALSE)) -> 3550 | D19: =IFERROR(ROUND(C19/$I14*100,0),"NA") -> 17 | E19: =IF($I14<10,"NA",VLOOKUP($A$2,'POST G3'!$A$3:$S$501,18,FALSE)) -> 9603 | F19: =IFERROR(ROUND(E19/$I14*100,0),"NA") -> 47 | G19: =IF($I14<10,"NA",VLOOKUP($A$2,'POST G3'!$A$3:$S$501,19,FALSE)) -> 7327 | H19: =IFERROR(ROUND(G19/$I14*100,0),"NA") -> 36
A21: Grade: | B21: =IFERROR(VLOOKUP($A$2,'POST G4'!$A$3:$S$501,3,FALSE),"NA") -> 4 | C21: Enrollment: | F21: =IFERROR(VLOOKUP(TEXT($A$2,"0000"),'Mem01-27-2015'!$A$3:$O$500,8,FALSE),"NA") -> 25008 | G21: Number Tested: | I21: =IFERROR(VLOOKUP($A$2,'POST G4'!$A$3:$S$501,5,FALSE),"NA") -> 19672 | J21: % Tested: | L21: =IFERROR(IF(OR(I21<10,I21="NA"),"NA",IF(I21>F21,1,I21/F21)),"NA") -> 0.786628279
A22: Domain | B22: % Proficient | C22: Number and Percentage of Students at Each Score
C23: Score of 0 | E23: Score of 1 | G23: Score of 2 | I23: Score of 3 | K23: Score of 4
A24: Purpose, Focus, and Organization (PFO) | B24: =IF(I21<10,#N/A,IFERROR(ROUND(SUM(I24,K24)/I21*100,0),#N/A)) -> 36 | C24: =IF($I21<10,"NA",VLOOKUP($A$2,'POST G4'!$A$3:$S$501,7,FALSE)) -> 1012 | D24: =IFERROR(ROUND(C24/$I21*100,0),"NA") -> 5 | E24: =IF($I21<10,"NA",VLOOKUP($A$2,'POST G4'!$A$3:$S$501,8,FALSE)) -> 4159 | F24: =IFERROR(ROUND(E24/$I21*100,0),"NA") -> 21 | G24: =IF($I21<10,"NA",VLOOKUP($A$2,'POST G4'!$A$3:$S$501,9,FALSE)) -> 7508 | H24: =IFERROR(ROUND(G24/$I21*100,0),"NA") -> 38 | I24: =IF($I21<10,"NA",VLOOKUP($A$2,'POST G4'!$A$3:$S$501,10,FALSE)) -> 5692 | J24: =IFERROR(ROUND(I24/$I21*100,0),"NA") -> 29 | K24: =IF($I21<10,"NA",VLOOKUP($A$2,'POST G4'!$A$3:$S$501,11,FALSE)) -> 1301 | L24: =IFERROR(ROUND(K24/$I21*100,0),"NA") -> 7
A25: Evidence and Elaboration (EE) | B25: =IF(I21<10,#N/A,IFERROR(ROUND(SUM(I25,K25)/I21*100,0),#N/A)) -> 21 | C25: =IF($I21<10,"NA",VLOOKUP($A$2,'POST G4'!$A$3:$S$501,12,FALSE)) -> 1427 | D25: =IFERROR(ROUND(C25/$I21*100,0),"NA") -> 7 | E25: =IF($I21<10,"NA",VLOOKUP($A$2,'POST G4'!$A$3:$S$501,13,FALSE)) -> 5806 | F25: =IFERROR(ROUND(E25/$I21*100,0),"NA") -> 30 | G25: =IF($I21<10,"NA",VLOOKUP($A$2,'POST G4'!$A$3:$S$501,14,FALSE)) -> 8306 | H25: =IFERROR(ROUND(G25/$I21*100,0),"NA") -> 42 | I25: =IF($I21<10,"NA",VLOOKUP($A$2,'POST G4'!$A$3:$S$501,15,FALSE)) -> 3678 | J25: =IFERROR(ROUND(I25/$I21*100,0),"NA") -> 19 | K25: =IF($I21<10,"NA",VLOOKUP($A$2,'POST G4'!$A$3:$S$501,16,FALSE)) -> 455 | L25: =IFERROR(ROUND(K25/$I21*100,0),"NA") -> 2
A26: Conventions of Standard English | B26: =IF(OR(I21<10,I21="NA"),#N/A,H26) -> 44 | C26: =IF($I21<10,"NA",VLOOKUP($A$2,'POST G4'!$A$3:$S$501,17,FALSE)) -> 1831 | D26: =IFERROR(ROUND(C26/$I21*100,0),"NA") -> 9 | E26: =IF($I21<10,"NA",VLOOKUP($A$2,'POST G4'!$A$3:$S$501,18,FALSE)) -> 9153 | F26: =IFERROR(ROUND(E26/$I21*100,0),"NA") -> 47 | G26: =IF($I21<10,"NA",VLOOKUP($A$2,'POST G4'!$A$3:$S$501,19,FALSE)) -> 8688 | H26: =IFERROR(ROUND(G26/$I21*100,0),"NA") -> 44
A28: Grade: | B28: =IFERROR(VLOOKUP($A$2,'POST G5'!$A$3:$S$501,3,FALSE),"NA") -> 5 | C28: Enrollment: | F28: =IFERROR(VLOOKUP(TEXT($A$2,"0000"),'Mem01-27-2015'!$A$3:$O$500,9,FALSE),"NA") -> 25374 | G28: Number Tested: | I28: =IFERROR(VLOOKUP($A$2,'POST G5'!$A$3:$S$501,5,FALSE),"NA") -> 19526 | J28: % Tested: | L28: =IFERROR(IF(OR(I28<10,I28="NA"),"NA",IF(I28>F28,1,I28/F28)),"NA") -> 0.7695278632
A29: Domain | B29: % Proficient | C29: Number and Percentage of Students at Each Score
C30: Score of 0 | E30: Score of 1 | G30: Score of 2 | I30: Score of 3 | K30: Score of 4
A31: Purpose, Focus, and Organization (PFO) | B31: =IF(I28<10,#N/A,IFERROR(ROUND(SUM(I31,K31)/I28*100,0),#N/A)) -> 43 | C31: =IF($I28<10,"NA",VLOOKUP($A$2,'POST G5'!$A$3:$S$501,7,FALSE)) -> 787 | D31: =IFERROR(ROUND(C31/$I28*100,0),"NA") -> 4 | E31: =IF($I28<10,"NA",VLOOKUP($A$2,'POST G5'!$A$3:$S$501,8,FALSE)) -> 3277 | F31: =IFERROR(ROUND(E31/$I28*100,0),"NA") -> 17 | G31: =IF($I28<10,"NA",VLOOKUP($A$2,'POST G5'!$A$3:$S$501,9,FALSE)) -> 6987 | H31: =IFERROR(ROUND(G31/$I28*100,0),"NA") -> 36 | I31: =IF($I28<10,"NA",VLOOKUP($A$2,'POST G5'!$A$3:$S$501,10,FALSE)) -> 6319 | J31: =IFERROR(ROUND(I31/$I28*100,0),"NA") -> 32 | K31: =IF($I28<10,"NA",VLOOKUP($A$2,'POST G5'!$A$3:$S$501,11,FALSE)) -> 2156 | L31: =IFERROR(ROUND(K31/$I28*100,0),"NA") -> 11
A32: Evidence and Elaboration (EE) | B32: =IF(I28<10,#N/A,IFERROR(ROUND(SUM(I32,K32)/I28*100,0),#N/A)) -> 30 | C32: =IF($I28<10,"NA",VLOOKUP($A$2,'POST G5'!$A$3:$S$501,12,FALSE)) -> 1120 | D32: =IFERROR(ROUND(C32/$I28*100,0),"NA") -> 6 | E32: =IF($I28<10,"NA",VLOOKUP($A$2,'POST G5'!$A$3:$S$501,13,FALSE)) -> 4574 | F32: =IFERROR(ROUND(E32/$I28*100,0),"NA") -> 23 | G32: =IF($I28<10,"NA",VLOOKUP($A$2,'POST G5'!$A$3:$S$501,14,FALSE)) -> 7961 | H32: =IFERROR(ROUND(G32/$I28*100,0),"NA") -> 41 | I32: =IF($I28<10,"NA",VLOOKUP($A$2,'POST G5'!$A$3:$S$501,15,FALSE)) -> 4808 | J32: =IFERROR(ROUND(I32/$I28*100,0),"NA") -> 25 | K32: =IF($I28<10,"NA",VLOOKUP($A$2,'POST G5'!$A$3:$S$501,16,FALSE)) -> 1063 | L32: =IFERROR(ROUND(K32/$I28*100,0),"NA") -> 5
A33: Conventions of Standard English | B33: =IF(OR(I28<10,I28="NA"),#N/A,H33) -> 55 | C33: =IF($I28<10,"NA",VLOOKUP($A$2,'POST G5'!$A$3:$S$501,17,FALSE)) -> 1199 | D33: =IFERROR(ROUND(C33/$I28*100,0),"NA") -> 6 | E33: =IF($I28<10,"NA",VLOOKUP($A$2,'POST G5'!$A$3:$S$501,18,FALSE)) -> 7599 | F33: =IFERROR(ROUND(E33/$I28*100,0),"NA") -> 39 | G33: =IF($I28<10,"NA",VLOOKUP($A$2,'POST G5'!$A$3:$S$501,19,FALSE)) -> 10728 | H33: =IFERROR(ROUND(G33/$I28*100,0),"NA") -> 55

Sheet Pre-Post G3-5
A1: Click Here to "Select School" Page
A2: ='Select School'!$B$3 -> 9999
A3: 2014-15 Writing Pre-Test and Post-Test Comparison (Opinion Prompt): Grades 3-5 | O3: ="9999"&"-"&VLOOKUP("9999",SchList!$A$1:$B$499,2,FALSE) -> 9999-District
A4: =TEXT(A2,"0000")&"-"&VLOOKUP(TEXT(A2,"0000"),SchList!$A$1:$B$499,2,FALSE) -> 9999-District
O6: Domain | P6: Purpose, Focus, and Organization (PFO) | U6: Domain | V6: % Tested
Q8: Grade 3 | R8: Grade 4 | S8: Grade 5 | W8: Grade 3 | X8: Grade 4 | Y8: Grade 5
O9: District | P9: Pre-Test | Q9: ='PRE G3-5'!$P$7 -> 6.820212852 | R9: ='PRE G3-5'!$P$8 -> 10.47423939 | S9: ='PRE G3-5'!$P$9 -> 18.95762965 | U9: District | V9: Pre-Test | W9: =ROUND(IFERROR(VLOOKUP(9999,'PRE G3'!$A$3:$S$500,5,FALSE),#N/A)/IFERROR(VLOOKUP(TEXT(9999,"0000"),'Mem11-14-2014'!$A$3:$O$500,7,FALSE),#N/A)*100,0) -> 88 | X9: =ROUND(IFERROR(VLOOKUP(9999,'PRE G4'!$A$3:$S$500,5,FALSE),#N/A)/IFERROR(VLOOKUP(TEXT(9999,"0000"),'Mem11-14-2014'!$A$3:$O$500,8,FALSE),#N/A)*100,0) -> 92 | Y9: =ROUND(IFERROR(VLOOKUP(9999,'PRE G5'!$A$3:$S$500,5,FALSE),#N/A)/IFERROR(VLOOKUP(TEXT(9999,"0000"),'Mem11-14-2014'!$A$3:$O$500,9,FALSE),#N/A)*100,0) -> 93
O10: District | P10: Post-Test | Q10: ='POST G3-5'!$P$7 -> 23.97949219 | R10: ='POST G3-5'!$P$8 -> 35.54798699 | S10: ='POST G3-5'!$P$9 -> 43.40366691 | U10: District | V10: Post-Test | W10: =ROUND(IFERROR(VLOOKUP(9999,'POST G3'!$A$3:$S$501,5,FALSE),#N/A)/IFERROR(VLOOKUP(TEXT(9999,"0000"),'Mem01-27-2015'!$A$3:$O$500,7,FALSE),#N/A)*100,0) -> 73 | X10: =ROUND(IFERROR(VLOOKUP(9999,'POST G4'!$A$3:$S$300,5,FALSE),#N/A)/IFERROR(VLOOKUP(TEXT(9999,"0000"),'Mem01-27-2015'!$A$3:$O$500,8,FALSE),#N/A)*100,0) -> 79 | Y10: =ROUND(IFERROR(VLOOKUP(9999,'POST G5'!$A$3:$S$300,5,FALSE),#N/A)/IFERROR(VLOOKUP(TEXT(9999,"0000"),'Mem01-27-2015'!$A$3:$O$500,9,FALSE),#N/A)*100,0) -> 77
O12: =TEXT('Select School'!$B$3,"0000")&"-"&VLOOKUP(TEXT('Select School'!$B$3,"0000"),SchList!$A$1:$B$500,2,FALSE) -> 9999-District | U12: =TEXT('Select School'!$B$3,"0000")&"-"&VLOOKUP(TEXT('Select School'!$B$3,"0000"),SchList!$A$1:$B$500,2,FALSE) -> 9999-District
O13: School | P13: Pre-Test | Q13: ='PRE G3-5'!$P$11 -> 7 | R13: ='PRE G3-5'!$P$12 -> 10 | S13: ='PRE G3-5'!$P$13 -> 19 | U13: School | V13: Pre-Test | W13: =IF('PRE G3-5'!L14="NA",#N/A,'PRE G3-5'!L14*100) -> 88.19862425 | X13: =IF('PRE G3-5'!L21="NA",#N/A,'PRE G3-5'!L21*100) -> 92.30335949 | Y13: =IF('PRE G3-5'!L28="NA",#N/A,'PRE G3-5'!L28*100) -> 92.58570184
O14: School | P14: Post-Test | Q14: ='POST G3-5'!$P$11 -> 24 | R14: ='POST G3-5'!$P$12 -> 36 | S14: ='POST G3-5'!$P$13 -> 43 | U14: School | V14: Post-Test | W14: =IF('POST G3-5'!L14="NA",#N/A,'POST G3-5'!L14*100) -> 73.43397038 | X14: =IF('POST G3-5'!L21="NA",#N/A,'POST G3-5'!L21*100) -> 78.6628279 | Y14: =IF('POST G3-5'!L28="NA",#N/A,'POST G3-5'!L28*100) -> 76.95278632
O16: Domain | P16: Evidence and Elaboration (EE)
Q18: Grade 3 | R18: Grade 4 | S18: Grade 5
O19: District | P19: Pre-Test | Q19: ='PRE G3-5'!$Q$7 -> 4.309854578 | R19: ='PRE G3-5'!$Q$8 -> 5.766716067 | S19: ='PRE G3-5'!$Q$9 -> 12.20231733
O20: District | P20: Post-Test | Q20: ='POST G3-5'!$Q$7 -> 16.90429688 | R20: ='POST G3-5'!$Q$8 -> 21.00955673 | S20: ='POST G3-5'!$Q$9 -> 30.06760217
O22: =TEXT('Select School'!$B$3,"0000")&"-"&VLOOKUP(TEXT('Select School'!$B$3,"0000"),SchList!$A$1:$B$500,2,FALSE) -> 9999-District
O23: School | P23: Pre-Test | Q23: ='PRE G3-5'!$Q$11 -> 4 | R23: ='PRE G3-5'!$Q$12 -> 6 | S23: ='PRE G3-5'!$Q$13 -> 12
O24: School | P24: Post-Test | Q24: ='POST G3-5'!$Q$11 -> 17 | R24: ='POST G3-5'!$Q$12 -> 21 | S24: ='POST G3-5'!$Q$13 -> 30
O26: Domain | P26: Conventions of Standard English
Q28: Grade 3 | R28: Grade 4 | S28: Grade 5
O29: District | P29: Pre-Test | Q29: ='PRE G3-5'!$R$7 -> 17.2028597 | R29: ='PRE G3-5'!$R$8 -> 22.77046465 | S29: ='PRE G3-5'!$R$9 -> 34.55042969
O30: District | P30: Post-Test | Q30: ='POST G3-5'!$R$7 -> 35.77636719 | R30: ='POST G3-5'!$R$8 -> 44.16429443 | S30: ='POST G3-5'!$R$9 -> 54.94212844
O32: =TEXT('Select School'!$B$3,"0000")&"-"&VLOOKUP(TEXT('Select School'!$B$3,"0000"),SchList!$A$1:$B$500,2,FALSE) -> 9999-District
O33: School | P33: Pre-Test | Q33: ='PRE G3-5'!$R$11 -> 17 | R33: ='PRE G3-5'!$R$12 -> 23 | S33: ='PRE G3-5'!$R$13 -> 35
O34: School | P34: Post-Test | Q34: ='POST G3-5'!$R$11 -> 36 | R34: ='POST G3-5'!$R$12 -> 44 | S34: ='POST G3-5'!$R$13 -> 55

Sheet PRE G6-8
A1: Click Here to "Select School" Page
A2: ='Select School'!$B$3 -> 9999
A3: 2014-15 Writing Pre-Test Report (Argumentative Prompt): Grades 6-8 | N3: ="9999"&"-"&VLOOKUP("9999",SchList!$A$1:$B$499,2,FALSE) -> 9999-District
A4: =TEXT(A2,"0000")&"-"&VLOOKUP(TEXT(A2,"0000"),SchList!$A$1:$B$499,2,FALSE) -> 9999-District
A5: School: % Proficient | E5: District: % Proficient
N6: Group | O6: Grade | P6: PFO | Q6: EE | R6: Conventions
N7: District | O7: G06 | P7: =SUM(VLOOKUP(9999,'PRE Data'!$A$806:$S$969,10,FALSE),VLOOKUP(9999,'PRE Data'!$A$806:$S$969,11,FALSE))/VLOOKUP(9999,'PRE Data'!$A$806:$S$969,5,FALSE)*100 -> 15.48626254 | Q7: =SUM(VLOOKUP(9999,'PRE Data'!$A$806:$S$969,15,FALSE),VLOOKUP(9999,'PRE Data'!$A$806:$S$969,16,FALSE))/VLOOKUP(9999,'PRE Data'!$A$806:$S$969,5,FALSE)*100 -> 10.27474924 | R7: =VLOOKUP(9999,'PRE Data'!$A$806:$S$969,19,FALSE)/VLOOKUP(9999,'PRE Data'!$A$806:$S$969,5,FALSE)*100 -> 25.98778892
N8: District | O8: G07 | P8: =SUM(VLOOKUP(9999,'PRE Data'!$A$970:$S$1123,10,FALSE),VLOOKUP(9999,'PRE Data'!$A$970:$S$1123,11,FALSE))/VLOOKUP(9999,'PRE Data'!$A$970:$S$1123,5,FALSE)*100 -> 16.88570291 | Q8: =SUM(VLOOKUP(9999,'PRE Data'!$A$970:$S$1123,15,FALSE),VLOOKUP(9999,'PRE Data'!$A$970:$S$1123,16,FALSE))/VLOOKUP(9999,'PRE Data'!$A$970:$S$1123,5,FALSE)*100 -> 13.22624895 | R8: =VLOOKUP(9999,'PRE Data'!$A$970:$S$1123,19,FALSE)/VLOOKUP(9999,'PRE Data'!$A$970:$S$1123,5,FALSE)*100 -> 27.2003186
N9: District | O9: G08 | P9: =SUM(VLOOKUP(9999,'PRE Data'!$A$1124:$S$1274,10,FALSE),VLOOKUP(9999,'PRE Data'!$A$1124:$S$1274,11,FALSE))/VLOOKUP(9999,'PRE Data'!$A$1124:$S$1274,5,FALSE)*100 -> 20.88612871 | Q9: =SUM(VLOOKUP(9999,'PRE Data'!$A$1124:$S$1274,15,FALSE),VLOOKUP(9999,'PRE Data'!$A$1124:$S$1274,16,FALSE))/VLOOKUP(9999,'PRE Data'!$A$1124:$S$1274,5,FALSE)*100 -> 14.59653218 | R9: =VLOOKUP(9999,'PRE Data'!$A$1124:$S$1274,19,FALSE)/VLOOKUP(9999,'PRE Data'!$A$1124:$S$1274,5,FALSE)*100 -> 31.00616872
N10: =A4 -> 9999-District
N11: School | O11: G06 | P11: =B17 -> 15 | Q11: =B18 -> 10 | R11: =B19 -> 26
N12: School | O12: G07 | P12: =B24 -> 17 | Q12: =B25 -> 13 | R12: =B26 -> 27
N13: School | O13: G08 | P13: =B31 -> 21 | Q13: =B32 -> 15 | R13: =B33 -> 31
A14: Grade: | B14: =IFERROR(VLOOKUP($A$2,'PRE G6'!$A$3:$S$500,3,FALSE),"NA") -> 6 | C14: Enrollment: | F14: =IFERROR(VLOOKUP(TEXT($A$2,"0000"),'Mem11-14-2014'!$A$3:$O$500,10,FALSE),"NA") -> 25978 | G14: Number Tested: | I14: =IFERROR(VLOOKUP($A$2,'PRE G6'!$A$3:$S$500,5,FALSE),"NA") -> 22930 | J14: % Tested: | L14: =IFERROR(IF(OR(I14="NA",I14<10),"NA",IF(I14>F14,1,I14/F14)),"NA") -> 0.8826699515
A15: Domain | B15: % Proficient | C15: Number and Percentage of Students at Each Score
C16: Score of 0 | E16: Score of 1 | G16: Score of 2 | I16: Score of 3 | K16: Score of 4
A17: Purpose, Focus, and Organization (PFO) | B17: =IF(I14<10,#N/A,IFERROR(ROUND(SUM(I17,K17)/I14*100,0),#N/A)) -> 15 | C17: =IF($I14<10,"NA",VLOOKUP($A$2,'PRE G6'!$A$3:$S$500,7,FALSE)) -> 3009 | D17: =IFERROR(ROUND(C17/$I14*100,0),"NA") -> 13 | E17: =IF($I14<10,"NA",VLOOKUP($A$2,'PRE G6'!$A$3:$S$500,8,FALSE)) -> 9599 | F17: =IFERROR(ROUND(E17/$I14*100,0),"NA") -> 42 | G17: =IF($I14<10,"NA",VLOOKUP($A$2,'PRE G6'!$A$3:$S$500,9,FALSE)) -> 6771 | H17: =IFERROR(ROUND(G17/$I14*100,0),"NA") -> 30 | I17: =IF($I14<10,"NA",VLOOKUP($A$2,'PRE G6'!$A$3:$S$500,10,FALSE)) -> 3046 | J17: =IFERROR(ROUND(I17/$I14*100,0),"NA") -> 13 | K17: =IF($I14<10,"NA",VLOOKUP($A$2,'PRE G6'!$A$3:$S$500,11,FALSE)) -> 505 | L17: =IFERROR(ROUND(K17/$I14*100,0),"NA") -> 2
A18: Evidence and Elaboration (EE) | B18: =IF(I14<10,#N/A,IFERROR(ROUND(SUM(I18,K18)/I14*100,0),#N/A)) -> 10 | C18: =IF($I14<10,"NA",VLOOKUP($A$2,'PRE G6'!$A$3:$S$500,12,FALSE)) -> 3494 | D18: =IFERROR(ROUND(C18/$I14*100,0),"NA") -> 15 | E18: =IF($I14<10,"NA",VLOOKUP($A$2,'PRE G6'!$A$3:$S$500,13,FALSE)) -> 10703 | F18: =IFERROR(ROUND(E18/$I14*100,0),"NA") -> 47 | G18: =IF($I14<10,"NA",VLOOKUP($A$2,'PRE G6'!$A$3:$S$500,14,FALSE)) -> 6377 | H18: =IFERROR(ROUND(G18/$I14*100,0),"NA") -> 28 | I18: =IF($I14<10,"NA",VLOOKUP($A$2,'PRE G6'!$A$3:$S$500,15,FALSE)) -> 2070 | J18: =IFERROR(ROUND(I18/$I14*100,0),"NA") -> 9 | K18: =IF($I14<10,"NA",VLOOKUP($A$2,'PRE G6'!$A$3:$S$500,16,FALSE)) -> 286 | L18: =IFERROR(ROUND(K18/$I14*100,0),"NA") -> 1
A19: Conventions of Standard English | B19: =IF(OR(I14<10,I14="NA"),#N/A,H19) -> 26 | C19: =IF($I14<10,"NA",VLOOKUP($A$2,'PRE G6'!$A$3:$S$500,17,FALSE)) -> 3639 | D19: =IFERROR(ROUND(C19/$I14*100,0),"NA") -> 16 | E19: =IF($I14<10,"NA",VLOOKUP($A$2,'PRE G6'!$A$3:$S$500,18,FALSE)) -> 13332 | F19: =IFERROR(ROUND(E19/$I14*100,0),"NA") -> 58 | G19: =IF($I14<10,"NA",VLOOKUP($A$2,'PRE G6'!$A$3:$S$500,19,FALSE)) -> 5959 | H19: =IFERROR(ROUND(G19/$I14*100,0),"NA") -> 26
A21: Grade: | B21: =IFERROR(VLOOKUP($A$2,'PRE G7'!$A$3:$S$500,3,FALSE),"NA") -> 7 | C21: Enrollment: | F21: =IFERROR(VLOOKUP(TEXT($A$2,"0000"),'Mem11-14-2014'!$A$3:$O$500,11,FALSE),"NA") -> 26046 | G21: Number Tested: | I21: =IFERROR(VLOOKUP($A$2,'PRE G7'!$A$3:$S$500,5,FALSE),"NA") -> 22599 | J21: % Tested: | L21: =IFERROR(IF(OR(I21<10,I21="NA"),"NA",IF(I21>F21,1,I21/F21)),"NA") -> 0.8676572218
A22: Domain | B22: % Proficient | C22: Number and Percentage of Students at Each Score
C23: Score of 0 | E23: Score of 1 | G23: Score of 2 | I23: Score of 3 | K23: Score of 4
A24: Purpose, Focus, and Organization (PFO) | B24: =IF(I21<10,#N/A,IFERROR(ROUND(SUM(I24,K24)/I21*100,0),#N/A)) -> 17 | C24: =IF($I21<10,"NA",VLOOKUP($A$2,'PRE G7'!$A$3:$S$500,7,FALSE)) -> 2557 | D24: =IFERROR(ROUND(C24/$I21*100,0),"NA") -> 11 | E24: =IF($I21<10,"NA",VLOOKUP($A$2,'PRE G7'!$A$3:$S$500,8,FALSE)) -> 8963 | F24: =IFERROR(ROUND(E24/$I21*100,0),"NA") -> 40 | G24: =IF($I21<10,"NA",VLOOKUP($A$2,'PRE G7'!$A$3:$S$500,9,FALSE)) -> 7263 | H24: =IFERROR(ROUND(G24/$I21*100,0),"NA") -> 32 | I24: =IF($I21<10,"NA",VLOOKUP($A$2,'PRE G7'!$A$3:$S$500,10,FALSE)) -> 3302 | J24: =IFERROR(ROUND(I24/$I21*100,0),"NA") -> 15 | K24: =IF($I21<10,"NA",VLOOKUP($A$2,'PRE G7'!$A$3:$S$500,11,FALSE)) -> 514 | L24: =IFERROR(ROUND(K24/$I21*100,0),"NA") -> 2
A25: Evidence and Elaboration (EE) | B25: =IF(I21<10,#N/A,IFERROR(ROUND(SUM(I25,K25)/I21*100,0),#N/A)) -> 13 | C25: =IF($I21<10,"NA",VLOOKUP($A$2,'PRE G7'!$A$3:$S$500,12,FALSE)) -> 2897 | D25: =IFERROR(ROUND(C25/$I21*100,0),"NA") -> 13 | E25: =IF($I21<10,"NA",VLOOKUP($A$2,'PRE G7'!$A$3:$S$500,13,FALSE)) -> 9471 | F25: =IFERROR(ROUND(E25/$I21*100,0),"NA") -> 42 | G25: =IF($I21<10,"NA",VLOOKUP($A$2,'PRE G7'!$A$3:$S$500,14,FALSE)) -> 7242 | H25: =IFERROR(ROUND(G25/$I21*100,0),"NA") -> 32 | I25: =IF($I21<10,"NA",VLOOKUP($A$2,'PRE G7'!$A$3:$S$500,15,FALSE)) -> 2666 | J25: =IFERROR(ROUND(I25/$I21*100,0),"NA") -> 12 | K25: =IF($I21<10,"NA",VLOOKUP($A$2,'PRE G7'!$A$3:$S$500,16,FALSE)) -> 323 | L25: =IFERROR(ROUND(K25/$I21*100,0),"NA") -> 1
A26: Conventions of Standard English | B26: =IF(OR(I21<10,I21="NA"),#N/A,H26) -> 27 | C26: =IF($I21<10,"NA",VLOOKUP($A$2,'PRE G7'!$A$3:$S$500,17,FALSE)) -> 3281 | D26: =IFERROR(ROUND(C26/$I21*100,0),"NA") -> 15 | E26: =IF($I21<10,"NA",VLOOKUP($A$2,'PRE G7'!$A$3:$S$500,18,FALSE)) -> 13171 | F26: =IFERROR(ROUND(E26/$I21*100,0),"NA") -> 58 | G26: =IF($I21<10,"NA",VLOOKUP($A$2,'PRE G7'!$A$3:$S$500,19,FALSE)) -> 6147 | H26: =IFERROR(ROUND(G26/$I21*100,0),"NA") -> 27
A28: Grade: | B28: =IFERROR(VLOOKUP($A$2,'PRE G8'!$A$3:$S$500,3,FALSE),"NA") -> 8 | C28: Enrollment: | F28: =IFERROR(VLOOKUP(TEXT($A$2,"0000"),'Mem11-14-2014'!$A$3:$O$500,12,FALSE),"NA") -> 26896 | G28: Number Tested: | I28: =IFERROR(VLOOKUP($A$2,'PRE G8'!$A$3:$S$500,5,FALSE),"NA") -> 23992 | J28: % Tested: | L28: =IFERROR(IF(OR(I28<10,I28="NA"),"NA",IF(I28>F28,1,I28/F28)),"NA") -> 0.8920285544
A29: Domain | B29: % Proficient | C29: Number and Percentage of Students at Each Score
C30: Score of 0 | E30: Score of 1 | G30: Score of 2 | I30: Score of 3 | K30: Score of 4
A31: Purpose, Focus, and Organization (PFO) | B31: =IF(I28<10,#N/A,IFERROR(ROUND(SUM(I31,K31)/I28*100,0),#N/A)) -> 21 | C31: =IF($I28<10,"NA",VLOOKUP($A$2,'PRE G8'!$A$3:$S$500,7,FALSE)) -> 1291 | D31: =IFERROR(ROUND(C31/$I28*100,0),"NA") -> 5 | E31: =IF($I28<10,"NA",VLOOKUP($A$2,'PRE G8'!$A$3:$S$500,8,FALSE)) -> 8535 | F31: =IFERROR(ROUND(E31/$I28*100,0),"NA") -> 36 | G31: =IF($I28<10,"NA",VLOOKUP($A$2,'PRE G8'!$A$3:$S$500,9,FALSE)) -> 9155 | H31: =IFERROR(ROUND(G31/$I28*100,0),"NA") -> 38 | I31: =IF($I28<10,"NA",VLOOKUP($A$2,'PRE G8'!$A$3:$S$500,10,FALSE)) -> 4468 | J31: =IFERROR(ROUND(I31/$I28*100,0),"NA") -> 19 | K31: =IF($I28<10,"NA",VLOOKUP($A$2,'PRE G8'!$A$3:$S$500,11,FALSE)) -> 543 | L31: =IFERROR(ROUND(K31/$I28*100,0),"NA") -> 2
A32: Evidence and Elaboration (EE) | B32: =IF(I28<10,#N/A,IFERROR(ROUND(SUM(I32,K32)/I28*100,0),#N/A)) -> 15 | C32: =IF($I28<10,"NA",VLOOKUP($A$2,'PRE G8'!$A$3:$S$500,12,FALSE)) -> 1766 | D32: =IFERROR(ROUND(C32/$I28*100,0),"NA") -> 7 | E32: =IF($I28<10,"NA",VLOOKUP($A$2,'PRE G8'!$A$3:$S$500,13,FALSE)) -> 9324 | F32: =IFERROR(ROUND(E32/$I28*100,0),"NA") -> 39 | G32: =IF($I28<10,"NA",VLOOKUP($A$2,'PRE G8'!$A$3:$S$500,14,FALSE)) -> 9400 | H32: =IFERROR(ROUND(G32/$I28*100,0),"NA") -> 39 | I32: =IF($I28<10,"NA",VLOOKUP($A$2,'PRE G8'!$A$3:$S$500,15,FALSE)) -> 3142 | J32: =IFERROR(ROUND(I32/$I28*100,0),"NA") -> 13 | K32: =IF($I28<10,"NA",VLOOKUP($A$2,'PRE G8'!$A$3:$S$500,16,FALSE)) -> 360 | L32: =IFERROR(ROUND(K32/$I28*100,0),"NA") -> 2
A33: Conventions of Standard English | B33: =IF(OR(I28<10,I28="NA"),#N/A,H33) -> 31 | C33: =IF($I28<10,"NA",VLOOKUP($A$2,'PRE G8'!$A$3:$S$500,17,FALSE)) -> 2585 | D33: =IFERROR(ROUND(C33/$I28*100,0),"NA") -> 11 | E33: =IF($I28<10,"NA",VLOOKUP($A$2,'PRE G8'!$A$3:$S$500,18,FALSE)) -> 13966 | F33: =IFERROR(ROUND(E33/$I28*100,0),"NA") -> 58 | G33: =IF($I28<10,"NA",VLOOKUP($A$2,'PRE G8'!$A$3:$S$500,19,FALSE)) -> 7439 | H33: =IFERROR(ROUND(G33/$I28*100,0),"NA") -> 31

Sheet POST G6-8
A1: Click Here to "Select School" Page
A2: ='Select School'!$B$3 -> 9999
A3: 2014-15 Writing Post-Test Report (Argumentative Prompt): Grades 6-8 | N3: ="9999"&"-"&VLOOKUP("9999",SchList!$A$1:$B$499,2,FALSE) -> 9999-District
A4: =TEXT(A2,"0000")&"-"&VLOOKUP(TEXT(A2,"0000"),SchList!$A$1:$B$499,2,FALSE) -> 9999-District
A5: School: % Proficient | E5: District: % Proficient
N6: Group | O6: Grade | P6: PFO | Q6: EE | R6: Conventions
N7: District | O7: G06 | P7: =SUM(VLOOKUP(9999,'POST G6'!$A$3:$S$500,10,FALSE),VLOOKUP(9999,'POST G6'!$A$3:$S$500,11,FALSE))/VLOOKUP(9999,'POST G6'!$A$3:$S$500,5,FALSE)*100 -> 30.58915334 | Q7: =SUM(VLOOKUP(9999,'POST G6'!$A$3:$S$500,15,FALSE),VLOOKUP(9999,'POST G6'!$A$3:$S$500,16,FALSE))/VLOOKUP(9999,'POST G6'!$A$3:$S$500,5,FALSE)*100 -> 22.2688256 | R7: =VLOOKUP(9999,'POST G6'!$A$3:$S$500,19,FALSE)/VLOOKUP(9999,'POST G6'!$A$3:$S$500,5,FALSE)*100 -> 42.52828716
N8: District | O8: G07 | P8: =SUM(VLOOKUP(9999,'POST G7'!$A$3:$S$500,10,FALSE),VLOOKUP(9999,'POST G7'!$A$3:$S$500,11,FALSE))/VLOOKUP(9999,'POST G7'!$A$3:$S$500,5,FALSE)*100 -> 29.41600231 | Q8: =SUM(VLOOKUP(9999,'POST G7'!$A$3:$S$500,15,FALSE),VLOOKUP(9999,'POST G7'!$A$3:$S$500,16,FALSE))/VLOOKUP(9999,'POST G7'!$A$3:$S$500,5,FALSE)*100 -> 23.72010374 | R8: =VLOOKUP(9999,'POST G7'!$A$3:$S$500,19,FALSE)/VLOOKUP(9999,'POST G7'!$A$3:$S$500,5,FALSE)*100 -> 42.1237153
N9: District | O9: G08 | P9: =SUM(VLOOKUP(9999,'POST G8'!$A$3:$S$500,10,FALSE),VLOOKUP(9999,'POST G8'!$A$3:$S$500,11,FALSE))/VLOOKUP(9999,'POST G8'!$A$3:$S$500,5,FALSE)*100 -> 38.53055057 | Q9: =SUM(VLOOKUP(9999,'POST G8'!$A$3:$S$500,15,FALSE),VLOOKUP(9999,'POST G8'!$A$3:$S$500,16,FALSE))/VLOOKUP(9999,'POST G8'!$A$3:$S$500,5,FALSE)*100 -> 28.09519312 | R9: =VLOOKUP(9999,'POST G8'!$A$3:$S$500,19,FALSE)/VLOOKUP(9999,'POST G8'!$A$3:$S$500,5,FALSE)*100 -> 43.02105959
N10: =A4 -> 9999-District
N11: School | O11: G06 | P11: =B17 -> 31 | Q11: =B18 -> 22 | R11: =B19 -> 43
N12: School | O12: G07 | P12: =B24 -> 29 | Q12: =B25 -> 24 | R12: =B26 -> 42
N13: School | O13: G08 | P13: =B31 -> 39 | Q13: =B32 -> 28 | R13: =B33 -> 43
A14: Grade: | B14: =IFERROR(VLOOKUP($A$2,'POST G6'!$A$3:$S$500,3,FALSE),"NA") -> 6 | C14: Enrollment: | F14: =IFERROR(VLOOKUP(TEXT($A$2,"0000"),'Mem01-27-2015'!$A$3:$O$500,10,FALSE),"NA") -> 26008 | G14: Number Tested: | I14: =IFERROR(VLOOKUP($A$2,'POST G6'!$A$3:$S$500,5,FALSE),"NA") -> 20504 | J14: % Tested: | L14: =IFERROR(IF(OR(I14="NA",I14<10),"NA",IF(I14>F14,1,I14/F14)),"NA") -> 0.7883728084
A15: Domain | B15: % Proficient | C15: Number and Percentage of Students at Each Score
C16: Score of 0 | E16: Score of 1 | G16: Score of 2 | I16: Score of 3 | K16: Score of 4
A17: Purpose, Focus, and Organization (PFO) | B17: =IF(I14<10,#N/A,IFERROR(ROUND(SUM(I17,K17)/I14*100,0),#N/A)) -> 31 | C17: =IF($I14<10,"NA",VLOOKUP($A$2,'POST G6'!$A$3:$S$500,7,FALSE)) -> 1455 | D17: =IFERROR(ROUND(C17/$I14*100,0),"NA") -> 7 | E17: =IF($I14<10,"NA",VLOOKUP($A$2,'POST G6'!$A$3:$S$500,8,FALSE)) -> 5903 | F17: =IFERROR(ROUND(E17/$I14*100,0),"NA") -> 29 | G17: =IF($I14<10,"NA",VLOOKUP($A$2,'POST G6'!$A$3:$S$500,9,FALSE)) -> 6874 | H17: =IFERROR(ROUND(G17/$I14*100,0),"NA") -> 34 | I17: =IF($I14<10,"NA",VLOOKUP($A$2,'POST G6'!$A$3:$S$500,10,FALSE)) -> 5036 | J17: =IFERROR(ROUND(I17/$I14*100,0),"NA") -> 25 | K17: =IF($I14<10,"NA",VLOOKUP($A$2,'POST G6'!$A$3:$S$500,11,FALSE)) -> 1236 | L17: =IFERROR(ROUND(K17/$I14*100,0),"NA") -> 6
A18: Evidence and Elaboration (EE) | B18: =IF(I14<10,#N/A,IFERROR(ROUND(SUM(I18,K18)/I14*100,0),#N/A)) -> 22 | C18: =IF($I14<10,"NA",VLOOKUP($A$2,'POST G6'!$A$3:$S$500,12,FALSE)) -> 1672 | D18: =IFERROR(ROUND(C18/$I14*100,0),"NA") -> 8 | E18: =IF($I14<10,"NA",VLOOKUP($A$2,'POST G6'!$A$3:$S$500,13,FALSE)) -> 6812 | F18: =IFERROR(ROUND(E18/$I14*100,0),"NA") -> 33 | G18: =IF($I14<10,"NA",VLOOKUP($A$2,'POST G6'!$A$3:$S$500,14,FALSE)) -> 7454 | H18: =IFERROR(ROUND(G18/$I14*100,0),"NA") -> 36 | I18: =IF($I14<10,"NA",VLOOKUP($A$2,'POST G6'!$A$3:$S$500,15,FALSE)) -> 3808 | J18: =IFERROR(ROUND(I18/$I14*100,0),"NA") -> 19 | K18: =IF($I14<10,"NA",VLOOKUP($A$2,'POST G6'!$A$3:$S$500,16,FALSE)) -> 758 | L18: =IFERROR(ROUND(K18/$I14*100,0),"NA") -> 4
A19: Conventions of Standard English | B19: =IF(OR(I14<10,I14="NA"),#N/A,H19) -> 43 | C19: =IF($I14<10,"NA",VLOOKUP($A$2,'POST G6'!$A$3:$S$500,17,FALSE)) -> 2004 | D19: =IFERROR(ROUND(C19/$I14*100,0),"NA") -> 10 | E19: =IF($I14<10,"NA",VLOOKUP($A$2,'POST G6'!$A$3:$S$500,18,FALSE)) -> 9780 | F19: =IFERROR(ROUND(E19/$I14*100,0),"NA") -> 48 | G19: =IF($I14<10,"NA",VLOOKUP($A$2,'POST G6'!$A$3:$S$500,19,FALSE)) -> 8720 | H19: =IFERROR(ROUND(G19/$I14*100,0),"NA") -> 43
A21: Grade: | B21: =IFERROR(VLOOKUP($A$2,'POST G7'!$A$3:$S$500,3,FALSE),"NA") -> 7 | C21: Enrollment: | F21: =IFERROR(VLOOKUP(TEXT($A$2,"0000"),'Mem01-27-2015'!$A$3:$O$500,11,FALSE),"NA") -> 26186 | G21: Number Tested: | I21: =IFERROR(VLOOKUP($A$2,'POST G7'!$A$3:$S$500,5,FALSE),"NA") -> 20822 | J21: % Tested: | L21: =IFERROR(IF(OR(I21<10,I21="NA"),"NA",IF(I21>F21,1,I21/F21)),"NA") -> 0.7951577179
A22: Domain | B22: % Proficient | C22: Number and Percentage of Students at Each Score
C23: Score of 0 | E23: Score of 1 | G23: Score of 2 | I23: Score of 3 | K23: Score of 4
A24: Purpose, Focus, and Organization (PFO) | B24: =IF(I21<10,#N/A,IFERROR(ROUND(SUM(I24,K24)/I21*100,0),#N/A)) -> 29 | C24: =IF($I21<10,"NA",VLOOKUP($A$2,'POST G7'!$A$3:$S$500,7,FALSE)) -> 1498 | D24: =IFERROR(ROUND(C24/$I21*100,0),"NA") -> 7 | E24: =IF($I21<10,"NA",VLOOKUP($A$2,'POST G7'!$A$3:$S$500,8,FALSE)) -> 6098 | F24: =IFERROR(ROUND(E24/$I21*100,0),"NA") -> 29 | G24: =IF($I21<10,"NA",VLOOKUP($A$2,'POST G7'!$A$3:$S$500,9,FALSE)) -> 7101 | H24: =IFERROR(ROUND(G24/$I21*100,0),"NA") -> 34 | I24: =IF($I21<10,"NA",VLOOKUP($A$2,'POST G7'!$A$3:$S$500,10,FALSE)) -> 4960 | J24: =IFERROR(ROUND(I24/$I21*100,0),"NA") -> 24 | K24: =IF($I21<10,"NA",VLOOKUP($A$2,'POST G7'!$A$3:$S$500,11,FALSE)) -> 1165 | L24: =IFERROR(ROUND(K24/$I21*100,0),"NA") -> 6
A25: Evidence and Elaboration (EE) | B25: =IF(I21<10,#N/A,IFERROR(ROUND(SUM(I25,K25)/I21*100,0),#N/A)) -> 24 | C25: =IF($I21<10,"NA",VLOOKUP($A$2,'POST G7'!$A$3:$S$500,12,FALSE)) -> 1688 | D25: =IFERROR(ROUND(C25/$I21*100,0),"NA") -> 8 | E25: =IF($I21<10,"NA",VLOOKUP($A$2,'POST G7'!$A$3:$S$500,13,FALSE)) -> 6535 | F25: =IFERROR(ROUND(E25/$I21*100,0),"NA") -> 31 | G25: =IF($I21<10,"NA",VLOOKUP($A$2,'POST G7'!$A$3:$S$500,14,FALSE)) -> 7660 | H25: =IFERROR(ROUND(G25/$I21*100,0),"NA") -> 37 | I25: =IF($I21<10,"NA",VLOOKUP($A$2,'POST G7'!$A$3:$S$500,15,FALSE)) -> 4057 | J25: =IFERROR(ROUND(I25/$I21*100,0),"NA") -> 19 | K25: =IF($I21<10,"NA",VLOOKUP($A$2,'POST G7'!$A$3:$S$500,16,FALSE)) -> 882 | L25: =IFERROR(ROUND(K25/$I21*100,0),"NA") -> 4
A26: Conventions of Standard English | B26: =IF(OR(I21<10,I21="NA"),#N/A,H26) -> 42 | C26: =IF($I21<10,"NA",VLOOKUP($A$2,'POST G7'!$A$3:$S$500,17,FALSE)) -> 1892 | D26: =IFERROR(ROUND(C26/$I21*100,0),"NA") -> 9 | E26: =IF($I21<10,"NA",VLOOKUP($A$2,'POST G7'!$A$3:$S$500,18,FALSE)) -> 10159 | F26: =IFERROR(ROUND(E26/$I21*100,0),"NA") -> 49 | G26: =IF($I21<10,"NA",VLOOKUP($A$2,'POST G7'!$A$3:$S$500,19,FALSE)) -> 8771 | H26: =IFERROR(ROUND(G26/$I21*100,0),"NA") -> 42
A28: Grade: | B28: =IFERROR(VLOOKUP($A$2,'POST G8'!$A$3:$S$500,3,FALSE),"NA") -> 8 | C28: Enrollment: | F28: =IFERROR(VLOOKUP(TEXT($A$2,"0000"),'Mem01-27-2015'!$A$3:$O$500,12,FALSE),"NA") -> 26942 | G28: Number Tested: | I28: =IFERROR(VLOOKUP($A$2,'POST G8'!$A$3:$S$500,5,FALSE),"NA") -> 21178 | J28: % Tested: | L28: =IFERROR(IF(OR(I28<10,I28="NA"),"NA",IF(I28>F28,1,I28/F28)),"NA") -> 0.7860589414
A29: Domain | B29: % Proficient | C29: Number and Percentage of Students at Each Score
C30: Score of 0 | E30: Score of 1 | G30: Score of 2 | I30: Score of 3 | K30: Score of 4
A31: Purpose, Focus, and Organization (PFO) | B31: =IF(I28<10,#N/A,IFERROR(ROUND(SUM(I31,K31)/I28*100,0),#N/A)) -> 39 | C31: =IF($I28<10,"NA",VLOOKUP($A$2,'POST G8'!$A$3:$S$500,7,FALSE)) -> 782 | D31: =IFERROR(ROUND(C31/$I28*100,0),"NA") -> 4 | E31: =IF($I28<10,"NA",VLOOKUP($A$2,'POST G8'!$A$3:$S$500,8,FALSE)) -> 4582 | F31: =IFERROR(ROUND(E31/$I28*100,0),"NA") -> 22 | G31: =IF($I28<10,"NA",VLOOKUP($A$2,'POST G8'!$A$3:$S$500,9,FALSE)) -> 7654 | H31: =IFERROR(ROUND(G31/$I28*100,0),"NA") -> 36 | I31: =IF($I28<10,"NA",VLOOKUP($A$2,'POST G8'!$A$3:$S$500,10,FALSE)) -> 6481 | J31: =IFERROR(ROUND(I31/$I28*100,0),"NA") -> 31 | K31: =IF($I28<10,"NA",VLOOKUP($A$2,'POST G8'!$A$3:$S$500,11,FALSE)) -> 1679 | L31: =IFERROR(ROUND(K31/$I28*100,0),"NA") -> 8
A32: Evidence and Elaboration (EE) | B32: =IF(I28<10,#N/A,IFERROR(ROUND(SUM(I32,K32)/I28*100,0),#N/A)) -> 28 | C32: =IF($I28<10,"NA",VLOOKUP($A$2,'POST G8'!$A$3:$S$500,12,FALSE)) -> 1009 | D32: =IFERROR(ROUND(C32/$I28*100,0),"NA") -> 5 | E32: =IF($I28<10,"NA",VLOOKUP($A$2,'POST G8'!$A$3:$S$500,13,FALSE)) -> 5448 | F32: =IFERROR(ROUND(E32/$I28*100,0),"NA") -> 26 | G32: =IF($I28<10,"NA",VLOOKUP($A$2,'POST G8'!$A$3:$S$500,14,FALSE)) -> 8771 | H32: =IFERROR(ROUND(G32/$I28*100,0),"NA") -> 41 | I32: =IF($I28<10,"NA",VLOOKUP($A$2,'POST G8'!$A$3:$S$500,15,FALSE)) -> 5007 | J32: =IFERROR(ROUND(I32/$I28*100,0),"NA") -> 24 | K32: =IF($I28<10,"NA",VLOOKUP($A$2,'POST G8'!$A$3:$S$500,16,FALSE)) -> 943 | L32: =IFERROR(ROUND(K32/$I28*100,0),"NA") -> 4
A33: Conventions of Standard English | B33: =IF(OR(I28<10,I28="NA"),#N/A,H33) -> 43 | C33: =IF($I28<10,"NA",VLOOKUP($A$2,'POST G8'!$A$3:$S$500,17,FALSE)) -> 1517 | D33: =IFERROR(ROUND(C33/$I28*100,0),"NA") -> 7 | E33: =IF($I28<10,"NA",VLOOKUP($A$2,'POST G8'!$A$3:$S$500,18,FALSE)) -> 10550 | F33: =IFERROR(ROUND(E33/$I28*100,0),"NA") -> 50 | G33: =IF($I28<10,"NA",VLOOKUP($A$2,'POST G8'!$A$3:$S$500,19,FALSE)) -> 9111 | H33: =IFERROR(ROUND(G33/$I28*100,0),"NA") -> 43

Sheet Pre-Post G6-8
A1: Click Here to "Select School" Page
A2: ='Select School'!$B$3 -> 9999
A3: 2014-15 Writing Pre-Test and Post-Test Comparison (Argumentative Prompt): Grades 6-8 | O3: ="9999"&"-"&VLOOKUP("9999",SchList!$A$1:$B$499,2,FALSE) -> 9999-District
A4: =TEXT(A2,"0000")&"-"&VLOOKUP(TEXT(A2,"0000"),SchList!$A$1:$B$499,2,FALSE) -> 9999-District
O6: Domain | P6: Purpose, Focus, and Organization (PFO) | U6: Domain | V6: % Tested
Q8: Grade 6 | R8: Grade 7 | S8: Grade 8 | W8: Grade 6 | X8: Grade 7 | Y8: Grade 8
O9: District | P9: Pre-Test | Q9: ='PRE G6-8'!$P$7 -> 15.48626254 | R9: ='PRE G6-8'!$P$8 -> 16.88570291 | S9: ='PRE G6-8'!$P$9 -> 20.88612871 | U9: District | V9: Pre-Test | W9: =ROUND(IFERROR(VLOOKUP(9999,'PRE G6'!$A$3:$S$500,5,FALSE),#N/A)/IFERROR(VLOOKUP(TEXT(9999,"0000"),'Mem11-14-2014'!$A$3:$O$500,10,FALSE),#N/A)*100,0) -> 88 | X9: =ROUND(IFERROR(VLOOKUP(9999,'PRE G7'!$A$3:$S$500,5,FALSE),#N/A)/IFERROR(VLOOKUP(TEXT(9999,"0000"),'Mem11-14-2014'!$A$3:$O$500,11,FALSE),#N/A)*100,0) -> 87 | Y9: =ROUND(IFERROR(VLOOKUP(9999,'PRE G8'!$A$3:$S$500,5,FALSE),#N/A)/IFERROR(VLOOKUP(TEXT(9999,"0000"),'Mem11-14-2014'!$A$3:$O$500,12,FALSE),#N/A)*100,0) -> 89
O10: District | P10: Post-Test | Q10: ='POST G6-8'!$P$7 -> 30.58915334 | R10: ='POST G6-8'!$P$8 -> 29.41600231 | S10: ='POST G6-8'!$P$9 -> 38.53055057 | U10: District | V10: Post-Test | W10: =ROUND(IFERROR(VLOOKUP(9999,'POST G6'!$A$3:$S$500,5,FALSE),#N/A)/IFERROR(VLOOKUP(TEXT(9999,"0000"),'Mem01-27-2015'!$A$3:$O$500,10,FALSE),#N/A)*100,0) -> 79 | X10: =ROUND(IFERROR(VLOOKUP(9999,'POST G7'!$A$3:$S$500,5,FALSE),#N/A)/IFERROR(VLOOKUP(TEXT(9999,"0000"),'Mem01-27-2015'!$A$3:$O$500,11,FALSE),#N/A)*100,0) -> 80 | Y10: =ROUND(IFERROR(VLOOKUP(9999,'POST G8'!$A$3:$S$500,5,FALSE),#N/A)/IFERROR(VLOOKUP(TEXT(9999,"0000"),'Mem01-27-2015'!$A$3:$O$500,12,FALSE),#N/A)*100,0) -> 79
O12: =TEXT('Select School'!$B$3,"0000")&"-"&VLOOKUP(TEXT('Select School'!$B$3,"0000"),SchList!$A$1:$B$500,2,FALSE) -> 9999-District | U12: =TEXT('Select School'!$B$3,"0000")&"-"&VLOOKUP(TEXT('Select School'!$B$3,"0000"),SchList!$A$1:$B$500,2,FALSE) -> 9999-District
O13: School | P13: Pre-Test | Q13: ='PRE G6-8'!$P$11 -> 15 | R13: ='PRE G6-8'!$P$12 -> 17 | S13: ='PRE G6-8'!$P$13 -> 21 | U13: School | V13: Pre-Test | W13: =IF('PRE G6-8'!L14="NA",#N/A,'PRE G6-8'!L14*100) -> 88.26699515 | X13: =IF('PRE G6-8'!L21="NA",#N/A,'PRE G6-8'!L21*100) -> 86.76572218 | Y13: =IF('PRE G6-8'!L28="NA",#N/A,'PRE G6-8'!L28*100) -> 89.20285544
O14: School | P14: Post-Test | Q14: ='POST G6-8'!$P$11 -> 31 | R14: ='POST G6-8'!$P$12 -> 29 | S14: ='POST G6-8'!$P$13 -> 39 | U14: School | V14: Post-Test | W14: =IF('POST G6-8'!L14="NA",#N/A,'POST G6-8'!L14*100) -> 78.83728084 | X14: =IF('POST G6-8'!L21="NA",#N/A,'POST G6-8'!L21*100) -> 79.51577179 | Y14: =IF('POST G6-8'!L28="NA",#N/A,'POST G6-8'!L28*100) -> 78.60589414
O16: Domain | P16: Evidence and Elaboration (EE)
Q18: Grade 6 | R18: Grade 7 | S18: Grade 8
O19: District | P19: Pre-Test | Q19: ='PRE G6-8'!$Q$7 -> 10.27474924 | R19: ='PRE G6-8'!$Q$8 -> 13.22624895 | S19: ='PRE G6-8'!$Q$9 -> 14.59653218
O20: District | P20: Post-Test | Q20: ='POST G6-8'!$Q$7 -> 22.2688256 | R20: ='POST G6-8'!$Q$8 -> 23.72010374 | S20: ='POST G6-8'!$Q$9 -> 28.09519312
O22: =TEXT('Select School'!$B$3,"0000")&"-"&VLOOKUP(TEXT('Select School'!$B$3,"0000"),SchList!$A$1:$B$500,2,FALSE) -> 9999-District
O23: School | P23: Pre-Test | Q23: ='PRE G6-8'!$Q$11 -> 10 | R23: ='PRE G6-8'!$Q$12 -> 13 | S23: ='PRE G6-8'!$Q$13 -> 15
O24: School | P24: Post-Test | Q24: ='POST G6-8'!$Q$11 -> 22 | R24: ='POST G6-8'!$Q$12 -> 24 | S24: ='POST G6-8'!$Q$13 -> 28
O26: Domain | P26: Conventions of Standard English
Q28: Grade 6 | R28: Grade 7 | S28: Grade 8
O29: District | P29: Pre-Test | Q29: ='PRE G6-8'!$R$7 -> 25.98778892 | R29: ='PRE G6-8'!$R$8 -> 27.2003186 | S29: ='PRE G6-8'!$R$9 -> 31.00616872
O30: District | P30: Post-Test | Q30: ='POST G6-8'!$R$7 -> 42.52828716 | R30: ='POST G6-8'!$R$8 -> 42.1237153 | S30: ='POST G6-8'!$R$9 -> 43.02105959
O32: =TEXT('Select School'!$B$3,"0000")&"-"&VLOOKUP(TEXT('Select School'!$B$3,"0000"),SchList!$A$1:$B$500,2,FALSE) -> 9999-District
O33: School | P33: Pre-Test | Q33: ='PRE G6-8'!$R$11 -> 26 | R33: ='PRE G6-8'!$R$12 -> 27 | S33: ='PRE G6-8'!$R$13 -> 31
O34: School | P34: Post-Test | Q34: ='POST G6-8'!$R$11 -> 43 | R34: ='POST G6-8'!$R$12 -> 42 | S34: ='POST G6-8'!$R$13 -> 43

Sheet PRE G9-11
A1: Click Here to "Select School" Page
A2: ='Select School'!$B$3 -> 9999
A3: 2014-15 Writing Pre-Test Report (Argumentative Prompt): Grades 9-11 | N3: ="9999"&"-"&VLOOKUP("9999",SchList!$A$1:$B$499,2,FALSE) -> 9999-District
A4: =TEXT(A2,"0000")&"-"&VLOOKUP(TEXT(A2,"0000"),SchList!$A$1:$B$499,2,FALSE) -> 9999-District
A5: School: % Proficient | E5: District: % Proficient
N6: Group | O6: Grade | P6: PFO | Q6: EE | R6: Conventions
N7: District | O7: G09 | P7: =SUM(VLOOKUP(9999,'PRE Data'!$A$1275:$S$1378,10,FALSE),VLOOKUP(9999,'PRE Data'!$A$1275:$S$1378,11,FALSE))/VLOOKUP(9999,'PRE Data'!$A$1275:$S$1378,5,FALSE)*100 -> 22.82964619 | Q7: =SUM(VLOOKUP(9999,'PRE Data'!$A$1275:$S$1378,15,FALSE),VLOOKUP(9999,'PRE Data'!$A$1275:$S$1378,16,FALSE))/VLOOKUP(9999,'PRE Data'!$A$1275:$S$1378,5,FALSE)*100 -> 16.27266193 | R7: =VLOOKUP(9999,'PRE Data'!$A$1275:$S$1378,19,FALSE)/VLOOKUP(9999,'PRE Data'!$A$1275:$S$1378,5,FALSE)*100 -> 35.14495647
N8: District | O8: G10 | P8: =SUM(VLOOKUP(9999,'PRE Data'!$A$1379:$S$1473,10,FALSE),VLOOKUP(9999,'PRE Data'!$A$1379:$S$1473,11,FALSE))/VLOOKUP(9999,'PRE Data'!$A$1379:$S$1473,5,FALSE)*100 -> 22.65482985 | Q8: =SUM(VLOOKUP(9999,'PRE Data'!$A$1379:$S$1473,15,FALSE),VLOOKUP(9999,'PRE Data'!$A$1379:$S$1473,16,FALSE))/VLOOKUP(9999,'PRE Data'!$A$1379:$S$1473,5,FALSE)*100 -> 17.48044811 | R8: =VLOOKUP(9999,'PRE Data'!$A$1379:$S$1473,19,FALSE)/VLOOKUP(9999,'PRE Data'!$A$1379:$S$1473,5,FALSE)*100 -> 36.49122807
N9: District | O9: G11 | P9: =SUM(VLOOKUP(9999,'PRE Data'!$A$1474:$S$1569,10,FALSE),VLOOKUP(9999,'PRE Data'!$A$1474:$S$1569,11,FALSE))/VLOOKUP(9999,'PRE Data'!$A$1474:$S$1569,5,FALSE)*100 -> 29.67103955 | Q9: =SUM(VLOOKUP(9999,'PRE Data'!$A$1474:$S$1569,15,FALSE),VLOOKUP(9999,'PRE Data'!$A$1474:$S$1569,16,FALSE))/VLOOKUP(9999,'PRE Data'!$A$1474:$S$1569,5,FALSE)*100 -> 22.25700656 | R9: =VLOOKUP(9999,'PRE Data'!$A$1474:$S$1569,19,FALSE)/VLOOKUP(9999,'PRE Data'!$A$1474:$S$1569,5,FALSE)*100 -> 41.66169748
N10: =A4 -> 9999-District
N11: School | O11: G09 | P11: =B17 -> 23 | Q11: =B18 -> 16 | R11: =B19 -> 35
N12: School | O12: G10 | P12: =B24 -> 23 | Q12: =B25 -> 17 | R12: =B26 -> 36
N13: School | O13: G11 | P13: =B31 -> 30 | Q13: =B32 -> 22 | R13: =B33 -> 42
A14: Grade: | B14: =IFERROR(VLOOKUP($A$2,'PRE G9'!$A$3:$S$500,3,FALSE),"NA") -> 9 | C14: Enrollment: | F14: =IFERROR(VLOOKUP(TEXT($A$2,"0000"),'Mem11-14-2014'!$A$3:$O$474,13,FALSE),"NA") -> 28349 | G14: Number Tested: | I14: =IFERROR(VLOOKUP($A$2,'PRE G9'!$A$3:$S$500,5,FALSE),"NA") -> 25042 | J14: % Tested: | L14: =IFERROR(IF(OR(I14<10,I14="NA"),"NA",IF(I14>F14,1,I14/F14)),"NA") -> 0.8833468553
A15: Domain | B15: % Proficient | C15: Number and Percentage of Students at Each Score
C16: Score of 0 | E16: Score of 1 | G16: Score of 2 | I16: Score of 3 | K16: Score of 4
A17: Purpose, Focus, and Organization (PFO) | B17: =IF(I14<10,#N/A,IFERROR(ROUND(SUM(I17,K17)/I14*100,0),#N/A)) -> 23 | C17: =IF($I14<10,"NA",VLOOKUP($A$2,'PRE G9'!$A$3:$S$500,7,FALSE)) -> 2204 | D17: =IFERROR(ROUND(C17/$I14*100,0),"NA") -> 9 | E17: =IF($I14<10,"NA",VLOOKUP($A$2,'PRE G9'!$A$3:$S$500,8,FALSE)) -> 8002 | F17: =IFERROR(ROUND(E17/$I14*100,0),"NA") -> 32 | G17: =IF($I14<10,"NA",VLOOKUP($A$2,'PRE G9'!$A$3:$S$500,9,FALSE)) -> 9119 | H17: =IFERROR(ROUND(G17/$I14*100,0),"NA") -> 36 | I17: =IF($I14<10,"NA",VLOOKUP($A$2,'PRE G9'!$A$3:$S$500,10,FALSE)) -> 4895 | J17: =IFERROR(ROUND(I17/$I14*100,0),"NA") -> 20 | K17: =IF($I14<10,"NA",VLOOKUP($A$2,'PRE G9'!$A$3:$S$500,11,FALSE)) -> 822 | L17: =IFERROR(ROUND(K17/$I14*100,0),"NA") -> 3
A18: Evidence and Elaboration (EE) | B18: =IF(I14<10,#N/A,IFERROR(ROUND(SUM(I18,K18)/I14*100,0),#N/A)) -> 16 | C18: =IF($I14<10,"NA",VLOOKUP($A$2,'PRE G9'!$A$3:$S$500,12,FALSE)) -> 2946 | D18: =IFERROR(ROUND(C18/$I14*100,0),"NA") -> 12 | E18: =IF($I14<10,"NA",VLOOKUP($A$2,'PRE G9'!$A$3:$S$500,13,FALSE)) -> 9499 | F18: =IFERROR(ROUND(E18/$I14*100,0),"NA") -> 38 | G18: =IF($I14<10,"NA",VLOOKUP($A$2,'PRE G9'!$A$3:$S$500,14,FALSE)) -> 8522 | H18: =IFERROR(ROUND(G18/$I14*100,0),"NA") -> 34 | I18: =IF($I14<10,"NA",VLOOKUP($A$2,'PRE G9'!$A$3:$S$500,15,FALSE)) -> 3573 | J18: =IFERROR(ROUND(I18/$I14*100,0),"NA") -> 14 | K18: =IF($I14<10,"NA",VLOOKUP($A$2,'PRE G9'!$A$3:$S$500,16,FALSE)) -> 502 | L18: =IFERROR(ROUND(K18/$I14*100,0),"NA") -> 2
A19: Conventions of Standard English | B19: =IF(OR(I14<10,I14="NA"),#N/A,H19) -> 35 | C19: =IF($I14<10,"NA",VLOOKUP($A$2,'PRE G9'!$A$3:$S$500,17,FALSE)) -> 3414 | D19: =IFERROR(ROUND(C19/$I14*100,0),"NA") -> 14 | E19: =IF($I14<10,"NA",VLOOKUP($A$2,'PRE G9'!$A$3:$S$500,18,FALSE)) -> 12827 | F19: =IFERROR(ROUND(E19/$I14*100,0),"NA") -> 51 | G19: =IF($I14<10,"NA",VLOOKUP($A$2,'PRE G9'!$A$3:$S$500,19,FALSE)) -> 8801 | H19: =IFERROR(ROUND(G19/$I14*100,0),"NA") -> 35
A21: Grade: | B21: =IFERROR(VLOOKUP($A$2,'PRE G10'!$A$3:$S$500,3,FALSE),"NA") -> 10 | C21: Enrollment: | F21: =IFERROR(VLOOKUP(TEXT($A$2,"0000"),'Mem11-14-2014'!$A$3:$O$474,14,FALSE),"NA") -> 27772 | G21: Number Tested: | I21: =IFERROR(VLOOKUP($A$2,'PRE G10'!$A$3:$S$500,5,FALSE),"NA") -> 23655 | J21: % Tested: | L21: =IFERROR(IF(OR(I21<10,I21="NA"),"NA",IF(I21>F21,1,I21/F21)),"NA") -> 0.8517571655
A22: Domain | B22: % Proficient | C22: Number and Percentage of Students at Each Score
C23: Score of 0 | E23: Score of 1 | G23: Score of 2 | I23: Score of 3 | K23: Score of 4
A24: Purpose, Focus, and Organization (PFO) | B24: =IF(I21<10,#N/A,IFERROR(ROUND(SUM(I24,K24)/I21*100,0),#N/A)) -> 23 | C24: =IF($I21<10,"NA",VLOOKUP($A$2,'PRE G10'!$A$3:$S$500,7,FALSE)) -> 2079 | D24: =IFERROR(ROUND(C24/$I21*100,0),"NA") -> 9 | E24: =IF($I21<10,"NA",VLOOKUP($A$2,'PRE G10'!$A$3:$S$500,8,FALSE)) -> 6901 | F24: =IFERROR(ROUND(E24/$I21*100,0),"NA") -> 29 | G24: =IF($I21<10,"NA",VLOOKUP($A$2,'PRE G10'!$A$3:$S$500,9,FALSE)) -> 9316 | H24: =IFERROR(ROUND(G24/$I21*100,0),"NA") -> 39 | I24: =IF($I21<10,"NA",VLOOKUP($A$2,'PRE G10'!$A$3:$S$500,10,FALSE)) -> 4481 | J24: =IFERROR(ROUND(I24/$I21*100,0),"NA") -> 19 | K24: =IF($I21<10,"NA",VLOOKUP($A$2,'PRE G10'!$A$3:$S$500,11,FALSE)) -> 878 | L24: =IFERROR(ROUND(K24/$I21*100,0),"NA") -> 4
A25: Evidence and Elaboration (EE) | B25: =IF(I21<10,#N/A,IFERROR(ROUND(SUM(I25,K25)/I21*100,0),#N/A)) -> 17 | C25: =IF($I21<10,"NA",VLOOKUP($A$2,'PRE G10'!$A$3:$S$500,12,FALSE)) -> 2566 | D25: =IFERROR(ROUND(C25/$I21*100,0),"NA") -> 11 | E25: =IF($I21<10,"NA",VLOOKUP($A$2,'PRE G10'!$A$3:$S$500,13,FALSE)) -> 8027 | F25: =IFERROR(ROUND(E25/$I21*100,0),"NA") -> 34 | G25: =IF($I21<10,"NA",VLOOKUP($A$2,'PRE G10'!$A$3:$S$500,14,FALSE)) -> 8927 | H25: =IFERROR(ROUND(G25/$I21*100,0),"NA") -> 38 | I25: =IF($I21<10,"NA",VLOOKUP($A$2,'PRE G10'!$A$3:$S$500,15,FALSE)) -> 3555 | J25: =IFERROR(ROUND(I25/$I21*100,0),"NA") -> 15 | K25: =IF($I21<10,"NA",VLOOKUP($A$2,'PRE G10'!$A$3:$S$500,16,FALSE)) -> 580 | L25: =IFERROR(ROUND(K25/$I21*100,0),"NA") -> 2
A26: Conventions of Standard English | B26: =IF(OR(I21<10,I21="NA"),#N/A,H26) -> 36 | C26: =IF($I21<10,"NA",VLOOKUP($A$2,'PRE G10'!$A$3:$S$500,17,FALSE)) -> 2885 | D26: =IFERROR(ROUND(C26/$I21*100,0),"NA") -> 12 | E26: =IF($I21<10,"NA",VLOOKUP($A$2,'PRE G10'!$A$3:$S$500,18,FALSE)) -> 12138 | F26: =IFERROR(ROUND(E26/$I21*100,0),"NA") -> 51 | G26: =IF($I21<10,"NA",VLOOKUP($A$2,'PRE G10'!$A$3:$S$500,19,FALSE)) -> 8632 | H26: =IFERROR(ROUND(G26/$I21*100,0),"NA") -> 36
A28: Grade: | B28: =IFERROR(VLOOKUP($A$2,'PRE G11'!$A$3:$S$500,3,FALSE),"NA") -> 11 | C28: Enrollment: | F28: =IFERROR(VLOOKUP(TEXT($A$2,"0000"),'Mem11-14-2014'!$A$3:$O$474,15,FALSE),"NA") -> 26106 | G28: Number Tested: | I28: =IFERROR(VLOOKUP($A$2,'PRE G11'!$A$3:$S$500,5,FALSE),"NA") -> 20124 | J28: % Tested: | L28: =IFERROR(IF(OR(I28<10,I28="NA"),"NA",IF(I28>F28,1,I28/F28)),"NA") -> 0.7708572742
A29: Domain | B29: % Proficient | C29: Number and Percentage of Students at Each Score
C30: Score of 0 | E30: Score of 1 | G30: Score of 2 | I30: Score of 3 | K30: Score of 4
A31: Purpose, Focus, and Organization (PFO) | B31: =IF(I28<10,#N/A,IFERROR(ROUND(SUM(I31,K31)/I28*100,0),#N/A)) -> 30 | C31: =IF($I28<10,"NA",VLOOKUP($A$2,'PRE G11'!$A$3:$S$500,7,FALSE)) -> 1786 | D31: =IFERROR(ROUND(C31/$I28*100,0),"NA") -> 9 | E31: =IF($I28<10,"NA",VLOOKUP($A$2,'PRE G11'!$A$3:$S$500,8,FALSE)) -> 5100 | F31: =IFERROR(ROUND(E31/$I28*100,0),"NA") -> 25 | G31: =IF($I28<10,"NA",VLOOKUP($A$2,'PRE G11'!$A$3:$S$500,9,FALSE)) -> 7267 | H31: =IFERROR(ROUND(G31/$I28*100,0),"NA") -> 36 | I31: =IF($I28<10,"NA",VLOOKUP($A$2,'PRE G11'!$A$3:$S$500,10,FALSE)) -> 5030 | J31: =IFERROR(ROUND(I31/$I28*100,0),"NA") -> 25 | K31: =IF($I28<10,"NA",VLOOKUP($A$2,'PRE G11'!$A$3:$S$500,11,FALSE)) -> 941 | L31: =IFERROR(ROUND(K31/$I28*100,0),"NA") -> 5
A32: Evidence and Elaboration (EE) | B32: =IF(I28<10,#N/A,IFERROR(ROUND(SUM(I32,K32)/I28*100,0),#N/A)) -> 22 | C32: =IF($I28<10,"NA",VLOOKUP($A$2,'PRE G11'!$A$3:$S$500,12,FALSE)) -> 2420 | D32: =IFERROR(ROUND(C32/$I28*100,0),"NA") -> 12 | E32: =IF($I28<10,"NA",VLOOKUP($A$2,'PRE G11'!$A$3:$S$500,13,FALSE)) -> 6302 | F32: =IFERROR(ROUND(E32/$I28*100,0),"NA") -> 31 | G32: =IF($I28<10,"NA",VLOOKUP($A$2,'PRE G11'!$A$3:$S$500,14,FALSE)) -> 6923 | H32: =IFERROR(ROUND(G32/$I28*100,0),"NA") -> 34 | I32: =IF($I28<10,"NA",VLOOKUP($A$2,'PRE G11'!$A$3:$S$500,15,FALSE)) -> 3733 | J32: =IFERROR(ROUND(I32/$I28*100,0),"NA") -> 19 | K32: =IF($I28<10,"NA",VLOOKUP($A$2,'PRE G11'!$A$3:$S$500,16,FALSE)) -> 746 | L32: =IFERROR(ROUND(K32/$I28*100,0),"NA") -> 4
A33: Conventions of Standard English | B33: =IF(OR(I28<10,I28="NA"),#N/A,H33) -> 42 | C33: =IF($I28<10,"NA",VLOOKUP($A$2,'PRE G11'!$A$3:$S$500,17,FALSE)) -> 2340 | D33: =IFERROR(ROUND(C33/$I28*100,0),"NA") -> 12 | E33: =IF($I28<10,"NA",VLOOKUP($A$2,'PRE G11'!$A$3:$S$500,18,FALSE)) -> 9400 | F33: =IFERROR(ROUND(E33/$I28*100,0),"NA") -> 47 | G33: =IF($I28<10,"NA",VLOOKUP($A$2,'PRE G11'!$A$3:$S$500,19,FALSE)) -> 8384 | H33: =IFERROR(ROUND(G33/$I28*100,0),"NA") -> 42

Sheet POST G9-11
A1: Click Here to "Select School" Page
A2: ='Select School'!$B$3 -> 9999
A3: 2014-15 Writing Post-Test Report (Argumentative Prompt): Grades 9-11 | N3: ="9999"&"-"&VLOOKUP("9999",SchList!$A$1:$B$499,2,FALSE) -> 9999-District
A4: =TEXT(A2,"0000")&"-"&VLOOKUP(TEXT(A2,"0000"),SchList!$A$1:$B$499,2,FALSE) -> 9999-District
A5: School: % Proficient | E5: District: % Proficient
N6: Group | O6: Grade | P6: PFO | Q6: EE | R6: Conventions
N7: District | O7: G09 | P7: =SUM(VLOOKUP(9999,'POST G9'!$A$3:$S$500,10,FALSE),VLOOKUP(9999,'POST G9'!$A$3:$S$500,11,FALSE))/VLOOKUP(9999,'POST G9'!$A$3:$S$500,5,FALSE)*100 -> 38.93544137 | Q7: =SUM(VLOOKUP(9999,'POST G9'!$A$3:$S$500,15,FALSE),VLOOKUP(9999,'POST G9'!$A$3:$S$500,16,FALSE))/VLOOKUP(9999,'POST G9'!$A$3:$S$500,5,FALSE)*100 -> 32.79578393 | R7: =VLOOKUP(9999,'POST G9'!$A$3:$S$500,19,FALSE)/VLOOKUP(9999,'POST G9'!$A$3:$S$500,5,FALSE)*100 -> 48.62714097
N8: District | O8: G10 | P8: =SUM(VLOOKUP(9999,'POST G10'!$A$3:$S$500,10,FALSE),VLOOKUP(9999,'POST G10'!$A$3:$S$500,11,FALSE))/VLOOKUP(9999,'POST G10'!$A$3:$S$500,5,FALSE)*100 -> 41.39019662 | Q8: =SUM(VLOOKUP(9999,'POST G10'!$A$3:$S$500,15,FALSE),VLOOKUP(9999,'POST G10'!$A$3:$S$500,16,FALSE))/VLOOKUP(9999,'POST G10'!$A$3:$S$500,5,FALSE)*100 -> 34.1068956 | R8: =VLOOKUP(9999,'POST G10'!$A$3:$S$500,19,FALSE)/VLOOKUP(9999,'POST G10'!$A$3:$S$500,5,FALSE)*100 -> 50.00276932
N9: District | O9: G11 | P9: =SUM(VLOOKUP(9999,'POST G11'!$A$3:$S$501,10,FALSE),VLOOKUP(9999,'POST G11'!$A$3:$S$501,11,FALSE))/VLOOKUP(9999,'POST G11'!$A$3:$S$501,5,FALSE)*100 -> 42.5440288 | Q9: =SUM(VLOOKUP(9999,'POST G11'!$A$3:$S$501,15,FALSE),VLOOKUP(9999,'POST G11'!$A$3:$S$501,16,FALSE))/VLOOKUP(9999,'POST G11'!$A$3:$S$501,5,FALSE)*100 -> 34.3874534 | R9: =VLOOKUP(9999,'POST G11'!$A$3:$S$501,19,FALSE)/VLOOKUP(9999,'POST G11'!$A$3:$S$501,5,FALSE)*100 -> 56.6075331
N10: =A4 -> 9999-District
N11: School | O11: G09 | P11: =B17 -> 39 | Q11: =B18 -> 33 | R11: =B19 -> 49
N12: School | O12: G10 | P12: =B24 -> 41 | Q12: =B25 -> 34 | R12: =B26 -> 50
N13: School | O13: G11 | P13: =B31 -> 43 | Q13: =B32 -> 34 | R13: =B33 -> 57
A14: Grade: | B14: =IFERROR(VLOOKUP($A$2,'POST G9'!$A$3:$S$500,3,FALSE),"NA") -> 9 | C14: Enrollment: | F14: =IFERROR(VLOOKUP(TEXT($A$2,"0000"),'Mem01-27-2015'!$A$3:$O$500,13,FALSE),"NA") -> 28322 | G14: Number Tested: | I14: =IFERROR(VLOOKUP($A$2,'POST G9'!$A$3:$S$500,5,FALSE),"NA") -> 18975 | J14: % Tested: | L14: =IFERROR(IF(OR(I14<10,I14="NA"),"NA",IF(I14>F14,1,I14/F14)),"NA") -> 0.6699738719
A15: Domain | B15: % Proficient | C15: Number and Percentage of Students at Each Score
C16: Score of 0 | E16: Score of 1 | G16: Score of 2 | I16: Score of 3 | K16: Score of 4
A17: Purpose, Focus, and Organization (PFO) | B17: =IF(I14<10,#N/A,IFERROR(ROUND(SUM(I17,K17)/I14*100,0),#N/A)) -> 39 | C17: =IF($I14<10,"NA",VLOOKUP($A$2,'POST G9'!$A$3:$S$500,7,FALSE)) -> 1082 | D17: =IFERROR(ROUND(C17/$I14*100,0),"NA") -> 6 | E17: =IF($I14<10,"NA",VLOOKUP($A$2,'POST G9'!$A$3:$S$500,8,FALSE)) -> 4026 | F17: =IFERROR(ROUND(E17/$I14*100,0),"NA") -> 21 | G17: =IF($I14<10,"NA",VLOOKUP($A$2,'POST G9'!$A$3:$S$500,9,FALSE)) -> 6479 | H17: =IFERROR(ROUND(G17/$I14*100,0),"NA") -> 34 | I17: =IF($I14<10,"NA",VLOOKUP($A$2,'POST G9'!$A$3:$S$500,10,FALSE)) -> 5751 | J17: =IFERROR(ROUND(I17/$I14*100,0),"NA") -> 30 | K17: =IF($I14<10,"NA",VLOOKUP($A$2,'POST G9'!$A$3:$S$500,11,FALSE)) -> 1637 | L17: =IFERROR(ROUND(K17/$I14*100,0),"NA") -> 9
A18: Evidence and Elaboration (EE) | B18: =IF(I14<10,#N/A,IFERROR(ROUND(SUM(I18,K18)/I14*100,0),#N/A)) -> 33 | C18: =IF($I14<10,"NA",VLOOKUP($A$2,'POST G9'!$A$3:$S$500,12,FALSE)) -> 1355 | D18: =IFERROR(ROUND(C18/$I14*100,0),"NA") -> 7 | E18: =IF($I14<10,"NA",VLOOKUP($A$2,'POST G9'!$A$3:$S$500,13,FALSE)) -> 4536 | F18: =IFERROR(ROUND(E18/$I14*100,0),"NA") -> 24 | G18: =IF($I14<10,"NA",VLOOKUP($A$2,'POST G9'!$A$3:$S$500,14,FALSE)) -> 6861 | H18: =IFERROR(ROUND(G18/$I14*100,0),"NA") -> 36 | I18: =IF($I14<10,"NA",VLOOKUP($A$2,'POST G9'!$A$3:$S$500,15,FALSE)) -> 5093 | J18: =IFERROR(ROUND(I18/$I14*100,0),"NA") -> 27 | K18: =IF($I14<10,"NA",VLOOKUP($A$2,'POST G9'!$A$3:$S$500,16,FALSE)) -> 1130 | L18: =IFERROR(ROUND(K18/$I14*100,0),"NA") -> 6
A19: Conventions of Standard English | B19: =IF(OR(I14<10,I14="NA"),#N/A,H19) -> 49 | C19: =IF($I14<10,"NA",VLOOKUP($A$2,'POST G9'!$A$3:$S$500,17,FALSE)) -> 1521 | D19: =IFERROR(ROUND(C19/$I14*100,0),"NA") -> 8 | E19: =IF($I14<10,"NA",VLOOKUP($A$2,'POST G9'!$A$3:$S$500,18,FALSE)) -> 8227 | F19: =IFERROR(ROUND(E19/$I14*100,0),"NA") -> 43 | G19: =IF($I14<10,"NA",VLOOKUP($A$2,'POST G9'!$A$3:$S$500,19,FALSE)) -> 9227 | H19: =IFERROR(ROUND(G19/$I14*100,0),"NA") -> 49
A21: Grade: | B21: =IFERROR(VLOOKUP($A$2,'POST G10'!$A$3:$S$500,3,FALSE),"NA") -> 10 | C21: Enrollment: | F21: =IFERROR(VLOOKUP(TEXT($A$2,"0000"),'Mem01-27-2015'!$A$3:$O$500,14,FALSE),"NA") -> 27588 | G21: Number Tested: | I21: =IFERROR(VLOOKUP($A$2,'POST G10'!$A$3:$S$500,5,FALSE),"NA") -> 18055 | J21: % Tested: | L21: =IFERROR(IF(OR(I21<10,I21="NA"),"NA",IF(I21>F21,1,I21/F21)),"NA") -> 0.6544512107
A22: Domain | B22: % Proficient | C22: Number and Percentage of Students at Each Score
C23: Score of 0 | E23: Score of 1 | G23: Score of 2 | I23: Score of 3 | K23: Score of 4
A24: Purpose, Focus, and Organization (PFO) | B24: =IF(I21<10,#N/A,IFERROR(ROUND(SUM(I24,K24)/I21*100,0),#N/A)) -> 41 | C24: =IF($I21<10,"NA",VLOOKUP($A$2,'POST G10'!$A$3:$S$500,7,FALSE)) -> 953 | D24: =IFERROR(ROUND(C24/$I21*100,0),"NA") -> 5 | E24: =IF($I21<10,"NA",VLOOKUP($A$2,'POST G10'!$A$3:$S$500,8,FALSE)) -> 3249 | F24: =IFERROR(ROUND(E24/$I21*100,0),"NA") -> 18 | G24: =IF($I21<10,"NA",VLOOKUP($A$2,'POST G10'!$A$3:$S$500,9,FALSE)) -> 6380 | H24: =IFERROR(ROUND(G24/$I21*100,0),"NA") -> 35 | I24: =IF($I21<10,"NA",VLOOKUP($A$2,'POST G10'!$A$3:$S$500,10,FALSE)) -> 5894 | J24: =IFERROR(ROUND(I24/$I21*100,0),"NA") -> 33 | K24: =IF($I21<10,"NA",VLOOKUP($A$2,'POST G10'!$A$3:$S$500,11,FALSE)) -> 1579 | L24: =IFERROR(ROUND(K24/$I21*100,0),"NA") -> 9
A25: Evidence and Elaboration (EE) | B25: =IF(I21<10,#N/A,IFERROR(ROUND(SUM(I25,K25)/I21*100,0),#N/A)) -> 34 | C25: =IF($I21<10,"NA",VLOOKUP($A$2,'POST G10'!$A$3:$S$500,12,FALSE)) -> 1294 | D25: =IFERROR(ROUND(C25/$I21*100,0),"NA") -> 7 | E25: =IF($I21<10,"NA",VLOOKUP($A$2,'POST G10'!$A$3:$S$500,13,FALSE)) -> 3720 | F25: =IFERROR(ROUND(E25/$I21*100,0),"NA") -> 21 | G25: =IF($I21<10,"NA",VLOOKUP($A$2,'POST G10'!$A$3:$S$500,14,FALSE)) -> 6883 | H25: =IFERROR(ROUND(G25/$I21*100,0),"NA") -> 38 | I25: =IF($I21<10,"NA",VLOOKUP($A$2,'POST G10'!$A$3:$S$500,15,FALSE)) -> 4902 | J25: =IFERROR(ROUND(I25/$I21*100,0),"NA") -> 27 | K25: =IF($I21<10,"NA",VLOOKUP($A$2,'POST G10'!$A$3:$S$500,16,FALSE)) -> 1256 | L25: =IFERROR(ROUND(K25/$I21*100,0),"NA") -> 7
A26: Conventions of Standard English | B26: =IF(OR(I21<10,I21="NA"),#N/A,H26) -> 50 | C26: =IF($I21<10,"NA",VLOOKUP($A$2,'POST G10'!$A$3:$S$500,17,FALSE)) -> 1401 | D26: =IFERROR(ROUND(C26/$I21*100,0),"NA") -> 8 | E26: =IF($I21<10,"NA",VLOOKUP($A$2,'POST G10'!$A$3:$S$500,18,FALSE)) -> 7626 | F26: =IFERROR(ROUND(E26/$I21*100,0),"NA") -> 42 | G26: =IF($I21<10,"NA",VLOOKUP($A$2,'POST G10'!$A$3:$S$500,19,FALSE)) -> 9028 | H26: =IFERROR(ROUND(G26/$I21*100,0),"NA") -> 50
A28: Grade: | B28: =IFERROR(VLOOKUP($A$2,'POST G11'!$A$3:$S$500,3,FALSE),"NA") -> 11 | C28: Enrollment: | F28: =IFERROR(VLOOKUP(TEXT($A$2,"0000"),'Mem01-27-2015'!$A$3:$O$500,15,FALSE),"NA") -> 25635 | G28: Number Tested: | I28: =IFERROR(VLOOKUP($A$2,'POST G11'!$A$3:$S$500,5,FALSE),"NA") -> 15558 | J28: % Tested: | L28: =IFERROR(IF(OR(I28<10,I28="NA"),"NA",IF(I28>F28,1,I28/F28)),"NA") -> 0.6069046226
A29: Domain | B29: % Proficient | C29: Number and Percentage of Students at Each Score
C30: Score of 0 | E30: Score of 1 | G30: Score of 2 | I30: Score of 3 | K30: Score of 4
A31: Purpose, Focus, and Organization (PFO) | B31: =IF(I28<10,#N/A,IFERROR(ROUND(SUM(I31,K31)/I28*100,0),#N/A)) -> 43 | C31: =IF($I28<10,"NA",VLOOKUP($A$2,'POST G11'!$A$3:$S$500,7,FALSE)) -> 898 | D31: =IFERROR(ROUND(C31/$I28*100,0),"NA") -> 6 | E31: =IF($I28<10,"NA",VLOOKUP($A$2,'POST G11'!$A$3:$S$500,8,FALSE)) -> 2788 | F31: =IFERROR(ROUND(E31/$I28*100,0),"NA") -> 18 | G31: =IF($I28<10,"NA",VLOOKUP($A$2,'POST G11'!$A$3:$S$500,9,FALSE)) -> 5253 | H31: =IFERROR(ROUND(G31/$I28*100,0),"NA") -> 34 | I31: =IF($I28<10,"NA",VLOOKUP($A$2,'POST G11'!$A$3:$S$500,10,FALSE)) -> 5129 | J31: =IFERROR(ROUND(I31/$I28*100,0),"NA") -> 33 | K31: =IF($I28<10,"NA",VLOOKUP($A$2,'POST G11'!$A$3:$S$500,11,FALSE)) -> 1490 | L31: =IFERROR(ROUND(K31/$I28*100,0),"NA") -> 10
A32: Evidence and Elaboration (EE) | B32: =IF(I28<10,#N/A,IFERROR(ROUND(SUM(I32,K32)/I28*100,0),#N/A)) -> 34 | C32: =IF($I28<10,"NA",VLOOKUP($A$2,'POST G11'!$A$3:$S$500,12,FALSE)) -> 1146 | D32: =IFERROR(ROUND(C32/$I28*100,0),"NA") -> 7 | E32: =IF($I28<10,"NA",VLOOKUP($A$2,'POST G11'!$A$3:$S$500,13,FALSE)) -> 3434 | F32: =IFERROR(ROUND(E32/$I28*100,0),"NA") -> 22 | G32: =IF($I28<10,"NA",VLOOKUP($A$2,'POST G11'!$A$3:$S$500,14,FALSE)) -> 5628 | H32: =IFERROR(ROUND(G32/$I28*100,0),"NA") -> 36 | I32: =IF($I28<10,"NA",VLOOKUP($A$2,'POST G11'!$A$3:$S$500,15,FALSE)) -> 4195 | J32: =IFERROR(ROUND(I32/$I28*100,0),"NA") -> 27 | K32: =IF($I28<10,"NA",VLOOKUP($A$2,'POST G11'!$A$3:$S$500,16,FALSE)) -> 1155 | L32: =IFERROR(ROUND(K32/$I28*100,0),"NA") -> 7
A33: Conventions of Standard English | B33: =IF(OR(I28<10,I28="NA"),#N/A,H33) -> 57 | C33: =IF($I28<10,"NA",VLOOKUP($A$2,'POST G11'!$A$3:$S$500,17,FALSE)) -> 1122 | D33: =IFERROR(ROUND(C33/$I28*100,0),"NA") -> 7 | E33: =IF($I28<10,"NA",VLOOKUP($A$2,'POST G11'!$A$3:$S$500,18,FALSE)) -> 5629 | F33: =IFERROR(ROUND(E33/$I28*100,0),"NA") -> 36 | G33: =IF($I28<10,"NA",VLOOKUP($A$2,'POST G11'!$A$3:$S$500,19,FALSE)) -> 8807 | H33: =IFERROR(ROUND(G33/$I28*100,0),"NA") -> 57

Sheet Pre-Post G9-11
A1: Click Here to "Select School" Page
A2: ='Select School'!$B$3 -> 9999
A3: 2014-15 Writing Pre-Test and Post-Test Comparison (Argumentative Prompt): Grades 9-11 | O3: ="9999"&"-"&VLOOKUP("9999",SchList!$A$1:$B$499,2,FALSE) -> 9999-District
A4: =TEXT(A2,"0000")&"-"&VLOOKUP(TEXT(A2,"0000"),SchList!$A$1:$B$499,2,FALSE) -> 9999-District
O6: Domain | P6: Purpose, Focus, and Organization (PFO) | U6: Domain | V6: % Tested
Q8: Grade 9 | R8: Grade 10 | S8: Grade 11 | W8: Grade 9 | X8: Grade 10 | Y8: Grade 11
O9: District | P9: Pre-Test | Q9: ='PRE G9-11'!$P$7 -> 22.82964619 | R9: ='PRE G9-11'!$P$8 -> 22.65482985 | S9: ='PRE G9-11'!$P$9 -> 29.67103955 | U9: District | V9: Pre-Test | W9: =ROUND(IFERROR(VLOOKUP(9999,'PRE G9'!$A$3:$S$500,5,FALSE),#N/A)/IFERROR(VLOOKUP(TEXT(9999,"0000"),'Mem11-14-2014'!$A$3:$O$500,13,FALSE),#N/A)*100,0) -> 88 | X9: =ROUND(IFERROR(VLOOKUP(9999,'PRE G10'!$A$3:$S$500,5,FALSE),#N/A)/IFERROR(VLOOKUP(TEXT(9999,"0000"),'Mem11-14-2014'!$A$3:$O$500,14,FALSE),#N/A)*100,0) -> 85 | Y9: =ROUND(IFERROR(VLOOKUP(9999,'PRE G11'!$A$3:$S$500,5,FALSE),#N/A)/IFERROR(VLOOKUP(TEXT(9999,"0000"),'Mem11-14-2014'!$A$3:$O$500,15,FALSE),#N/A)*100,0) -> 77
O10: District | P10: Post-Test | Q10: ='POST G9-11'!$P$7 -> 38.93544137 | R10: ='POST G9-11'!$P$8 -> 41.39019662 | S10: ='POST G9-11'!$P$9 -> 42.5440288 | U10: District | V10: Post-Test | W10: =ROUND(IFERROR(VLOOKUP(9999,'POST G9'!$A$3:$S$500,5,FALSE),#N/A)/IFERROR(VLOOKUP(TEXT(9999,"0000"),'Mem01-27-2015'!$A$3:$O$500,13,FALSE),#N/A)*100,0) -> 67 | X10: =ROUND(IFERROR(VLOOKUP(9999,'POST G10'!$A$3:$S$500,5,FALSE),#N/A)/IFERROR(VLOOKUP(TEXT(9999,"0000"),'Mem01-27-2015'!$A$3:$O$500,14,FALSE),#N/A)*100,0) -> 65 | Y10: =ROUND(IFERROR(VLOOKUP(9999,'POST G11'!$A$3:$S$501,5,FALSE),#N/A)/IFERROR(VLOOKUP(TEXT(9999,"0000"),'Mem01-27-2015'!$A$3:$O$500,15,FALSE),#N/A)*100,0) -> 61
O12: =TEXT('Select School'!$B$3,"0000")&"-"&VLOOKUP(TEXT('Select School'!$B$3,"0000"),SchList!$A$1:$B$500,2,FALSE) -> 9999-District | U12: =TEXT('Select School'!$B$3,"0000")&"-"&VLOOKUP(TEXT('Select School'!$B$3,"0000"),SchList!$A$1:$B$500,2,FALSE) -> 9999-District
O13: School | P13: Pre-Test | Q13: ='PRE G9-11'!$P$11 -> 23 | R13: ='PRE G9-11'!$P$12 -> 23 | S13: ='PRE G9-11'!$P$13 -> 30 | U13: School | V13: Pre-Test | W13: =IF('PRE G9-11'!L14="NA",#N/A,'PRE G9-11'!L14*100) -> 88.33468553 | X13: =IF('PRE G9-11'!L21="NA",#N/A,'PRE G9-11'!L21*100) -> 85.17571655 | Y13: =IF('PRE G9-11'!L28="NA",#N/A,'PRE G9-11'!L28*100) -> 77.08572742
O14: School | P14: Post-Test | Q14: ='POST G9-11'!$P$11 -> 39 | R14: ='POST G9-11'!$P$12 -> 41 | S14: ='POST G9-11'!$P$13 -> 43 | U14: School | V14: Post-Test | W14: =IF('POST G9-11'!L14="NA",#N/A,'POST G9-11'!L14*100) -> 66.99738719 | X14: =IF('POST G9-11'!L21="NA",#N/A,'POST G9-11'!L21*100) -> 65.44512107 | Y14: =IF('POST G9-11'!L28="NA",#N/A,'POST G9-11'!L28*100) -> 60.69046226
O16: Domain | P16: Evidence and Elaboration (EE)
Q18: Grade 9 | R18: Grade 10 | S18: Grade 11
O19: District | P19: Pre-Test | Q19: ='PRE G9-11'!$Q$7 -> 16.27266193 | R19: ='PRE G9-11'!$Q$8 -> 17.48044811 | S19: ='PRE G9-11'!$Q$9 -> 22.25700656
O20: District | P20: Post-Test | Q20: ='POST G9-11'!$Q$7 -> 32.79578393 | R20: ='POST G9-11'!$Q$8 -> 34.1068956 | S20: ='POST G9-11'!$Q$9 -> 34.3874534
O22: =TEXT('Select School'!$B$3,"0000")&"-"&VLOOKUP(TEXT('Select School'!$B$3,"0000"),SchList!$A$1:$B$500,2,FALSE) -> 9999-District
O23: School | P23: Pre-Test | Q23: ='PRE G9-11'!$Q$11 -> 16 | R23: ='PRE G9-11'!$Q$12 -> 17 | S23: ='PRE G9-11'!$Q$13 -> 22
O24: School | P24: Post-Test | Q24: ='POST G9-11'!$Q$11 -> 33 | R24: ='POST G9-11'!$Q$12 -> 34 | S24: ='POST G9-11'!$Q$13 -> 34
O26: Domain | P26: Conventions of Standard English
Q28: Grade 9 | R28: Grade 10 | S28: Grade 11
O29: District | P29: Pre-Test | Q29: ='PRE G9-11'!$R$7 -> 35.14495647 | R29: ='PRE G9-11'!$R$8 -> 36.49122807 | S29: ='PRE G9-11'!$R$9 -> 41.66169748
O30: District | P30: Post-Test | Q30: ='POST G9-11'!$R$7 -> 48.62714097 | R30: ='POST G9-11'!$R$8 -> 50.00276932 | S30: ='POST G9-11'!$R$9 -> 56.6075331
O32: =TEXT('Select School'!$B$3,"0000")&"-"&VLOOKUP(TEXT('Select School'!$B$3,"0000"),SchList!$A$1:$B$500,2,FALSE) -> 9999-District
O33: School | P33: Pre-Test | Q33: ='PRE G9-11'!$R$11 -> 35 | R33: ='PRE G9-11'!$R$12 -> 36 | S33: ='PRE G9-11'!$R$13 -> 42
O34: School | P34: Post-Test | Q34: ='POST G9-11'!$R$11 -> 49 | R34: ='POST G9-11'!$R$12 -> 50 | S34: ='POST G9-11'!$R$13 -> 57

Sheet PRE Data (hidden)
A1: =COLUMN() -> 1 | B1: =COLUMN() -> 2 | C1: =COLUMN() -> 3 | D1: =COLUMN() -> 4 | E1: =COLUMN() -> 5 | F1: =COLUMN() -> 6 | G1: =COLUMN() -> 7 | H1: =COLUMN() -> 8 | I1: =COLUMN() -> 9 | J1: =COLUMN() -> 10 | K1: =COLUMN() -> 11 | L1: =COLUMN() -> 12 | M1: =COLUMN() -> 13 | N1: =COLUMN() -> 14 | O1: =COLUMN() -> 15 | P1: =COLUMN() -> 16 | Q1: =COLUMN() -> 17 | R1: =COLUMN() -> 18 | S1: =COLUMN() -> 19 | U1: =COLUMN() -> 21 | V1: =COLUMN() -> 22
A2: SchoolID | B2: SchoolName1 | C2: Grade1 | D2: Prompt11 | E2: StudentCount | F2: Textbox138 | G2: Domain1Score0 | H2: Domain1Score1 | I2: Domain1Score2 | J2: Domain1Score3 | K2: Domain1Score4 | L2: Domain2Score0 | M2: Domain2Score1 | N2: Domain2Score2 | O2: Domain2Score3 | P2: Domain2Score4 | Q2: Domain3Score0 | R2: Domain3Score1 | S2: Domain3Score2 | U2: Enrollment | V2: Tier
A3: 41 | B3: Air Base Elementary | C3: 3 | D3: Opinion | E3: 84 | F3: 4.35 | G3: 0 | H3: 35 | I3: 39 | J3: 10 | K3: 0 | L3: 0 | M3: 57 | N3: 24 | O3: 3 | P3: 0 | Q3: 2 | R3: 56 | S3: 26 | U3: =VLOOKUP(TEXT($A3,"0000"),'Mem11-14-2014'!$A$3:$O$474,'Mem11-14-2014'!G$1,FALSE) -> 127 | V3: =VLOOKUP(A3,'TIER SCH'!$A$2:$D$324,4,FALSE) -> T1
A4: 70 | B4: Coral Reef Montessori Acad Ch | C4: 3 | D4: Opinion | E4: 40 | F4: 4.4 | G4: 1 | H4: 18 | I4: 21 | J4: 0 | K4: 0 | L4: 1 | M4: 20 | N4: 16 | O4: 3 | P4: 0 | Q4: 4 | R4: 17 | S4: 19 | U4: =VLOOKUP(TEXT($A4,"0000"),'Mem11-14-2014'!$A$3:$O$474,'Mem11-14-2014'!G$1,FALSE) -> 48 | V4: =VLOOKUP(A4,'TIER SCH'!$A$2:$D$324,4,FALSE) -> 
A5: 71 | B5: Eugenia B. Thomas K-8 Center | C5: 3 | D5: Opinion | E5: 209 | F5: 2.55 | G5: 66 | H5: 98 | I5: 37 | J5: 8 | K5: 0 | L5: 66 | M5: 91 | N5: 41 | O5: 11 | P5: 0 | Q5: 96 | R5: 96 | S5: 17 | U5: =VLOOKUP(TEXT($A5,"0000"),'Mem11-14-2014'!$A$3:$O$474,'Mem11-14-2014'!G$1,FALSE) -> 211 | V5: =VLOOKUP(A5,'TIER SCH'!$A$2:$D$324,4,FALSE) -> T1
A6: 72 | B6: Summerville Charter School | C6: 3 | D6: Opinion | E6: 82 | F6: 4.02 | G6: 5 | H6: 40 | I6: 32 | J6: 5 | K6: 0 | L6: 5 | M6: 45 | N6: 26 | O6: 6 | P6: 0 | Q6: 14 | R6: 40 | S6: 28 | U6: =VLOOKUP(TEXT($A6,"0000"),'Mem11-14-2014'!$A$3:$O$474,'Mem11-14-2014'!G$1,FALSE) -> 82 | V6: =VLOOKUP(A6,'TIER SCH'!$A$2:$D$324,4,FALSE) -> 
A7: 73 | B7: Mandarin Lakes K-8 Center | C7: 3 | D7: Opinion | E7: 152 | F7: 2.36 | G7: 64 | H7: 55 | I7: 30 | J7: 3 | K7: 0 | L7: 64 | M7: 60 | N7: 23 | O7: 4 | P7: 1 | Q7: 60 | R7: 71 | S7: 21 | U7: =VLOOKUP(TEXT($A7,"0000"),'Mem11-14-2014'!$A$3:$O$474,'Mem11-14-2014'!G$1,FALSE) -> 161 | V7: =VLOOKUP(A7,'TIER SCH'!$A$2:$D$324,4,FALSE) -> T3
A8: 81 | B8: Lenora B. Smith Elementary | C8: 3 | D8: Opinion | E8: 53 | F8: 4.02 | G8: 2 | H8: 29 | I8: 13 | J8: 6 | K8: 3 | L8: 2 | M8: 34 | N8: 16 | O8: 1 | P8: 0 | Q8: 11 | R8: 25 | S8: 17 | U8: =VLOOKUP(TEXT($A8,"0000"),'Mem11-14-2014'!$A$3:$O$474,'Mem11-14-2014'!G$1,FALSE) -> 69 | V8: =VLOOKUP(A8,'TIER SCH'!$A$2:$D$324,4,FALSE) -> T3
A9: 91 | B9: Bob Graham Education Ctr | C9: 3 | D9: Opinion | E9: 80 | F9: 4.03 | G9: 2 | H9: 56 | I9: 22 | J9: 0 | K9: 0 | L9: 2 | M9: 49 | N9: 29 | O9: 0 | P9: 0 | Q9: 15 | R9: 15 | S9: 50 | U9: =VLOOKUP(TEXT($A9,"0000"),'Mem11-14-2014'!$A$3:$O$474,'Mem11-14-2014'!G$1,FALSE) -> 176 | V9: =VLOOKUP(A9,'TIER SCH'!$A$2:$D$324,4,FALSE) -> T1
A10: 92 | B10: Norman S. Edelcup/sunny Isles | C10: 3 | D10: Opinion | E10: 186 | F10: 2.94 | G10: 39 | H10: 95 | I10: 43 | J10: 8 | K10: 1 | L10: 48 | M10: 97 | N10: 37 | O10: 4 | P10: 0 | Q10: 72 | R10: 73 | S10: 41 | U10: =VLOOKUP(TEXT($A10,"0000"),'Mem11-14-2014'!$A$3:$O$474,'Mem11-14-2014'!G$1,FALSE) -> 230 | V10: =VLOOKUP(A10,'TIER SCH'!$A$2:$D$324,4,FALSE) -> T1
A11: 100 | B11: Mater Academy | C11: 3 | D11: Opinion | E11: 175 | F11: 3.66 | G11: 36 | H11: 72 | I11: 36 | J11: 25 | K11: 6 | L11: 49 | M11: 74 | N11: 40 | O11: 12 | P11: 0 | Q11: 43 | R11: 57 | S11: 75 | U11: =VLOOKUP(TEXT($A11,"0000"),'Mem11-14-2014'!$A$3:$O$474,'Mem11-14-2014'!G$1,FALSE) -> 177 | V11: =VLOOKUP(A11,'TIER SCH'!$A$2:$D$324,4,FALSE) -> 
A12: 101 | B12: Arcola Lake Elementary | C12: 3 | D12: Opinion | E12: 77 | F12: 3.49 | G12: 14 | H12: 25 | I12: 34 | J12: 4 | K12: 0 | L12: 14 | M12: 45 | N12: 18 | O12: 0 | P12: 0 | Q12: 16 | R12: 39 | S12: 22 | U12: =VLOOKUP(TEXT($A12,"0000"),'Mem11-14-2014'!$A$3:$O$474,'Mem11-14-2014'!G$1,FALSE) -> 80 | V12: =VLOOKUP(A12,'TIER SCH'!$A$2:$D$324,4,FALSE) -> T3
A13: 102 | B13: Miami Community Charter School | C13: 3 | D13: Opinion | E13: 85 | F13: 3.64 | G13: 0 | H13: 71 | I13: 10 | J13: 4 | K13: 0 | L13: 0 | M13: 67 | N13: 11 | O13: 7 | P13: 0 | Q13: 0 | R13: 74 | S13: 11 | U13: =VLOOKUP(TEXT($A13,"0000"),'Mem11-14-2014'!$A$3:$O$474,'Mem11-14-2014'!G$1,FALSE) -> 89 | V13: =VLOOKUP(A13,'TIER SCH'!$A$2:$D$324,4,FALSE) -> 
A14: 111 | B14: Maya Angelou Elementary | C14: 3 | D14: Opinion | E14: 127 | F14: 3.61 | G14: 23 | H14: 57 | I14: 34 | J14: 13 | K14: 0 | L14: 33 | M14: 47 | N14: 31 | O14: 15 | P14: 1 | Q14: 29 | R14: 59 | S14: 39 | U14: =VLOOKUP(TEXT($A14,"0000"),'Mem11-14-2014'!$A$3:$O$474,'Mem11-14-2014'!G$1,FALSE) -> 136 | V14: =VLOOKUP(A14,'TIER SCH'!$A$2:$D$324,4,FALSE) -> R
A15: 121 | B15: Auburndale Elementary | C15: 3 | D15: Opinion | E15: 142 | F15: 2.76 | G15: 62 | H15: 39 | I15: 39 | J15: 2 | K15: 0 | L15: 25 | M15: 77 | N15: 35 | O15: 5 | P15: 0 | Q15: 41 | R15: 95 | S15: 6 | U15: =VLOOKUP(TEXT($A15,"0000"),'Mem11-14-2014'!$A$3:$O$474,'Mem11-14-2014'!G$1,FALSE) -> 148 | V15: =VLOOKUP(A15,'TIER SCH'!$A$2:$D$324,4,FALSE) -> WL
A16: 122 | B16: Dr Rolando Espinosa K-8 | C16: 3 | D16: Opinion | E16: 199 | F16: 3.3 | G16: 55 | H16: 79 | I16: 41 | J16: 24 | K16: 0 | L16: 39 | M16: 83 | N16: 67 | O16: 10 | P16: 0 | Q16: 65 | R16: 91 | S16: 43 | U16: =VLOOKUP(TEXT($A16,"0000"),'Mem11-14-2014'!$A$3:$O$474,'Mem11-14-2014'!G$1,FALSE) -> 202 | V16: =VLOOKUP(A16,'TIER SCH'!$A$2:$D$324,4,FALSE) -> T1
A17: 125 | B17: Norma Butler Bossard Elem | C17: 3 | D17: Opinion | E17: 218 | F17: 3.67 | G17: 6 | H17: 131 | I17: 68 | J17: 13 | K17: 0 | L17: 6 | M17: 173 | N17: 36 | O17: 3 | P17: 0 | Q17: 5 | R17: 187 | S17: 26 | U17: =VLOOKUP(TEXT($A17,"0000"),'Mem11-14-2014'!$A$3:$O$474,'Mem11-14-2014'!G$1,FALSE) -> 226 | V17: =VLOOKUP(A17,'TIER SCH'!$A$2:$D$324,4,FALSE) -> T1
A18: 161 | B18: Avocado Elementary | C18: 3 | D18: Opinion | E18: 102 | F18: 2.47 | G18: 35 | H18: 45 | I18: 20 | J18: 2 | K18: 0 | L18: 39 | M18: 45 | N18: 15 | O18: 3 | P18: 0 | Q18: 42 | R18: 43 | S18: 17 | U18: =VLOOKUP(TEXT($A18,"0000"),'Mem11-14-2014'!$A$3:$O$474,'Mem11-14-2014'!G$1,FALSE) -> 138 | V18: =VLOOKUP(A18,'TIER SCH'!$A$2:$D$324,4,FALSE) -> T2
A19: 201 | B19: Banyan Elementary | C19: 3 | D19: Opinion | E19: 60 | F19: 1.63 | G19: 37 | H19: 7 | I19: 16 | J19: 0 | K19: 0 | L19: 38 | M19: 9 | N19: 13 | O19: 0 | P19: 0 | Q19: 39 | R19: 18 | S19: 3 | U19: =VLOOKUP(TEXT($A19,"0000"),'Mem11-14-2014'!$A$3:$O$474,'Mem11-14-2014'!G$1,FALSE) -> 61 | V19: =VLOOKUP(A19,'TIER SCH'!$A$2:$D$324,4,FALSE) -> T1
A20: 211 | B20: Dr. Manuel C. Barreiro Elem | C20: 3 | D20: Opinion | E20: 129 | F20: 3.12 | G20: 6 | H20: 88 | I20: 29 | J20: 5 | K20: 1 | L20: 8 | M20: 94 | N20: 25 | O20: 2 | P20: 0 | Q20: 46 | R20: 78 | S20: 5 | U20: =VLOOKUP(TEXT($A20,"0000"),'Mem11-14-2014'!$A$3:$O$474,'Mem11-14-2014'!G$1,FALSE) -> 136 | V20: =VLOOKUP(A20,'TIER SCH'!$A$2:$D$324,4,FALSE) -> T1
A21: 231 | B21: Aventura Waterways K-8 Center | C21: 3 | D21: Opinion | E21: 267 | F21: 2.57 | G21: 96 | H21: 96 | I21: 40 | J21: 34 | K21: 1 | L21: 145 | M21: 55 | N21: 37 | O21: 28 | P21: 2 | Q21: 125 | R21: 101 | S21: 41 | U21: =VLOOKUP(TEXT($A21,"0000"),'Mem11-14-2014'!$A$3:$O$474,'Mem11-14-2014'!G$1,FALSE) -> 270 | V21: =VLOOKUP(A21,'TIER SCH'!$A$2:$D$324,4,FALSE) -> T1
A22: 241 | B22: Ruth K Broad/bay Harbor K-8 | C22: 3 | D22: Opinion | E22: 119 | F22: 2.3 | G22: 43 | H22: 53 | I22: 19 | J22: 4 | K22: 0 | L22: 51 | M22: 42 | N22: 24 | O22: 2 | P22: 0 | Q22: 49 | R22: 65 | S22: 5 | U22: =VLOOKUP(TEXT($A22,"0000"),'Mem11-14-2014'!$A$3:$O$474,'Mem11-14-2014'!G$1,FALSE) -> 137 | V22: =VLOOKUP(A22,'TIER SCH'!$A$2:$D$324,4,FALSE) -> T1
A23: 251 | B23: Ethel Koger Beckham Elementary | C23: 3 | D23: Opinion | E23: 130 | F23: 3.79 | G23: 6 | H23: 55 | I23: 43 | J23: 26 | K23: 0 | L23: 32 | M23: 50 | N23: 32 | O23: 14 | P23: 2 | Q23: 50 | R23: 50 | S23: 30 | U23: =VLOOKUP(TEXT($A23,"0000"),'Mem11-14-2014'!$A$3:$O$474,'Mem11-14-2014'!G$1,FALSE) -> 138 | V23: =VLOOKUP(A23,'TIER SCH'!$A$2:$D$324,4,FALSE) -> T1
A24: 261 | B24: Bel-Aire Elementary | C24: 3 | D24: Opinion | E24: 62 | F24: 2.02 | G24: 24 | H24: 27 | I24: 11 | J24: 0 | K24: 0 | L24: 29 | M24: 28 | N24: 4 | O24: 1 | P24: 0 | Q24: 31 | R24: 25 | S24: 6 | U24: =VLOOKUP(TEXT($A24,"0000"),'Mem11-14-2014'!$A$3:$O$474,'Mem11-14-2014'!G$1,FALSE) -> 68 | V24: =VLOOKUP(A24,'TIER SCH'!$A$2:$D$324,4,FALSE) -> R
A25: 271 | B25: Bent Tree Elementary | C25: 3 | D25: Opinion | E25: 61 | F25: 1.9 | G25: 19 | H25: 39 | I25: 3 | J25: 0 | K25: 0 | L25: 32 | M25: 26 | N25: 2 | O25: 1 | P25: 0 | Q25: 24 | R25: 36 | S25: 1 | U25: =VLOOKUP(TEXT($A25,"0000"),'Mem11-14-2014'!$A$3:$O$474,'Mem11-14-2014'!G$1,FALSE) -> 63 | V25: =VLOOKUP(A25,'TIER SCH'!$A$2:$D$324,4,FALSE) -> T1
A26: 311 | B26: Goulds Elementary | C26: 3 | D26: Opinion | E26: 75 | F26: 2.95 | G26: 1 | H26: 67 | I26: 6 | J26: 1 | K26: 0 | L26: 1 | M26: 64 | N26: 9 | O26: 1 | P26: 0 | Q26: 30 | R26: 36 | S26: 9 | U26: =VLOOKUP(TEXT($A26,"0000"),'Mem11-14-2014'!$A$3:$O$474,'Mem11-14-2014'!G$1,FALSE) -> 111 | V26: =VLOOKUP(A26,'TIER SCH'!$A$2:$D$324,4,FALSE) -> T2
A27: 312 | B27: Mater Gardens Academy | C27: 3 | D27: Opinion | E27: 93 | F27: 3.69 | G27: 14 | H27: 35 | I27: 38 | J27: 6 | K27: 0 | L27: 24 | M27: 58 | N27: 11 | O27: 0 | P27: 0 | Q27: 8 | R27: 36 | S27: 49 | U27: =VLOOKUP(TEXT($A27,"0000"),'Mem11-14-2014'!$A$3:$O$474,'Mem11-14-2014'!G$1,FALSE) -> 100 | V27: =VLOOKUP(A27,'TIER SCH'!$A$2:$D$324,4,FALSE) -> 
A28: 321 | B28: Biscayne Elementary | C28: 3 | D28: Opinion | E28: 116 | F28: 2.41 | G28: 30 | H28: 62 | I28: 24 | J28: 0 | K28: 0 | L28: 36 | M28: 67 | N28: 13 | O28: 0 | P28: 0 | Q28: 43 | R28: 69 | S28: 4 | U28: =VLOOKUP(TEXT($A28,"0000"),'Mem11-14-2014'!$A$3:$O$474,'Mem11-14-2014'!G$1,FALSE) -> 120 | V28: =VLOOKUP(A28,'TIER SCH'!$A$2:$D$324,4,FALSE) -> WL
A29: 332 | B29: Somerset Academy(silver Palms) | C29: 3 | D29: Opinion | E29: 61 | F29: 4.18 | G29: 0 | H29: 37 | I29: 20 | J29: 4 | K29: 0 | L29: 0 | M29: 38 | N29: 20 | O29: 3 | P29: 0 | Q29: 0 | R29: 43 | S29: 18 | U29: =VLOOKUP(TEXT($A29,"0000"),'Mem11-14-2014'!$A$3:$O$474,'Mem11-14-2014'!G$1,FALSE) -> 61 | V29: =VLOOKUP(A29,'TIER SCH'!$A$2:$D$324,4,FALSE) -> 
A30: 339 | B30: Somerset Academy Charter Elem | C30: 3 | D30: Opinion | E30: 73 | F30: 4.41 | G30: 1 | H30: 23 | I30: 37 | J30: 10 | K30: 2 | L30: 2 | M30: 35 | N30: 28 | O30: 8 | P30: 0 | Q30: 10 | R30: 54 | S30: 9 | U30: =VLOOKUP(TEXT($A30,"0000"),'Mem11-14-2014'!$A$3:$O$474,'Mem11-14-2014'!G$1,FALSE) -> 74 | V30: =VLOOKUP(A30,'TIER SCH'!$A$2:$D$324,4,FALSE) -> 
A31: 341 | B31: Arch Creek Elementary School | C31: 3 | D31: Opinion | E31: 88 | F31: 1.68 | G31: 45 | H31: 26 | I31: 12 | J31: 5 | K31: 0 | L31: 42 | M31: 31 | N31: 13 | O31: 2 | P31: 0 | Q31: 68 | R31: 20 | S31: 0 | U31: =VLOOKUP(TEXT($A31,"0000"),'Mem11-14-2014'!$A$3:$O$474,'Mem11-14-2014'!G$1,FALSE) -> 93 | V31: =VLOOKUP(A31,'TIER SCH'!$A$2:$D$324,4,FALSE) -> R
A32: 342 | B32: Pinecrest Academy South Campus | C32: 3 | D32: Opinion | E32: 122 | F32: 4.76 | G32: 0 | H32: 58 | I32: 47 | J32: 17 | K32: 0 | L32: 0 | M32: 63 | N32: 44 | O32: 15 | P32: 0 | Q32: 0 | R32: 62 | S32: 60 | U32: =VLOOKUP(TEXT($A32,"0000"),'Mem11-14-2014'!$A$3:$O$474,'Mem11-14-2014'!G$1,FALSE) -> 129 | V32: =VLOOKUP(A32,'TIER SCH'!$A$2:$D$324,4,FALSE) -> 
A33: 361 | B33: Biscayne Gardens Elementary | C33: 3 | D33: Opinion | E33: 93 | F33: 3.44 | G33: 18 | H33: 44 | I33: 25 | J33: 6 | K33: 0 | L33: 23 | M33: 39 | N33: 31 | O33: 0 | P33: 0 | Q33: 19 | R33: 41 | S33: 33 | U33: =VLOOKUP(TEXT($A33,"0000"),'Mem11-14-2014'!$A$3:$O$474,'Mem11-14-2014'!G$1,FALSE) -> 99 | V33: =VLOOKUP(A33,'TIER SCH'!$A$2:$D$324,4,FALSE) -> T3
A34: 401 | B34: Van E. Blanton Elementary | C34: 3 | D34: Opinion | E34: 76 | F34: 0.95 | G34: 55 | H34: 13 | I34: 6 | J34: 2 | K34: 0 | L34: 65 | M34: 6 | N34: 5 | O34: 0 | P34: 0 | Q34: 55 | R34: 17 | S34: 4 | U34: =VLOOKUP(TEXT($A34,"0000"),'Mem11-14-2014'!$A$3:$O$474,'Mem11-14-2014'!G$1,FALSE) -> 90 | V34: =VLOOKUP(A34,'TIER SCH'!$A$2:$D$324,4,FALSE) -> WL
A35: 441 | B35: Blue Lakes Elementary | C35: 3 | D35: Opinion | E35: 46 | F35: 4.24 | G35: 1 | H35: 22 | I35: 16 | J35: 7 | K35: 0 | L35: 3 | M35: 27 | N35: 15 | O35: 1 | P35: 0 | Q35: 3 | R35: 26 | S35: 17 | U35: =VLOOKUP(TEXT($A35,"0000"),'Mem11-14-2014'!$A$3:$O$474,'Mem11-14-2014'!G$1,FALSE) -> 51 | V35: =VLOOKUP(A35,'TIER SCH'!$A$2:$D$324,4,FALSE) -> T1
A36: 451 | B36: Bowman Ashe/doolin K-8 Acad | C36: 3 | D36: Opinion | E36: 119 | F36: 2.36 | G36: 38 | H36: 54 | I36: 24 | J36: 3 | K36: 0 | L36: 45 | M36: 59 | N36: 14 | O36: 1 | P36: 0 | Q36: 42 | R36: 74 | S36: 3 | U36: =VLOOKUP(TEXT($A36,"0000"),'Mem11-14-2014'!$A$3:$O$474,'Mem11-14-2014'!G$1,FALSE) -> 119 | V36: =VLOOKUP(A36,'TIER SCH'!$A$2:$D$324,4,FALSE) -> T1
A37: 461 | B37: Brentwood Elementary | C37: 3 | D37: Opinion | E37: 98 | F37: 2.65 | G37: 32 | H37: 55 | I37: 11 | J37: 0 | K37: 0 | L37: 32 | M37: 39 | N37: 27 | O37: 0 | P37: 0 | Q37: 27 | R37: 52 | S37: 19 | U37: =VLOOKUP(TEXT($A37,"0000"),'Mem11-14-2014'!$A$3:$O$474,'Mem11-14-2014'!G$1,FALSE) -> 112 | V37: =VLOOKUP(A37,'TIER SCH'!$A$2:$D$324,4,FALSE) -> T3
A38: 481 | B38: James H. Bright/jw Johnson Es | C38: 3 | D38: Opinion | E38: 107 | F38: 1.82 | G38: 52 | H38: 39 | I38: 13 | J38: 3 | K38: 0 | L38: 63 | M38: 24 | N38: 20 | O38: 0 | P38: 0 | Q38: 62 | R38: 33 | S38: 12 | U38: =VLOOKUP(TEXT($A38,"0000"),'Mem11-14-2014'!$A$3:$O$474,'Mem11-14-2014'!G$1,FALSE) -> 118 | V38: =VLOOKUP(A38,'TIER SCH'!$A$2:$D$324,4,FALSE) -> WL
A39: 520 | B39: Somerset Academy | C39: 3 | D39: Opinion | E39: 111 | F39: 4.12 | G39: 0 | H39: 63 | I39: 43 | J39: 5 | K39: 0 | L39: 0 | M39: 72 | N39: 36 | O39: 3 | P39: 0 | Q39: 13 | R39: 56 | S39: 42 | U39: =VLOOKUP(TEXT($A39,"0000"),'Mem11-14-2014'!$A$3:$O$474,'Mem11-14-2014'!G$1,FALSE) -> 112 | V39: =VLOOKUP(A39,'TIER SCH'!$A$2:$D$324,4,FALSE) -> 
A40: 521 | B40: Broadmoor Elementary | C40: 3 | D40: Opinion | E40: 83 | F40: 2.24 | G40: 36 | H40: 31 | I40: 14 | J40: 2 | K40: 0 | L40: 39 | M40: 28 | N40: 15 | O40: 1 | P40: 0 | Q40: 29 | R40: 48 | S40: 6 | U40: =VLOOKUP(TEXT($A40,"0000"),'Mem11-14-2014'!$A$3:$O$474,'Mem11-14-2014'!G$1,FALSE) -> 84 | V40: =VLOOKUP(A40,'TIER SCH'!$A$2:$D$324,4,FALSE) -> T3
A41: 561 | B41: W.j. Bryan Elementary | C41: 3 | D41: Opinion | E41: 103 | F41: 3.45 | G41: 22 | H41: 48 | I41: 29 | J41: 4 | K41: 0 | L41: 22 | M41: 52 | N41: 25 | O41: 4 | P41: 0 | Q41: 13 | R41: 57 | S41: 33 | U41: =VLOOKUP(TEXT($A41,"0000"),'Mem11-14-2014'!$A$3:$O$474,'Mem11-14-2014'!G$1,FALSE) -> 142 | V41: =VLOOKUP(A41,'TIER SCH'!$A$2:$D$324,4,FALSE) -> T3
A42: 600 | B42: Pinecrest Prep Academy | C42: 3 | D42: Opinion | E42: 124 | F42: 4.65 | G42: 2 | H42: 38 | I42: 68 | J42: 15 | K42: 1 | L42: 3 | M42: 64 | N42: 46 | O42: 11 | P42: 0 | Q42: 11 | R42: 62 | S42: 51 | U42: =VLOOKUP(TEXT($A42,"0000"),'Mem11-14-2014'!$A$3:$O$474,'Mem11-14-2014'!G$1,FALSE) -> 122 | V42: =VLOOKUP(A42,'TIER SCH'!$A$2:$D$324,4,FALSE) -> 
A43: 641 | B43: Bunche Park Elementary | C43: 3 | D43: Opinion | E43: 39 | F43: 2.85 | G43: 3 | H43: 29 | I43: 6 | J43: 1 | K43: 0 | L43: 3 | M43: 30 | N43: 6 | O43: 0 | P43: 0 | Q43: 18 | R43: 17 | S43: 4 | U43: =VLOOKUP(TEXT($A43,"0000"),'Mem11-14-2014'!$A$3:$O$474,'Mem11-14-2014'!G$1,FALSE) -> 49 | V43: =VLOOKUP(A43,'TIER SCH'!$A$2:$D$324,4,FALSE) -> R
A44: 651 | B44: Campbell Drive K-8 Center | C44: 3 | D44: Opinion | E44: 105 | F44: 2.14 | G44: 31 | H44: 70 | I44: 4 | J44: 0 | K44: 0 | L44: 34 | M44: 67 | N44: 4 | O44: 0 | P44: 0 | Q44: 43 | R44: 52 | S44: 10 | U44: =VLOOKUP(TEXT($A44,"0000"),'Mem11-14-2014'!$A$3:$O$474,'Mem11-14-2014'!G$1,FALSE) -> 117 | V44: =VLOOKUP(A44,'TIER SCH'!$A$2:$D$324,4,FALSE) -> R
A45: 661 | B45: Caribbean Elementary | C45: 3 | D45: Opinion | E45: 88 | F45: 3.1 | G45: 2 | H45: 75 | I45: 11 | J45: 0 | K45: 0 | L45: 4 | M45: 75 | N45: 9 | O45: 0 | P45: 0 | Q45: 5 | R45: 83 | S45: 0 | U45: =VLOOKUP(TEXT($A45,"0000"),'Mem11-14-2014'!$A$3:$O$474,'Mem11-14-2014'!G$1,FALSE) -> 88 | V45: =VLOOKUP(A45,'TIER SCH'!$A$2:$D$324,4,FALSE) -> T3
A46: 671 | B46: Calusa Elementary | C46: 3 | D46: Opinion | E46: 149 | F46: 4.21 | G46: 0 | H46: 72 | I46: 63 | J46: 13 | K46: 1 | L46: 0 | M46: 95 | N46: 42 | O46: 12 | P46: 0 | Q46: 24 | R46: 79 | S46: 46 | U46: =VLOOKUP(TEXT($A46,"0000"),'Mem11-14-2014'!$A$3:$O$474,'Mem11-14-2014'!G$1,FALSE) -> 156 | V46: =VLOOKUP(A46,'TIER SCH'!$A$2:$D$324,4,FALSE) -> T1
A47: 681 | B47: Carol City Elementary | C47: 3 | D47: Opinion | E47: 59 | F47: 2.03 | G47: 26 | H47: 24 | I47: 7 | J47: 2 | K47: 0 | L47: 25 | M47: 26 | N47: 6 | O47: 2 | P47: 0 | Q47: 34 | R47: 18 | S47: 7 | U47: =VLOOKUP(TEXT($A47,"0000"),'Mem11-14-2014'!$A$3:$O$474,'Mem11-14-2014'!G$1,FALSE) -> 66 | V47: =VLOOKUP(A47,'TIER SCH'!$A$2:$D$324,4,FALSE) -> T3
A48: 721 | B48: George Washington Carver Elem | C48: 3 | D48: Opinion | E48: 72 | F48: 2.78 | G48: 14 | H48: 41 | I48: 14 | J48: 3 | K48: 0 | L48: 20 | M48: 42 | N48: 8 | O48: 2 | P48: 0 | Q48: 29 | R48: 28 | S48: 15 | U48: =VLOOKUP(TEXT($A48,"0000"),'Mem11-14-2014'!$A$3:$O$474,'Mem11-14-2014'!G$1,FALSE) -> 82 | V48: =VLOOKUP(A48,'TIER SCH'!$A$2:$D$324,4,FALSE) -> T1
A49: 761 | B49: Fienberg/fisher K-8 Center | C49: 3 | D49: Opinion | E49: 81 | F49: 2.33 | G49: 31 | H49: 31 | I49: 16 | J49: 3 | K49: 0 | L49: 39 | M49: 28 | N49: 11 | O49: 3 | P49: 0 | Q49: 34 | R49: 36 | S49: 11 | U49: =VLOOKUP(TEXT($A49,"0000"),'Mem11-14-2014'!$A$3:$O$474,'Mem11-14-2014'!G$1,FALSE) -> 83 | V49: =VLOOKUP(A49,'TIER SCH'!$A$2:$D$324,4,FALSE) -> WL
A50: 771 | B50: William A. Chapman Elementary | C50: 3 | D50: Opinion | E50: 84 | F50: 2.98 | G50: 19 | H50: 37 | I50: 18 | J50: 10 | K50: 0 | L50: 29 | M50: 25 | N50: 28 | O50: 2 | P50: 0 | Q50: 36 | R50: 36 | S50: 12 | U50: =VLOOKUP(TEXT($A50,"0000"),'Mem11-14-2014'!$A$3:$O$474,'Mem11-14-2014'!G$1,FALSE) -> 84 | V50: =VLOOKUP(A50,'TIER SCH'!$A$2:$D$324,4,FALSE) -> T2
A51: 801 | B51: Citrus Grove Elementary | C51: 3 | D51: Opinion | E51: 150 | F51: 1.37 | G51: 81 | H51: 57 | I51: 12 | J51: 0 | K51: 0 | L51: 77 | M51: 69 | N51: 4 | O51: 0 | P51: 0 | Q51: 110 | R51: 33 | S51: 7 | U51: =VLOOKUP(TEXT($A51,"0000"),'Mem11-14-2014'!$A$3:$O$474,'Mem11-14-2014'!G$1,FALSE) -> 153 | V51: =VLOOKUP(A51,'TIER SCH'!$A$2:$D$324,4,FALSE) -> R
A52: 831 | B52: Claude Pepper Elementary | C52: 3 | D52: Opinion | E52: 110 | F52: 3.55 | G52: 14 | H52: 51 | I52: 33 | J52: 12 | K52: 0 | L52: 27 | M52: 49 | N52: 27 | O52: 7 | P52: 0 | Q52: 27 | R52: 53 | S52: 30 | U52: =VLOOKUP(TEXT($A52,"0000"),'Mem11-14-2014'!$A$3:$O$474,'Mem11-14-2014'!G$1,FALSE) -> 115 | V52: =VLOOKUP(A52,'TIER SCH'!$A$2:$D$324,4,FALSE) -> T1
A53: 841 | B53: Coconut Grove Elementary | C53: 3 | D53: Opinion | E53: 73 | F53: 3.15 | G53: 14 | H53: 31 | I53: 24 | J53: 4 | K53: 0 | L53: 16 | M53: 43 | N53: 11 | O53: 3 | P53: 0 | Q53: 19 | R53: 43 | S53: 11 | U53: =VLOOKUP(TEXT($A53,"0000"),'Mem11-14-2014'!$A$3:$O$474,'Mem11-14-2014'!G$1,FALSE) -> 73 | V53: =VLOOKUP(A53,'TIER SCH'!$A$2:$D$324,4,FALSE) -> T1
A54: 861 | B54: Colonial Drive Elementary | C54: 3 | D54: Opinion | E54: 42 | F54: 4.19 | G54: 2 | H54: 14 | I54: 22 | J54: 4 | K54: 0 | L54: 3 | M54: 19 | N54: 20 | O54: 0 | P54: 0 | Q54: 2 | R54: 33 | S54: 7 | U54: =VLOOKUP(TEXT($A54,"0000"),'Mem11-14-2014'!$A$3:$O$474,'Mem11-14-2014'!G$1,FALSE) -> 43 | V54: =VLOOKUP(A54,'TIER SCH'!$A$2:$D$324,4,FALSE) -> R
A55: 881 | B55: Comstock Elementary | C55: 3 | D55: Opinion | E55: 87 | F55: 3.1 | G55: 11 | H55: 56 | I55: 13 | J55: 6 | K55: 1 | L55: 21 | M55: 49 | N55: 10 | O55: 5 | P55: 2 | Q55: 28 | R55: 44 | S55: 15 | U55: =VLOOKUP(TEXT($A55,"0000"),'Mem11-14-2014'!$A$3:$O$474,'Mem11-14-2014'!G$1,FALSE) -> 90 | V55: =VLOOKUP(A55,'TIER SCH'!$A$2:$D$324,4,FALSE) -> R
A56: 961 | B56: Coral Gables Preparatory Acad | C56: 3 | D56: Opinion | E56: 78 | F56: 1.63 | G56: 42 | H56: 19 | I56: 15 | J56: 2 | K56: 0 | L56: 47 | M56: 26 | N56: 5 | O56: 0 | P56: 0 | Q56: 42 | R56: 36 | S56: 0 | U56: =VLOOKUP(TEXT($A56,"0000"),'Mem11-14-2014'!$A$3:$O$474,'Mem11-14-2014'!G$1,FALSE) -> 78 | V56: =VLOOKUP(A56,'TIER SCH'!$A$2:$D$324,4,FALSE) -> T1
A57: 1001 | B57: Coral Park Elementary | C57: 3 | D57: Opinion | E57: 168 | F57: 3.62 | G57: 30 | H57: 64 | I57: 50 | J57: 23 | K57: 1 | L57: 24 | M57: 90 | N57: 51 | O57: 3 | P57: 0 | Q57: 23 | R57: 119 | S57: 26 | U57: =VLOOKUP(TEXT($A57,"0000"),'Mem11-14-2014'!$A$3:$O$474,'Mem11-14-2014'!G$1,FALSE) -> 191 | V57: =VLOOKUP(A57,'TIER SCH'!$A$2:$D$324,4,FALSE) -> T1
A58: 1010 | B58: Charter School At Waterstone | C58: 3 | D58: Opinion | E58: 236 | F58: 3.78 | G58: 15 | H58: 118 | I58: 86 | J58: 17 | K58: 0 | L58: 14 | M58: 154 | N58: 60 | O58: 8 | P58: 0 | Q58: 26 | R58: 168 | S58: 42 | U58: =VLOOKUP(TEXT($A58,"0000"),'Mem11-14-2014'!$A$3:$O$474,'Mem11-14-2014'!G$1,FALSE) -> 234 | V58: =VLOOKUP(A58,'TIER SCH'!$A$2:$D$324,4,FALSE) -> 
A59: 1014 | B59: Hive Preparatory School | C59: 3 | D59: Opinion | E59: 89 | F59: 3.21 | G59: 18 | H59: 40 | I59: 31 | J59: 0 | K59: 0 | L59: 25 | M59: 35 | N59: 29 | O59: 0 | P59: 0 | Q59: 16 | R59: 55 | S59: 18 | U59: =VLOOKUP(TEXT($A59,"0000"),'Mem11-14-2014'!$A$3:$O$474,'Mem11-14-2014'!G$1,FALSE) -> 109 | V59: =VLOOKUP(A59,'TIER SCH'!$A$2:$D$324,4,FALSE) -> 
A60: 1017 | B60: Mater Academy Of Intl Studies | C60: 3 | D60: Opinion | E60: 111 | F60: 2.51 | G60: 12 | H60: 82 | I60: 17 | J60: 0 | K60: 0 | L60: 17 | M60: 87 | N60: 6 | O60: 1 | P60: 0 | Q60: 57 | R60: 47 | S60: 7 | U60: =VLOOKUP(TEXT($A60,"0000"),'Mem11-14-2014'!$A$3:$O$474,'Mem11-14-2014'!G$1,FALSE) -> 111 | V60: =VLOOKUP(A60,'TIER SCH'!$A$2:$D$324,4,FALSE) -> 
A61: 1020 | B61: Youth Co-Op Charter School | C61: 3 | D61: Opinion | E61: 82 | F61: 4.76 | G61: 0 | H61: 26 | I61: 38 | J61: 18 | K61: 0 | L61: 1 | M61: 40 | N61: 27 | O61: 14 | P61: 0 | Q61: 2 | R61: 62 | S61: 18 | U61: =VLOOKUP(TEXT($A61,"0000"),'Mem11-14-2014'!$A$3:$O$474,'Mem11-14-2014'!G$1,FALSE) -> 85 | V61: =VLOOKUP(A61,'TIER SCH'!$A$2:$D$324,4,FALSE) -> 
A62: 1041 | B62: Coral Reef Elementary | C62: 3 | D62: Opinion | E62: 108 | F62: 3.15 | G62: 17 | H62: 40 | I62: 48 | J62: 3 | K62: 0 | L62: 35 | M62: 60 | N62: 12 | O62: 1 | P62: 0 | Q62: 19 | R62: 70 | S62: 19 | U62: =VLOOKUP(TEXT($A62,"0000"),'Mem11-14-2014'!$A$3:$O$474,'Mem11-14-2014'!G$1,FALSE) -> 111 | V62: =VLOOKUP(A62,'TIER SCH'!$A$2:$D$324,4,FALSE) -> T1
A63: 1081 | B63: Coral Terrace Elementary | C63: 3 | D63: Opinion | E63: 72 | F63: 3.75 | G63: 16 | H63: 19 | I63: 25 | J63: 12 | K63: 0 | L63: 16 | M63: 25 | N63: 22 | O63: 7 | P63: 2 | Q63: 24 | R63: 29 | S63: 19 | U63: =VLOOKUP(TEXT($A63,"0000"),'Mem11-14-2014'!$A$3:$O$474,'Mem11-14-2014'!G$1,FALSE) -> 70 | V63: =VLOOKUP(A63,'TIER SCH'!$A$2:$D$324,4,FALSE) -> T1
A64: 1121 | B64: Coral Way K-8 Center | C64: 3 | D64: Opinion | E64: 151 | F64: 2.55 | G64: 52 | H64: 62 | I64: 37 | J64: 0 | K64: 0 | L64: 58 | M64: 62 | N64: 31 | O64: 0 | P64: 0 | Q64: 39 | R64: 99 | S64: 13 | U64: =VLOOKUP(TEXT($A64,"0000"),'Mem11-14-2014'!$A$3:$O$474,'Mem11-14-2014'!G$1,FALSE) -> 163 | V64: =VLOOKUP(A64,'TIER SCH'!$A$2:$D$324,4,FALSE) -> T1
A65: 1161 | B65: Crestview Elementary | C65: 3 | D65: Opinion | E65: 60 | F65: 3.48 | G65: 6 | H65: 37 | I65: 14 | J65: 3 | K65: 0 | L65: 7 | M65: 25 | N65: 28 | O65: 0 | P65: 0 | Q65: 10 | R65: 46 | S65: 4 | U65: =VLOOKUP(TEXT($A65,"0000"),'Mem11-14-2014'!$A$3:$O$474,'Mem11-14-2014'!G$1,FALSE) -> 62 | V65: =VLOOKUP(A65,'TIER SCH'!$A$2:$D$324,4,FALSE) -> R
A66: 1241 | B66: Cutler Ridge Elementary | C66: 3 | D66: Opinion | E66: 91 | F66: 2.32 | G66: 38 | H66: 33 | I66: 14 | J66: 3 | K66: 3 | L66: 52 | M66: 15 | N66: 20 | O66: 1 | P66: 3 | Q66: 42 | R66: 39 | S66: 10 | U66: =VLOOKUP(TEXT($A66,"0000"),'Mem11-14-2014'!$A$3:$O$474,'Mem11-14-2014'!G$1,FALSE) -> 91 | V66: =VLOOKUP(A66,'TIER SCH'!$A$2:$D$324,4,FALSE) -> WL
A67: 1281 | B67: Cypress Elementary | C67: 3 | D67: Opinion | E67: 55 | F67: 1.98 | G67: 13 | H67: 35 | I67: 7 | J67: 0 | K67: 0 | L67: 18 | M67: 32 | N67: 5 | O67: 0 | P67: 0 | Q67: 38 | R67: 16 | S67: 1 | U67: =VLOOKUP(TEXT($A67,"0000"),'Mem11-14-2014'!$A$3:$O$474,'Mem11-14-2014'!G$1,FALSE) -> 63 | V67: =VLOOKUP(A67,'TIER SCH'!$A$2:$D$324,4,FALSE) -> T1
A68: 1331 | B68: Devon Aire K-8 Center | C68: 3 | D68: Opinion | E68: 161 | F68: 4.04 | G68: 14 | H68: 44 | I68: 65 | J68: 31 | K68: 7 | L68: 11 | M68: 82 | N68: 57 | O68: 10 | P68: 1 | Q68: 46 | R68: 104 | S68: 11 | U68: =VLOOKUP(TEXT($A68,"0000"),'Mem11-14-2014'!$A$3:$O$474,'Mem11-14-2014'!G$1,FALSE) -> 181 | V68: =VLOOKUP(A68,'TIER SCH'!$A$2:$D$324,4,FALSE) -> T1
A69: 1361 | B69: Frederick Douglass Elementary | C69: 3 | D69: Opinion | E69: 22 | F69: 3.36 | G69: 4 | H69: 8 | I69: 8 | J69: 2 | K69: 0 | L69: 4 | M69: 14 | N69: 3 | O69: 1 | P69: 0 | Q69: 7 | R69: 9 | S69: 6 | U69: =VLOOKUP(TEXT($A69,"0000"),'Mem11-14-2014'!$A$3:$O$474,'Mem11-14-2014'!G$1,FALSE) -> 27 | V69: =VLOOKUP(A69,'TIER SCH'!$A$2:$D$324,4,FALSE) -> T3
A70: 1371 | B70: Marjory Stoneman Douglas Elem | C70: 3 | D70: Opinion | E70: 158 | F70: 3.02 | G70: 30 | H70: 82 | I70: 42 | J70: 4 | K70: 0 | L70: 57 | M70: 66 | N70: 32 | O70: 3 | P70: 0 | Q70: 42 | R70: 72 | S70: 44 | U70: =VLOOKUP(TEXT($A70,"0000"),'Mem11-14-2014'!$A$3:$O$474,'Mem11-14-2014'!G$1,FALSE) -> 176 | V70: =VLOOKUP(A70,'TIER SCH'!$A$2:$D$324,4,FALSE) -> T1
A71: 1401 | B71: Charles R. Drew K-8 Center | C71: 3 | D71: Opinion | E71: 41 | F71: 2.1 | G71: 20 | H71: 9 | I71: 12 | J71: 0 | K71: 0 | L71: 20 | M71: 15 | N71: 5 | O71: 1 | P71: 0 | Q71: 20 | R71: 17 | S71: 4 | U71: =VLOOKUP(TEXT($A71,"0000"),'Mem11-14-2014'!$A$3:$O$474,'Mem11-14-2014'!G$1,FALSE) -> 42 | V71: =VLOOKUP(A71,'TIER SCH'!$A$2:$D$324,4,FALSE) -> T3
A72: 1441 | B72: Paul Laurence Dunbar K-8 Ctr | C72: 3 | D72: Opinion | E72: 50 | F72: 2.88 | G72: 3 | H72: 45 | I72: 2 | J72: 0 | K72: 0 | L72: 3 | M72: 45 | N72: 2 | O72: 0 | P72: 0 | Q72: 4 | R72: 46 | S72: 0 | U72: =VLOOKUP(TEXT($A72,"0000"),'Mem11-14-2014'!$A$3:$O$474,'Mem11-14-2014'!G$1,FALSE) -> 54 | V72: =VLOOKUP(A72,'TIER SCH'!$A$2:$D$324,4,FALSE) -> T3
A73: 1481 | B73: John G. Dupuis Elementary | C73: 3 | D73: Opinion | E73: 107 | F73: 2.79 | G73: 32 | H73: 39 | I73: 30 | J73: 6 | K73: 0 | L73: 33 | M73: 44 | N73: 28 | O73: 1 | P73: 1 | Q73: 47 | R73: 46 | S73: 14 | U73: =VLOOKUP(TEXT($A73,"0000"),'Mem11-14-2014'!$A$3:$O$474,'Mem11-14-2014'!G$1,FALSE) -> 111 | V73: =VLOOKUP(A73,'TIER SCH'!$A$2:$D$324,4,FALSE) -> WL
A74: 1521 | B74: Amelia Earhart Elementary | C74: 3 | D74: Opinion | E74: 54 | F74: 2.46 | G74: 26 | H74: 12 | I74: 13 | J74: 3 | K74: 0 | L74: 26 | M74: 12 | N74: 11 | O74: 5 | P74: 0 | Q74: 24 | R74: 23 | S74: 7 | U74: =VLOOKUP(TEXT($A74,"0000"),'Mem11-14-2014'!$A$3:$O$474,'Mem11-14-2014'!G$1,FALSE) -> 65 | V74: =VLOOKUP(A74,'TIER SCH'!$A$2:$D$324,4,FALSE) -> T1
A75: 1561 | B75: Earlington Heights Elementary | C75: 3 | D75: Opinion | E75: 80 | F75: 1.8 | G75: 39 | H75: 24 | I75: 17 | J75: 0 | K75: 0 | L75: 41 | M75: 29 | N75: 10 | O75: 0 | P75: 0 | Q75: 48 | R75: 27 | S75: 5 | U75: =VLOOKUP(TEXT($A75,"0000"),'Mem11-14-2014'!$A$3:$O$474,'Mem11-14-2014'!G$1,FALSE) -> 84 | V75: =VLOOKUP(A75,'TIER SCH'!$A$2:$D$324,4,FALSE) -> T3
A76: 1601 | B76: Edison Park K-8 Center | C76: 3 | D76: Opinion | E76: 43 | F76: 2.47 | G76: 5 | H76: 31 | I76: 7 | J76: 0 | K76: 0 | L76: 9 | M76: 29 | N76: 5 | O76: 0 | P76: 0 | Q76: 23 | R76: 18 | S76: 2 | U76: =VLOOKUP(TEXT($A76,"0000"),'Mem11-14-2014'!$A$3:$O$474,'Mem11-14-2014'!G$1,FALSE) -> 62 | V76: =VLOOKUP(A76,'TIER SCH'!$A$2:$D$324,4,FALSE) -> T3
A77: 1641 | B77: Emerson Elementary | C77: 3 | D77: Opinion | E77: 72 | F77: 2.96 | G77: 18 | H77: 27 | I77: 21 | J77: 6 | K77: 0 | L77: 22 | M77: 36 | N77: 14 | O77: 0 | P77: 0 | Q77: 21 | R77: 40 | S77: 11 | U77: =VLOOKUP(TEXT($A77,"0000"),'Mem11-14-2014'!$A$3:$O$474,'Mem11-14-2014'!G$1,FALSE) -> 72 | V77: =VLOOKUP(A77,'TIER SCH'!$A$2:$D$324,4,FALSE) -> T1
A78: 1681 | B78: Lillie C. Evans K-8 Center | C78: 3 | D78: Opinion | E78: 42 | F78: 0.95 | G78: 33 | H78: 7 | I78: 2 | J78: 0 | K78: 0 | L78: 32 | M78: 8 | N78: 2 | O78: 0 | P78: 0 | Q78: 28 | R78: 11 | S78: 3 | U78: =VLOOKUP(TEXT($A78,"0000"),'Mem11-14-2014'!$A$3:$O$474,'Mem11-14-2014'!G$1,FALSE) -> 47 | V78: =VLOOKUP(A78,'TIER SCH'!$A$2:$D$324,4,FALSE) -> T2
A79: 1691 | B79: Christina M. Eve Elementary | C79: 3 | D79: Opinion | E79: 125 | F79: 3.77 | G79: 18 | H79: 41 | I79: 56 | J79: 8 | K79: 2 | L79: 23 | M79: 50 | N79: 46 | O79: 4 | P79: 2 | Q79: 22 | R79: 82 | S79: 21 | U79: =VLOOKUP(TEXT($A79,"0000"),'Mem11-14-2014'!$A$3:$O$474,'Mem11-14-2014'!G$1,FALSE) -> 125 | V79: =VLOOKUP(A79,'TIER SCH'!$A$2:$D$324,4,FALSE) -> T1
A80: 1721 | B80: Everglades K-8 Center | C80: 3 | D80: Opinion | E80: 134 | F80: 3.85 | G80: 21 | H80: 44 | I80: 59 | J80: 8 | K80: 2 | L80: 24 | M80: 64 | N80: 36 | O80: 10 | P80: 0 | Q80: 23 | R80: 66 | S80: 45 | U80: =VLOOKUP(TEXT($A80,"0000"),'Mem11-14-2014'!$A$3:$O$474,'Mem11-14-2014'!G$1,FALSE) -> 136 | V80: =VLOOKUP(A80,'TIER SCH'!$A$2:$D$324,4,FALSE) -> T1
A81: 1761 | B81: David Fairchild Elementary | C81: 3 | D81: Opinion | E81: 98 | F81: 4.54 | G81: 4 | H81: 33 | I81: 47 | J81: 14 | K81: 0 | L81: 8 | M81: 46 | N81: 34 | O81: 10 | P81: 0 | Q81: 13 | R81: 38 | S81: 47 | U81: =VLOOKUP(TEXT($A81,"0000"),'Mem11-14-2014'!$A$3:$O$474,'Mem11-14-2014'!G$1,FALSE) -> 97 | V81: =VLOOKUP(A81,'TIER SCH'!$A$2:$D$324,4,FALSE) -> T1
A82: 1801 | B82: Fairlawn Elementary | C82: 3 | D82: Opinion | E82: 109 | F82: 2.05 | G82: 38 | H82: 63 | I82: 8 | J82: 0 | K82: 0 | L82: 42 | M82: 60 | N82: 7 | O82: 0 | P82: 0 | Q82: 47 | R82: 54 | S82: 8 | U82: =VLOOKUP(TEXT($A82,"0000"),'Mem11-14-2014'!$A$3:$O$474,'Mem11-14-2014'!G$1,FALSE) -> 119 | V82: =VLOOKUP(A82,'TIER SCH'!$A$2:$D$324,4,FALSE) -> T1
A83: 1811 | B83: Dante B. Fascell Elementary | C83: 3 | D83: Opinion | E83: 88 | F83: 3.3 | G83: 10 | H83: 50 | I83: 27 | J83: 1 | K83: 0 | L83: 15 | M83: 53 | N83: 18 | O83: 2 | P83: 0 | Q83: 17 | R83: 54 | S83: 17 | U83: =VLOOKUP(TEXT($A83,"0000"),'Mem11-14-2014'!$A$3:$O$474,'Mem11-14-2014'!G$1,FALSE) -> 85 | V83: =VLOOKUP(A83,'TIER SCH'!$A$2:$D$324,4,FALSE) -> T1
A84: 1841 | B84: Flagami Elementary | C84: 3 | D84: Opinion | E84: 68 | F84: 3.46 | G84: 3 | H84: 50 | I84: 14 | J84: 1 | K84: 0 | L84: 3 | M84: 49 | N84: 15 | O84: 1 | P84: 0 | Q84: 12 | R84: 40 | S84: 16 | U84: =VLOOKUP(TEXT($A84,"0000"),'Mem11-14-2014'!$A$3:$O$474,'Mem11-14-2014'!G$1,FALSE) -> 69 | V84: =VLOOKUP(A84,'TIER SCH'!$A$2:$D$324,4,FALSE) -> T1
A85: 1921 | B85: Flamingo Elementary | C85: 3 | D85: Opinion | E85: 116 | F85: 1.94 | G85: 51 | H85: 50 | I85: 13 | J85: 2 | K85: 0 | L85: 54 | M85: 46 | N85: 16 | O85: 0 | P85: 0 | Q85: 58 | R85: 51 | S85: 7 | U85: =VLOOKUP(TEXT($A85,"0000"),'Mem11-14-2014'!$A$3:$O$474,'Mem11-14-2014'!G$1,FALSE) -> 120 | V85: =VLOOKUP(A85,'TIER SCH'!$A$2:$D$324,4,FALSE) -> T1
A86: 2001 | B86: Florida City Elementary | C86: 3 | D86: Opinion | E86: 131 | F86: 2.34 | G86: 39 | H86: 75 | I86: 15 | J86: 2 | K86: 0 | L86: 34 | M86: 78 | N86: 16 | O86: 3 | P86: 0 | Q86: 65 | R86: 55 | S86: 11 | U86: =VLOOKUP(TEXT($A86,"0000"),'Mem11-14-2014'!$A$3:$O$474,'Mem11-14-2014'!G$1,FALSE) -> 134 | V86: =VLOOKUP(A86,'TIER SCH'!$A$2:$D$324,4,FALSE) -> R
A87: 2003 | B87: Bridgeprep Academy South | C87: 3 | D87: Opinion | E87: 41 | F87: 5.88 | G87: 0 | H87: 4 | I87: 10 | J87: 25 | K87: 2 | L87: 1 | M87: 17 | N87: 21 | O87: 2 | P87: 0 | Q87: 2 | R87: 9 | S87: 30 | U87: =VLOOKUP(TEXT($A87,"0000"),'Mem11-14-2014'!$A$3:$O$474,'Mem11-14-2014'!G$1,FALSE) -> 42 | V87: =VLOOKUP(A87,'TIER SCH'!$A$2:$D$324,4,FALSE) -> 
A88: 2007 | B88: Somerset Academy Elementary | C88: 3 | D88: Opinion | E88: 74 | F88: 5.27 | G88: 1 | H88: 16 | I88: 36 | J88: 21 | K88: 0 | L88: 1 | M88: 25 | N88: 38 | O88: 10 | P88: 0 | Q88: 2 | R88: 36 | S88: 36 | U88: =VLOOKUP(TEXT($A88,"0000"),'Mem11-14-2014'!$A$3:$O$474,'Mem11-14-2014'!G$1,FALSE) -> 76 | V88: =VLOOKUP(A88,'TIER SCH'!$A$2:$D$324,4,FALSE) -> 
A89: 2012 | B89: Somerset Arts Academy | C89: 3 | D89: Opinion | E89: 69 | F89: 2.93 | G89: 13 | H89: 48 | I89: 7 | J89: 1 | K89: 0 | L89: 12 | M89: 51 | N89: 6 | O89: 0 | P89: 0 | Q89: 14 | R89: 36 | S89: 19 | U89: =VLOOKUP(TEXT($A89,"0000"),'Mem11-14-2014'!$A$3:$O$474,'Mem11-14-2014'!G$1,FALSE) -> 69 | V89: =VLOOKUP(A89,'TIER SCH'!$A$2:$D$324,4,FALSE) -> 
A90: 2013 | B90: Bridgeprep Acad Greater Miami | C90: 3 | D90: Opinion | E90: 70 | F90: 4.5 | G90: 0 | H90: 32 | I90: 17 | J90: 21 | K90: 0 | L90: 1 | M90: 43 | N90: 20 | O90: 6 | P90: 0 | Q90: 5 | R90: 45 | S90: 20 | U90: =VLOOKUP(TEXT($A90,"0000"),'Mem11-14-2014'!$A$3:$O$474,'Mem11-14-2014'!G$1,FALSE) -> 76 | V90: =VLOOKUP(A90,'TIER SCH'!$A$2:$D$324,4,FALSE) -> 
A91: 2021 | B91: Gloria Floyd Elementary | C91: 3 | D91: Opinion | E91: 93 | F91: 2.11 | G91: 34 | H91: 48 | I91: 11 | J91: 0 | K91: 0 | L91: 39 | M91: 44 | N91: 10 | O91: 0 | P91: 0 | Q91: 31 | R91: 62 | S91: 0 | U91: =VLOOKUP(TEXT($A91,"0000"),'Mem11-14-2014'!$A$3:$O$474,'Mem11-14-2014'!G$1,FALSE) -> 95 | V91: =VLOOKUP(A91,'TIER SCH'!$A$2:$D$324,4,FALSE) -> T1
A92: 2041 | B92: Benjamin Franklin K-8 Center | C92: 3 | D92: Opinion | E92: 84 | F92: 2.64 | G92: 29 | H92: 33 | I92: 12 | J92: 3 | K92: 7 | L92: 29 | M92: 27 | N92: 19 | O92: 1 | P92: 8 | Q92: 60 | R92: 20 | S92: 4 | U92: =VLOOKUP(TEXT($A92,"0000"),'Mem11-14-2014'!$A$3:$O$474,'Mem11-14-2014'!G$1,FALSE) -> 86 | V92: =VLOOKUP(A92,'TIER SCH'!$A$2:$D$324,4,FALSE) -> R
A93: 2060 | B93: Gibson Charter School | C93: 3 | D93: Opinion | E93: 33 | F93: 2.64 | G93: 10 | H93: 13 | I93: 8 | J93: 2 | K93: 0 | L93: 10 | M93: 17 | N93: 6 | O93: 0 | P93: 0 | Q93: 12 | R93: 19 | S93: 2 | U93: =VLOOKUP(TEXT($A93,"0000"),'Mem11-14-2014'!$A$3:$O$474,'Mem11-14-2014'!G$1,FALSE) -> 41 | V93: =VLOOKUP(A93,'TIER SCH'!$A$2:$D$324,4,FALSE) -> 
A94: 2081 | B94: Fulford Elementary | C94: 3 | D94: Opinion | E94: 77 | F94: 2.14 | G94: 21 | H94: 43 | I94: 11 | J94: 2 | K94: 0 | L94: 26 | M94: 47 | N94: 4 | O94: 0 | P94: 0 | Q94: 39 | R94: 37 | S94: 1 | U94: =VLOOKUP(TEXT($A94,"0000"),'Mem11-14-2014'!$A$3:$O$474,'Mem11-14-2014'!G$1,FALSE) -> 77 | V94: =VLOOKUP(A94,'TIER SCH'!$A$2:$D$324,4,FALSE) -> T2
A95: 2111 | B95: Hialeah Gardens Elementary | C95: 3 | D95: Opinion | E95: 126 | F95: 3.4 | G95: 22 | H95: 60 | I95: 37 | J95: 7 | K95: 0 | L95: 21 | M95: 72 | N95: 29 | O95: 4 | P95: 0 | Q95: 24 | R95: 72 | S95: 30 | U95: =VLOOKUP(TEXT($A95,"0000"),'Mem11-14-2014'!$A$3:$O$474,'Mem11-14-2014'!G$1,FALSE) -> 128 | V95: =VLOOKUP(A95,'TIER SCH'!$A$2:$D$324,4,FALSE) -> T1
A96: 2151 | B96: Jack D. Gordon Elementary | C96: 3 | D96: Opinion | E96: 156 | F96: 4.12 | G96: 2 | H96: 83 | I96: 63 | J96: 8 | K96: 0 | L96: 3 | M96: 91 | N96: 58 | O96: 4 | P96: 0 | Q96: 2 | R96: 118 | S96: 36 | U96: =VLOOKUP(TEXT($A96,"0000"),'Mem11-14-2014'!$A$3:$O$474,'Mem11-14-2014'!G$1,FALSE) -> 176 | V96: =VLOOKUP(A96,'TIER SCH'!$A$2:$D$324,4,FALSE) -> T1
A97: 2161 | B97: Golden Glades Elementary | C97: 3 | D97: Opinion | E97: 38 | F97: 3.42 | G97: 4 | H97: 21 | I97: 11 | J97: 2 | K97: 0 | L97: 6 | M97: 24 | N97: 3 | O97: 5 | P97: 0 | Q97: 9 | R97: 22 | S97: 7 | U97: =VLOOKUP(TEXT($A97,"0000"),'Mem11-14-2014'!$A$3:$O$474,'Mem11-14-2014'!G$1,FALSE) -> 38 | V97: =VLOOKUP(A97,'TIER SCH'!$A$2:$D$324,4,FALSE) -> T3
A98: 2181 | B98: Joella C. Good Elementary | C98: 3 | D98: Opinion | E98: 166 | F98: 2.07 | G98: 71 | H98: 68 | I98: 24 | J98: 3 | K98: 0 | L98: 75 | M98: 67 | N98: 21 | O98: 3 | P98: 0 | Q98: 84 | R98: 63 | S98: 19 | U98: =VLOOKUP(TEXT($A98,"0000"),'Mem11-14-2014'!$A$3:$O$474,'Mem11-14-2014'!G$1,FALSE) -> 164 | V98: =VLOOKUP(A98,'TIER SCH'!$A$2:$D$324,4,FALSE) -> WL
A99: 2191 | B99: Spanish Lake Elementary | C99: 3 | D99: Opinion | E99: 131 | F99: 2.45 | G99: 30 | H99: 66 | I99: 33 | J99: 2 | K99: 0 | L99: 50 | M99: 60 | N99: 17 | O99: 4 | P99: 0 | Q99: 56 | R99: 73 | S99: 2 | U99: =VLOOKUP(TEXT($A99,"0000"),'Mem11-14-2014'!$A$3:$O$474,'Mem11-14-2014'!G$1,FALSE) -> 277 | V99: =VLOOKUP(A99,'TIER SCH'!$A$2:$D$324,4,FALSE) -> T1
A100: 2241 | B100: Gratigny Elementary | C100: 3 | D100: Opinion | E100: 92 | F100: 1.55 | G100: 51 | H100: 30 | I100: 11 | J100: 0 | K100: 0 | L100: 57 | M100: 27 | N100: 8 | O100: 0 | P100: 0 | Q100: 53 | R100: 30 | S100: 9 | U100: =VLOOKUP(TEXT($A100,"0000"),'Mem11-14-2014'!$A$3:$O$474,'Mem11-14-2014'!G$1,FALSE) -> 97 | V100: =VLOOKUP(A100,'TIER SCH'!$A$2:$D$324,4,FALSE) -> R
A101: 2261 | B101: Greenglade Elementary | C101: 3 | D101: Opinion | E101: 69 | F101: 3.38 | G101: 23 | H101: 25 | I101: 11 | J101: 9 | K101: 1 | L101: 23 | M101: 20 | N101: 22 | O101: 4 | P101: 0 | Q101: 17 | R101: 25 | S101: 27 | U101: =VLOOKUP(TEXT($A101,"0000"),'Mem11-14-2014'!$A$3:$O$474,'Mem11-14-2014'!G$1,FALSE) -> 74 | V101: =VLOOKUP(A101,'TIER SCH'!$A$2:$D$324,4,FALSE) -> T1
A102: 2281 | B102: Greynolds Park Elementary | C102: 3 | D102: Opinion | E102: 114 | F102: 2.84 | G102: 21 | H102: 50 | I102: 35 | J102: 8 | K102: 0 | L102: 36 | M102: 55 | N102: 23 | O102: 0 | P102: 0 | Q102: 45 | R102: 59 | S102: 10 | U102: =VLOOKUP(TEXT($A102,"0000"),'Mem11-14-2014'!$A$3:$O$474,'Mem11-14-2014'!G$1,FALSE) -> 122 | V102: =VLOOKUP(A102,'TIER SCH'!$A$2:$D$324,4,FALSE) -> T3
A103: 2321 | B103: Gulfstream Elementary | C103: 3 | D103: Opinion | E103: 86 | F103: 2.91 | G103: 13 | H103: 58 | I103: 14 | J103: 1 | K103: 0 | L103: 12 | M103: 63 | N103: 11 | O103: 0 | P103: 0 | Q103: 21 | R103: 54 | S103: 11 | U103: =VLOOKUP(TEXT($A103,"0000"),'Mem11-14-2014'!$A$3:$O$474,'Mem11-14-2014'!G$1,FALSE) -> 90 | V103: =VLOOKUP(A103,'TIER SCH'!$A$2:$D$324,4,FALSE) -> T1
A104: 2331 | B104: Charles R. Hadley Elementary | C104: 3 | D104: Opinion | E104: 177 | F104: 3.21 | G104: 44 | H104: 58 | I104: 60 | J104: 14 | K104: 1 | L104: 42 | M104: 76 | N104: 55 | O104: 4 | P104: 0 | Q104: 53 | R104: 101 | S104: 23 | U104: =VLOOKUP(TEXT($A104,"0000"),'Mem11-14-2014'!$A$3:$O$474,'Mem11-14-2014'!G$1,FALSE) -> 181 | V104: =VLOOKUP(A104,'TIER SCH'!$A$2:$D$324,4,FALSE) -> T1
A105: 2341 | B105: Joe Hall Elementary | C105: 3 | D105: Opinion | E105: 87 | F105: 3.32 | G105: 12 | H105: 48 | I105: 27 | J105: 0 | K105: 0 | L105: 14 | M105: 54 | N105: 16 | O105: 3 | P105: 0 | Q105: 16 | R105: 50 | S105: 21 | U105: =VLOOKUP(TEXT($A105,"0000"),'Mem11-14-2014'!$A$3:$O$474,'Mem11-14-2014'!G$1,FALSE) -> 86 | V105: =VLOOKUP(A105,'TIER SCH'!$A$2:$D$324,4,FALSE) -> T1
A106: 2351 | B106: Eneida Massas Hartner Elem | C106: 3 | D106: Opinion | E106: 82 | F106: 2.9 | G106: 5 | H106: 71 | I106: 3 | J106: 3 | K106: 0 | L106: 5 | M106: 67 | N106: 7 | O106: 3 | P106: 0 | Q106: 36 | R106: 30 | S106: 16 | U106: =VLOOKUP(TEXT($A106,"0000"),'Mem11-14-2014'!$A$3:$O$474,'Mem11-14-2014'!G$1,FALSE) -> 83 | V106: =VLOOKUP(A106,'TIER SCH'!$A$2:$D$324,4,FALSE) -> WL
A107: 2361 | B107: Hialeah Elementary | C107: 3 | D107: Opinion | E107: 133 | F107: 2.25 | G107: 44 | H107: 61 | I107: 26 | J107: 2 | K107: 0 | L107: 42 | M107: 70 | N107: 21 | O107: 0 | P107: 0 | Q107: 67 | R107: 64 | S107: 2 | U107: =VLOOKUP(TEXT($A107,"0000"),'Mem11-14-2014'!$A$3:$O$474,'Mem11-14-2014'!G$1,FALSE) -> 136 | V107: =VLOOKUP(A107,'TIER SCH'!$A$2:$D$324,4,FALSE) -> WL
A108: 2371 | B108: West Hialeah Gardens Elem | C108: 3 | D108: Opinion | E108: 181 | F108: 1.96 | G108: 86 | H108: 67 | I108: 26 | J108: 2 | K108: 0 | L108: 102 | M108: 59 | N108: 20 | O108: 0 | P108: 0 | Q108: 90 | R108: 51 | S108: 40 | U108: =VLOOKUP(TEXT($A108,"0000"),'Mem11-14-2014'!$A$3:$O$474,'Mem11-14-2014'!G$1,FALSE) -> 198 | V108: =VLOOKUP(A108,'TIER SCH'!$A$2:$D$324,4,FALSE) -> T1
A109: 2401 | B109: Hibiscus Elementary | C109: 3 | D109: Opinion | E109: 69 | F109: 2.62 | G109: 20 | H109: 38 | I109: 10 | J109: 1 | K109: 0 | L109: 21 | M109: 39 | N109: 9 | O109: 0 | P109: 0 | Q109: 20 | R109: 35 | S109: 14 | U109: =VLOOKUP(TEXT($A109,"0000"),'Mem11-14-2014'!$A$3:$O$474,'Mem11-14-2014'!G$1,FALSE) -> 69 | V109: =VLOOKUP(A109,'TIER SCH'!$A$2:$D$324,4,FALSE) -> R
A110: 2441 | B110: Virginia A Boone/highland Oaks | C110: 3 | D110: Opinion | E110: 126 | F110: 2.71 | G110: 21 | H110: 63 | I110: 36 | J110: 6 | K110: 0 | L110: 32 | M110: 81 | N110: 13 | O110: 0 | P110: 0 | Q110: 58 | R110: 55 | S110: 13 | U110: =VLOOKUP(TEXT($A110,"0000"),'Mem11-14-2014'!$A$3:$O$474,'Mem11-14-2014'!G$1,FALSE) -> 135 | V110: =VLOOKUP(A110,'TIER SCH'!$A$2:$D$324,4,FALSE) -> T1
A111: 2501 | B111: Holmes Elementary | C111: 3 | D111: Opinion | E111: 105 | F111: 3.14 | G111: 19 | H111: 51 | I111: 24 | J111: 11 | K111: 0 | L111: 19 | M111: 61 | N111: 14 | O111: 10 | P111: 1 | Q111: 43 | R111: 49 | S111: 13 | U111: =VLOOKUP(TEXT($A111,"0000"),'Mem11-14-2014'!$A$3:$O$474,'Mem11-14-2014'!G$1,FALSE) -> 136 | V111: =VLOOKUP(A111,'TIER SCH'!$A$2:$D$324,4,FALSE) -> T3
A112: 2511 | B112: Zora Neale Hurston Elementary | C112: 3 | D112: Opinion | E112: 110 | F112: 3.49 | G112: 1 | H112: 66 | I112: 35 | J112: 7 | K112: 1 | L112: 2 | M112: 92 | N112: 13 | O112: 3 | P112: 0 | Q112: 25 | R112: 74 | S112: 11 | U112: =VLOOKUP(TEXT($A112,"0000"),'Mem11-14-2014'!$A$3:$O$474,'Mem11-14-2014'!G$1,FALSE) -> 114 | V112: =VLOOKUP(A112,'TIER SCH'!$A$2:$D$324,4,FALSE) -> T1
A113: 2521 | B113: Oliver Hoover Elementary | C113: 3 | D113: Opinion | E113: 114 | F113: 2.96 | G113: 18 | H113: 72 | I113: 19 | J113: 5 | K113: 0 | L113: 18 | M113: 79 | N113: 13 | O113: 4 | P113: 0 | Q113: 37 | R113: 58 | S113: 19 | U113: =VLOOKUP(TEXT($A113,"0000"),'Mem11-14-2014'!$A$3:$O$474,'Mem11-14-2014'!G$1,FALSE) -> 124 | V113: =VLOOKUP(A113,'TIER SCH'!$A$2:$D$324,4,FALSE) -> T1
A114: 2541 | B114: Howard Drive Elementary | C114: 3 | D114: Opinion | E114: 100 | F114: 3.69 | G114: 18 | H114: 38 | I114: 30 | J114: 14 | K114: 0 | L114: 21 | M114: 39 | N114: 28 | O114: 12 | P114: 0 | Q114: 25 | R114: 52 | S114: 23 | U114: =VLOOKUP(TEXT($A114,"0000"),'Mem11-14-2014'!$A$3:$O$474,'Mem11-14-2014'!G$1,FALSE) -> 105 | V114: =VLOOKUP(A114,'TIER SCH'!$A$2:$D$324,4,FALSE) -> T1
A115: 2581 | B115: Madie Ives Elementary | C115: 3 | D115: Opinion | E115: 138 | F115: 4.42 | G115: 5 | H115: 57 | I115: 50 | J115: 26 | K115: 0 | L115: 12 | M115: 53 | N115: 53 | O115: 20 | P115: 0 | Q115: 19 | R115: 82 | S115: 37 | U115: =VLOOKUP(TEXT($A115,"0000"),'Mem11-14-2014'!$A$3:$O$474,'Mem11-14-2014'!G$1,FALSE) -> 146 | V115: =VLOOKUP(A115,'TIER SCH'!$A$2:$D$324,4,FALSE) -> T3
A116: 2641 | B116: Kendale Elementary | C116: 3 | D116: Opinion | E116: 77 | F116: 4.32 | G116: 2 | H116: 39 | I116: 27 | J116: 9 | K116: 0 | L116: 4 | M116: 33 | N116: 32 | O116: 8 | P116: 0 | Q116: 13 | R116: 36 | S116: 28 | U116: =VLOOKUP(TEXT($A116,"0000"),'Mem11-14-2014'!$A$3:$O$474,'Mem11-14-2014'!G$1,FALSE) -> 81 | V116: =VLOOKUP(A116,'TIER SCH'!$A$2:$D$324,4,FALSE) -> T1
A117: 2651 | B117: Kendale Lakes Elementary | C117: 3 | D117: Opinion | E117: 110 | F117: 2 | G117: 30 | H117: 63 | I117: 17 | J117: 0 | K117: 0 | L117: 45 | M117: 53 | N117: 12 | O117: 0 | P117: 0 | Q117: 67 | R117: 40 | S117: 3 | U117: =VLOOKUP(TEXT($A117,"0000"),'Mem11-14-2014'!$A$3:$O$474,'Mem11-14-2014'!G$1,FALSE) -> 114 | V117: =VLOOKUP(A117,'TIER SCH'!$A$2:$D$324,4,FALSE) -> T1
A118: 2661 | B118: Kensington Park Elementary | C118: 3 | D118: Opinion | E118: 185 | F118: 3.06 | G118: 69 | H118: 31 | I118: 60 | J118: 20 | K118: 5 | L118: 68 | M118: 69 | N118: 38 | O118: 9 | P118: 1 | Q118: 57 | R118: 97 | S118: 31 | U118: =VLOOKUP(TEXT($A118,"0000"),'Mem11-14-2014'!$A$3:$O$474,'Mem11-14-2014'!G$1,FALSE) -> 193 | V118: =VLOOKUP(A118,'TIER SCH'!$A$2:$D$324,4,FALSE) -> T3
A119: 2701 | B119: Kenwood K-8 Center | C119: 3 | D119: Opinion | E119: 100 | F119: 2.89 | G119: 22 | H119: 56 | I119: 20 | J119: 2 | K119: 0 | L119: 27 | M119: 48 | N119: 24 | O119: 1 | P119: 0 | Q119: 33 | R119: 46 | S119: 21 | U119: =VLOOKUP(TEXT($A119,"0000"),'Mem11-14-2014'!$A$3:$O$474,'Mem11-14-2014'!G$1,FALSE) -> 103 | V119: =VLOOKUP(A119,'TIER SCH'!$A$2:$D$324,4,FALSE) -> T1
A120: 2741 | B120: Key Biscayne K-8 Center | C120: 3 | D120: Opinion | E120: 181 | F120: 3.54 | G120: 28 | H120: 70 | I120: 67 | J120: 16 | K120: 0 | L120: 20 | M120: 107 | N120: 44 | O120: 10 | P120: 0 | Q120: 35 | R120: 128 | S120: 18 | U120: =VLOOKUP(TEXT($A120,"0000"),'Mem11-14-2014'!$A$3:$O$474,'Mem11-14-2014'!G$1,FALSE) -> 186 | V120: =VLOOKUP(A120,'TIER SCH'!$A$2:$D$324,4,FALSE) -> T1
A121: 2781 | B121: Kinloch Park Elementary | C121: 3 | D121: Opinion | E121: 1 | F121: 5 | G121: 0 | H121: 0 | I121: 1 | J121: 0 | K121: 0 | L121: 0 | M121: 0 | N121: 1 | O121: 0 | P121: 0 | Q121: 0 | R121: 1 | S121: 0 | U121: =VLOOKUP(TEXT($A121,"0000"),'Mem11-14-2014'!$A$3:$O$474,'Mem11-14-2014'!G$1,FALSE) -> 130 | V121: =VLOOKUP(A121,'TIER SCH'!$A$2:$D$324,4,FALSE) -> T1
A122: 2801 | B122: Lake Stevens Elementary | C122: 3 | D122: Opinion | E122: 48 | F122: 3.85 | G122: 3 | H122: 38 | I122: 2 | J122: 3 | K122: 2 | L122: 1 | M122: 39 | N122: 3 | O122: 4 | P122: 1 | Q122: 2 | R122: 27 | S122: 19 | U122: =VLOOKUP(TEXT($A122,"0000"),'Mem11-14-2014'!$A$3:$O$474,'Mem11-14-2014'!G$1,FALSE) -> 49 | V122: =VLOOKUP(A122,'TIER SCH'!$A$2:$D$324,4,FALSE) -> R
A123: 2821 | B123: Lakeview Elementary | C123: 3 | D123: Opinion | E123: 68 | F123: 0.78 | G123: 24 | H123: 36 | I123: 7 | J123: 1 | K123: 0 | L123: 68 | M123: 0 | N123: 0 | O123: 0 | P123: 0 | Q123: 68 | R123: 0 | S123: 0 | U123: =VLOOKUP(TEXT($A123,"0000"),'Mem11-14-2014'!$A$3:$O$474,'Mem11-14-2014'!G$1,FALSE) -> 77 | V123: =VLOOKUP(A123,'TIER SCH'!$A$2:$D$324,4,FALSE) -> T3
A124: 2881 | B124: Leewood K-8 Center | C124: 3 | D124: Opinion | E124: 82 | F124: 4.96 | G124: 0 | H124: 22 | I124: 54 | J124: 6 | K124: 0 | L124: 0 | M124: 39 | N124: 39 | O124: 4 | P124: 0 | Q124: 3 | R124: 28 | S124: 51 | U124: =VLOOKUP(TEXT($A124,"0000"),'Mem11-14-2014'!$A$3:$O$474,'Mem11-14-2014'!G$1,FALSE) -> 82 | V124: =VLOOKUP(A124,'TIER SCH'!$A$2:$D$324,4,FALSE) -> T1
A125: 2891 | B125: William Lehman Elementary | C125: 3 | D125: Opinion | E125: 81 | F125: 1.88 | G125: 22 | H125: 48 | I125: 10 | J125: 1 | K125: 0 | L125: 45 | M125: 29 | N125: 6 | O125: 1 | P125: 0 | Q125: 51 | R125: 23 | S125: 7 | U125: =VLOOKUP(TEXT($A125,"0000"),'Mem11-14-2014'!$A$3:$O$474,'Mem11-14-2014'!G$1,FALSE) -> 112 | V125: =VLOOKUP(A125,'TIER SCH'!$A$2:$D$324,4,FALSE) -> T1
A126: 2901 | B126: Leisure City K-8 Center | C126: 3 | D126: Opinion | E126: 101 | F126: 2.34 | G126: 25 | H126: 55 | I126: 18 | J126: 3 | K126: 0 | L126: 26 | M126: 60 | N126: 12 | O126: 3 | P126: 0 | Q126: 62 | R126: 35 | S126: 4 | U126: =VLOOKUP(TEXT($A126,"0000"),'Mem11-14-2014'!$A$3:$O$474,'Mem11-14-2014'!G$1,FALSE) -> 110 | V126: =VLOOKUP(A126,'TIER SCH'!$A$2:$D$324,4,FALSE) -> T2
A127: 2911 | B127: Linda Lentin K-8 Center | C127: 3 | D127: Opinion | E127: 91 | F127: 2.53 | G127: 17 | H127: 61 | I127: 12 | J127: 1 | K127: 0 | L127: 17 | M127: 68 | N127: 6 | O127: 0 | P127: 0 | Q127: 30 | R127: 60 | S127: 1 | U127: =VLOOKUP(TEXT($A127,"0000"),'Mem11-14-2014'!$A$3:$O$474,'Mem11-14-2014'!G$1,FALSE) -> 92 | V127: =VLOOKUP(A127,'TIER SCH'!$A$2:$D$324,4,FALSE) -> T3
A128: 2941 | B128: Laura C. Saunders Elementary | C128: 3 | D128: Opinion | E128: 110 | F128: 2.45 | G128: 56 | H128: 30 | I128: 17 | J128: 5 | K128: 2 | L128: 44 | M128: 31 | N128: 25 | O128: 7 | P128: 3 | Q128: 51 | R128: 50 | S128: 9 | U128: =VLOOKUP(TEXT($A128,"0000"),'Mem11-14-2014'!$A$3:$O$474,'Mem11-14-2014'!G$1,FALSE) -> 120 | V128: =VLOOKUP(A128,'TIER SCH'!$A$2:$D$324,4,FALSE) -> T3
A129: 2981 | B129: Liberty City Elementary | C129: 3 | D129: Opinion | E129: 29 | F129: 0.66 | G129: 23 | H129: 5 | I129: 1 | J129: 0 | K129: 0 | L129: 21 | M129: 8 | N129: 0 | O129: 0 | P129: 0 | Q129: 26 | R129: 2 | S129: 1 | U129: =VLOOKUP(TEXT($A129,"0000"),'Mem11-14-2014'!$A$3:$O$474,'Mem11-14-2014'!G$1,FALSE) -> 60 | V129: =VLOOKUP(A129,'TIER SCH'!$A$2:$D$324,4,FALSE) -> T3
A130: 3021 | B130: Jesse J Mccrary Jr Elementary | C130: 3 | D130: Opinion | E130: 96 | F130: 2.85 | G130: 24 | H130: 31 | I130: 33 | J130: 7 | K130: 1 | L130: 38 | M130: 34 | N130: 20 | O130: 3 | P130: 1 | Q130: 41 | R130: 45 | S130: 10 | U130: =VLOOKUP(TEXT($A130,"0000"),'Mem11-14-2014'!$A$3:$O$474,'Mem11-14-2014'!G$1,FALSE) -> 98 | V130: =VLOOKUP(A130,'TIER SCH'!$A$2:$D$324,4,FALSE) -> T3
A131: 3025 | B131: Advantage Academy Santa Fe | C131: 3 | D131: Opinion | E131: 77 | F131: 4.08 | G131: 7 | H131: 29 | I131: 39 | J131: 2 | K131: 0 | L131: 14 | M131: 26 | N131: 30 | O131: 5 | P131: 2 | Q131: 16 | R131: 30 | S131: 31 | U131: =VLOOKUP(TEXT($A131,"0000"),'Mem11-14-2014'!$A$3:$O$474,'Mem11-14-2014'!G$1,FALSE) -> 78 | V131: =VLOOKUP(A131,'TIER SCH'!$A$2:$D$324,4,FALSE) -> 
A132: 3030 | B132: Doral Academy | C132: 3 | D132: Opinion | E132: 193 | F132: 3.72 | G132: 50 | H132: 54 | I132: 41 | J132: 47 | K132: 1 | L132: 71 | M132: 53 | N132: 57 | O132: 12 | P132: 0 | Q132: 43 | R132: 67 | S132: 83 | U132: =VLOOKUP(TEXT($A132,"0000"),'Mem11-14-2014'!$A$3:$O$474,'Mem11-14-2014'!G$1,FALSE) -> 198 | V132: =VLOOKUP(A132,'TIER SCH'!$A$2:$D$324,4,FALSE) -> 
A133: 3033 | B133: Somerset Oaks Academy | C133: 3 | D133: Opinion | E133: 54 | F133: 3.19 | G133: 11 | H133: 27 | I133: 14 | J133: 2 | K133: 0 | L133: 11 | M133: 29 | N133: 11 | O133: 3 | P133: 0 | Q133: 15 | R133: 27 | S133: 12 | U133: =VLOOKUP(TEXT($A133,"0000"),'Mem11-14-2014'!$A$3:$O$474,'Mem11-14-2014'!G$1,FALSE) -> 53 | V133: =VLOOKUP(A133,'TIER SCH'!$A$2:$D$324,4,FALSE) -> 
A134: 3034 | B134: Bridgeprep Acad Village Green | C134: 3 | D134: Opinion | E134: 41 | F134: 5.12 | G134: 0 | H134: 17 | I134: 11 | J134: 13 | K134: 0 | L134: 1 | M134: 17 | N134: 15 | O134: 8 | P134: 0 | Q134: 0 | R134: 21 | S134: 20 | U134: =VLOOKUP(TEXT($A134,"0000"),'Mem11-14-2014'!$A$3:$O$474,'Mem11-14-2014'!G$1,FALSE) -> 42 | V134: =VLOOKUP(A134,'TIER SCH'!$A$2:$D$324,4,FALSE) -> 
A135: 3035 | B135: Ramz Academy Elem Miami Campus | C135: 3 | D135: Opinion | E135: 40 | F135: 2.17 | G135: 22 | H135: 11 | I135: 5 | J135: 2 | K135: 0 | L135: 22 | M135: 12 | N135: 5 | O135: 1 | P135: 0 | Q135: 16 | R135: 13 | S135: 11 | U135: =VLOOKUP(TEXT($A135,"0000"),'Mem11-14-2014'!$A$3:$O$474,'Mem11-14-2014'!G$1,FALSE) -> 40 | V135: =VLOOKUP(A135,'TIER SCH'!$A$2:$D$324,4,FALSE) -> 
A136: 3041 | B136: Lorah Park Elementary | C136: 3 | D136: Opinion | E136: 73 | F136: 2.33 | G136: 32 | H136: 26 | I136: 14 | J136: 1 | K136: 0 | L136: 25 | M136: 34 | N136: 14 | O136: 0 | P136: 0 | Q136: 31 | R136: 33 | S136: 9 | U136: =VLOOKUP(TEXT($A136,"0000"),'Mem11-14-2014'!$A$3:$O$474,'Mem11-14-2014'!G$1,FALSE) -> 72 | V136: =VLOOKUP(A136,'TIER SCH'!$A$2:$D$324,4,FALSE) -> T3
A137: 3051 | B137: Toussaint L''ouverture Elem | C137: 3 | D137: Opinion | E137: 84 | F137: 3.1 | G137: 7 | H137: 56 | I137: 20 | J137: 1 | K137: 0 | L137: 7 | M137: 66 | N137: 9 | O137: 2 | P137: 0 | Q137: 17 | R137: 63 | S137: 4 | U137: =VLOOKUP(TEXT($A137,"0000"),'Mem11-14-2014'!$A$3:$O$474,'Mem11-14-2014'!G$1,FALSE) -> 88 | V137: =VLOOKUP(A137,'TIER SCH'!$A$2:$D$324,4,FALSE) -> T3
A138: 3061 | B138: Ludlam Elementary | C138: 3 | D138: Opinion | E138: 61 | F138: 3.89 | G138: 3 | H138: 32 | I138: 26 | J138: 0 | K138: 0 | L138: 3 | M138: 37 | N138: 19 | O138: 2 | P138: 0 | Q138: 10 | R138: 30 | S138: 21 | U138: =VLOOKUP(TEXT($A138,"0000"),'Mem11-14-2014'!$A$3:$O$474,'Mem11-14-2014'!G$1,FALSE) -> 63 | V138: =VLOOKUP(A138,'TIER SCH'!$A$2:$D$324,4,FALSE) -> T1
A139: 3100 | B139: Mater Academy East Charter | C139: 3 | D139: Opinion | E139: 96 | F139: 5.61 | G139: 0 | H139: 34 | I139: 29 | J139: 27 | K139: 6 | L139: 0 | M139: 42 | N139: 31 | O139: 21 | P139: 2 | Q139: 0 | R139: 25 | S139: 71 | U139: =VLOOKUP(TEXT($A139,"0000"),'Mem11-14-2014'!$A$3:$O$474,'Mem11-14-2014'!G$1,FALSE) -> 95 | V139: =VLOOKUP(A139,'TIER SCH'!$A$2:$D$324,4,FALSE) -> 
A140: 3101 | B140: Frank C. Martin K-8 Center | C140: 3 | D140: Opinion | E140: 135 | F140: 3.79 | G140: 21 | H140: 57 | I140: 47 | J140: 9 | K140: 1 | L140: 16 | M140: 62 | N140: 49 | O140: 8 | P140: 0 | Q140: 20 | R140: 85 | S140: 30 | U140: =VLOOKUP(TEXT($A140,"0000"),'Mem11-14-2014'!$A$3:$O$474,'Mem11-14-2014'!G$1,FALSE) -> 136 | V140: =VLOOKUP(A140,'TIER SCH'!$A$2:$D$324,4,FALSE) -> T1
A141: 3111 | B141: Wesley Matthews Elementary | C141: 3 | D141: Opinion | E141: 80 | F141: 4.36 | G141: 5 | H141: 17 | I141: 47 | J141: 10 | K141: 1 | L141: 13 | M141: 31 | N141: 25 | O141: 11 | P141: 0 | Q141: 6 | R141: 58 | S141: 16 | U141: =VLOOKUP(TEXT($A141,"0000"),'Mem11-14-2014'!$A$3:$O$474,'Mem11-14-2014'!G$1,FALSE) -> 79 | V141: =VLOOKUP(A141,'TIER SCH'!$A$2:$D$324,4,FALSE) -> T1
A142: 3141 | B142: Meadowlane Elementary | C142: 3 | D142: Opinion | E142: 157 | F142: 2.59 | G142: 31 | H142: 85 | I142: 33 | J142: 8 | K142: 0 | L142: 62 | M142: 67 | N142: 24 | O142: 4 | P142: 0 | Q142: 69 | R142: 71 | S142: 17 | U142: =VLOOKUP(TEXT($A142,"0000"),'Mem11-14-2014'!$A$3:$O$474,'Mem11-14-2014'!G$1,FALSE) -> 161 | V142: =VLOOKUP(A142,'TIER SCH'!$A$2:$D$324,4,FALSE) -> T1
A143: 3181 | B143: Melrose Elementary | C143: 3 | D143: Opinion | E143: 83 | F143: 1.8 | G143: 36 | H143: 38 | I143: 9 | J143: 0 | K143: 0 | L143: 36 | M143: 41 | N143: 5 | O143: 1 | P143: 0 | Q143: 44 | R143: 39 | S143: 0 | U143: =VLOOKUP(TEXT($A143,"0000"),'Mem11-14-2014'!$A$3:$O$474,'Mem11-14-2014'!G$1,FALSE) -> 89 | V143: =VLOOKUP(A143,'TIER SCH'!$A$2:$D$324,4,FALSE) -> T2
A144: 3191 | B144: Ada Merritt K-8 Center | C144: 3 | D144: Opinion | E144: 81 | F144: 5.79 | G144: 0 | H144: 23 | I144: 28 | J144: 26 | K144: 4 | L144: 0 | M144: 17 | N144: 33 | O144: 28 | P144: 3 | Q144: 2 | R144: 41 | S144: 38 | U144: =VLOOKUP(TEXT($A144,"0000"),'Mem11-14-2014'!$A$3:$O$474,'Mem11-14-2014'!G$1,FALSE) -> 81 | V144: =VLOOKUP(A144,'TIER SCH'!$A$2:$D$324,4,FALSE) -> T1
A145: 3241 | B145: Miami Gardens Elementary | C145: 3 | D145: Opinion | E145: 46 | F145: 1.17 | G145: 20 | H145: 24 | I145: 2 | J145: 0 | K145: 0 | L145: 26 | M145: 19 | N145: 1 | O145: 0 | P145: 0 | Q145: 41 | R145: 5 | S145: 0 | U145: =VLOOKUP(TEXT($A145,"0000"),'Mem11-14-2014'!$A$3:$O$474,'Mem11-14-2014'!G$1,FALSE) -> 48 | V145: =VLOOKUP(A145,'TIER SCH'!$A$2:$D$324,4,FALSE) -> R
A146: 3261 | B146: Miami Heights Elementary | C146: 3 | D146: Opinion | E146: 176 | F146: 2.54 | G146: 51 | H146: 83 | I146: 41 | J146: 1 | K146: 0 | L146: 63 | M146: 83 | N146: 29 | O146: 1 | P146: 0 | Q146: 60 | R146: 97 | S146: 19 | U146: =VLOOKUP(TEXT($A146,"0000"),'Mem11-14-2014'!$A$3:$O$474,'Mem11-14-2014'!G$1,FALSE) -> 181 | V146: =VLOOKUP(A146,'TIER SCH'!$A$2:$D$324,4,FALSE) -> R
A147: 3281 | B147: Miami Lakes K-8 Center | C147: 3 | D147: Opinion | E147: 159 | F147: 2.78 | G147: 35 | H147: 85 | I147: 39 | J147: 0 | K147: 0 | L147: 50 | M147: 96 | N147: 13 | O147: 0 | P147: 0 | Q147: 31 | R147: 99 | S147: 29 | U147: =VLOOKUP(TEXT($A147,"0000"),'Mem11-14-2014'!$A$3:$O$474,'Mem11-14-2014'!G$1,FALSE) -> 158 | V147: =VLOOKUP(A147,'TIER SCH'!$A$2:$D$324,4,FALSE) -> T1
A148: 3301 | B148: Miami Park Elementary | C148: 3 | D148: Opinion | E148: 61 | F148: 2.1 | G148: 29 | H148: 13 | I148: 15 | J148: 3 | K148: 1 | L148: 31 | M148: 12 | N148: 18 | O148: 0 | P148: 0 | Q148: 37 | R148: 24 | S148: 0 | U148: =VLOOKUP(TEXT($A148,"0000"),'Mem11-14-2014'!$A$3:$O$474,'Mem11-14-2014'!G$1,FALSE) -> 61 | V148: =VLOOKUP(A148,'TIER SCH'!$A$2:$D$324,4,FALSE) -> T3
A149: 3341 | B149: Miami Shores Elementary | C149: 3 | D149: Opinion | E149: 168 | F149: 4.71 | G149: 17 | H149: 44 | I149: 68 | J149: 32 | K149: 7 | L149: 18 | M149: 53 | N149: 72 | O149: 19 | P149: 6 | Q149: 20 | R149: 86 | S149: 62 | U149: =VLOOKUP(TEXT($A149,"0000"),'Mem11-14-2014'!$A$3:$O$474,'Mem11-14-2014'!G$1,FALSE) -> 173 | V149: =VLOOKUP(A149,'TIER SCH'!$A$2:$D$324,4,FALSE) -> T1
A150: 3381 | B150: Miami Springs Elementary | C150: 3 | D150: Opinion | E150: 73 | F150: 1.9 | G150: 27 | H150: 30 | I150: 16 | J150: 0 | K150: 0 | L150: 33 | M150: 32 | N150: 8 | O150: 0 | P150: 0 | Q150: 45 | R150: 27 | S150: 1 | U150: =VLOOKUP(TEXT($A150,"0000"),'Mem11-14-2014'!$A$3:$O$474,'Mem11-14-2014'!G$1,FALSE) -> 73 | V150: =VLOOKUP(A150,'TIER SCH'!$A$2:$D$324,4,FALSE) -> WL
A151: 3421 | B151: M.a. Milam K-8 Center | C151: 3 | D151: Opinion | E151: 67 | F151: 3.85 | G151: 1 | H151: 36 | I151: 27 | J151: 3 | K151: 0 | L151: 1 | M151: 45 | N151: 21 | O151: 0 | P151: 0 | Q151: 1 | R151: 60 | S151: 6 | U151: =VLOOKUP(TEXT($A151,"0000"),'Mem11-14-2014'!$A$3:$O$474,'Mem11-14-2014'!G$1,FALSE) -> 76 | V151: =VLOOKUP(A151,'TIER SCH'!$A$2:$D$324,4,FALSE) -> WL
A152: 3431 | B152: Phyllis Ruth Miller Elementary | C152: 3 | D152: Opinion | E152: 91 | F152: 3.42 | G152: 14 | H152: 42 | I152: 29 | J152: 6 | K152: 0 | L152: 19 | M152: 40 | N152: 30 | O152: 2 | P152: 0 | Q152: 15 | R152: 65 | S152: 11 | U152: =VLOOKUP(TEXT($A152,"0000"),'Mem11-14-2014'!$A$3:$O$474,'Mem11-14-2014'!G$1,FALSE) -> 94 | V152: =VLOOKUP(A152,'TIER SCH'!$A$2:$D$324,4,FALSE) -> R
A153: 3501 | B153: Morningside K-8 Academy | C153: 3 | D153: Opinion | E153: 74 | F153: 3.69 | G153: 8 | H153: 34 | I153: 23 | J153: 6 | K153: 3 | L153: 14 | M153: 30 | N153: 17 | O153: 12 | P153: 1 | Q153: 31 | R153: 27 | S153: 16 | U153: =VLOOKUP(TEXT($A153,"0000"),'Mem11-14-2014'!$A$3:$O$474,'Mem11-14-2014'!G$1,FALSE) -> 74 | V153: =VLOOKUP(A153,'TIER SCH'!$A$2:$D$324,4,FALSE) -> T3
A154: 3541 | B154: Robert Russa Moton Elementary | C154: 3 | D154: Opinion | E154: 61 | F154: 2.9 | G154: 14 | H154: 32 | I154: 13 | J154: 1 | K154: 1 | L154: 22 | M154: 26 | N154: 13 | O154: 0 | P154: 0 | Q154: 17 | R154: 28 | S154: 16 | U154: =VLOOKUP(TEXT($A154,"0000"),'Mem11-14-2014'!$A$3:$O$474,'Mem11-14-2014'!G$1,FALSE) -> 62 | V154: =VLOOKUP(A154,'TIER SCH'!$A$2:$D$324,4,FALSE) -> T3
A155: 3581 | B155: Myrtle Grove K-8 Center | C155: 3 | D155: Opinion | E155: 61 | F155: 2.67 | G155: 17 | H155: 31 | I155: 12 | J155: 1 | K155: 0 | L155: 17 | M155: 33 | N155: 11 | O155: 0 | P155: 0 | Q155: 17 | R155: 38 | S155: 6 | U155: =VLOOKUP(TEXT($A155,"0000"),'Mem11-14-2014'!$A$3:$O$474,'Mem11-14-2014'!G$1,FALSE) -> 72 | V155: =VLOOKUP(A155,'TIER SCH'!$A$2:$D$324,4,FALSE) -> T3
A156: 3600 | B156: Downtown Miami Charter School | C156: 3 | D156: Opinion | E156: 1 | F156: 3 | G156: 0 | H156: 0 | I156: 1 | J156: 0 | K156: 0 | L156: 1 | M156: 0 | N156: 0 | O156: 0 | P156: 0 | Q156: 0 | R156: 1 | S156: 0 | U156: =VLOOKUP(TEXT($A156,"0000"),'Mem11-14-2014'!$A$3:$O$474,'Mem11-14-2014'!G$1,FALSE) -> 89 | V156: =VLOOKUP(A156,'TIER SCH'!$A$2:$D$324,4,FALSE) -> 
A157: 3610 | B157: Keys Gate Charter School | C157: 3 | D157: Opinion | E157: 1 | F157: 3 | G157: 0 | H157: 0 | I157: 1 | J157: 0 | K157: 0 | L157: 0 | M157: 1 | N157: 0 | O157: 0 | P157: 0 | Q157: 1 | R157: 0 | S157: 0 | U157: =VLOOKUP(TEXT($A157,"0000"),'Mem11-14-2014'!$A$3:$O$474,'Mem11-14-2014'!G$1,FALSE) -> 260 | V157: =VLOOKUP(A157,'TIER SCH'!$A$2:$D$324,4,FALSE) -> 
A158: 3621 | B158: Coconut Palm K-8 Academy | C158: 3 | D158: Opinion | E158: 169 | F158: 3.27 | G158: 14 | H158: 110 | I158: 37 | J158: 8 | K158: 0 | L158: 15 | M158: 128 | N158: 21 | O158: 5 | P158: 0 | Q158: 17 | R158: 144 | S158: 8 | U158: =VLOOKUP(TEXT($A158,"0000"),'Mem11-14-2014'!$A$3:$O$474,'Mem11-14-2014'!G$1,FALSE) -> 171 | V158: =VLOOKUP(A158,'TIER SCH'!$A$2:$D$324,4,FALSE) -> T3
A159: 3661 | B159: Natural Bridge Elementary | C159: 3 | D159: Opinion | E159: 94 | F159: 1.83 | G159: 55 | H159: 23 | I159: 12 | J159: 4 | K159: 0 | L159: 56 | M159: 21 | N159: 10 | O159: 7 | P159: 0 | Q159: 56 | R159: 25 | S159: 13 | U159: =VLOOKUP(TEXT($A159,"0000"),'Mem11-14-2014'!$A$3:$O$474,'Mem11-14-2014'!G$1,FALSE) -> 99 | V159: =VLOOKUP(A159,'TIER SCH'!$A$2:$D$324,4,FALSE) -> T2
A160: 3701 | B160: Norland Elementary | C160: 3 | D160: Opinion | E160: 101 | F160: 2.51 | G160: 40 | H160: 31 | I160: 26 | J160: 4 | K160: 0 | L160: 45 | M160: 34 | N160: 21 | O160: 1 | P160: 0 | Q160: 43 | R160: 36 | S160: 22 | U160: =VLOOKUP(TEXT($A160,"0000"),'Mem11-14-2014'!$A$3:$O$474,'Mem11-14-2014'!G$1,FALSE) -> 105 | V160: =VLOOKUP(A160,'TIER SCH'!$A$2:$D$324,4,FALSE) -> T3
A161: 3741 | B161: North Beach Elementary | C161: 3 | D161: Opinion | E161: 122 | F161: 3.81 | G161: 2 | H161: 68 | I161: 44 | J161: 8 | K161: 0 | L161: 5 | M161: 77 | N161: 28 | O161: 12 | P161: 0 | Q161: 31 | R161: 66 | S161: 25 | U161: =VLOOKUP(TEXT($A161,"0000"),'Mem11-14-2014'!$A$3:$O$474,'Mem11-14-2014'!G$1,FALSE) -> 166 | V161: =VLOOKUP(A161,'TIER SCH'!$A$2:$D$324,4,FALSE) -> T1
A162: 3781 | B162: Barbara Hawkins Elementary | C162: 3 | D162: Opinion | E162: 55 | F162: 3.05 | G162: 3 | H162: 38 | I162: 14 | J162: 0 | K162: 0 | L162: 6 | M162: 38 | N162: 11 | O162: 0 | P162: 0 | Q162: 16 | R162: 36 | S162: 3 | U162: =VLOOKUP(TEXT($A162,"0000"),'Mem11-14-2014'!$A$3:$O$474,'Mem11-14-2014'!G$1,FALSE) -> 56 | V162: =VLOOKUP(A162,'TIER SCH'!$A$2:$D$324,4,FALSE) -> T3
A163: 3821 | B163: North County K-8 Center | C163: 3 | D163: Opinion | E163: 49 | F163: 1.47 | G163: 17 | H163: 32 | I163: 0 | J163: 0 | K163: 0 | L163: 36 | M163: 12 | N163: 1 | O163: 0 | P163: 0 | Q163: 23 | R163: 26 | S163: 0 | U163: =VLOOKUP(TEXT($A163,"0000"),'Mem11-14-2014'!$A$3:$O$474,'Mem11-14-2014'!G$1,FALSE) -> 54 | V163: =VLOOKUP(A163,'TIER SCH'!$A$2:$D$324,4,FALSE) -> R
A164: 3861 | B164: North Glade Elementary | C164: 3 | D164: Opinion | E164: 43 | F164: 2.6 | G164: 6 | H164: 33 | I164: 4 | J164: 0 | K164: 0 | L164: 6 | M164: 36 | N164: 1 | O164: 0 | P164: 0 | Q164: 14 | R164: 25 | S164: 4 | U164: =VLOOKUP(TEXT($A164,"0000"),'Mem11-14-2014'!$A$3:$O$474,'Mem11-14-2014'!G$1,FALSE) -> 48 | V164: =VLOOKUP(A164,'TIER SCH'!$A$2:$D$324,4,FALSE) -> R
A165: 3901 | B165: North Hialeah Elementary | C165: 3 | D165: Opinion | E165: 111 | F165: 2.68 | G165: 21 | H165: 56 | I165: 31 | J165: 3 | K165: 0 | L165: 27 | M165: 77 | N165: 7 | O165: 0 | P165: 0 | Q165: 34 | R165: 75 | S165: 2 | U165: =VLOOKUP(TEXT($A165,"0000"),'Mem11-14-2014'!$A$3:$O$474,'Mem11-14-2014'!G$1,FALSE) -> 111 | V165: =VLOOKUP(A165,'TIER SCH'!$A$2:$D$324,4,FALSE) -> T3
A166: 3941 | B166: North Miami Elementary | C166: 3 | D166: Opinion | E166: 68 | F166: 0.81 | G166: 45 | H166: 11 | I166: 10 | J166: 2 | K166: 0 | L166: 60 | M166: 7 | N166: 1 | O166: 0 | P166: 0 | Q166: 59 | R166: 9 | S166: 0 | U166: =VLOOKUP(TEXT($A166,"0000"),'Mem11-14-2014'!$A$3:$O$474,'Mem11-14-2014'!G$1,FALSE) -> 92 | V166: =VLOOKUP(A166,'TIER SCH'!$A$2:$D$324,4,FALSE) -> T3
A167: 3981 | B167: North Twin Lakes Elementary | C167: 3 | D167: Opinion | E167: 93 | F167: 2.84 | G167: 31 | H167: 35 | I167: 21 | J167: 6 | K167: 0 | L167: 40 | M167: 28 | N167: 22 | O167: 3 | P167: 0 | Q167: 27 | R167: 44 | S167: 22 | U167: =VLOOKUP(TEXT($A167,"0000"),'Mem11-14-2014'!$A$3:$O$474,'Mem11-14-2014'!G$1,FALSE) -> 94 | V167: =VLOOKUP(A167,'TIER SCH'!$A$2:$D$324,4,FALSE) -> T1
A168: 4000 | B168: Miami Children''s Museum | C168: 3 | D168: Opinion | E168: 50 | F168: 5.36 | G168: 2 | H168: 14 | I168: 11 | J168: 21 | K168: 2 | L168: 2 | M168: 15 | N168: 19 | O168: 13 | P168: 1 | Q168: 2 | R168: 31 | S168: 17 | U168: =VLOOKUP(TEXT($A168,"0000"),'Mem11-14-2014'!$A$3:$O$474,'Mem11-14-2014'!G$1,FALSE) -> 50 | V168: =VLOOKUP(A168,'TIER SCH'!$A$2:$D$324,4,FALSE) -> 
A169: 4001 | B169: Norwood Elementary | C169: 3 | D169: Opinion | E169: 89 | F169: 2.17 | G169: 19 | H169: 61 | I169: 9 | J169: 0 | K169: 0 | L169: 24 | M169: 63 | N169: 2 | O169: 0 | P169: 0 | Q169: 45 | R169: 41 | S169: 3 | U169: =VLOOKUP(TEXT($A169,"0000"),'Mem11-14-2014'!$A$3:$O$474,'Mem11-14-2014'!G$1,FALSE) -> 91 | V169: =VLOOKUP(A169,'TIER SCH'!$A$2:$D$324,4,FALSE) -> T1
A170: 4012 | B170: Somerset Acad At Silver Palms | C170: 3 | D170: Opinion | E170: 88 | F170: 4.26 | G170: 1 | H170: 46 | I170: 32 | J170: 8 | K170: 1 | L170: 1 | M170: 56 | N170: 24 | O170: 7 | P170: 0 | Q170: 1 | R170: 62 | S170: 25 | U170: =VLOOKUP(TEXT($A170,"0000"),'Mem11-14-2014'!$A$3:$O$474,'Mem11-14-2014'!G$1,FALSE) -> 89 | V170: =VLOOKUP(A170,'TIER SCH'!$A$2:$D$324,4,FALSE) -> 
A171: 4021 | B171: Oak Grove Elementary | C171: 3 | D171: Opinion | E171: 31 | F171: 1.42 | G171: 21 | H171: 4 | I171: 4 | J171: 2 | K171: 0 | L171: 22 | M171: 4 | N171: 4 | O171: 1 | P171: 0 | Q171: 23 | R171: 5 | S171: 3 | U171: =VLOOKUP(TEXT($A171,"0000"),'Mem11-14-2014'!$A$3:$O$474,'Mem11-14-2014'!G$1,FALSE) -> 102 | V171: =VLOOKUP(A171,'TIER SCH'!$A$2:$D$324,4,FALSE) -> R
A172: 4031 | B172: Gateway Environmental K-8 | C172: 3 | D172: Opinion | E172: 251 | F172: 2.52 | G172: 68 | H172: 140 | I172: 43 | J172: 0 | K172: 0 | L172: 78 | M172: 146 | N172: 27 | O172: 0 | P172: 0 | Q172: 84 | R172: 127 | S172: 40 | U172: =VLOOKUP(TEXT($A172,"0000"),'Mem11-14-2014'!$A$3:$O$474,'Mem11-14-2014'!G$1,FALSE) -> 260 | V172: =VLOOKUP(A172,'TIER SCH'!$A$2:$D$324,4,FALSE) -> T2
A173: 4061 | B173: Ojus Elementary | C173: 3 | D173: Opinion | E173: 140 | F173: 4.25 | G173: 4 | H173: 61 | I173: 49 | J173: 20 | K173: 6 | L173: 18 | M173: 78 | N173: 28 | O173: 16 | P173: 0 | Q173: 15 | R173: 80 | S173: 45 | U173: =VLOOKUP(TEXT($A173,"0000"),'Mem11-14-2014'!$A$3:$O$474,'Mem11-14-2014'!G$1,FALSE) -> 167 | V173: =VLOOKUP(A173,'TIER SCH'!$A$2:$D$324,4,FALSE) -> T1
A174: 4071 | B174: Agenoria S. Paschal/olinda El | C174: 3 | D174: Opinion | E174: 65 | F174: 3.65 | G174: 0 | H174: 34 | I174: 31 | J174: 0 | K174: 0 | L174: 0 | M174: 53 | N174: 12 | O174: 0 | P174: 0 | Q174: 7 | R174: 52 | S174: 6 | U174: =VLOOKUP(TEXT($A174,"0000"),'Mem11-14-2014'!$A$3:$O$474,'Mem11-14-2014'!G$1,FALSE) -> 64 | V174: =VLOOKUP(A174,'TIER SCH'!$A$2:$D$324,4,FALSE) -> T3
A175: 4081 | B175: Primary Learning Center | C175: 3 | D175: Opinion | E175: 54 | F175: 4.87 | G175: 1 | H175: 22 | I175: 17 | J175: 13 | K175: 1 | L175: 4 | M175: 22 | N175: 22 | O175: 6 | P175: 0 | Q175: 2 | R175: 24 | S175: 28 | U175: =VLOOKUP(TEXT($A175,"0000"),'Mem11-14-2014'!$A$3:$O$474,'Mem11-14-2014'!G$1,FALSE) -> 54 | V175: =VLOOKUP(A175,'TIER SCH'!$A$2:$D$324,4,FALSE) -> T1
A176: 4091 | B176: Olympia Heights Elementary | C176: 3 | D176: Opinion | E176: 77 | F176: 1.71 | G176: 36 | H176: 30 | I176: 11 | J176: 0 | K176: 0 | L176: 47 | M176: 19 | N176: 10 | O176: 1 | P176: 0 | Q176: 47 | R176: 22 | S176: 8 | U176: =VLOOKUP(TEXT($A176,"0000"),'Mem11-14-2014'!$A$3:$O$474,'Mem11-14-2014'!G$1,FALSE) -> 84 | V176: =VLOOKUP(A176,'TIER SCH'!$A$2:$D$324,4,FALSE) -> T1
A177: 4121 | B177: Dr. Robert B. Ingram El | C177: 3 | D177: Opinion | E177: 69 | F177: 1.72 | G177: 34 | H177: 30 | I177: 5 | J177: 0 | K177: 0 | L177: 36 | M177: 29 | N177: 4 | O177: 0 | P177: 0 | Q177: 37 | R177: 22 | S177: 10 | U177: =VLOOKUP(TEXT($A177,"0000"),'Mem11-14-2014'!$A$3:$O$474,'Mem11-14-2014'!G$1,FALSE) -> 74 | V177: =VLOOKUP(A177,'TIER SCH'!$A$2:$D$324,4,FALSE) -> T3
A178: 4171 | B178: Orchard Villa Elementary | C178: 3 | D178: Opinion | E178: 57 | F178: 1.72 | G178: 26 | H178: 24 | I178: 6 | J178: 1 | K178: 0 | L178: 37 | M178: 16 | N178: 4 | O178: 0 | P178: 0 | Q178: 25 | R178: 29 | S178: 3 | U178: =VLOOKUP(TEXT($A178,"0000"),'Mem11-14-2014'!$A$3:$O$474,'Mem11-14-2014'!G$1,FALSE) -> 58 | V178: =VLOOKUP(A178,'TIER SCH'!$A$2:$D$324,4,FALSE) -> T3
A179: 4221 | B179: Palmetto Elementary | C179: 3 | D179: Opinion | E179: 122 | F179: 3.19 | G179: 18 | H179: 51 | I179: 49 | J179: 4 | K179: 0 | L179: 33 | M179: 60 | N179: 27 | O179: 2 | P179: 0 | Q179: 24 | R179: 88 | S179: 10 | U179: =VLOOKUP(TEXT($A179,"0000"),'Mem11-14-2014'!$A$3:$O$474,'Mem11-14-2014'!G$1,FALSE) -> 121 | V179: =VLOOKUP(A179,'TIER SCH'!$A$2:$D$324,4,FALSE) -> T1
A180: 4241 | B180: Palm Lakes Elementary | C180: 3 | D180: Opinion | E180: 2 | F180: 3 | G180: 0 | H180: 2 | I180: 0 | J180: 0 | K180: 0 | L180: 0 | M180: 2 | N180: 0 | O180: 0 | P180: 0 | Q180: 0 | R180: 2 | S180: 0 | U180: =VLOOKUP(TEXT($A180,"0000"),'Mem11-14-2014'!$A$3:$O$474,'Mem11-14-2014'!G$1,FALSE) -> 155 | V180: =VLOOKUP(A180,'TIER SCH'!$A$2:$D$324,4,FALSE) -> T1
A181: 4261 | B181: Palm Springs Elementary | C181: 3 | D181: Opinion | E181: 131 | F181: 2.54 | G181: 45 | H181: 60 | I181: 18 | J181: 7 | K181: 1 | L181: 46 | M181: 56 | N181: 22 | O181: 7 | P181: 0 | Q181: 51 | R181: 69 | S181: 11 | U181: =VLOOKUP(TEXT($A181,"0000"),'Mem11-14-2014'!$A$3:$O$474,'Mem11-14-2014'!G$1,FALSE) -> 132 | V181: =VLOOKUP(A181,'TIER SCH'!$A$2:$D$324,4,FALSE) -> WL
A182: 4281 | B182: Palm Springs North Elementary | C182: 3 | D182: Opinion | E182: 144 | F182: 4.1 | G182: 24 | H182: 44 | I182: 49 | J182: 27 | K182: 0 | L182: 27 | M182: 46 | N182: 55 | O182: 16 | P182: 0 | Q182: 41 | R182: 43 | S182: 60 | U182: =VLOOKUP(TEXT($A182,"0000"),'Mem11-14-2014'!$A$3:$O$474,'Mem11-14-2014'!G$1,FALSE) -> 149 | V182: =VLOOKUP(A182,'TIER SCH'!$A$2:$D$324,4,FALSE) -> T1
A183: 4301 | B183: Parkview Elementary | C183: 3 | D183: Opinion | E183: 46 | F183: 1.7 | G183: 20 | H183: 18 | I183: 7 | J183: 1 | K183: 0 | L183: 27 | M183: 14 | N183: 5 | O183: 0 | P183: 0 | Q183: 27 | R183: 19 | S183: 0 | U183: =VLOOKUP(TEXT($A183,"0000"),'Mem11-14-2014'!$A$3:$O$474,'Mem11-14-2014'!G$1,FALSE) -> 56 | V183: =VLOOKUP(A183,'TIER SCH'!$A$2:$D$324,4,FALSE) -> T1
A184: 4341 | B184: Parkway Elementary | C184: 3 | D184: Opinion | E184: 57 | F184: 1.86 | G184: 21 | H184: 23 | I184: 10 | J184: 3 | K184: 0 | L184: 27 | M184: 21 | N184: 7 | O184: 2 | P184: 0 | Q184: 44 | R184: 13 | S184: 0 | U184: =VLOOKUP(TEXT($A184,"0000"),'Mem11-14-2014'!$A$3:$O$474,'Mem11-14-2014'!G$1,FALSE) -> 61 | V184: =VLOOKUP(A184,'TIER SCH'!$A$2:$D$324,4,FALSE) -> T3
A185: 4381 | B185: Dr Henry E Perrine Academy | C185: 3 | D185: Opinion | E185: 154 | F185: 3.46 | G185: 2 | H185: 91 | I185: 45 | J185: 16 | K185: 0 | L185: 4 | M185: 100 | N185: 42 | O185: 8 | P185: 0 | Q185: 69 | R185: 74 | S185: 11 | U185: =VLOOKUP(TEXT($A185,"0000"),'Mem11-14-2014'!$A$3:$O$474,'Mem11-14-2014'!G$1,FALSE) -> 155 | V185: =VLOOKUP(A185,'TIER SCH'!$A$2:$D$324,4,FALSE) -> T1
A186: 4391 | B186: Irving and Beatrice Peskoe K-8 | C186: 3 | D186: Opinion | E186: 103 | F186: 1.37 | G186: 53 | H186: 43 | I186: 7 | J186: 0 | K186: 0 | L186: 72 | M186: 26 | N186: 5 | O186: 0 | P186: 0 | Q186: 60 | R186: 38 | S186: 5 | U186: =VLOOKUP(TEXT($A186,"0000"),'Mem11-14-2014'!$A$3:$O$474,'Mem11-14-2014'!G$1,FALSE) -> 104 | V186: =VLOOKUP(A186,'TIER SCH'!$A$2:$D$324,4,FALSE) -> R
A187: 4401 | B187: Kelsey L. Pharr Elementary | C187: 3 | D187: Opinion | E187: 48 | F187: 2.94 | G187: 13 | H187: 21 | I187: 9 | J187: 3 | K187: 2 | L187: 14 | M187: 19 | N187: 10 | O187: 5 | P187: 0 | Q187: 22 | R187: 21 | S187: 5 | U187: =VLOOKUP(TEXT($A187,"0000"),'Mem11-14-2014'!$A$3:$O$474,'Mem11-14-2014'!G$1,FALSE) -> 52 | V187: =VLOOKUP(A187,'TIER SCH'!$A$2:$D$324,4,FALSE) -> T3
A188: 4421 | B188: Pinecrest Elementary | C188: 3 | D188: Opinion | E188: 170 | F188: 3.72 | G188: 17 | H188: 80 | I188: 66 | J188: 7 | K188: 0 | L188: 17 | M188: 92 | N188: 55 | O188: 6 | P188: 0 | Q188: 21 | R188: 119 | S188: 30 | U188: =VLOOKUP(TEXT($A188,"0000"),'Mem11-14-2014'!$A$3:$O$474,'Mem11-14-2014'!G$1,FALSE) -> 169 | V188: =VLOOKUP(A188,'TIER SCH'!$A$2:$D$324,4,FALSE) -> T1
A189: 4441 | B189: Pine Lake Elementary | C189: 3 | D189: Opinion | E189: 45 | F189: 3.67 | G189: 16 | H189: 14 | I189: 5 | J189: 9 | K189: 1 | L189: 15 | M189: 11 | N189: 8 | O189: 7 | P189: 4 | Q189: 10 | R189: 24 | S189: 11 | U189: =VLOOKUP(TEXT($A189,"0000"),'Mem11-14-2014'!$A$3:$O$474,'Mem11-14-2014'!G$1,FALSE) -> 49 | V189: =VLOOKUP(A189,'TIER SCH'!$A$2:$D$324,4,FALSE) -> WL
A190: 4461 | B190: Pine Villa Elementary | C190: 3 | D190: Opinion | E190: 33 | F190: 2.85 | G190: 6 | H190: 12 | I190: 15 | J190: 0 | K190: 0 | L190: 7 | M190: 18 | N190: 8 | O190: 0 | P190: 0 | Q190: 16 | R190: 16 | S190: 1 | U190: =VLOOKUP(TEXT($A190,"0000"),'Mem11-14-2014'!$A$3:$O$474,'Mem11-14-2014'!G$1,FALSE) -> 43 | V190: =VLOOKUP(A190,'TIER SCH'!$A$2:$D$324,4,FALSE) -> T3
A191: 4491 | B191: Henry E.s. Reeves Elementary | C191: 3 | D191: Opinion | E191: 154 | F191: 2.52 | G191: 58 | H191: 43 | I191: 52 | J191: 1 | K191: 0 | L191: 65 | M191: 59 | N191: 30 | O191: 0 | P191: 0 | Q191: 59 | R191: 71 | S191: 24 | U191: =VLOOKUP(TEXT($A191,"0000"),'Mem11-14-2014'!$A$3:$O$474,'Mem11-14-2014'!G$1,FALSE) -> 170 | V191: =VLOOKUP(A191,'TIER SCH'!$A$2:$D$324,4,FALSE) -> T2
A192: 4501 | B192: Poinciana Park Elementary | C192: 3 | D192: Opinion | E192: 54 | F192: 2.15 | G192: 25 | H192: 24 | I192: 5 | J192: 0 | K192: 0 | L192: 24 | M192: 28 | N192: 2 | O192: 0 | P192: 0 | Q192: 9 | R192: 40 | S192: 5 | U192: =VLOOKUP(TEXT($A192,"0000"),'Mem11-14-2014'!$A$3:$O$474,'Mem11-14-2014'!G$1,FALSE) -> 59 | V192: =VLOOKUP(A192,'TIER SCH'!$A$2:$D$324,4,FALSE) -> T3
A193: 4511 | B193: Dr Gilbert L. Porter Elem | C193: 3 | D193: Opinion | E193: 109 | F193: 1.4 | G193: 64 | H193: 28 | I193: 17 | J193: 0 | K193: 0 | L193: 70 | M193: 32 | N193: 7 | O193: 0 | P193: 0 | Q193: 73 | R193: 27 | S193: 9 | U193: =VLOOKUP(TEXT($A193,"0000"),'Mem11-14-2014'!$A$3:$O$474,'Mem11-14-2014'!G$1,FALSE) -> 119 | V193: =VLOOKUP(A193,'TIER SCH'!$A$2:$D$324,4,FALSE) -> T1
A194: 4541 | B194: Rainbow Park Elementary | C194: 3 | D194: Opinion | E194: 69 | F194: 4.3 | G194: 10 | H194: 29 | I194: 15 | J194: 13 | K194: 2 | L194: 4 | M194: 36 | N194: 18 | O194: 11 | P194: 0 | Q194: 5 | R194: 42 | S194: 22 | U194: =VLOOKUP(TEXT($A194,"0000"),'Mem11-14-2014'!$A$3:$O$474,'Mem11-14-2014'!G$1,FALSE) -> 76 | V194: =VLOOKUP(A194,'TIER SCH'!$A$2:$D$324,4,FALSE) -> T2
A195: 4581 | B195: Redland Elementary | C195: 3 | D195: Opinion | E195: 159 | F195: 2.91 | G195: 19 | H195: 95 | I195: 31 | J195: 14 | K195: 0 | L195: 29 | M195: 101 | N195: 25 | O195: 4 | P195: 0 | Q195: 70 | R195: 78 | S195: 11 | U195: =VLOOKUP(TEXT($A195,"0000"),'Mem11-14-2014'!$A$3:$O$474,'Mem11-14-2014'!G$1,FALSE) -> 167 | V195: =VLOOKUP(A195,'TIER SCH'!$A$2:$D$324,4,FALSE) -> WL
A196: 4611 | B196: Redondo Elementary | C196: 3 | D196: Opinion | E196: 148 | F196: 1.94 | G196: 71 | H196: 55 | I196: 21 | J196: 1 | K196: 0 | L196: 76 | M196: 49 | N196: 22 | O196: 1 | P196: 0 | Q196: 67 | R196: 71 | S196: 10 | U196: =VLOOKUP(TEXT($A196,"0000"),'Mem11-14-2014'!$A$3:$O$474,'Mem11-14-2014'!G$1,FALSE) -> 156 | V196: =VLOOKUP(A196,'TIER SCH'!$A$2:$D$324,4,FALSE) -> T3
A197: 4651 | B197: Ethel F Beckford/richmond Elem | C197: 3 | D197: Opinion | E197: 38 | F197: 1.74 | G197: 16 | H197: 18 | I197: 4 | J197: 0 | K197: 0 | L197: 17 | M197: 20 | N197: 1 | O197: 0 | P197: 0 | Q197: 20 | R197: 18 | S197: 0 | U197: =VLOOKUP(TEXT($A197,"0000"),'Mem11-14-2014'!$A$3:$O$474,'Mem11-14-2014'!G$1,FALSE) -> 40 | V197: =VLOOKUP(A197,'TIER SCH'!$A$2:$D$324,4,FALSE) -> T3
A198: 4681 | B198: Riverside Elementary | C198: 3 | D198: Opinion | E198: 205 | F198: 2.23 | G198: 97 | H198: 57 | I198: 28 | J198: 19 | K198: 4 | L198: 109 | M198: 59 | N198: 21 | O198: 15 | P198: 1 | Q198: 105 | R198: 78 | S198: 22 | U198: =VLOOKUP(TEXT($A198,"0000"),'Mem11-14-2014'!$A$3:$O$474,'Mem11-14-2014'!G$1,FALSE) -> 236 | V198: =VLOOKUP(A198,'TIER SCH'!$A$2:$D$324,4,FALSE) -> T2
A199: 4691 | B199: Jane Roberts K-8 Center | C199: 3 | D199: Opinion | E199: 83 | F199: 1.88 | G199: 31 | H199: 45 | I199: 6 | J199: 1 | K199: 0 | L199: 36 | M199: 41 | N199: 5 | O199: 1 | P199: 0 | Q199: 42 | R199: 40 | S199: 1 | U199: =VLOOKUP(TEXT($A199,"0000"),'Mem11-14-2014'!$A$3:$O$474,'Mem11-14-2014'!G$1,FALSE) -> 81 | V199: =VLOOKUP(A199,'TIER SCH'!$A$2:$D$324,4,FALSE) -> T1
A200: 4721 | B200: Rockway Elementary | C200: 3 | D200: Opinion | E200: 32 | F200: 5.94 | G200: 2 | H200: 0 | I200: 9 | J200: 18 | K200: 3 | L200: 2 | M200: 1 | N200: 24 | O200: 5 | P200: 0 | Q200: 2 | R200: 18 | S200: 12 | U200: =VLOOKUP(TEXT($A200,"0000"),'Mem11-14-2014'!$A$3:$O$474,'Mem11-14-2014'!G$1,FALSE) -> 59 | V200: =VLOOKUP(A200,'TIER SCH'!$A$2:$D$324,4,FALSE) -> T1
... 1461 more rows

Sheet PRE G3 (hidden)
A1: =COLUMN() -> 1 | B1: =COLUMN() -> 2 | C1: =COLUMN() -> 3 | D1: =COLUMN() -> 4 | E1: =COLUMN() -> 5 | F1: =COLUMN() -> 6 | G1: =COLUMN() -> 7 | H1: =COLUMN() -> 8 | I1: =COLUMN() -> 9 | J1: =COLUMN() -> 10 | K1: =COLUMN() -> 11 | L1: =COLUMN() -> 12 | M1: =COLUMN() -> 13 | N1: =COLUMN() -> 14 | O1: =COLUMN() -> 15 | P1: =COLUMN() -> 16 | Q1: =COLUMN() -> 17 | R1: =COLUMN() -> 18 | S1: =COLUMN() -> 19 | U1: =COLUMN() -> 21 | V1: =COLUMN() -> 22
A2: SchoolID | B2: SchoolName1 | C2: Grade1 | D2: Prompt11 | E2: StudentCount | F2: Textbox138 | G2: Domain1Score0 | H2: Domain1Score1 | I2: Domain1Score2 | J2: Domain1Score3 | K2: Domain1Score4 | L2: Domain2Score0 | M2: Domain2Score1 | N2: Domain2Score2 | O2: Domain2Score3 | P2: Domain2Score4 | Q2: Domain3Score0 | R2: Domain3Score1 | S2: Domain3Score2 | U2: Enrollment | V2: Tier | W2: % Tested
A3: 41 | B3: Air Base Elementary | C3: 3 | D3: Opinion | E3: 84 | F3: 4.35 | G3: 0 | H3: 35 | I3: 39 | J3: 10 | K3: 0 | L3: 0 | M3: 57 | N3: 24 | O3: 3 | P3: 0 | Q3: 2 | R3: 56 | S3: 26 | U3: =IFERROR(VLOOKUP(TEXT($A3,"0000"),'Mem11-14-2014'!$A$3:$O$500,'Mem11-14-2014'!G$1,FALSE),0) -> 127 | V3: =VLOOKUP(A3,'TIER SCH'!$A$2:$D$324,4,FALSE) -> T1 | W3: =E3/U3*100 -> 66.14173228
A4: 70 | B4: Coral Reef Montessori Acad Ch | C4: 3 | D4: Opinion | E4: 40 | F4: 4.4 | G4: 1 | H4: 18 | I4: 21 | J4: 0 | K4: 0 | L4: 1 | M4: 20 | N4: 16 | O4: 3 | P4: 0 | Q4: 4 | R4: 17 | S4: 19 | U4: =IFERROR(VLOOKUP(TEXT($A4,"0000"),'Mem11-14-2014'!$A$3:$O$500,'Mem11-14-2014'!G$1,FALSE),0) -> 48 | V4: =VLOOKUP(A4,'TIER SCH'!$A$2:$D$324,4,FALSE) ->  | W4: =E4/U4*100 -> 83.33333333
A5: 71 | B5: Eugenia B. Thomas K-8 Center | C5: 3 | D5: Opinion | E5: 209 | F5: 2.55 | G5: 66 | H5: 98 | I5: 37 | J5: 8 | K5: 0 | L5: 66 | M5: 91 | N5: 41 | O5: 11 | P5: 0 | Q5: 96 | R5: 96 | S5: 17 | U5: =IFERROR(VLOOKUP(TEXT($A5,"0000"),'Mem11-14-2014'!$A$3:$O$500,'Mem11-14-2014'!G$1,FALSE),0) -> 211 | V5: =VLOOKUP(A5,'TIER SCH'!$A$2:$D$324,4,FALSE) -> T1 | W5: 99.0521327
A6: 72 | B6: Summerville Charter School | C6: 3 | D6: Opinion | E6: 82 | F6: 4.02 | G6: 5 | H6: 40 | I6: 32 | J6: 5 | K6: 0 | L6: 5 | M6: 45 | N6: 26 | O6: 6 | P6: 0 | Q6: 14 | R6: 40 | S6: 28 | U6: =IFERROR(VLOOKUP(TEXT($A6,"0000"),'Mem11-14-2014'!$A$3:$O$500,'Mem11-14-2014'!G$1,FALSE),0) -> 82 | V6: =VLOOKUP(A6,'TIER SCH'!$A$2:$D$324,4,FALSE) ->  | W6: 100
A7: 73 | B7: Mandarin Lakes K-8 Center | C7: 3 | D7: Opinion | E7: 152 | F7: 2.36 | G7: 64 | H7: 55 | I7: 30 | J7: 3 | K7: 0 | L7: 64 | M7: 60 | N7: 23 | O7: 4 | P7: 1 | Q7: 60 | R7: 71 | S7: 21 | U7: =IFERROR(VLOOKUP(TEXT($A7,"0000"),'Mem11-14-2014'!$A$3:$O$500,'Mem11-14-2014'!G$1,FALSE),0) -> 161 | V7: =VLOOKUP(A7,'TIER SCH'!$A$2:$D$324,4,FALSE) -> T3 | W7: 94.40993789
A8: 81 | B8: Lenora B. Smith Elementary | C8: 3 | D8: Opinion | E8: 53 | F8: 4.02 | G8: 2 | H8: 29 | I8: 13 | J8: 6 | K8: 3 | L8: 2 | M8: 34 | N8: 16 | O8: 1 | P8: 0 | Q8: 11 | R8: 25 | S8: 17 | U8: =IFERROR(VLOOKUP(TEXT($A8,"0000"),'Mem11-14-2014'!$A$3:$O$500,'Mem11-14-2014'!G$1,FALSE),0) -> 69 | V8: =VLOOKUP(A8,'TIER SCH'!$A$2:$D$324,4,FALSE) -> T3 | W8: 76.8115942
A9: 91 | B9: Bob Graham Education Ctr | C9: 3 | D9: Opinion | E9: 80 | F9: 4.03 | G9: 2 | H9: 56 | I9: 22 | J9: 0 | K9: 0 | L9: 2 | M9: 49 | N9: 29 | O9: 0 | P9: 0 | Q9: 15 | R9: 15 | S9: 50 | U9: =IFERROR(VLOOKUP(TEXT($A9,"0000"),'Mem11-14-2014'!$A$3:$O$500,'Mem11-14-2014'!G$1,FALSE),0) -> 176 | V9: =VLOOKUP(A9,'TIER SCH'!$A$2:$D$324,4,FALSE) -> T1 | W9: 45.45454545
A10: 92 | B10: Norman S. Edelcup/sunny Isles | C10: 3 | D10: Opinion | E10: 186 | F10: 2.94 | G10: 39 | H10: 95 | I10: 43 | J10: 8 | K10: 1 | L10: 48 | M10: 97 | N10: 37 | O10: 4 | P10: 0 | Q10: 72 | R10: 73 | S10: 41 | U10: =IFERROR(VLOOKUP(TEXT($A10,"0000"),'Mem11-14-2014'!$A$3:$O$500,'Mem11-14-2014'!G$1,FALSE),0) -> 230 | V10: =VLOOKUP(A10,'TIER SCH'!$A$2:$D$324,4,FALSE) -> T1 | W10: 80.86956522
A11: 100 | B11: Mater Academy | C11: 3 | D11: Opinion | E11: 175 | F11: 3.66 | G11: 36 | H11: 72 | I11: 36 | J11: 25 | K11: 6 | L11: 49 | M11: 74 | N11: 40 | O11: 12 | P11: 0 | Q11: 43 | R11: 57 | S11: 75 | U11: =IFERROR(VLOOKUP(TEXT($A11,"0000"),'Mem11-14-2014'!$A$3:$O$500,'Mem11-14-2014'!G$1,FALSE),0) -> 177 | V11: =VLOOKUP(A11,'TIER SCH'!$A$2:$D$324,4,FALSE) ->  | W11: 98.8700565
A12: 101 | B12: Arcola Lake Elementary | C12: 3 | D12: Opinion | E12: 77 | F12: 3.49 | G12: 14 | H12: 25 | I12: 34 | J12: 4 | K12: 0 | L12: 14 | M12: 45 | N12: 18 | O12: 0 | P12: 0 | Q12: 16 | R12: 39 | S12: 22 | U12: =IFERROR(VLOOKUP(TEXT($A12,"0000"),'Mem11-14-2014'!$A$3:$O$500,'Mem11-14-2014'!G$1,FALSE),0) -> 80 | V12: =VLOOKUP(A12,'TIER SCH'!$A$2:$D$324,4,FALSE) -> T3 | W12: 96.25
A13: 102 | B13: Miami Community Charter School | C13: 3 | D13: Opinion | E13: 85 | F13: 3.64 | G13: 0 | H13: 71 | I13: 10 | J13: 4 | K13: 0 | L13: 0 | M13: 67 | N13: 11 | O13: 7 | P13: 0 | Q13: 0 | R13: 74 | S13: 11 | U13: =IFERROR(VLOOKUP(TEXT($A13,"0000"),'Mem11-14-2014'!$A$3:$O$500,'Mem11-14-2014'!G$1,FALSE),0) -> 89 | V13: =VLOOKUP(A13,'TIER SCH'!$A$2:$D$324,4,FALSE) ->  | W13: 95.50561798
A14: 111 | B14: Maya Angelou Elementary | C14: 3 | D14: Opinion | E14: 127 | F14: 3.61 | G14: 23 | H14: 57 | I14: 34 | J14: 13 | K14: 0 | L14: 33 | M14: 47 | N14: 31 | O14: 15 | P14: 1 | Q14: 29 | R14: 59 | S14: 39 | U14: =IFERROR(VLOOKUP(TEXT($A14,"0000"),'Mem11-14-2014'!$A$3:$O$500,'Mem11-14-2014'!G$1,FALSE),0) -> 136 | V14: =VLOOKUP(A14,'TIER SCH'!$A$2:$D$324,4,FALSE) -> R | W14: 93.38235294
A15: 121 | B15: Auburndale Elementary | C15: 3 | D15: Opinion | E15: 142 | F15: 2.76 | G15: 62 | H15: 39 | I15: 39 | J15: 2 | K15: 0 | L15: 25 | M15: 77 | N15: 35 | O15: 5 | P15: 0 | Q15: 41 | R15: 95 | S15: 6 | U15: =IFERROR(VLOOKUP(TEXT($A15,"0000"),'Mem11-14-2014'!$A$3:$O$500,'Mem11-14-2014'!G$1,FALSE),0) -> 148 | V15: =VLOOKUP(A15,'TIER SCH'!$A$2:$D$324,4,FALSE) -> WL | W15: 95.94594595
A16: 122 | B16: Dr Rolando Espinosa K-8 | C16: 3 | D16: Opinion | E16: 199 | F16: 3.3 | G16: 55 | H16: 79 | I16: 41 | J16: 24 | K16: 0 | L16: 39 | M16: 83 | N16: 67 | O16: 10 | P16: 0 | Q16: 65 | R16: 91 | S16: 43 | U16: =IFERROR(VLOOKUP(TEXT($A16,"0000"),'Mem11-14-2014'!$A$3:$O$500,'Mem11-14-2014'!G$1,FALSE),0) -> 202 | V16: =VLOOKUP(A16,'TIER SCH'!$A$2:$D$324,4,FALSE) -> T1 | W16: 98.51485149
A17: 125 | B17: Norma Butler Bossard Elem | C17: 3 | D17: Opinion | E17: 218 | F17: 3.67 | G17: 6 | H17: 131 | I17: 68 | J17: 13 | K17: 0 | L17: 6 | M17: 173 | N17: 36 | O17: 3 | P17: 0 | Q17: 5 | R17: 187 | S17: 26 | U17: =IFERROR(VLOOKUP(TEXT($A17,"0000"),'Mem11-14-2014'!$A$3:$O$500,'Mem11-14-2014'!G$1,FALSE),0) -> 226 | V17: =VLOOKUP(A17,'TIER SCH'!$A$2:$D$324,4,FALSE) -> T1 | W17: 96.46017699
A18: 161 | B18: Avocado Elementary | C18: 3 | D18: Opinion | E18: 102 | F18: 2.47 | G18: 35 | H18: 45 | I18: 20 | J18: 2 | K18: 0 | L18: 39 | M18: 45 | N18: 15 | O18: 3 | P18: 0 | Q18: 42 | R18: 43 | S18: 17 | U18: =IFERROR(VLOOKUP(TEXT($A18,"0000"),'Mem11-14-2014'!$A$3:$O$500,'Mem11-14-2014'!G$1,FALSE),0) -> 138 | V18: =VLOOKUP(A18,'TIER SCH'!$A$2:$D$324,4,FALSE) -> T2 | W18: 73.91304348
A19: 201 | B19: Banyan Elementary | C19: 3 | D19: Opinion | E19: 60 | F19: 1.63 | G19: 37 | H19: 7 | I19: 16 | J19: 0 | K19: 0 | L19: 38 | M19: 9 | N19: 13 | O19: 0 | P19: 0 | Q19: 39 | R19: 18 | S19: 3 | U19: =IFERROR(VLOOKUP(TEXT($A19,"0000"),'Mem11-14-2014'!$A$3:$O$500,'Mem11-14-2014'!G$1,FALSE),0) -> 61 | V19: =VLOOKUP(A19,'TIER SCH'!$A$2:$D$324,4,FALSE) -> T1 | W19: 98.36065574
A20: 211 | B20: Dr. Manuel C. Barreiro Elem | C20: 3 | D20: Opinion | E20: 129 | F20: 3.12 | G20: 6 | H20: 88 | I20: 29 | J20: 5 | K20: 1 | L20: 8 | M20: 94 | N20: 25 | O20: 2 | P20: 0 | Q20: 46 | R20: 78 | S20: 5 | U20: =IFERROR(VLOOKUP(TEXT($A20,"0000"),'Mem11-14-2014'!$A$3:$O$500,'Mem11-14-2014'!G$1,FALSE),0) -> 136 | V20: =VLOOKUP(A20,'TIER SCH'!$A$2:$D$324,4,FALSE) -> T1 | W20: 94.85294118
A21: 231 | B21: Aventura Waterways K-8 Center | C21: 3 | D21: Opinion | E21: 267 | F21: 2.57 | G21: 96 | H21: 96 | I21: 40 | J21: 34 | K21: 1 | L21: 145 | M21: 55 | N21: 37 | O21: 28 | P21: 2 | Q21: 125 | R21: 101 | S21: 41 | U21: =IFERROR(VLOOKUP(TEXT($A21,"0000"),'Mem11-14-2014'!$A$3:$O$500,'Mem11-14-2014'!G$1,FALSE),0) -> 270 | V21: =VLOOKUP(A21,'TIER SCH'!$A$2:$D$324,4,FALSE) -> T1 | W21: 98.88888889
A22: 241 | B22: Ruth K Broad/bay Harbor K-8 | C22: 3 | D22: Opinion | E22: 119 | F22: 2.3 | G22: 43 | H22: 53 | I22: 19 | J22: 4 | K22: 0 | L22: 51 | M22: 42 | N22: 24 | O22: 2 | P22: 0 | Q22: 49 | R22: 65 | S22: 5 | U22: =IFERROR(VLOOKUP(TEXT($A22,"0000"),'Mem11-14-2014'!$A$3:$O$500,'Mem11-14-2014'!G$1,FALSE),0) -> 137 | V22: =VLOOKUP(A22,'TIER SCH'!$A$2:$D$324,4,FALSE) -> T1 | W22: 86.86131387
A23: 251 | B23: Ethel Koger Beckham Elementary | C23: 3 | D23: Opinion | E23: 130 | F23: 3.79 | G23: 6 | H23: 55 | I23: 43 | J23: 26 | K23: 0 | L23: 32 | M23: 50 | N23: 32 | O23: 14 | P23: 2 | Q23: 50 | R23: 50 | S23: 30 | U23: =IFERROR(VLOOKUP(TEXT($A23,"0000"),'Mem11-14-2014'!$A$3:$O$500,'Mem11-14-2014'!G$1,FALSE),0) -> 138 | V23: =VLOOKUP(A23,'TIER SCH'!$A$2:$D$324,4,FALSE) -> T1 | W23: 94.20289855
A24: 261 | B24: Bel-Aire Elementary | C24: 3 | D24: Opinion | E24: 62 | F24: 2.02 | G24: 24 | H24: 27 | I24: 11 | J24: 0 | K24: 0 | L24: 29 | M24: 28 | N24: 4 | O24: 1 | P24: 0 | Q24: 31 | R24: 25 | S24: 6 | U24: =IFERROR(VLOOKUP(TEXT($A24,"0000"),'Mem11-14-2014'!$A$3:$O$500,'Mem11-14-2014'!G$1,FALSE),0) -> 68 | V24: =VLOOKUP(A24,'TIER SCH'!$A$2:$D$324,4,FALSE) -> R | W24: 91.17647059
A25: 271 | B25: Bent Tree Elementary | C25: 3 | D25: Opinion | E25: 61 | F25: 1.9 | G25: 19 | H25: 39 | I25: 3 | J25: 0 | K25: 0 | L25: 32 | M25: 26 | N25: 2 | O25: 1 | P25: 0 | Q25: 24 | R25: 36 | S25: 1 | U25: =IFERROR(VLOOKUP(TEXT($A25,"0000"),'Mem11-14-2014'!$A$3:$O$500,'Mem11-14-2014'!G$1,FALSE),0) -> 63 | V25: =VLOOKUP(A25,'TIER SCH'!$A$2:$D$324,4,FALSE) -> T1 | W25: 96.82539683
A26: 311 | B26: Goulds Elementary | C26: 3 | D26: Opinion | E26: 75 | F26: 2.95 | G26: 1 | H26: 67 | I26: 6 | J26: 1 | K26: 0 | L26: 1 | M26: 64 | N26: 9 | O26: 1 | P26: 0 | Q26: 30 | R26: 36 | S26: 9 | U26: =IFERROR(VLOOKUP(TEXT($A26,"0000"),'Mem11-14-2014'!$A$3:$O$500,'Mem11-14-2014'!G$1,FALSE),0) -> 111 | V26: =VLOOKUP(A26,'TIER SCH'!$A$2:$D$324,4,FALSE) -> T2 | W26: 67.56756757
A27: 312 | B27: Mater Gardens Academy | C27: 3 | D27: Opinion | E27: 93 | F27: 3.69 | G27: 14 | H27: 35 | I27: 38 | J27: 6 | K27: 0 | L27: 24 | M27: 58 | N27: 11 | O27: 0 | P27: 0 | Q27: 8 | R27: 36 | S27: 49 | U27: =IFERROR(VLOOKUP(TEXT($A27,"0000"),'Mem11-14-2014'!$A$3:$O$500,'Mem11-14-2014'!G$1,FALSE),0) -> 100 | V27: =VLOOKUP(A27,'TIER SCH'!$A$2:$D$324,4,FALSE) ->  | W27: 93
A28: 321 | B28: Biscayne Elementary | C28: 3 | D28: Opinion | E28: 116 | F28: 2.41 | G28: 30 | H28: 62 | I28: 24 | J28: 0 | K28: 0 | L28: 36 | M28: 67 | N28: 13 | O28: 0 | P28: 0 | Q28: 43 | R28: 69 | S28: 4 | U28: =IFERROR(VLOOKUP(TEXT($A28,"0000"),'Mem11-14-2014'!$A$3:$O$500,'Mem11-14-2014'!G$1,FALSE),0) -> 120 | V28: =VLOOKUP(A28,'TIER SCH'!$A$2:$D$324,4,FALSE) -> WL | W28: 96.66666667
A29: 332 | B29: Somerset Academy(silver Palms) | C29: 3 | D29: Opinion | E29: 61 | F29: 4.18 | G29: 0 | H29: 37 | I29: 20 | J29: 4 | K29: 0 | L29: 0 | M29: 38 | N29: 20 | O29: 3 | P29: 0 | Q29: 0 | R29: 43 | S29: 18 | U29: =IFERROR(VLOOKUP(TEXT($A29,"0000"),'Mem11-14-2014'!$A$3:$O$500,'Mem11-14-2014'!G$1,FALSE),0) -> 61 | V29: =VLOOKUP(A29,'TIER SCH'!$A$2:$D$324,4,FALSE) ->  | W29: 100
A30: 339 | B30: Somerset Academy Charter Elem | C30: 3 | D30: Opinion | E30: 73 | F30: 4.41 | G30: 1 | H30: 23 | I30: 37 | J30: 10 | K30: 2 | L30: 2 | M30: 35 | N30: 28 | O30: 8 | P30: 0 | Q30: 10 | R30: 54 | S30: 9 | U30: =IFERROR(VLOOKUP(TEXT($A30,"0000"),'Mem11-14-2014'!$A$3:$O$500,'Mem11-14-2014'!G$1,FALSE),0) -> 74 | V30: =VLOOKUP(A30,'TIER SCH'!$A$2:$D$324,4,FALSE) ->  | W30: 98.64864865
A31: 341 | B31: Arch Creek Elementary School | C31: 3 | D31: Opinion | E31: 88 | F31: 1.68 | G31: 45 | H31: 26 | I31: 12 | J31: 5 | K31: 0 | L31: 42 | M31: 31 | N31: 13 | O31: 2 | P31: 0 | Q31: 68 | R31: 20 | S31: 0 | U31: =IFERROR(VLOOKUP(TEXT($A31,"0000"),'Mem11-14-2014'!$A$3:$O$500,'Mem11-14-2014'!G$1,FALSE),0) -> 93 | V31: =VLOOKUP(A31,'TIER SCH'!$A$2:$D$324,4,FALSE) -> R | W31: 94.62365591
A32: 342 | B32: Pinecrest Academy South Campus | C32: 3 | D32: Opinion | E32: 122 | F32: 4.76 | G32: 0 | H32: 58 | I32: 47 | J32: 17 | K32: 0 | L32: 0 | M32: 63 | N32: 44 | O32: 15 | P32: 0 | Q32: 0 | R32: 62 | S32: 60 | U32: =IFERROR(VLOOKUP(TEXT($A32,"0000"),'Mem11-14-2014'!$A$3:$O$500,'Mem11-14-2014'!G$1,FALSE),0) -> 129 | V32: =VLOOKUP(A32,'TIER SCH'!$A$2:$D$324,4,FALSE) ->  | W32: 94.57364341
A33: 361 | B33: Biscayne Gardens Elementary | C33: 3 | D33: Opinion | E33: 93 | F33: 3.44 | G33: 18 | H33: 44 | I33: 25 | J33: 6 | K33: 0 | L33: 23 | M33: 39 | N33: 31 | O33: 0 | P33: 0 | Q33: 19 | R33: 41 | S33: 33 | U33: =IFERROR(VLOOKUP(TEXT($A33,"0000"),'Mem11-14-2014'!$A$3:$O$500,'Mem11-14-2014'!G$1,FALSE),0) -> 99 | V33: =VLOOKUP(A33,'TIER SCH'!$A$2:$D$324,4,FALSE) -> T3 | W33: 93.93939394
A34: 401 | B34: Van E. Blanton Elementary | C34: 3 | D34: Opinion | E34: 76 | F34: 0.95 | G34: 55 | H34: 13 | I34: 6 | J34: 2 | K34: 0 | L34: 65 | M34: 6 | N34: 5 | O34: 0 | P34: 0 | Q34: 55 | R34: 17 | S34: 4 | U34: =IFERROR(VLOOKUP(TEXT($A34,"0000"),'Mem11-14-2014'!$A$3:$O$500,'Mem11-14-2014'!G$1,FALSE),0) -> 90 | V34: =VLOOKUP(A34,'TIER SCH'!$A$2:$D$324,4,FALSE) -> WL | W34: 84.44444444
A35: 441 | B35: Blue Lakes Elementary | C35: 3 | D35: Opinion | E35: 46 | F35: 4.24 | G35: 1 | H35: 22 | I35: 16 | J35: 7 | K35: 0 | L35: 3 | M35: 27 | N35: 15 | O35: 1 | P35: 0 | Q35: 3 | R35: 26 | S35: 17 | U35: =IFERROR(VLOOKUP(TEXT($A35,"0000"),'Mem11-14-2014'!$A$3:$O$500,'Mem11-14-2014'!G$1,FALSE),0) -> 51 | V35: =VLOOKUP(A35,'TIER SCH'!$A$2:$D$324,4,FALSE) -> T1 | W35: 90.19607843
A36: 451 | B36: Bowman Ashe/doolin K-8 Acad | C36: 3 | D36: Opinion | E36: 119 | F36: 2.36 | G36: 38 | H36: 54 | I36: 24 | J36: 3 | K36: 0 | L36: 45 | M36: 59 | N36: 14 | O36: 1 | P36: 0 | Q36: 42 | R36: 74 | S36: 3 | U36: =IFERROR(VLOOKUP(TEXT($A36,"0000"),'Mem11-14-2014'!$A$3:$O$500,'Mem11-14-2014'!G$1,FALSE),0) -> 119 | V36: =VLOOKUP(A36,'TIER SCH'!$A$2:$D$324,4,FALSE) -> T1 | W36: 100
A37: 461 | B37: Brentwood Elementary | C37: 3 | D37: Opinion | E37: 98 | F37: 2.65 | G37: 32 | H37: 55 | I37: 11 | J37: 0 | K37: 0 | L37: 32 | M37: 39 | N37: 27 | O37: 0 | P37: 0 | Q37: 27 | R37: 52 | S37: 19 | U37: =IFERROR(VLOOKUP(TEXT($A37,"0000"),'Mem11-14-2014'!$A$3:$O$500,'Mem11-14-2014'!G$1,FALSE),0) -> 112 | V37: =VLOOKUP(A37,'TIER SCH'!$A$2:$D$324,4,FALSE) -> T3 | W37: 87.5
A38: 481 | B38: James H. Bright/jw Johnson Es | C38: 3 | D38: Opinion | E38: 107 | F38: 1.82 | G38: 52 | H38: 39 | I38: 13 | J38: 3 | K38: 0 | L38: 63 | M38: 24 | N38: 20 | O38: 0 | P38: 0 | Q38: 62 | R38: 33 | S38: 12 | U38: =IFERROR(VLOOKUP(TEXT($A38,"0000"),'Mem11-14-2014'!$A$3:$O$500,'Mem11-14-2014'!G$1,FALSE),0) -> 118 | V38: =VLOOKUP(A38,'TIER SCH'!$A$2:$D$324,4,FALSE) -> WL | W38: 90.6779661
A39: 520 | B39: Somerset Academy | C39: 3 | D39: Opinion | E39: 111 | F39: 4.12 | G39: 0 | H39: 63 | I39: 43 | J39: 5 | K39: 0 | L39: 0 | M39: 72 | N39: 36 | O39: 3 | P39: 0 | Q39: 13 | R39: 56 | S39: 42 | U39: =IFERROR(VLOOKUP(TEXT($A39,"0000"),'Mem11-14-2014'!$A$3:$O$500,'Mem11-14-2014'!G$1,FALSE),0) -> 112 | V39: =VLOOKUP(A39,'TIER SCH'!$A$2:$D$324,4,FALSE) ->  | W39: 99.10714286
A40: 521 | B40: Broadmoor Elementary | C40: 3 | D40: Opinion | E40: 83 | F40: 2.24 | G40: 36 | H40: 31 | I40: 14 | J40: 2 | K40: 0 | L40: 39 | M40: 28 | N40: 15 | O40: 1 | P40: 0 | Q40: 29 | R40: 48 | S40: 6 | U40: =IFERROR(VLOOKUP(TEXT($A40,"0000"),'Mem11-14-2014'!$A$3:$O$500,'Mem11-14-2014'!G$1,FALSE),0) -> 84 | V40: =VLOOKUP(A40,'TIER SCH'!$A$2:$D$324,4,FALSE) -> T3 | W40: 98.80952381
A41: 561 | B41: W.j. Bryan Elementary | C41: 3 | D41: Opinion | E41: 103 | F41: 3.45 | G41: 22 | H41: 48 | I41: 29 | J41: 4 | K41: 0 | L41: 22 | M41: 52 | N41: 25 | O41: 4 | P41: 0 | Q41: 13 | R41: 57 | S41: 33 | U41: =IFERROR(VLOOKUP(TEXT($A41,"0000"),'Mem11-14-2014'!$A$3:$O$500,'Mem11-14-2014'!G$1,FALSE),0) -> 142 | V41: =VLOOKUP(A41,'TIER SCH'!$A$2:$D$324,4,FALSE) -> T3 | W41: 72.53521127
A42: 600 | B42: Pinecrest Prep Academy | C42: 3 | D42: Opinion | E42: 124 | F42: 4.65 | G42: 2 | H42: 38 | I42: 68 | J42: 15 | K42: 1 | L42: 3 | M42: 64 | N42: 46 | O42: 11 | P42: 0 | Q42: 11 | R42: 62 | S42: 51 | U42: =IFERROR(VLOOKUP(TEXT($A42,"0000"),'Mem11-14-2014'!$A$3:$O$500,'Mem11-14-2014'!G$1,FALSE),0) -> 122 | V42: =VLOOKUP(A42,'TIER SCH'!$A$2:$D$324,4,FALSE) ->  | W42: 101.6393443
A43: 641 | B43: Bunche Park Elementary | C43: 3 | D43: Opinion | E43: 39 | F43: 2.85 | G43: 3 | H43: 29 | I43: 6 | J43: 1 | K43: 0 | L43: 3 | M43: 30 | N43: 6 | O43: 0 | P43: 0 | Q43: 18 | R43: 17 | S43: 4 | U43: =IFERROR(VLOOKUP(TEXT($A43,"0000"),'Mem11-14-2014'!$A$3:$O$500,'Mem11-14-2014'!G$1,FALSE),0) -> 49 | V43: =VLOOKUP(A43,'TIER SCH'!$A$2:$D$324,4,FALSE) -> R | W43: 79.59183673
A44: 651 | B44: Campbell Drive K-8 Center | C44: 3 | D44: Opinion | E44: 105 | F44: 2.14 | G44: 31 | H44: 70 | I44: 4 | J44: 0 | K44: 0 | L44: 34 | M44: 67 | N44: 4 | O44: 0 | P44: 0 | Q44: 43 | R44: 52 | S44: 10 | U44: =IFERROR(VLOOKUP(TEXT($A44,"0000"),'Mem11-14-2014'!$A$3:$O$500,'Mem11-14-2014'!G$1,FALSE),0) -> 117 | V44: =VLOOKUP(A44,'TIER SCH'!$A$2:$D$324,4,FALSE) -> R | W44: 89.74358974
A45: 661 | B45: Caribbean Elementary | C45: 3 | D45: Opinion | E45: 88 | F45: 3.1 | G45: 2 | H45: 75 | I45: 11 | J45: 0 | K45: 0 | L45: 4 | M45: 75 | N45: 9 | O45: 0 | P45: 0 | Q45: 5 | R45: 83 | S45: 0 | U45: =IFERROR(VLOOKUP(TEXT($A45,"0000"),'Mem11-14-2014'!$A$3:$O$500,'Mem11-14-2014'!G$1,FALSE),0) -> 88 | V45: =VLOOKUP(A45,'TIER SCH'!$A$2:$D$324,4,FALSE) -> T3 | W45: 100
A46: 671 | B46: Calusa Elementary | C46: 3 | D46: Opinion | E46: 149 | F46: 4.21 | G46: 0 | H46: 72 | I46: 63 | J46: 13 | K46: 1 | L46: 0 | M46: 95 | N46: 42 | O46: 12 | P46: 0 | Q46: 24 | R46: 79 | S46: 46 | U46: =IFERROR(VLOOKUP(TEXT($A46,"0000"),'Mem11-14-2014'!$A$3:$O$500,'Mem11-14-2014'!G$1,FALSE),0) -> 156 | V46: =VLOOKUP(A46,'TIER SCH'!$A$2:$D$324,4,FALSE) -> T1 | W46: 95.51282051
A47: 681 | B47: Carol City Elementary | C47: 3 | D47: Opinion | E47: 59 | F47: 2.03 | G47: 26 | H47: 24 | I47: 7 | J47: 2 | K47: 0 | L47: 25 | M47: 26 | N47: 6 | O47: 2 | P47: 0 | Q47: 34 | R47: 18 | S47: 7 | U47: =IFERROR(VLOOKUP(TEXT($A47,"0000"),'Mem11-14-2014'!$A$3:$O$500,'Mem11-14-2014'!G$1,FALSE),0) -> 66 | V47: =VLOOKUP(A47,'TIER SCH'!$A$2:$D$324,4,FALSE) -> T3 | W47: 89.39393939
A48: 721 | B48: George Washington Carver Elem | C48: 3 | D48: Opinion | E48: 72 | F48: 2.78 | G48: 14 | H48: 41 | I48: 14 | J48: 3 | K48: 0 | L48: 20 | M48: 42 | N48: 8 | O48: 2 | P48: 0 | Q48: 29 | R48: 28 | S48: 15 | U48: =IFERROR(VLOOKUP(TEXT($A48,"0000"),'Mem11-14-2014'!$A$3:$O$500,'Mem11-14-2014'!G$1,FALSE),0) -> 82 | V48: =VLOOKUP(A48,'TIER SCH'!$A$2:$D$324,4,FALSE) -> T1 | W48: 87.80487805
A49: 761 | B49: Fienberg/fisher K-8 Center | C49: 3 | D49: Opinion | E49: 81 | F49: 2.33 | G49: 31 | H49: 31 | I49: 16 | J49: 3 | K49: 0 | L49: 39 | M49: 28 | N49: 11 | O49: 3 | P49: 0 | Q49: 34 | R49: 36 | S49: 11 | U49: =IFERROR(VLOOKUP(TEXT($A49,"0000"),'Mem11-14-2014'!$A$3:$O$500,'Mem11-14-2014'!G$1,FALSE),0) -> 83 | V49: =VLOOKUP(A49,'TIER SCH'!$A$2:$D$324,4,FALSE) -> WL | W49: 97.59036145
A50: 771 | B50: William A. Chapman Elementary | C50: 3 | D50: Opinion | E50: 84 | F50: 2.98 | G50: 19 | H50: 37 | I50: 18 | J50: 10 | K50: 0 | L50: 29 | M50: 25 | N50: 28 | O50: 2 | P50: 0 | Q50: 36 | R50: 36 | S50: 12 | U50: =IFERROR(VLOOKUP(TEXT($A50,"0000"),'Mem11-14-2014'!$A$3:$O$500,'Mem11-14-2014'!G$1,FALSE),0) -> 84 | V50: =VLOOKUP(A50,'TIER SCH'!$A$2:$D$324,4,FALSE) -> T2 | W50: 100
A51: 801 | B51: Citrus Grove Elementary | C51: 3 | D51: Opinion | E51: 150 | F51: 1.37 | G51: 81 | H51: 57 | I51: 12 | J51: 0 | K51: 0 | L51: 77 | M51: 69 | N51: 4 | O51: 0 | P51: 0 | Q51: 110 | R51: 33 | S51: 7 | U51: =IFERROR(VLOOKUP(TEXT($A51,"0000"),'Mem11-14-2014'!$A$3:$O$500,'Mem11-14-2014'!G$1,FALSE),0) -> 153 | V51: =VLOOKUP(A51,'TIER SCH'!$A$2:$D$324,4,FALSE) -> R | W51: 98.03921569
A52: 831 | B52: Claude Pepper Elementary | C52: 3 | D52: Opinion | E52: 110 | F52: 3.55 | G52: 14 | H52: 51 | I52: 33 | J52: 12 | K52: 0 | L52: 27 | M52: 49 | N52: 27 | O52: 7 | P52: 0 | Q52: 27 | R52: 53 | S52: 30 | U52: =IFERROR(VLOOKUP(TEXT($A52,"0000"),'Mem11-14-2014'!$A$3:$O$500,'Mem11-14-2014'!G$1,FALSE),0) -> 115 | V52: =VLOOKUP(A52,'TIER SCH'!$A$2:$D$324,4,FALSE) -> T1 | W52: 95.65217391
A53: 841 | B53: Coconut Grove Elementary | C53: 3 | D53: Opinion | E53: 73 | F53: 3.15 | G53: 14 | H53: 31 | I53: 24 | J53: 4 | K53: 0 | L53: 16 | M53: 43 | N53: 11 | O53: 3 | P53: 0 | Q53: 19 | R53: 43 | S53: 11 | U53: =IFERROR(VLOOKUP(TEXT($A53,"0000"),'Mem11-14-2014'!$A$3:$O$500,'Mem11-14-2014'!G$1,FALSE),0) -> 73 | V53: =VLOOKUP(A53,'TIER SCH'!$A$2:$D$324,4,FALSE) -> T1 | W53: 100
A54: 861 | B54: Colonial Drive Elementary | C54: 3 | D54: Opinion | E54: 42 | F54: 4.19 | G54: 2 | H54: 14 | I54: 22 | J54: 4 | K54: 0 | L54: 3 | M54: 19 | N54: 20 | O54: 0 | P54: 0 | Q54: 2 | R54: 33 | S54: 7 | U54: =IFERROR(VLOOKUP(TEXT($A54,"0000"),'Mem11-14-2014'!$A$3:$O$500,'Mem11-14-2014'!G$1,FALSE),0) -> 43 | V54: =VLOOKUP(A54,'TIER SCH'!$A$2:$D$324,4,FALSE) -> R | W54: 97.6744186
A55: 881 | B55: Comstock Elementary | C55: 3 | D55: Opinion | E55: 87 | F55: 3.1 | G55: 11 | H55: 56 | I55: 13 | J55: 6 | K55: 1 | L55: 21 | M55: 49 | N55: 10 | O55: 5 | P55: 2 | Q55: 28 | R55: 44 | S55: 15 | U55: =IFERROR(VLOOKUP(TEXT($A55,"0000"),'Mem11-14-2014'!$A$3:$O$500,'Mem11-14-2014'!G$1,FALSE),0) -> 90 | V55: =VLOOKUP(A55,'TIER SCH'!$A$2:$D$324,4,FALSE) -> R | W55: 96.66666667
A56: 961 | B56: Coral Gables Preparatory Acad | C56: 3 | D56: Opinion | E56: 78 | F56: 1.63 | G56: 42 | H56: 19 | I56: 15 | J56: 2 | K56: 0 | L56: 47 | M56: 26 | N56: 5 | O56: 0 | P56: 0 | Q56: 42 | R56: 36 | S56: 0 | U56: =IFERROR(VLOOKUP(TEXT($A56,"0000"),'Mem11-14-2014'!$A$3:$O$500,'Mem11-14-2014'!G$1,FALSE),0) -> 78 | V56: =VLOOKUP(A56,'TIER SCH'!$A$2:$D$324,4,FALSE) -> T1 | W56: 100
A57: 1001 | B57: Coral Park Elementary | C57: 3 | D57: Opinion | E57: 168 | F57: 3.62 | G57: 30 | H57: 64 | I57: 50 | J57: 23 | K57: 1 | L57: 24 | M57: 90 | N57: 51 | O57: 3 | P57: 0 | Q57: 23 | R57: 119 | S57: 26 | U57: =IFERROR(VLOOKUP(TEXT($A57,"0000"),'Mem11-14-2014'!$A$3:$O$500,'Mem11-14-2014'!G$1,FALSE),0) -> 191 | V57: =VLOOKUP(A57,'TIER SCH'!$A$2:$D$324,4,FALSE) -> T1 | W57: 87.95811518
A58: 1010 | B58: Charter School At Waterstone | C58: 3 | D58: Opinion | E58: 236 | F58: 3.78 | G58: 15 | H58: 118 | I58: 86 | J58: 17 | K58: 0 | L58: 14 | M58: 154 | N58: 60 | O58: 8 | P58: 0 | Q58: 26 | R58: 168 | S58: 42 | U58: =IFERROR(VLOOKUP(TEXT($A58,"0000"),'Mem11-14-2014'!$A$3:$O$500,'Mem11-14-2014'!G$1,FALSE),0) -> 234 | V58: =VLOOKUP(A58,'TIER SCH'!$A$2:$D$324,4,FALSE) ->  | W58: 100.8547009
A59: 1014 | B59: Hive Preparatory School | C59: 3 | D59: Opinion | E59: 89 | F59: 3.21 | G59: 18 | H59: 40 | I59: 31 | J59: 0 | K59: 0 | L59: 25 | M59: 35 | N59: 29 | O59: 0 | P59: 0 | Q59: 16 | R59: 55 | S59: 18 | U59: =IFERROR(VLOOKUP(TEXT($A59,"0000"),'Mem11-14-2014'!$A$3:$O$500,'Mem11-14-2014'!G$1,FALSE),0) -> 109 | V59: =VLOOKUP(A59,'TIER SCH'!$A$2:$D$324,4,FALSE) ->  | W59: 81.65137615
A60: 1017 | B60: Mater Academy Of Intl Studies | C60: 3 | D60: Opinion | E60: 111 | F60: 2.51 | G60: 12 | H60: 82 | I60: 17 | J60: 0 | K60: 0 | L60: 17 | M60: 87 | N60: 6 | O60: 1 | P60: 0 | Q60: 57 | R60: 47 | S60: 7 | U60: =IFERROR(VLOOKUP(TEXT($A60,"0000"),'Mem11-14-2014'!$A$3:$O$500,'Mem11-14-2014'!G$1,FALSE),0) -> 111 | V60: =VLOOKUP(A60,'TIER SCH'!$A$2:$D$324,4,FALSE) ->  | W60: 100
A61: 1020 | B61: Youth Co-Op Charter School | C61: 3 | D61: Opinion | E61: 82 | F61: 4.76 | G61: 0 | H61: 26 | I61: 38 | J61: 18 | K61: 0 | L61: 1 | M61: 40 | N61: 27 | O61: 14 | P61: 0 | Q61: 2 | R61: 62 | S61: 18 | U61: =IFERROR(VLOOKUP(TEXT($A61,"0000"),'Mem11-14-2014'!$A$3:$O$500,'Mem11-14-2014'!G$1,FALSE),0) -> 85 | V61: =VLOOKUP(A61,'TIER SCH'!$A$2:$D$324,4,FALSE) ->  | W61: 96.47058824
A62: 1041 | B62: Coral Reef Elementary | C62: 3 | D62: Opinion | E62: 108 | F62: 3.15 | G62: 17 | H62: 40 | I62: 48 | J62: 3 | K62: 0 | L62: 35 | M62: 60 | N62: 12 | O62: 1 | P62: 0 | Q62: 19 | R62: 70 | S62: 19 | U62: =IFERROR(VLOOKUP(TEXT($A62,"0000"),'Mem11-14-2014'!$A$3:$O$500,'Mem11-14-2014'!G$1,FALSE),0) -> 111 | V62: =VLOOKUP(A62,'TIER SCH'!$A$2:$D$324,4,FALSE) -> T1 | W62: 97.2972973
A63: 1081 | B63: Coral Terrace Elementary | C63: 3 | D63: Opinion | E63: 72 | F63: 3.75 | G63: 16 | H63: 19 | I63: 25 | J63: 12 | K63: 0 | L63: 16 | M63: 25 | N63: 22 | O63: 7 | P63: 2 | Q63: 24 | R63: 29 | S63: 19 | U63: =IFERROR(VLOOKUP(TEXT($A63,"0000"),'Mem11-14-2014'!$A$3:$O$500,'Mem11-14-2014'!G$1,FALSE),0) -> 70 | V63: =VLOOKUP(A63,'TIER SCH'!$A$2:$D$324,4,FALSE) -> T1 | W63: 102.8571429
A64: 1121 | B64: Coral Way K-8 Center | C64: 3 | D64: Opinion | E64: 151 | F64: 2.55 | G64: 52 | H64: 62 | I64: 37 | J64: 0 | K64: 0 | L64: 58 | M64: 62 | N64: 31 | O64: 0 | P64: 0 | Q64: 39 | R64: 99 | S64: 13 | U64: =IFERROR(VLOOKUP(TEXT($A64,"0000"),'Mem11-14-2014'!$A$3:$O$500,'Mem11-14-2014'!G$1,FALSE),0) -> 163 | V64: =VLOOKUP(A64,'TIER SCH'!$A$2:$D$324,4,FALSE) -> T1 | W64: 92.63803681
A65: 1161 | B65: Crestview Elementary | C65: 3 | D65: Opinion | E65: 60 | F65: 3.48 | G65: 6 | H65: 37 | I65: 14 | J65: 3 | K65: 0 | L65: 7 | M65: 25 | N65: 28 | O65: 0 | P65: 0 | Q65: 10 | R65: 46 | S65: 4 | U65: =IFERROR(VLOOKUP(TEXT($A65,"0000"),'Mem11-14-2014'!$A$3:$O$500,'Mem11-14-2014'!G$1,FALSE),0) -> 62 | V65: =VLOOKUP(A65,'TIER SCH'!$A$2:$D$324,4,FALSE) -> R | W65: 96.77419355
A66: 1241 | B66: Cutler Ridge Elementary | C66: 3 | D66: Opinion | E66: 91 | F66: 2.32 | G66: 38 | H66: 33 | I66: 14 | J66: 3 | K66: 3 | L66: 52 | M66: 15 | N66: 20 | O66: 1 | P66: 3 | Q66: 42 | R66: 39 | S66: 10 | U66: =IFERROR(VLOOKUP(TEXT($A66,"0000"),'Mem11-14-2014'!$A$3:$O$500,'Mem11-14-2014'!G$1,FALSE),0) -> 91 | V66: =VLOOKUP(A66,'TIER SCH'!$A$2:$D$324,4,FALSE) -> WL | W66: 100
A67: 1281 | B67: Cypress Elementary | C67: 3 | D67: Opinion | E67: 55 | F67: 1.98 | G67: 13 | H67: 35 | I67: 7 | J67: 0 | K67: 0 | L67: 18 | M67: 32 | N67: 5 | O67: 0 | P67: 0 | Q67: 38 | R67: 16 | S67: 1 | U67: =IFERROR(VLOOKUP(TEXT($A67,"0000"),'Mem11-14-2014'!$A$3:$O$500,'Mem11-14-2014'!G$1,FALSE),0) -> 63 | V67: =VLOOKUP(A67,'TIER SCH'!$A$2:$D$324,4,FALSE) -> T1 | W67: 87.3015873
A68: 1331 | B68: Devon Aire K-8 Center | C68: 3 | D68: Opinion | E68: 161 | F68: 4.04 | G68: 14 | H68: 44 | I68: 65 | J68: 31 | K68: 7 | L68: 11 | M68: 82 | N68: 57 | O68: 10 | P68: 1 | Q68: 46 | R68: 104 | S68: 11 | U68: =IFERROR(VLOOKUP(TEXT($A68,"0000"),'Mem11-14-2014'!$A$3:$O$500,'Mem11-14-2014'!G$1,FALSE),0) -> 181 | V68: =VLOOKUP(A68,'TIER SCH'!$A$2:$D$324,4,FALSE) -> T1 | W68: =E68/U68*100 -> 88.95027624
A69: 1361 | B69: Frederick Douglass Elementary | C69: 3 | D69: Opinion | E69: 22 | F69: 3.36 | G69: 4 | H69: 8 | I69: 8 | J69: 2 | K69: 0 | L69: 4 | M69: 14 | N69: 3 | O69: 1 | P69: 0 | Q69: 7 | R69: 9 | S69: 6 | U69: =IFERROR(VLOOKUP(TEXT($A69,"0000"),'Mem11-14-2014'!$A$3:$O$500,'Mem11-14-2014'!G$1,FALSE),0) -> 27 | V69: =VLOOKUP(A69,'TIER SCH'!$A$2:$D$324,4,FALSE) -> T3 | W69: 81.48148148
A70: 1371 | B70: Marjory Stoneman Douglas Elem | C70: 3 | D70: Opinion | E70: 158 | F70: 3.02 | G70: 30 | H70: 82 | I70: 42 | J70: 4 | K70: 0 | L70: 57 | M70: 66 | N70: 32 | O70: 3 | P70: 0 | Q70: 42 | R70: 72 | S70: 44 | U70: =IFERROR(VLOOKUP(TEXT($A70,"0000"),'Mem11-14-2014'!$A$3:$O$500,'Mem11-14-2014'!G$1,FALSE),0) -> 176 | V70: =VLOOKUP(A70,'TIER SCH'!$A$2:$D$324,4,FALSE) -> T1 | W70: 89.77272727
A71: 1401 | B71: Charles R. Drew K-8 Center | C71: 3 | D71: Opinion | E71: 41 | F71: 2.1 | G71: 20 | H71: 9 | I71: 12 | J71: 0 | K71: 0 | L71: 20 | M71: 15 | N71: 5 | O71: 1 | P71: 0 | Q71: 20 | R71: 17 | S71: 4 | U71: =IFERROR(VLOOKUP(TEXT($A71,"0000"),'Mem11-14-2014'!$A$3:$O$500,'Mem11-14-2014'!G$1,FALSE),0) -> 42 | V71: =VLOOKUP(A71,'TIER SCH'!$A$2:$D$324,4,FALSE) -> T3 | W71: 97.61904762
A72: 1441 | B72: Paul Laurence Dunbar K-8 Ctr | C72: 3 | D72: Opinion | E72: 50 | F72: 2.88 | G72: 3 | H72: 45 | I72: 2 | J72: 0 | K72: 0 | L72: 3 | M72: 45 | N72: 2 | O72: 0 | P72: 0 | Q72: 4 | R72: 46 | S72: 0 | U72: =IFERROR(VLOOKUP(TEXT($A72,"0000"),'Mem11-14-2014'!$A$3:$O$500,'Mem11-14-2014'!G$1,FALSE),0) -> 54 | V72: =VLOOKUP(A72,'TIER SCH'!$A$2:$D$324,4,FALSE) -> T3 | W72: 92.59259259
A73: 1481 | B73: John G. Dupuis Elementary | C73: 3 | D73: Opinion | E73: 107 | F73: 2.79 | G73: 32 | H73: 39 | I73: 30 | J73: 6 | K73: 0 | L73: 33 | M73: 44 | N73: 28 | O73: 1 | P73: 1 | Q73: 47 | R73: 46 | S73: 14 | U73: =IFERROR(VLOOKUP(TEXT($A73,"0000"),'Mem11-14-2014'!$A$3:$O$500,'Mem11-14-2014'!G$1,FALSE),0) -> 111 | V73: =VLOOKUP(A73,'TIER SCH'!$A$2:$D$324,4,FALSE) -> WL | W73: 96.3963964
A74: 1521 | B74: Amelia Earhart Elementary | C74: 3 | D74: Opinion | E74: 54 | F74: 2.46 | G74: 26 | H74: 12 | I74: 13 | J74: 3 | K74: 0 | L74: 26 | M74: 12 | N74: 11 | O74: 5 | P74: 0 | Q74: 24 | R74: 23 | S74: 7 | U74: =IFERROR(VLOOKUP(TEXT($A74,"0000"),'Mem11-14-2014'!$A$3:$O$500,'Mem11-14-2014'!G$1,FALSE),0) -> 65 | V74: =VLOOKUP(A74,'TIER SCH'!$A$2:$D$324,4,FALSE) -> T1 | W74: 83.07692308
A75: 1561 | B75: Earlington Heights Elementary | C75: 3 | D75: Opinion | E75: 80 | F75: 1.8 | G75: 39 | H75: 24 | I75: 17 | J75: 0 | K75: 0 | L75: 41 | M75: 29 | N75: 10 | O75: 0 | P75: 0 | Q75: 48 | R75: 27 | S75: 5 | U75: =IFERROR(VLOOKUP(TEXT($A75,"0000"),'Mem11-14-2014'!$A$3:$O$500,'Mem11-14-2014'!G$1,FALSE),0) -> 84 | V75: =VLOOKUP(A75,'TIER SCH'!$A$2:$D$324,4,FALSE) -> T3 | W75: 95.23809524
A76: 1601 | B76: Edison Park K-8 Center | C76: 3 | D76: Opinion | E76: 43 | F76: 2.47 | G76: 5 | H76: 31 | I76: 7 | J76: 0 | K76: 0 | L76: 9 | M76: 29 | N76: 5 | O76: 0 | P76: 0 | Q76: 23 | R76: 18 | S76: 2 | U76: =IFERROR(VLOOKUP(TEXT($A76,"0000"),'Mem11-14-2014'!$A$3:$O$500,'Mem11-14-2014'!G$1,FALSE),0) -> 62 | V76: =VLOOKUP(A76,'TIER SCH'!$A$2:$D$324,4,FALSE) -> T3 | W76: 69.35483871
A77: 1641 | B77: Emerson Elementary | C77: 3 | D77: Opinion | E77: 72 | F77: 2.96 | G77: 18 | H77: 27 | I77: 21 | J77: 6 | K77: 0 | L77: 22 | M77: 36 | N77: 14 | O77: 0 | P77: 0 | Q77: 21 | R77: 40 | S77: 11 | U77: =IFERROR(VLOOKUP(TEXT($A77,"0000"),'Mem11-14-2014'!$A$3:$O$500,'Mem11-14-2014'!G$1,FALSE),0) -> 72 | V77: =VLOOKUP(A77,'TIER SCH'!$A$2:$D$324,4,FALSE) -> T1 | W77: 100
A78: 1681 | B78: Lillie C. Evans K-8 Center | C78: 3 | D78: Opinion | E78: 42 | F78: 0.95 | G78: 33 | H78: 7 | I78: 2 | J78: 0 | K78: 0 | L78: 32 | M78: 8 | N78: 2 | O78: 0 | P78: 0 | Q78: 28 | R78: 11 | S78: 3 | U78: =IFERROR(VLOOKUP(TEXT($A78,"0000"),'Mem11-14-2014'!$A$3:$O$500,'Mem11-14-2014'!G$1,FALSE),0) -> 47 | V78: =VLOOKUP(A78,'TIER SCH'!$A$2:$D$324,4,FALSE) -> T2 | W78: 89.36170213
A79: 1691 | B79: Christina M. Eve Elementary | C79: 3 | D79: Opinion | E79: 125 | F79: 3.77 | G79: 18 | H79: 41 | I79: 56 | J79: 8 | K79: 2 | L79: 23 | M79: 50 | N79: 46 | O79: 4 | P79: 2 | Q79: 22 | R79: 82 | S79: 21 | U79: =IFERROR(VLOOKUP(TEXT($A79,"0000"),'Mem11-14-2014'!$A$3:$O$500,'Mem11-14-2014'!G$1,FALSE),0) -> 125 | V79: =VLOOKUP(A79,'TIER SCH'!$A$2:$D$324,4,FALSE) -> T1 | W79: 100
A80: 1721 | B80: Everglades K-8 Center | C80: 3 | D80: Opinion | E80: 134 | F80: 3.85 | G80: 21 | H80: 44 | I80: 59 | J80: 8 | K80: 2 | L80: 24 | M80: 64 | N80: 36 | O80: 10 | P80: 0 | Q80: 23 | R80: 66 | S80: 45 | U80: =IFERROR(VLOOKUP(TEXT($A80,"0000"),'Mem11-14-2014'!$A$3:$O$500,'Mem11-14-2014'!G$1,FALSE),0) -> 136 | V80: =VLOOKUP(A80,'TIER SCH'!$A$2:$D$324,4,FALSE) -> T1 | W80: 98.52941176
A81: 1761 | B81: David Fairchild Elementary | C81: 3 | D81: Opinion | E81: 98 | F81: 4.54 | G81: 4 | H81: 33 | I81: 47 | J81: 14 | K81: 0 | L81: 8 | M81: 46 | N81: 34 | O81: 10 | P81: 0 | Q81: 13 | R81: 38 | S81: 47 | U81: =IFERROR(VLOOKUP(TEXT($A81,"0000"),'Mem11-14-2014'!$A$3:$O$500,'Mem11-14-2014'!G$1,FALSE),0) -> 97 | V81: =VLOOKUP(A81,'TIER SCH'!$A$2:$D$324,4,FALSE) -> T1 | W81: 101.0309278
A82: 1801 | B82: Fairlawn Elementary | C82: 3 | D82: Opinion | E82: 109 | F82: 2.05 | G82: 38 | H82: 63 | I82: 8 | J82: 0 | K82: 0 | L82: 42 | M82: 60 | N82: 7 | O82: 0 | P82: 0 | Q82: 47 | R82: 54 | S82: 8 | U82: =IFERROR(VLOOKUP(TEXT($A82,"0000"),'Mem11-14-2014'!$A$3:$O$500,'Mem11-14-2014'!G$1,FALSE),0) -> 119 | V82: =VLOOKUP(A82,'TIER SCH'!$A$2:$D$324,4,FALSE) -> T1 | W82: 91.59663866
A83: 1811 | B83: Dante B. Fascell Elementary | C83: 3 | D83: Opinion | E83: 88 | F83: 3.3 | G83: 10 | H83: 50 | I83: 27 | J83: 1 | K83: 0 | L83: 15 | M83: 53 | N83: 18 | O83: 2 | P83: 0 | Q83: 17 | R83: 54 | S83: 17 | U83: =IFERROR(VLOOKUP(TEXT($A83,"0000"),'Mem11-14-2014'!$A$3:$O$500,'Mem11-14-2014'!G$1,FALSE),0) -> 85 | V83: =VLOOKUP(A83,'TIER SCH'!$A$2:$D$324,4,FALSE) -> T1 | W83: 103.5294118
A84: 1841 | B84: Flagami Elementary | C84: 3 | D84: Opinion | E84: 68 | F84: 3.46 | G84: 3 | H84: 50 | I84: 14 | J84: 1 | K84: 0 | L84: 3 | M84: 49 | N84: 15 | O84: 1 | P84: 0 | Q84: 12 | R84: 40 | S84: 16 | U84: =IFERROR(VLOOKUP(TEXT($A84,"0000"),'Mem11-14-2014'!$A$3:$O$500,'Mem11-14-2014'!G$1,FALSE),0) -> 69 | V84: =VLOOKUP(A84,'TIER SCH'!$A$2:$D$324,4,FALSE) -> T1 | W84: 98.55072464
A85: 1921 | B85: Flamingo Elementary | C85: 3 | D85: Opinion | E85: 116 | F85: 1.94 | G85: 51 | H85: 50 | I85: 13 | J85: 2 | K85: 0 | L85: 54 | M85: 46 | N85: 16 | O85: 0 | P85: 0 | Q85: 58 | R85: 51 | S85: 7 | U85: =IFERROR(VLOOKUP(TEXT($A85,"0000"),'Mem11-14-2014'!$A$3:$O$500,'Mem11-14-2014'!G$1,FALSE),0) -> 120 | V85: =VLOOKUP(A85,'TIER SCH'!$A$2:$D$324,4,FALSE) -> T1 | W85: 96.66666667
A86: 2001 | B86: Florida City Elementary | C86: 3 | D86: Opinion | E86: 131 | F86: 2.34 | G86: 39 | H86: 75 | I86: 15 | J86: 2 | K86: 0 | L86: 34 | M86: 78 | N86: 16 | O86: 3 | P86: 0 | Q86: 65 | R86: 55 | S86: 11 | U86: =IFERROR(VLOOKUP(TEXT($A86,"0000"),'Mem11-14-2014'!$A$3:$O$500,'Mem11-14-2014'!G$1,FALSE),0) -> 134 | V86: =VLOOKUP(A86,'TIER SCH'!$A$2:$D$324,4,FALSE) -> R | W86: 97.76119403
A87: 2003 | B87: Bridgeprep Academy South | C87: 3 | D87: Opinion | E87: 41 | F87: 5.88 | G87: 0 | H87: 4 | I87: 10 | J87: 25 | K87: 2 | L87: 1 | M87: 17 | N87: 21 | O87: 2 | P87: 0 | Q87: 2 | R87: 9 | S87: 30 | U87: =IFERROR(VLOOKUP(TEXT($A87,"0000"),'Mem11-14-2014'!$A$3:$O$500,'Mem11-14-2014'!G$1,FALSE),0) -> 42 | V87: =VLOOKUP(A87,'TIER SCH'!$A$2:$D$324,4,FALSE) ->  | W87: 97.61904762
A88: 2007 | B88: Somerset Academy Elementary | C88: 3 | D88: Opinion | E88: 74 | F88: 5.27 | G88: 1 | H88: 16 | I88: 36 | J88: 21 | K88: 0 | L88: 1 | M88: 25 | N88: 38 | O88: 10 | P88: 0 | Q88: 2 | R88: 36 | S88: 36 | U88: =IFERROR(VLOOKUP(TEXT($A88,"0000"),'Mem11-14-2014'!$A$3:$O$500,'Mem11-14-2014'!G$1,FALSE),0) -> 76 | V88: =VLOOKUP(A88,'TIER SCH'!$A$2:$D$324,4,FALSE) ->  | W88: 97.36842105
A89: 2012 | B89: Somerset Arts Academy | C89: 3 | D89: Opinion | E89: 69 | F89: 2.93 | G89: 13 | H89: 48 | I89: 7 | J89: 1 | K89: 0 | L89: 12 | M89: 51 | N89: 6 | O89: 0 | P89: 0 | Q89: 14 | R89: 36 | S89: 19 | U89: =IFERROR(VLOOKUP(TEXT($A89,"0000"),'Mem11-14-2014'!$A$3:$O$500,'Mem11-14-2014'!G$1,FALSE),0) -> 69 | V89: =VLOOKUP(A89,'TIER SCH'!$A$2:$D$324,4,FALSE) ->  | W89: 100
A90: 2013 | B90: Bridgeprep Acad Greater Miami | C90: 3 | D90: Opinion | E90: 70 | F90: 4.5 | G90: 0 | H90: 32 | I90: 17 | J90: 21 | K90: 0 | L90: 1 | M90: 43 | N90: 20 | O90: 6 | P90: 0 | Q90: 5 | R90: 45 | S90: 20 | U90: =IFERROR(VLOOKUP(TEXT($A90,"0000"),'Mem11-14-2014'!$A$3:$O$500,'Mem11-14-2014'!G$1,FALSE),0) -> 76 | V90: =VLOOKUP(A90,'TIER SCH'!$A$2:$D$324,4,FALSE) ->  | W90: 92.10526316
A91: 2021 | B91: Gloria Floyd Elementary | C91: 3 | D91: Opinion | E91: 93 | F91: 2.11 | G91: 34 | H91: 48 | I91: 11 | J91: 0 | K91: 0 | L91: 39 | M91: 44 | N91: 10 | O91: 0 | P91: 0 | Q91: 31 | R91: 62 | S91: 0 | U91: =IFERROR(VLOOKUP(TEXT($A91,"0000"),'Mem11-14-2014'!$A$3:$O$500,'Mem11-14-2014'!G$1,FALSE),0) -> 95 | V91: =VLOOKUP(A91,'TIER SCH'!$A$2:$D$324,4,FALSE) -> T1 | W91: 97.89473684
A92: 2041 | B92: Benjamin Franklin K-8 Center | C92: 3 | D92: Opinion | E92: 84 | F92: 2.64 | G92: 29 | H92: 33 | I92: 12 | J92: 3 | K92: 7 | L92: 29 | M92: 27 | N92: 19 | O92: 1 | P92: 8 | Q92: 60 | R92: 20 | S92: 4 | U92: =IFERROR(VLOOKUP(TEXT($A92,"0000"),'Mem11-14-2014'!$A$3:$O$500,'Mem11-14-2014'!G$1,FALSE),0) -> 86 | V92: =VLOOKUP(A92,'TIER SCH'!$A$2:$D$324,4,FALSE) -> R | W92: 97.6744186
A93: 2060 | B93: Gibson Charter School | C93: 3 | D93: Opinion | E93: 33 | F93: 2.64 | G93: 10 | H93: 13 | I93: 8 | J93: 2 | K93: 0 | L93: 10 | M93: 17 | N93: 6 | O93: 0 | P93: 0 | Q93: 12 | R93: 19 | S93: 2 | U93: =IFERROR(VLOOKUP(TEXT($A93,"0000"),'Mem11-14-2014'!$A$3:$O$500,'Mem11-14-2014'!G$1,FALSE),0) -> 41 | V93: =VLOOKUP(A93,'TIER SCH'!$A$2:$D$324,4,FALSE) ->  | W93: 80.48780488
A94: 2081 | B94: Fulford Elementary | C94: 3 | D94: Opinion | E94: 77 | F94: 2.14 | G94: 21 | H94: 43 | I94: 11 | J94: 2 | K94: 0 | L94: 26 | M94: 47 | N94: 4 | O94: 0 | P94: 0 | Q94: 39 | R94: 37 | S94: 1 | U94: =IFERROR(VLOOKUP(TEXT($A94,"0000"),'Mem11-14-2014'!$A$3:$O$500,'Mem11-14-2014'!G$1,FALSE),0) -> 77 | V94: =VLOOKUP(A94,'TIER SCH'!$A$2:$D$324,4,FALSE) -> T2 | W94: 100
A95: 2111 | B95: Hialeah Gardens Elementary | C95: 3 | D95: Opinion | E95: 126 | F95: 3.4 | G95: 22 | H95: 60 | I95: 37 | J95: 7 | K95: 0 | L95: 21 | M95: 72 | N95: 29 | O95: 4 | P95: 0 | Q95: 24 | R95: 72 | S95: 30 | U95: =IFERROR(VLOOKUP(TEXT($A95,"0000"),'Mem11-14-2014'!$A$3:$O$500,'Mem11-14-2014'!G$1,FALSE),0) -> 128 | V95: =VLOOKUP(A95,'TIER SCH'!$A$2:$D$324,4,FALSE) -> T1 | W95: 98.4375
A96: 2151 | B96: Jack D. Gordon Elementary | C96: 3 | D96: Opinion | E96: 156 | F96: 4.12 | G96: 2 | H96: 83 | I96: 63 | J96: 8 | K96: 0 | L96: 3 | M96: 91 | N96: 58 | O96: 4 | P96: 0 | Q96: 2 | R96: 118 | S96: 36 | U96: =IFERROR(VLOOKUP(TEXT($A96,"0000"),'Mem11-14-2014'!$A$3:$O$500,'Mem11-14-2014'!G$1,FALSE),0) -> 176 | V96: =VLOOKUP(A96,'TIER SCH'!$A$2:$D$324,4,FALSE) -> T1 | W96: 88.63636364
A97: 2161 | B97: Golden Glades Elementary | C97: 3 | D97: Opinion | E97: 38 | F97: 3.42 | G97: 4 | H97: 21 | I97: 11 | J97: 2 | K97: 0 | L97: 6 | M97: 24 | N97: 3 | O97: 5 | P97: 0 | Q97: 9 | R97: 22 | S97: 7 | U97: =IFERROR(VLOOKUP(TEXT($A97,"0000"),'Mem11-14-2014'!$A$3:$O$500,'Mem11-14-2014'!G$1,FALSE),0) -> 38 | V97: =VLOOKUP(A97,'TIER SCH'!$A$2:$D$324,4,FALSE) -> T3 | W97: 100
A98: 2181 | B98: Joella C. Good Elementary | C98: 3 | D98: Opinion | E98: 166 | F98: 2.07 | G98: 71 | H98: 68 | I98: 24 | J98: 3 | K98: 0 | L98: 75 | M98: 67 | N98: 21 | O98: 3 | P98: 0 | Q98: 84 | R98: 63 | S98: 19 | U98: =IFERROR(VLOOKUP(TEXT($A98,"0000"),'Mem11-14-2014'!$A$3:$O$500,'Mem11-14-2014'!G$1,FALSE),0) -> 164 | V98: =VLOOKUP(A98,'TIER SCH'!$A$2:$D$324,4,FALSE) -> WL | W98: 101.2195122
A99: 2191 | B99: Spanish Lake Elementary | C99: 3 | D99: Opinion | E99: 131 | F99: 2.45 | G99: 30 | H99: 66 | I99: 33 | J99: 2 | K99: 0 | L99: 50 | M99: 60 | N99: 17 | O99: 4 | P99: 0 | Q99: 56 | R99: 73 | S99: 2 | U99: =IFERROR(VLOOKUP(TEXT($A99,"0000"),'Mem11-14-2014'!$A$3:$O$500,'Mem11-14-2014'!G$1,FALSE),0) -> 277 | V99: =VLOOKUP(A99,'TIER SCH'!$A$2:$D$324,4,FALSE) -> T1 | W99: 47.29241877
A100: 2241 | B100: Gratigny Elementary | C100: 3 | D100: Opinion | E100: 92 | F100: 1.55 | G100: 51 | H100: 30 | I100: 11 | J100: 0 | K100: 0 | L100: 57 | M100: 27 | N100: 8 | O100: 0 | P100: 0 | Q100: 53 | R100: 30 | S100: 9 | U100: =IFERROR(VLOOKUP(TEXT($A100,"0000"),'Mem11-14-2014'!$A$3:$O$500,'Mem11-14-2014'!G$1,FALSE),0) -> 97 | V100: =VLOOKUP(A100,'TIER SCH'!$A$2:$D$324,4,FALSE) -> R | W100: 94.84536082
A101: 2261 | B101: Greenglade Elementary | C101: 3 | D101: Opinion | E101: 69 | F101: 3.38 | G101: 23 | H101: 25 | I101: 11 | J101: 9 | K101: 1 | L101: 23 | M101: 20 | N101: 22 | O101: 4 | P101: 0 | Q101: 17 | R101: 25 | S101: 27 | U101: =IFERROR(VLOOKUP(TEXT($A101,"0000"),'Mem11-14-2014'!$A$3:$O$500,'Mem11-14-2014'!G$1,FALSE),0) -> 74 | V101: =VLOOKUP(A101,'TIER SCH'!$A$2:$D$324,4,FALSE) -> T1 | W101: 93.24324324
A102: 2281 | B102: Greynolds Park Elementary | C102: 3 | D102: Opinion | E102: 114 | F102: 2.84 | G102: 21 | H102: 50 | I102: 35 | J102: 8 | K102: 0 | L102: 36 | M102: 55 | N102: 23 | O102: 0 | P102: 0 | Q102: 45 | R102: 59 | S102: 10 | U102: =IFERROR(VLOOKUP(TEXT($A102,"0000"),'Mem11-14-2014'!$A$3:$O$500,'Mem11-14-2014'!G$1,FALSE),0) -> 122 | V102: =VLOOKUP(A102,'TIER SCH'!$A$2:$D$324,4,FALSE) -> T3 | W102: 93.44262295
A103: 2321 | B103: Gulfstream Elementary | C103: 3 | D103: Opinion | E103: 86 | F103: 2.91 | G103: 13 | H103: 58 | I103: 14 | J103: 1 | K103: 0 | L103: 12 | M103: 63 | N103: 11 | O103: 0 | P103: 0 | Q103: 21 | R103: 54 | S103: 11 | U103: =IFERROR(VLOOKUP(TEXT($A103,"0000"),'Mem11-14-2014'!$A$3:$O$500,'Mem11-14-2014'!G$1,FALSE),0) -> 90 | V103: =VLOOKUP(A103,'TIER SCH'!$A$2:$D$324,4,FALSE) -> T1 | W103: 95.55555556
A104: 2331 | B104: Charles R. Hadley Elementary | C104: 3 | D104: Opinion | E104: 177 | F104: 3.21 | G104: 44 | H104: 58 | I104: 60 | J104: 14 | K104: 1 | L104: 42 | M104: 76 | N104: 55 | O104: 4 | P104: 0 | Q104: 53 | R104: 101 | S104: 23 | U104: =IFERROR(VLOOKUP(TEXT($A104,"0000"),'Mem11-14-2014'!$A$3:$O$500,'Mem11-14-2014'!G$1,FALSE),0) -> 181 | V104: =VLOOKUP(A104,'TIER SCH'!$A$2:$D$324,4,FALSE) -> T1 | W104: 97.79005525
A105: 2341 | B105: Joe Hall Elementary | C105: 3 | D105: Opinion | E105: 87 | F105: 3.32 | G105: 12 | H105: 48 | I105: 27 | J105: 0 | K105: 0 | L105: 14 | M105: 54 | N105: 16 | O105: 3 | P105: 0 | Q105: 16 | R105: 50 | S105: 21 | U105: =IFERROR(VLOOKUP(TEXT($A105,"0000"),'Mem11-14-2014'!$A$3:$O$500,'Mem11-14-2014'!G$1,FALSE),0) -> 86 | V105: =VLOOKUP(A105,'TIER SCH'!$A$2:$D$324,4,FALSE) -> T1 | W105: 101.1627907
A106: 2351 | B106: Eneida Massas Hartner Elem | C106: 3 | D106: Opinion | E106: 82 | F106: 2.9 | G106: 5 | H106: 71 | I106: 3 | J106: 3 | K106: 0 | L106: 5 | M106: 67 | N106: 7 | O106: 3 | P106: 0 | Q106: 36 | R106: 30 | S106: 16 | U106: =IFERROR(VLOOKUP(TEXT($A106,"0000"),'Mem11-14-2014'!$A$3:$O$500,'Mem11-14-2014'!G$1,FALSE),0) -> 83 | V106: =VLOOKUP(A106,'TIER SCH'!$A$2:$D$324,4,FALSE) -> WL | W106: 98.79518072
A107: 2361 | B107: Hialeah Elementary | C107: 3 | D107: Opinion | E107: 133 | F107: 2.25 | G107: 44 | H107: 61 | I107: 26 | J107: 2 | K107: 0 | L107: 42 | M107: 70 | N107: 21 | O107: 0 | P107: 0 | Q107: 67 | R107: 64 | S107: 2 | U107: =IFERROR(VLOOKUP(TEXT($A107,"0000"),'Mem11-14-2014'!$A$3:$O$500,'Mem11-14-2014'!G$1,FALSE),0) -> 136 | V107: =VLOOKUP(A107,'TIER SCH'!$A$2:$D$324,4,FALSE) -> WL | W107: 97.79411765
A108: 2371 | B108: West Hialeah Gardens Elem | C108: 3 | D108: Opinion | E108: 181 | F108: 1.96 | G108: 86 | H108: 67 | I108: 26 | J108: 2 | K108: 0 | L108: 102 | M108: 59 | N108: 20 | O108: 0 | P108: 0 | Q108: 90 | R108: 51 | S108: 40 | U108: =IFERROR(VLOOKUP(TEXT($A108,"0000"),'Mem11-14-2014'!$A$3:$O$500,'Mem11-14-2014'!G$1,FALSE),0) -> 198 | V108: =VLOOKUP(A108,'TIER SCH'!$A$2:$D$324,4,FALSE) -> T1 | W108: 91.41414141
A109: 2401 | B109: Hibiscus Elementary | C109: 3 | D109: Opinion | E109: 69 | F109: 2.62 | G109: 20 | H109: 38 | I109: 10 | J109: 1 | K109: 0 | L109: 21 | M109: 39 | N109: 9 | O109: 0 | P109: 0 | Q109: 20 | R109: 35 | S109: 14 | U109: =IFERROR(VLOOKUP(TEXT($A109,"0000"),'Mem11-14-2014'!$A$3:$O$500,'Mem11-14-2014'!G$1,FALSE),0) -> 69 | V109: =VLOOKUP(A109,'TIER SCH'!$A$2:$D$324,4,FALSE) -> R | W109: 100
A110: 2441 | B110: Virginia A Boone/highland Oaks | C110: 3 | D110: Opinion | E110: 126 | F110: 2.71 | G110: 21 | H110: 63 | I110: 36 | J110: 6 | K110: 0 | L110: 32 | M110: 81 | N110: 13 | O110: 0 | P110: 0 | Q110: 58 | R110: 55 | S110: 13 | U110: =IFERROR(VLOOKUP(TEXT($A110,"0000"),'Mem11-14-2014'!$A$3:$O$500,'Mem11-14-2014'!G$1,FALSE),0) -> 135 | V110: =VLOOKUP(A110,'TIER SCH'!$A$2:$D$324,4,FALSE) -> T1 | W110: 93.33333333
A111: 2501 | B111: Holmes Elementary | C111: 3 | D111: Opinion | E111: 105 | F111: 3.14 | G111: 19 | H111: 51 | I111: 24 | J111: 11 | K111: 0 | L111: 19 | M111: 61 | N111: 14 | O111: 10 | P111: 1 | Q111: 43 | R111: 49 | S111: 13 | U111: =IFERROR(VLOOKUP(TEXT($A111,"0000"),'Mem11-14-2014'!$A$3:$O$500,'Mem11-14-2014'!G$1,FALSE),0) -> 136 | V111: =VLOOKUP(A111,'TIER SCH'!$A$2:$D$324,4,FALSE) -> T3 | W111: 77.20588235
A112: 2511 | B112: Zora Neale Hurston Elementary | C112: 3 | D112: Opinion | E112: 110 | F112: 3.49 | G112: 1 | H112: 66 | I112: 35 | J112: 7 | K112: 1 | L112: 2 | M112: 92 | N112: 13 | O112: 3 | P112: 0 | Q112: 25 | R112: 74 | S112: 11 | U112: =IFERROR(VLOOKUP(TEXT($A112,"0000"),'Mem11-14-2014'!$A$3:$O$500,'Mem11-14-2014'!G$1,FALSE),0) -> 114 | V112: =VLOOKUP(A112,'TIER SCH'!$A$2:$D$324,4,FALSE) -> T1 | W112: 96.49122807
A113: 2521 | B113: Oliver Hoover Elementary | C113: 3 | D113: Opinion | E113: 114 | F113: 2.96 | G113: 18 | H113: 72 | I113: 19 | J113: 5 | K113: 0 | L113: 18 | M113: 79 | N113: 13 | O113: 4 | P113: 0 | Q113: 37 | R113: 58 | S113: 19 | U113: =IFERROR(VLOOKUP(TEXT($A113,"0000"),'Mem11-14-2014'!$A$3:$O$500,'Mem11-14-2014'!G$1,FALSE),0) -> 124 | V113: =VLOOKUP(A113,'TIER SCH'!$A$2:$D$324,4,FALSE) -> T1 | W113: 91.93548387
A114: 2541 | B114: Howard Drive Elementary | C114: 3 | D114: Opinion | E114: 100 | F114: 3.69 | G114: 18 | H114: 38 | I114: 30 | J114: 14 | K114: 0 | L114: 21 | M114: 39 | N114: 28 | O114: 12 | P114: 0 | Q114: 25 | R114: 52 | S114: 23 | U114: =IFERROR(VLOOKUP(TEXT($A114,"0000"),'Mem11-14-2014'!$A$3:$O$500,'Mem11-14-2014'!G$1,FALSE),0) -> 105 | V114: =VLOOKUP(A114,'TIER SCH'!$A$2:$D$324,4,FALSE) -> T1 | W114: 95.23809524
A115: 2581 | B115: Madie Ives Elementary | C115: 3 | D115: Opinion | E115: 138 | F115: 4.42 | G115: 5 | H115: 57 | I115: 50 | J115: 26 | K115: 0 | L115: 12 | M115: 53 | N115: 53 | O115: 20 | P115: 0 | Q115: 19 | R115: 82 | S115: 37 | U115: =IFERROR(VLOOKUP(TEXT($A115,"0000"),'Mem11-14-2014'!$A$3:$O$500,'Mem11-14-2014'!G$1,FALSE),0) -> 146 | V115: =VLOOKUP(A115,'TIER SCH'!$A$2:$D$324,4,FALSE) -> T3 | W115: 94.52054795
A116: 2641 | B116: Kendale Elementary | C116: 3 | D116: Opinion | E116: 77 | F116: 4.32 | G116: 2 | H116: 39 | I116: 27 | J116: 9 | K116: 0 | L116: 4 | M116: 33 | N116: 32 | O116: 8 | P116: 0 | Q116: 13 | R116: 36 | S116: 28 | U116: =IFERROR(VLOOKUP(TEXT($A116,"0000"),'Mem11-14-2014'!$A$3:$O$500,'Mem11-14-2014'!G$1,FALSE),0) -> 81 | V116: =VLOOKUP(A116,'TIER SCH'!$A$2:$D$324,4,FALSE) -> T1 | W116: 95.0617284
A117: 2651 | B117: Kendale Lakes Elementary | C117: 3 | D117: Opinion | E117: 110 | F117: 2 | G117: 30 | H117: 63 | I117: 17 | J117: 0 | K117: 0 | L117: 45 | M117: 53 | N117: 12 | O117: 0 | P117: 0 | Q117: 67 | R117: 40 | S117: 3 | U117: =IFERROR(VLOOKUP(TEXT($A117,"0000"),'Mem11-14-2014'!$A$3:$O$500,'Mem11-14-2014'!G$1,FALSE),0) -> 114 | V117: =VLOOKUP(A117,'TIER SCH'!$A$2:$D$324,4,FALSE) -> T1 | W117: 96.49122807
A118: 2661 | B118: Kensington Park Elementary | C118: 3 | D118: Opinion | E118: 185 | F118: 3.06 | G118: 69 | H118: 31 | I118: 60 | J118: 20 | K118: 5 | L118: 68 | M118: 69 | N118: 38 | O118: 9 | P118: 1 | Q118: 57 | R118: 97 | S118: 31 | U118: =IFERROR(VLOOKUP(TEXT($A118,"0000"),'Mem11-14-2014'!$A$3:$O$500,'Mem11-14-2014'!G$1,FALSE),0) -> 193 | V118: =VLOOKUP(A118,'TIER SCH'!$A$2:$D$324,4,FALSE) -> T3 | W118: 95.85492228
A119: 2701 | B119: Kenwood K-8 Center | C119: 3 | D119: Opinion | E119: 100 | F119: 2.89 | G119: 22 | H119: 56 | I119: 20 | J119: 2 | K119: 0 | L119: 27 | M119: 48 | N119: 24 | O119: 1 | P119: 0 | Q119: 33 | R119: 46 | S119: 21 | U119: =IFERROR(VLOOKUP(TEXT($A119,"0000"),'Mem11-14-2014'!$A$3:$O$500,'Mem11-14-2014'!G$1,FALSE),0) -> 103 | V119: =VLOOKUP(A119,'TIER SCH'!$A$2:$D$324,4,FALSE) -> T1 | W119: 97.08737864
A120: 2741 | B120: Key Biscayne K-8 Center | C120: 3 | D120: Opinion | E120: 181 | F120: 3.54 | G120: 28 | H120: 70 | I120: 67 | J120: 16 | K120: 0 | L120: 20 | M120: 107 | N120: 44 | O120: 10 | P120: 0 | Q120: 35 | R120: 128 | S120: 18 | U120: =IFERROR(VLOOKUP(TEXT($A120,"0000"),'Mem11-14-2014'!$A$3:$O$500,'Mem11-14-2014'!G$1,FALSE),0) -> 186 | V120: =VLOOKUP(A120,'TIER SCH'!$A$2:$D$324,4,FALSE) -> T1 | W120: 97.31182796
A121: 2781 | B121: Kinloch Park Elementary | C121: 3 | D121: Opinion | E121: 1 | F121: 5 | G121: 0 | H121: 0 | I121: 1 | J121: 0 | K121: 0 | L121: 0 | M121: 0 | N121: 1 | O121: 0 | P121: 0 | Q121: 0 | R121: 1 | S121: 0 | U121: =IFERROR(VLOOKUP(TEXT($A121,"0000"),'Mem11-14-2014'!$A$3:$O$500,'Mem11-14-2014'!G$1,FALSE),0) -> 130 | V121: =VLOOKUP(A121,'TIER SCH'!$A$2:$D$324,4,FALSE) -> T1 | W121: 0.7692307692
A122: 2801 | B122: Lake Stevens Elementary | C122: 3 | D122: Opinion | E122: 48 | F122: 3.85 | G122: 3 | H122: 38 | I122: 2 | J122: 3 | K122: 2 | L122: 1 | M122: 39 | N122: 3 | O122: 4 | P122: 1 | Q122: 2 | R122: 27 | S122: 19 | U122: =IFERROR(VLOOKUP(TEXT($A122,"0000"),'Mem11-14-2014'!$A$3:$O$500,'Mem11-14-2014'!G$1,FALSE),0) -> 49 | V122: =VLOOKUP(A122,'TIER SCH'!$A$2:$D$324,4,FALSE) -> R | W122: 97.95918367
A123: 2821 | B123: Lakeview Elementary | C123: 3 | D123: Opinion | E123: 68 | F123: 0.78 | G123: 24 | H123: 36 | I123: 7 | J123: 1 | K123: 0 | L123: 68 | M123: 0 | N123: 0 | O123: 0 | P123: 0 | Q123: 68 | R123: 0 | S123: 0 | U123: =IFERROR(VLOOKUP(TEXT($A123,"0000"),'Mem11-14-2014'!$A$3:$O$500,'Mem11-14-2014'!G$1,FALSE),0) -> 77 | V123: =VLOOKUP(A123,'TIER SCH'!$A$2:$D$324,4,FALSE) -> T3 | W123: 88.31168831
A124: 2881 | B124: Leewood K-8 Center | C124: 3 | D124: Opinion | E124: 82 | F124: 4.96 | G124: 0 | H124: 22 | I124: 54 | J124: 6 | K124: 0 | L124: 0 | M124: 39 | N124: 39 | O124: 4 | P124: 0 | Q124: 3 | R124: 28 | S124: 51 | U124: =IFERROR(VLOOKUP(TEXT($A124,"0000"),'Mem11-14-2014'!$A$3:$O$500,'Mem11-14-2014'!G$1,FALSE),0) -> 82 | V124: =VLOOKUP(A124,'TIER SCH'!$A$2:$D$324,4,FALSE) -> T1 | W124: 100
A125: 2891 | B125: William Lehman Elementary | C125: 3 | D125: Opinion | E125: 81 | F125: 1.88 | G125: 22 | H125: 48 | I125: 10 | J125: 1 | K125: 0 | L125: 45 | M125: 29 | N125: 6 | O125: 1 | P125: 0 | Q125: 51 | R125: 23 | S125: 7 | U125: =IFERROR(VLOOKUP(TEXT($A125,"0000"),'Mem11-14-2014'!$A$3:$O$500,'Mem11-14-2014'!G$1,FALSE),0) -> 112 | V125: =VLOOKUP(A125,'TIER SCH'!$A$2:$D$324,4,FALSE) -> T1 | W125: 72.32142857
A126: 2901 | B126: Leisure City K-8 Center | C126: 3 | D126: Opinion | E126: 101 | F126: 2.34 | G126: 25 | H126: 55 | I126: 18 | J126: 3 | K126: 0 | L126: 26 | M126: 60 | N126: 12 | O126: 3 | P126: 0 | Q126: 62 | R126: 35 | S126: 4 | U126: =IFERROR(VLOOKUP(TEXT($A126,"0000"),'Mem11-14-2014'!$A$3:$O$500,'Mem11-14-2014'!G$1,FALSE),0) -> 110 | V126: =VLOOKUP(A126,'TIER SCH'!$A$2:$D$324,4,FALSE) -> T2 | W126: 91.81818182
A127: 2911 | B127: Linda Lentin K-8 Center | C127: 3 | D127: Opinion | E127: 91 | F127: 2.53 | G127: 17 | H127: 61 | I127: 12 | J127: 1 | K127: 0 | L127: 17 | M127: 68 | N127: 6 | O127: 0 | P127: 0 | Q127: 30 | R127: 60 | S127: 1 | U127: =IFERROR(VLOOKUP(TEXT($A127,"0000"),'Mem11-14-2014'!$A$3:$O$500,'Mem11-14-2014'!G$1,FALSE),0) -> 92 | V127: =VLOOKUP(A127,'TIER SCH'!$A$2:$D$324,4,FALSE) -> T3 | W127: 98.91304348
A128: 2941 | B128: Laura C. Saunders Elementary | C128: 3 | D128: Opinion | E128: 110 | F128: 2.45 | G128: 56 | H128: 30 | I128: 17 | J128: 5 | K128: 2 | L128: 44 | M128: 31 | N128: 25 | O128: 7 | P128: 3 | Q128: 51 | R128: 50 | S128: 9 | U128: =IFERROR(VLOOKUP(TEXT($A128,"0000"),'Mem11-14-2014'!$A$3:$O$500,'Mem11-14-2014'!G$1,FALSE),0) -> 120 | V128: =VLOOKUP(A128,'TIER SCH'!$A$2:$D$324,4,FALSE) -> T3 | W128: 91.66666667
A129: 2981 | B129: Liberty City Elementary | C129: 3 | D129: Opinion | E129: 29 | F129: 0.66 | G129: 23 | H129: 5 | I129: 1 | J129: 0 | K129: 0 | L129: 21 | M129: 8 | N129: 0 | O129: 0 | P129: 0 | Q129: 26 | R129: 2 | S129: 1 | U129: =IFERROR(VLOOKUP(TEXT($A129,"0000"),'Mem11-14-2014'!$A$3:$O$500,'Mem11-14-2014'!G$1,FALSE),0) -> 60 | V129: =VLOOKUP(A129,'TIER SCH'!$A$2:$D$324,4,FALSE) -> T3 | W129: 48.33333333
A130: 3021 | B130: Jesse J Mccrary Jr Elementary | C130: 3 | D130: Opinion | E130: 96 | F130: 2.85 | G130: 24 | H130: 31 | I130: 33 | J130: 7 | K130: 1 | L130: 38 | M130: 34 | N130: 20 | O130: 3 | P130: 1 | Q130: 41 | R130: 45 | S130: 10 | U130: =IFERROR(VLOOKUP(TEXT($A130,"0000"),'Mem11-14-2014'!$A$3:$O$500,'Mem11-14-2014'!G$1,FALSE),0) -> 98 | V130: =VLOOKUP(A130,'TIER SCH'!$A$2:$D$324,4,FALSE) -> T3 | W130: 97.95918367
A131: 3025 | B131: Advantage Academy Santa Fe | C131: 3 | D131: Opinion | E131: 77 | F131: 4.08 | G131: 7 | H131: 29 | I131: 39 | J131: 2 | K131: 0 | L131: 14 | M131: 26 | N131: 30 | O131: 5 | P131: 2 | Q131: 16 | R131: 30 | S131: 31 | U131: =IFERROR(VLOOKUP(TEXT($A131,"0000"),'Mem11-14-2014'!$A$3:$O$500,'Mem11-14-2014'!G$1,FALSE),0) -> 78 | V131: =VLOOKUP(A131,'TIER SCH'!$A$2:$D$324,4,FALSE) ->  | W131: 98.71794872
A132: 3030 | B132: Doral Academy | C132: 3 | D132: Opinion | E132: 193 | F132: 3.72 | G132: 50 | H132: 54 | I132: 41 | J132: 47 | K132: 1 | L132: 71 | M132: 53 | N132: 57 | O132: 12 | P132: 0 | Q132: 43 | R132: 67 | S132: 83 | U132: =IFERROR(VLOOKUP(TEXT($A132,"0000"),'Mem11-14-2014'!$A$3:$O$500,'Mem11-14-2014'!G$1,FALSE),0) -> 198 | V132: =VLOOKUP(A132,'TIER SCH'!$A$2:$D$324,4,FALSE) ->  | W132: =E132/U132*100 -> 97.47474747
A133: 3033 | B133: Somerset Oaks Academy | C133: 3 | D133: Opinion | E133: 54 | F133: 3.19 | G133: 11 | H133: 27 | I133: 14 | J133: 2 | K133: 0 | L133: 11 | M133: 29 | N133: 11 | O133: 3 | P133: 0 | Q133: 15 | R133: 27 | S133: 12 | U133: =IFERROR(VLOOKUP(TEXT($A133,"0000"),'Mem11-14-2014'!$A$3:$O$500,'Mem11-14-2014'!G$1,FALSE),0) -> 53 | V133: =VLOOKUP(A133,'TIER SCH'!$A$2:$D$324,4,FALSE) ->  | W133: 101.8867925
A134: 3034 | B134: Bridgeprep Acad Village Green | C134: 3 | D134: Opinion | E134: 41 | F134: 5.12 | G134: 0 | H134: 17 | I134: 11 | J134: 13 | K134: 0 | L134: 1 | M134: 17 | N134: 15 | O134: 8 | P134: 0 | Q134: 0 | R134: 21 | S134: 20 | U134: =IFERROR(VLOOKUP(TEXT($A134,"0000"),'Mem11-14-2014'!$A$3:$O$500,'Mem11-14-2014'!G$1,FALSE),0) -> 42 | V134: =VLOOKUP(A134,'TIER SCH'!$A$2:$D$324,4,FALSE) ->  | W134: 97.61904762
A135: 3035 | B135: Ramz Academy Elem Miami Campus | C135: 3 | D135: Opinion | E135: 40 | F135: 2.17 | G135: 22 | H135: 11 | I135: 5 | J135: 2 | K135: 0 | L135: 22 | M135: 12 | N135: 5 | O135: 1 | P135: 0 | Q135: 16 | R135: 13 | S135: 11 | U135: =IFERROR(VLOOKUP(TEXT($A135,"0000"),'Mem11-14-2014'!$A$3:$O$500,'Mem11-14-2014'!G$1,FALSE),0) -> 40 | V135: =VLOOKUP(A135,'TIER SCH'!$A$2:$D$324,4,FALSE) ->  | W135: 100
A136: 3041 | B136: Lorah Park Elementary | C136: 3 | D136: Opinion | E136: 73 | F136: 2.33 | G136: 32 | H136: 26 | I136: 14 | J136: 1 | K136: 0 | L136: 25 | M136: 34 | N136: 14 | O136: 0 | P136: 0 | Q136: 31 | R136: 33 | S136: 9 | U136: =IFERROR(VLOOKUP(TEXT($A136,"0000"),'Mem11-14-2014'!$A$3:$O$500,'Mem11-14-2014'!G$1,FALSE),0) -> 72 | V136: =VLOOKUP(A136,'TIER SCH'!$A$2:$D$324,4,FALSE) -> T3 | W136: 101.3888889
A137: 3051 | B137: Toussaint L''ouverture Elem | C137: 3 | D137: Opinion | E137: 84 | F137: 3.1 | G137: 7 | H137: 56 | I137: 20 | J137: 1 | K137: 0 | L137: 7 | M137: 66 | N137: 9 | O137: 2 | P137: 0 | Q137: 17 | R137: 63 | S137: 4 | U137: =IFERROR(VLOOKUP(TEXT($A137,"0000"),'Mem11-14-2014'!$A$3:$O$500,'Mem11-14-2014'!G$1,FALSE),0) -> 88 | V137: =VLOOKUP(A137,'TIER SCH'!$A$2:$D$324,4,FALSE) -> T3 | W137: 95.45454545
A138: 3061 | B138: Ludlam Elementary | C138: 3 | D138: Opinion | E138: 61 | F138: 3.89 | G138: 3 | H138: 32 | I138: 26 | J138: 0 | K138: 0 | L138: 3 | M138: 37 | N138: 19 | O138: 2 | P138: 0 | Q138: 10 | R138: 30 | S138: 21 | U138: =IFERROR(VLOOKUP(TEXT($A138,"0000"),'Mem11-14-2014'!$A$3:$O$500,'Mem11-14-2014'!G$1,FALSE),0) -> 63 | V138: =VLOOKUP(A138,'TIER SCH'!$A$2:$D$324,4,FALSE) -> T1 | W138: 96.82539683
A139: 3100 | B139: Mater Academy East Charter | C139: 3 | D139: Opinion | E139: 96 | F139: 5.61 | G139: 0 | H139: 34 | I139: 29 | J139: 27 | K139: 6 | L139: 0 | M139: 42 | N139: 31 | O139: 21 | P139: 2 | Q139: 0 | R139: 25 | S139: 71 | U139: =IFERROR(VLOOKUP(TEXT($A139,"0000"),'Mem11-14-2014'!$A$3:$O$500,'Mem11-14-2014'!G$1,FALSE),0) -> 95 | V139: =VLOOKUP(A139,'TIER SCH'!$A$2:$D$324,4,FALSE) ->  | W139: 101.0526316
A140: 3101 | B140: Frank C. Martin K-8 Center | C140: 3 | D140: Opinion | E140: 135 | F140: 3.79 | G140: 21 | H140: 57 | I140: 47 | J140: 9 | K140: 1 | L140: 16 | M140: 62 | N140: 49 | O140: 8 | P140: 0 | Q140: 20 | R140: 85 | S140: 30 | U140: =IFERROR(VLOOKUP(TEXT($A140,"0000"),'Mem11-14-2014'!$A$3:$O$500,'Mem11-14-2014'!G$1,FALSE),0) -> 136 | V140: =VLOOKUP(A140,'TIER SCH'!$A$2:$D$324,4,FALSE) -> T1 | W140: 99.26470588
A141: 3111 | B141: Wesley Matthews Elementary | C141: 3 | D141: Opinion | E141: 80 | F141: 4.36 | G141: 5 | H141: 17 | I141: 47 | J141: 10 | K141: 1 | L141: 13 | M141: 31 | N141: 25 | O141: 11 | P141: 0 | Q141: 6 | R141: 58 | S141: 16 | U141: =IFERROR(VLOOKUP(TEXT($A141,"0000"),'Mem11-14-2014'!$A$3:$O$500,'Mem11-14-2014'!G$1,FALSE),0) -> 79 | V141: =VLOOKUP(A141,'TIER SCH'!$A$2:$D$324,4,FALSE) -> T1 | W141: 101.2658228
A142: 3141 | B142: Meadowlane Elementary | C142: 3 | D142: Opinion | E142: 157 | F142: 2.59 | G142: 31 | H142: 85 | I142: 33 | J142: 8 | K142: 0 | L142: 62 | M142: 67 | N142: 24 | O142: 4 | P142: 0 | Q142: 69 | R142: 71 | S142: 17 | U142: =IFERROR(VLOOKUP(TEXT($A142,"0000"),'Mem11-14-2014'!$A$3:$O$500,'Mem11-14-2014'!G$1,FALSE),0) -> 161 | V142: =VLOOKUP(A142,'TIER SCH'!$A$2:$D$324,4,FALSE) -> T1 | W142: 97.51552795
A143: 3181 | B143: Melrose Elementary | C143: 3 | D143: Opinion | E143: 83 | F143: 1.8 | G143: 36 | H143: 38 | I143: 9 | J143: 0 | K143: 0 | L143: 36 | M143: 41 | N143: 5 | O143: 1 | P143: 0 | Q143: 44 | R143: 39 | S143: 0 | U143: =IFERROR(VLOOKUP(TEXT($A143,"0000"),'Mem11-14-2014'!$A$3:$O$500,'Mem11-14-2014'!G$1,FALSE),0) -> 89 | V143: =VLOOKUP(A143,'TIER SCH'!$A$2:$D$324,4,FALSE) -> T2 | W143: 93.25842697
A144: 3191 | B144: Ada Merritt K-8 Center | C144: 3 | D144: Opinion | E144: 81 | F144: 5.79 | G144: 0 | H144: 23 | I144: 28 | J144: 26 | K144: 4 | L144: 0 | M144: 17 | N144: 33 | O144: 28 | P144: 3 | Q144: 2 | R144: 41 | S144: 38 | U144: =IFERROR(VLOOKUP(TEXT($A144,"0000"),'Mem11-14-2014'!$A$3:$O$500,'Mem11-14-2014'!G$1,FALSE),0) -> 81 | V144: =VLOOKUP(A144,'TIER SCH'!$A$2:$D$324,4,FALSE) -> T1 | W144: 100
A145: 3241 | B145: Miami Gardens Elementary | C145: 3 | D145: Opinion | E145: 46 | F145: 1.17 | G145: 20 | H145: 24 | I145: 2 | J145: 0 | K145: 0 | L145: 26 | M145: 19 | N145: 1 | O145: 0 | P145: 0 | Q145: 41 | R145: 5 | S145: 0 | U145: =IFERROR(VLOOKUP(TEXT($A145,"0000"),'Mem11-14-2014'!$A$3:$O$500,'Mem11-14-2014'!G$1,FALSE),0) -> 48 | V145: =VLOOKUP(A145,'TIER SCH'!$A$2:$D$324,4,FALSE) -> R | W145: 95.83333333
A146: 3261 | B146: Miami Heights Elementary | C146: 3 | D146: Opinion | E146: 176 | F146: 2.54 | G146: 51 | H146: 83 | I146: 41 | J146: 1 | K146: 0 | L146: 63 | M146: 83 | N146: 29 | O146: 1 | P146: 0 | Q146: 60 | R146: 97 | S146: 19 | U146: =IFERROR(VLOOKUP(TEXT($A146,"0000"),'Mem11-14-2014'!$A$3:$O$500,'Mem11-14-2014'!G$1,FALSE),0) -> 181 | V146: =VLOOKUP(A146,'TIER SCH'!$A$2:$D$324,4,FALSE) -> R | W146: 97.23756906
A147: 3281 | B147: Miami Lakes K-8 Center | C147: 3 | D147: Opinion | E147: 159 | F147: 2.78 | G147: 35 | H147: 85 | I147: 39 | J147: 0 | K147: 0 | L147: 50 | M147: 96 | N147: 13 | O147: 0 | P147: 0 | Q147: 31 | R147: 99 | S147: 29 | U147: =IFERROR(VLOOKUP(TEXT($A147,"0000"),'Mem11-14-2014'!$A$3:$O$500,'Mem11-14-2014'!G$1,FALSE),0) -> 158 | V147: =VLOOKUP(A147,'TIER SCH'!$A$2:$D$324,4,FALSE) -> T1 | W147: 100.6329114
A148: 3301 | B148: Miami Park Elementary | C148: 3 | D148: Opinion | E148: 61 | F148: 2.1 | G148: 29 | H148: 13 | I148: 15 | J148: 3 | K148: 1 | L148: 31 | M148: 12 | N148: 18 | O148: 0 | P148: 0 | Q148: 37 | R148: 24 | S148: 0 | U148: =IFERROR(VLOOKUP(TEXT($A148,"0000"),'Mem11-14-2014'!$A$3:$O$500,'Mem11-14-2014'!G$1,FALSE),0) -> 61 | V148: =VLOOKUP(A148,'TIER SCH'!$A$2:$D$324,4,FALSE) -> T3 | W148: 100
A149: 3341 | B149: Miami Shores Elementary | C149: 3 | D149: Opinion | E149: 168 | F149: 4.71 | G149: 17 | H149: 44 | I149: 68 | J149: 32 | K149: 7 | L149: 18 | M149: 53 | N149: 72 | O149: 19 | P149: 6 | Q149: 20 | R149: 86 | S149: 62 | U149: =IFERROR(VLOOKUP(TEXT($A149,"0000"),'Mem11-14-2014'!$A$3:$O$500,'Mem11-14-2014'!G$1,FALSE),0) -> 173 | V149: =VLOOKUP(A149,'TIER SCH'!$A$2:$D$324,4,FALSE) -> T1 | W149: 97.10982659
A150: 3381 | B150: Miami Springs Elementary | C150: 3 | D150: Opinion | E150: 73 | F150: 1.9 | G150: 27 | H150: 30 | I150: 16 | J150: 0 | K150: 0 | L150: 33 | M150: 32 | N150: 8 | O150: 0 | P150: 0 | Q150: 45 | R150: 27 | S150: 1 | U150: =IFERROR(VLOOKUP(TEXT($A150,"0000"),'Mem11-14-2014'!$A$3:$O$500,'Mem11-14-2014'!G$1,FALSE),0) -> 73 | V150: =VLOOKUP(A150,'TIER SCH'!$A$2:$D$324,4,FALSE) -> WL | W150: 100
A151: 3421 | B151: M.a. Milam K-8 Center | C151: 3 | D151: Opinion | E151: 67 | F151: 3.85 | G151: 1 | H151: 36 | I151: 27 | J151: 3 | K151: 0 | L151: 1 | M151: 45 | N151: 21 | O151: 0 | P151: 0 | Q151: 1 | R151: 60 | S151: 6 | U151: =IFERROR(VLOOKUP(TEXT($A151,"0000"),'Mem11-14-2014'!$A$3:$O$500,'Mem11-14-2014'!G$1,FALSE),0) -> 76 | V151: =VLOOKUP(A151,'TIER SCH'!$A$2:$D$324,4,FALSE) -> WL | W151: 88.15789474
A152: 3431 | B152: Phyllis Ruth Miller Elementary | C152: 3 | D152: Opinion | E152: 91 | F152: 3.42 | G152: 14 | H152: 42 | I152: 29 | J152: 6 | K152: 0 | L152: 19 | M152: 40 | N152: 30 | O152: 2 | P152: 0 | Q152: 15 | R152: 65 | S152: 11 | U152: =IFERROR(VLOOKUP(TEXT($A152,"0000"),'Mem11-14-2014'!$A$3:$O$500,'Mem11-14-2014'!G$1,FALSE),0) -> 94 | V152: =VLOOKUP(A152,'TIER SCH'!$A$2:$D$324,4,FALSE) -> R | W152: 96.80851064
A153: 3501 | B153: Morningside K-8 Academy | C153: 3 | D153: Opinion | E153: 74 | F153: 3.69 | G153: 8 | H153: 34 | I153: 23 | J153: 6 | K153: 3 | L153: 14 | M153: 30 | N153: 17 | O153: 12 | P153: 1 | Q153: 31 | R153: 27 | S153: 16 | U153: =IFERROR(VLOOKUP(TEXT($A153,"0000"),'Mem11-14-2014'!$A$3:$O$500,'Mem11-14-2014'!G$1,FALSE),0) -> 74 | V153: =VLOOKUP(A153,'TIER SCH'!$A$2:$D$324,4,FALSE) -> T3 | W153: 100
A154: 3541 | B154: Robert Russa Moton Elementary | C154: 3 | D154: Opinion | E154: 61 | F154: 2.9 | G154: 14 | H154: 32 | I154: 13 | J154: 1 | K154: 1 | L154: 22 | M154: 26 | N154: 13 | O154: 0 | P154: 0 | Q154: 17 | R154: 28 | S154: 16 | U154: =IFERROR(VLOOKUP(TEXT($A154,"0000"),'Mem11-14-2014'!$A$3:$O$500,'Mem11-14-2014'!G$1,FALSE),0) -> 62 | V154: =VLOOKUP(A154,'TIER SCH'!$A$2:$D$324,4,FALSE) -> T3 | W154: 98.38709677
A155: 3581 | B155: Myrtle Grove K-8 Center | C155: 3 | D155: Opinion | E155: 61 | F155: 2.67 | G155: 17 | H155: 31 | I155: 12 | J155: 1 | K155: 0 | L155: 17 | M155: 33 | N155: 11 | O155: 0 | P155: 0 | Q155: 17 | R155: 38 | S155: 6 | U155: =IFERROR(VLOOKUP(TEXT($A155,"0000"),'Mem11-14-2014'!$A$3:$O$500,'Mem11-14-2014'!G$1,FALSE),0) -> 72 | V155: =VLOOKUP(A155,'TIER SCH'!$A$2:$D$324,4,FALSE) -> T3 | W155: 84.72222222
A156: 3600 | B156: Downtown Miami Charter School | C156: 3 | D156: Opinion | E156: 1 | F156: 3 | G156: 0 | H156: 0 | I156: 1 | J156: 0 | K156: 0 | L156: 1 | M156: 0 | N156: 0 | O156: 0 | P156: 0 | Q156: 0 | R156: 1 | S156: 0 | U156: =IFERROR(VLOOKUP(TEXT($A156,"0000"),'Mem11-14-2014'!$A$3:$O$500,'Mem11-14-2014'!G$1,FALSE),0) -> 89 | V156: =VLOOKUP(A156,'TIER SCH'!$A$2:$D$324,4,FALSE) ->  | W156: 1.123595506
A157: 3610 | B157: Keys Gate Charter School | C157: 3 | D157: Opinion | E157: 1 | F157: 3 | G157: 0 | H157: 0 | I157: 1 | J157: 0 | K157: 0 | L157: 0 | M157: 1 | N157: 0 | O157: 0 | P157: 0 | Q157: 1 | R157: 0 | S157: 0 | U157: =IFERROR(VLOOKUP(TEXT($A157,"0000"),'Mem11-14-2014'!$A$3:$O$500,'Mem11-14-2014'!G$1,FALSE),0) -> 260 | V157: =VLOOKUP(A157,'TIER SCH'!$A$2:$D$324,4,FALSE) ->  | W157: 0.3846153846
A158: 3621 | B158: Coconut Palm K-8 Academy | C158: 3 | D158: Opinion | E158: 169 | F158: 3.27 | G158: 14 | H158: 110 | I158: 37 | J158: 8 | K158: 0 | L158: 15 | M158: 128 | N158: 21 | O158: 5 | P158: 0 | Q158: 17 | R158: 144 | S158: 8 | U158: =IFERROR(VLOOKUP(TEXT($A158,"0000"),'Mem11-14-2014'!$A$3:$O$500,'Mem11-14-2014'!G$1,FALSE),0) -> 171 | V158: =VLOOKUP(A158,'TIER SCH'!$A$2:$D$324,4,FALSE) -> T3 | W158: 98.83040936
A159: 3661 | B159: Natural Bridge Elementary | C159: 3 | D159: Opinion | E159: 94 | F159: 1.83 | G159: 55 | H159: 23 | I159: 12 | J159: 4 | K159: 0 | L159: 56 | M159: 21 | N159: 10 | O159: 7 | P159: 0 | Q159: 56 | R159: 25 | S159: 13 | U159: =IFERROR(VLOOKUP(TEXT($A159,"0000"),'Mem11-14-2014'!$A$3:$O$500,'Mem11-14-2014'!G$1,FALSE),0) -> 99 | V159: =VLOOKUP(A159,'TIER SCH'!$A$2:$D$324,4,FALSE) -> T2 | W159: 94.94949495
A160: 3701 | B160: Norland Elementary | C160: 3 | D160: Opinion | E160: 101 | F160: 2.51 | G160: 40 | H160: 31 | I160: 26 | J160: 4 | K160: 0 | L160: 45 | M160: 34 | N160: 21 | O160: 1 | P160: 0 | Q160: 43 | R160: 36 | S160: 22 | U160: =IFERROR(VLOOKUP(TEXT($A160,"0000"),'Mem11-14-2014'!$A$3:$O$500,'Mem11-14-2014'!G$1,FALSE),0) -> 105 | V160: =VLOOKUP(A160,'TIER SCH'!$A$2:$D$324,4,FALSE) -> T3 | W160: 96.19047619
A161: 3741 | B161: North Beach Elementary | C161: 3 | D161: Opinion | E161: 122 | F161: 3.81 | G161: 2 | H161: 68 | I161: 44 | J161: 8 | K161: 0 | L161: 5 | M161: 77 | N161: 28 | O161: 12 | P161: 0 | Q161: 31 | R161: 66 | S161: 25 | U161: =IFERROR(VLOOKUP(TEXT($A161,"0000"),'Mem11-14-2014'!$A$3:$O$500,'Mem11-14-2014'!G$1,FALSE),0) -> 166 | V161: =VLOOKUP(A161,'TIER SCH'!$A$2:$D$324,4,FALSE) -> T1 | W161: 73.4939759
A162: 3781 | B162: Barbara Hawkins Elementary | C162: 3 | D162: Opinion | E162: 55 | F162: 3.05 | G162: 3 | H162: 38 | I162: 14 | J162: 0 | K162: 0 | L162: 6 | M162: 38 | N162: 11 | O162: 0 | P162: 0 | Q162: 16 | R162: 36 | S162: 3 | U162: =IFERROR(VLOOKUP(TEXT($A162,"0000"),'Mem11-14-2014'!$A$3:$O$500,'Mem11-14-2014'!G$1,FALSE),0) -> 56 | V162: =VLOOKUP(A162,'TIER SCH'!$A$2:$D$324,4,FALSE) -> T3 | W162: 98.21428571
A163: 3821 | B163: North County K-8 Center | C163: 3 | D163: Opinion | E163: 49 | F163: 1.47 | G163: 17 | H163: 32 | I163: 0 | J163: 0 | K163: 0 | L163: 36 | M163: 12 | N163: 1 | O163: 0 | P163: 0 | Q163: 23 | R163: 26 | S163: 0 | U163: =IFERROR(VLOOKUP(TEXT($A163,"0000"),'Mem11-14-2014'!$A$3:$O$500,'Mem11-14-2014'!G$1,FALSE),0) -> 54 | V163: =VLOOKUP(A163,'TIER SCH'!$A$2:$D$324,4,FALSE) -> R | W163: 90.74074074
A164: 3861 | B164: North Glade Elementary | C164: 3 | D164: Opinion | E164: 43 | F164: 2.6 | G164: 6 | H164: 33 | I164: 4 | J164: 0 | K164: 0 | L164: 6 | M164: 36 | N164: 1 | O164: 0 | P164: 0 | Q164: 14 | R164: 25 | S164: 4 | U164: =IFERROR(VLOOKUP(TEXT($A164,"0000"),'Mem11-14-2014'!$A$3:$O$500,'Mem11-14-2014'!G$1,FALSE),0) -> 48 | V164: =VLOOKUP(A164,'TIER SCH'!$A$2:$D$324,4,FALSE) -> R | W164: 89.58333333
A165: 3901 | B165: North Hialeah Elementary | C165: 3 | D165: Opinion | E165: 111 | F165: 2.68 | G165: 21 | H165: 56 | I165: 31 | J165: 3 | K165: 0 | L165: 27 | M165: 77 | N165: 7 | O165: 0 | P165: 0 | Q165: 34 | R165: 75 | S165: 2 | U165: =IFERROR(VLOOKUP(TEXT($A165,"0000"),'Mem11-14-2014'!$A$3:$O$500,'Mem11-14-2014'!G$1,FALSE),0) -> 111 | V165: =VLOOKUP(A165,'TIER SCH'!$A$2:$D$324,4,FALSE) -> T3 | W165: 100
A166: 3941 | B166: North Miami Elementary | C166: 3 | D166: Opinion | E166: 68 | F166: 0.81 | G166: 45 | H166: 11 | I166: 10 | J166: 2 | K166: 0 | L166: 60 | M166: 7 | N166: 1 | O166: 0 | P166: 0 | Q166: 59 | R166: 9 | S166: 0 | U166: =IFERROR(VLOOKUP(TEXT($A166,"0000"),'Mem11-14-2014'!$A$3:$O$500,'Mem11-14-2014'!G$1,FALSE),0) -> 92 | V166: =VLOOKUP(A166,'TIER SCH'!$A$2:$D$324,4,FALSE) -> T3 | W166: 73.91304348
A167: 3981 | B167: North Twin Lakes Elementary | C167: 3 | D167: Opinion | E167: 93 | F167: 2.84 | G167: 31 | H167: 35 | I167: 21 | J167: 6 | K167: 0 | L167: 40 | M167: 28 | N167: 22 | O167: 3 | P167: 0 | Q167: 27 | R167: 44 | S167: 22 | U167: =IFERROR(VLOOKUP(TEXT($A167,"0000"),'Mem11-14-2014'!$A$3:$O$500,'Mem11-14-2014'!G$1,FALSE),0) -> 94 | V167: =VLOOKUP(A167,'TIER SCH'!$A$2:$D$324,4,FALSE) -> T1 | W167: 98.93617021
A168: 4000 | B168: Miami Children''s Museum | C168: 3 | D168: Opinion | E168: 50 | F168: 5.36 | G168: 2 | H168: 14 | I168: 11 | J168: 21 | K168: 2 | L168: 2 | M168: 15 | N168: 19 | O168: 13 | P168: 1 | Q168: 2 | R168: 31 | S168: 17 | U168: =IFERROR(VLOOKUP(TEXT($A168,"0000"),'Mem11-14-2014'!$A$3:$O$500,'Mem11-14-2014'!G$1,FALSE),0) -> 50 | V168: =VLOOKUP(A168,'TIER SCH'!$A$2:$D$324,4,FALSE) ->  | W168: 100
A169: 4001 | B169: Norwood Elementary | C169: 3 | D169: Opinion | E169: 89 | F169: 2.17 | G169: 19 | H169: 61 | I169: 9 | J169: 0 | K169: 0 | L169: 24 | M169: 63 | N169: 2 | O169: 0 | P169: 0 | Q169: 45 | R169: 41 | S169: 3 | U169: =IFERROR(VLOOKUP(TEXT($A169,"0000"),'Mem11-14-2014'!$A$3:$O$500,'Mem11-14-2014'!G$1,FALSE),0) -> 91 | V169: =VLOOKUP(A169,'TIER SCH'!$A$2:$D$324,4,FALSE) -> T1 | W169: 97.8021978
A170: 4012 | B170: Somerset Acad At Silver Palms | C170: 3 | D170: Opinion | E170: 88 | F170: 4.26 | G170: 1 | H170: 46 | I170: 32 | J170: 8 | K170: 1 | L170: 1 | M170: 56 | N170: 24 | O170: 7 | P170: 0 | Q170: 1 | R170: 62 | S170: 25 | U170: =IFERROR(VLOOKUP(TEXT($A170,"0000"),'Mem11-14-2014'!$A$3:$O$500,'Mem11-14-2014'!G$1,FALSE),0) -> 89 | V170: =VLOOKUP(A170,'TIER SCH'!$A$2:$D$324,4,FALSE) ->  | W170: 98.87640449
A171: 4021 | B171: Oak Grove Elementary | C171: 3 | D171: Opinion | E171: 31 | F171: 1.42 | G171: 21 | H171: 4 | I171: 4 | J171: 2 | K171: 0 | L171: 22 | M171: 4 | N171: 4 | O171: 1 | P171: 0 | Q171: 23 | R171: 5 | S171: 3 | U171: =IFERROR(VLOOKUP(TEXT($A171,"0000"),'Mem11-14-2014'!$A$3:$O$500,'Mem11-14-2014'!G$1,FALSE),0) -> 102 | V171: =VLOOKUP(A171,'TIER SCH'!$A$2:$D$324,4,FALSE) -> R | W171: 30.39215686
A172: 4031 | B172: Gateway Environmental K-8 | C172: 3 | D172: Opinion | E172: 251 | F172: 2.52 | G172: 68 | H172: 140 | I172: 43 | J172: 0 | K172: 0 | L172: 78 | M172: 146 | N172: 27 | O172: 0 | P172: 0 | Q172: 84 | R172: 127 | S172: 40 | U172: =IFERROR(VLOOKUP(TEXT($A172,"0000"),'Mem11-14-2014'!$A$3:$O$500,'Mem11-14-2014'!G$1,FALSE),0) -> 260 | V172: =VLOOKUP(A172,'TIER SCH'!$A$2:$D$324,4,FALSE) -> T2 | W172: 96.53846154
A173: 4061 | B173: Ojus Elementary | C173: 3 | D173: Opinion | E173: 140 | F173: 4.25 | G173: 4 | H173: 61 | I173: 49 | J173: 20 | K173: 6 | L173: 18 | M173: 78 | N173: 28 | O173: 16 | P173: 0 | Q173: 15 | R173: 80 | S173: 45 | U173: =IFERROR(VLOOKUP(TEXT($A173,"0000"),'Mem11-14-2014'!$A$3:$O$500,'Mem11-14-2014'!G$1,FALSE),0) -> 167 | V173: =VLOOKUP(A173,'TIER SCH'!$A$2:$D$324,4,FALSE) -> T1 | W173: 83.83233533
A174: 4071 | B174: Agenoria S. Paschal/olinda El | C174: 3 | D174: Opinion | E174: 65 | F174: 3.65 | G174: 0 | H174: 34 | I174: 31 | J174: 0 | K174: 0 | L174: 0 | M174: 53 | N174: 12 | O174: 0 | P174: 0 | Q174: 7 | R174: 52 | S174: 6 | U174: =IFERROR(VLOOKUP(TEXT($A174,"0000"),'Mem11-14-2014'!$A$3:$O$500,'Mem11-14-2014'!G$1,FALSE),0) -> 64 | V174: =VLOOKUP(A174,'TIER SCH'!$A$2:$D$324,4,FALSE) -> T3 | W174: 101.5625
A175: 4081 | B175: Primary Learning Center | C175: 3 | D175: Opinion | E175: 54 | F175: 4.87 | G175: 1 | H175: 22 | I175: 17 | J175: 13 | K175: 1 | L175: 4 | M175: 22 | N175: 22 | O175: 6 | P175: 0 | Q175: 2 | R175: 24 | S175: 28 | U175: =IFERROR(VLOOKUP(TEXT($A175,"0000"),'Mem11-14-2014'!$A$3:$O$500,'Mem11-14-2014'!G$1,FALSE),0) -> 54 | V175: =VLOOKUP(A175,'TIER SCH'!$A$2:$D$324,4,FALSE) -> T1 | W175: 100
A176: 4091 | B176: Olympia Heights Elementary | C176: 3 | D176: Opinion | E176: 77 | F176: 1.71 | G176: 36 | H176: 30 | I176: 11 | J176: 0 | K176: 0 | L176: 47 | M176: 19 | N176: 10 | O176: 1 | P176: 0 | Q176: 47 | R176: 22 | S176: 8 | U176: =IFERROR(VLOOKUP(TEXT($A176,"0000"),'Mem11-14-2014'!$A$3:$O$500,'Mem11-14-2014'!G$1,FALSE),0) -> 84 | V176: =VLOOKUP(A176,'TIER SCH'!$A$2:$D$324,4,FALSE) -> T1 | W176: 91.66666667
A177: 4121 | B177: Dr. Robert B. Ingram El | C177: 3 | D177: Opinion | E177: 69 | F177: 1.72 | G177: 34 | H177: 30 | I177: 5 | J177: 0 | K177: 0 | L177: 36 | M177: 29 | N177: 4 | O177: 0 | P177: 0 | Q177: 37 | R177: 22 | S177: 10 | U177: =IFERROR(VLOOKUP(TEXT($A177,"0000"),'Mem11-14-2014'!$A$3:$O$500,'Mem11-14-2014'!G$1,FALSE),0) -> 74 | V177: =VLOOKUP(A177,'TIER SCH'!$A$2:$D$324,4,FALSE) -> T3 | W177: 93.24324324
A178: 4171 | B178: Orchard Villa Elementary | C178: 3 | D178: Opinion | E178: 57 | F178: 1.72 | G178: 26 | H178: 24 | I178: 6 | J178: 1 | K178: 0 | L178: 37 | M178: 16 | N178: 4 | O178: 0 | P178: 0 | Q178: 25 | R178: 29 | S178: 3 | U178: =IFERROR(VLOOKUP(TEXT($A178,"0000"),'Mem11-14-2014'!$A$3:$O$500,'Mem11-14-2014'!G$1,FALSE),0) -> 58 | V178: =VLOOKUP(A178,'TIER SCH'!$A$2:$D$324,4,FALSE) -> T3 | W178: 98.27586207
A179: 4221 | B179: Palmetto Elementary | C179: 3 | D179: Opinion | E179: 122 | F179: 3.19 | G179: 18 | H179: 51 | I179: 49 | J179: 4 | K179: 0 | L179: 33 | M179: 60 | N179: 27 | O179: 2 | P179: 0 | Q179: 24 | R179: 88 | S179: 10 | U179: =IFERROR(VLOOKUP(TEXT($A179,"0000"),'Mem11-14-2014'!$A$3:$O$500,'Mem11-14-2014'!G$1,FALSE),0) -> 121 | V179: =VLOOKUP(A179,'TIER SCH'!$A$2:$D$324,4,FALSE) -> T1 | W179: 100.8264463
A180: 4241 | B180: Palm Lakes Elementary | C180: 3 | D180: Opinion | E180: 2 | F180: 3 | G180: 0 | H180: 2 | I180: 0 | J180: 0 | K180: 0 | L180: 0 | M180: 2 | N180: 0 | O180: 0 | P180: 0 | Q180: 0 | R180: 2 | S180: 0 | U180: =IFERROR(VLOOKUP(TEXT($A180,"0000"),'Mem11-14-2014'!$A$3:$O$500,'Mem11-14-2014'!G$1,FALSE),0) -> 155 | V180: =VLOOKUP(A180,'TIER SCH'!$A$2:$D$324,4,FALSE) -> T1 | W180: 1.290322581
A181: 4261 | B181: Palm Springs Elementary | C181: 3 | D181: Opinion | E181: 131 | F181: 2.54 | G181: 45 | H181: 60 | I181: 18 | J181: 7 | K181: 1 | L181: 46 | M181: 56 | N181: 22 | O181: 7 | P181: 0 | Q181: 51 | R181: 69 | S181: 11 | U181: =IFERROR(VLOOKUP(TEXT($A181,"0000"),'Mem11-14-2014'!$A$3:$O$500,'Mem11-14-2014'!G$1,FALSE),0) -> 132 | V181: =VLOOKUP(A181,'TIER SCH'!$A$2:$D$324,4,FALSE) -> WL | W181: 99.24242424
A182: 4281 | B182: Palm Springs North Elementary | C182: 3 | D182: Opinion | E182: 144 | F182: 4.1 | G182: 24 | H182: 44 | I182: 49 | J182: 27 | K182: 0 | L182: 27 | M182: 46 | N182: 55 | O182: 16 | P182: 0 | Q182: 41 | R182: 43 | S182: 60 | U182: =IFERROR(VLOOKUP(TEXT($A182,"0000"),'Mem11-14-2014'!$A$3:$O$500,'Mem11-14-2014'!G$1,FALSE),0) -> 149 | V182: =VLOOKUP(A182,'TIER SCH'!$A$2:$D$324,4,FALSE) -> T1 | W182: 96.6442953
A183: 4301 | B183: Parkview Elementary | C183: 3 | D183: Opinion | E183: 46 | F183: 1.7 | G183: 20 | H183: 18 | I183: 7 | J183: 1 | K183: 0 | L183: 27 | M183: 14 | N183: 5 | O183: 0 | P183: 0 | Q183: 27 | R183: 19 | S183: 0 | U183: =IFERROR(VLOOKUP(TEXT($A183,"0000"),'Mem11-14-2014'!$A$3:$O$500,'Mem11-14-2014'!G$1,FALSE),0) -> 56 | V183: =VLOOKUP(A183,'TIER SCH'!$A$2:$D$324,4,FALSE) -> T1 | W183: 82.14285714
A184: 4341 | B184: Parkway Elementary | C184: 3 | D184: Opinion | E184: 57 | F184: 1.86 | G184: 21 | H184: 23 | I184: 10 | J184: 3 | K184: 0 | L184: 27 | M184: 21 | N184: 7 | O184: 2 | P184: 0 | Q184: 44 | R184: 13 | S184: 0 | U184: =IFERROR(VLOOKUP(TEXT($A184,"0000"),'Mem11-14-2014'!$A$3:$O$500,'Mem11-14-2014'!G$1,FALSE),0) -> 61 | V184: =VLOOKUP(A184,'TIER SCH'!$A$2:$D$324,4,FALSE) -> T3 | W184: 93.44262295
A185: 4381 | B185: Dr Henry E Perrine Academy | C185: 3 | D185: Opinion | E185: 154 | F185: 3.46 | G185: 2 | H185: 91 | I185: 45 | J185: 16 | K185: 0 | L185: 4 | M185: 100 | N185: 42 | O185: 8 | P185: 0 | Q185: 69 | R185: 74 | S185: 11 | U185: =IFERROR(VLOOKUP(TEXT($A185,"0000"),'Mem11-14-2014'!$A$3:$O$500,'Mem11-14-2014'!G$1,FALSE),0) -> 155 | V185: =VLOOKUP(A185,'TIER SCH'!$A$2:$D$324,4,FALSE) -> T1 | W185: 99.35483871
A186: 4391 | B186: Irving and Beatrice Peskoe K-8 | C186: 3 | D186: Opinion | E186: 103 | F186: 1.37 | G186: 53 | H186: 43 | I186: 7 | J186: 0 | K186: 0 | L186: 72 | M186: 26 | N186: 5 | O186: 0 | P186: 0 | Q186: 60 | R186: 38 | S186: 5 | U186: =IFERROR(VLOOKUP(TEXT($A186,"0000"),'Mem11-14-2014'!$A$3:$O$500,'Mem11-14-2014'!G$1,FALSE),0) -> 104 | V186: =VLOOKUP(A186,'TIER SCH'!$A$2:$D$324,4,FALSE) -> R | W186: 99.03846154
A187: 4401 | B187: Kelsey L. Pharr Elementary | C187: 3 | D187: Opinion | E187: 48 | F187: 2.94 | G187: 13 | H187: 21 | I187: 9 | J187: 3 | K187: 2 | L187: 14 | M187: 19 | N187: 10 | O187: 5 | P187: 0 | Q187: 22 | R187: 21 | S187: 5 | U187: =IFERROR(VLOOKUP(TEXT($A187,"0000"),'Mem11-14-2014'!$A$3:$O$500,'Mem11-14-2014'!G$1,FALSE),0) -> 52 | V187: =VLOOKUP(A187,'TIER SCH'!$A$2:$D$324,4,FALSE) -> T3 | W187: 92.30769231
A188: 4421 | B188: Pinecrest Elementary | C188: 3 | D188: Opinion | E188: 170 | F188: 3.72 | G188: 17 | H188: 80 | I188: 66 | J188: 7 | K188: 0 | L188: 17 | M188: 92 | N188: 55 | O188: 6 | P188: 0 | Q188: 21 | R188: 119 | S188: 30 | U188: =IFERROR(VLOOKUP(TEXT($A188,"0000"),'Mem11-14-2014'!$A$3:$O$500,'Mem11-14-2014'!G$1,FALSE),0) -> 169 | V188: =VLOOKUP(A188,'TIER SCH'!$A$2:$D$324,4,FALSE) -> T1 | W188: 100.591716
A189: 4441 | B189: Pine Lake Elementary | C189: 3 | D189: Opinion | E189: 45 | F189: 3.67 | G189: 16 | H189: 14 | I189: 5 | J189: 9 | K189: 1 | L189: 15 | M189: 11 | N189: 8 | O189: 7 | P189: 4 | Q189: 10 | R189: 24 | S189: 11 | U189: =IFERROR(VLOOKUP(TEXT($A189,"0000"),'Mem11-14-2014'!$A$3:$O$500,'Mem11-14-2014'!G$1,FALSE),0) -> 49 | V189: =VLOOKUP(A189,'TIER SCH'!$A$2:$D$324,4,FALSE) -> WL | W189: 91.83673469
A190: 4461 | B190: Pine Villa Elementary | C190: 3 | D190: Opinion | E190: 33 | F190: 2.85 | G190: 6 | H190: 12 | I190: 15 | J190: 0 | K190: 0 | L190: 7 | M190: 18 | N190: 8 | O190: 0 | P190: 0 | Q190: 16 | R190: 16 | S190: 1 | U190: =IFERROR(VLOOKUP(TEXT($A190,"0000"),'Mem11-14-2014'!$A$3:$O$500,'Mem11-14-2014'!G$1,FALSE),0) -> 43 | V190: =VLOOKUP(A190,'TIER SCH'!$A$2:$D$324,4,FALSE) -> T3 | W190: 76.74418605
A191: 4491 | B191: Henry E.s. Reeves Elementary | C191: 3 | D191: Opinion | E191: 154 | F191: 2.52 | G191: 58 | H191: 43 | I191: 52 | J191: 1 | K191: 0 | L191: 65 | M191: 59 | N191: 30 | O191: 0 | P191: 0 | Q191: 59 | R191: 71 | S191: 24 | U191: =IFERROR(VLOOKUP(TEXT($A191,"0000"),'Mem11-14-2014'!$A$3:$O$500,'Mem11-14-2014'!G$1,FALSE),0) -> 170 | V191: =VLOOKUP(A191,'TIER SCH'!$A$2:$D$324,4,FALSE) -> T2 | W191: 90.58823529
A192: 4501 | B192: Poinciana Park Elementary | C192: 3 | D192: Opinion | E192: 54 | F192: 2.15 | G192: 25 | H192: 24 | I192: 5 | J192: 0 | K192: 0 | L192: 24 | M192: 28 | N192: 2 | O192: 0 | P192: 0 | Q192: 9 | R192: 40 | S192: 5 | U192: =IFERROR(VLOOKUP(TEXT($A192,"0000"),'Mem11-14-2014'!$A$3:$O$500,'Mem11-14-2014'!G$1,FALSE),0) -> 59 | V192: =VLOOKUP(A192,'TIER SCH'!$A$2:$D$324,4,FALSE) -> T3 | W192: 91.52542373
A193: 4511 | B193: Dr Gilbert L. Porter Elem | C193: 3 | D193: Opinion | E193: 109 | F193: 1.4 | G193: 64 | H193: 28 | I193: 17 | J193: 0 | K193: 0 | L193: 70 | M193: 32 | N193: 7 | O193: 0 | P193: 0 | Q193: 73 | R193: 27 | S193: 9 | U193: =IFERROR(VLOOKUP(TEXT($A193,"0000"),'Mem11-14-2014'!$A$3:$O$500,'Mem11-14-2014'!G$1,FALSE),0) -> 119 | V193: =VLOOKUP(A193,'TIER SCH'!$A$2:$D$324,4,FALSE) -> T1 | W193: 91.59663866
A194: 4541 | B194: Rainbow Park Elementary | C194: 3 | D194: Opinion | E194: 69 | F194: 4.3 | G194: 10 | H194: 29 | I194: 15 | J194: 13 | K194: 2 | L194: 4 | M194: 36 | N194: 18 | O194: 11 | P194: 0 | Q194: 5 | R194: 42 | S194: 22 | U194: =IFERROR(VLOOKUP(TEXT($A194,"0000"),'Mem11-14-2014'!$A$3:$O$500,'Mem11-14-2014'!G$1,FALSE),0) -> 76 | V194: =VLOOKUP(A194,'TIER SCH'!$A$2:$D$324,4,FALSE) -> T2 | W194: 90.78947368
A195: 4581 | B195: Redland Elementary | C195: 3 | D195: Opinion | E195: 159 | F195: 2.91 | G195: 19 | H195: 95 | I195: 31 | J195: 14 | K195: 0 | L195: 29 | M195: 101 | N195: 25 | O195: 4 | P195: 0 | Q195: 70 | R195: 78 | S195: 11 | U195: =IFERROR(VLOOKUP(TEXT($A195,"0000"),'Mem11-14-2014'!$A$3:$O$500,'Mem11-14-2014'!G$1,FALSE),0) -> 167 | V195: =VLOOKUP(A195,'TIER SCH'!$A$2:$D$324,4,FALSE) -> WL | W195: 95.20958084
A196: 4611 | B196: Redondo Elementary | C196: 3 | D196: Opinion | E196: 148 | F196: 1.94 | G196: 71 | H196: 55 | I196: 21 | J196: 1 | K196: 0 | L196: 76 | M196: 49 | N196: 22 | O196: 1 | P196: 0 | Q196: 67 | R196: 71 | S196: 10 | U196: =IFERROR(VLOOKUP(TEXT($A196,"0000"),'Mem11-14-2014'!$A$3:$O$500,'Mem11-14-2014'!G$1,FALSE),0) -> 156 | V196: =VLOOKUP(A196,'TIER SCH'!$A$2:$D$324,4,FALSE) -> T3 | W196: =E196/U196*100 -> 94.87179487
A197: 4651 | B197: Ethel F Beckford/richmond Elem | C197: 3 | D197: Opinion | E197: 38 | F197: 1.74 | G197: 16 | H197: 18 | I197: 4 | J197: 0 | K197: 0 | L197: 17 | M197: 20 | N197: 1 | O197: 0 | P197: 0 | Q197: 20 | R197: 18 | S197: 0 | U197: =IFERROR(VLOOKUP(TEXT($A197,"0000"),'Mem11-14-2014'!$A$3:$O$500,'Mem11-14-2014'!G$1,FALSE),0) -> 40 | V197: =VLOOKUP(A197,'TIER SCH'!$A$2:$D$324,4,FALSE) -> T3 | W197: 95
A198: 4681 | B198: Riverside Elementary | C198: 3 | D198: Opinion | E198: 205 | F198: 2.23 | G198: 97 | H198: 57 | I198: 28 | J198: 19 | K198: 4 | L198: 109 | M198: 59 | N198: 21 | O198: 15 | P198: 1 | Q198: 105 | R198: 78 | S198: 22 | U198: =IFERROR(VLOOKUP(TEXT($A198,"0000"),'Mem11-14-2014'!$A$3:$O$500,'Mem11-14-2014'!G$1,FALSE),0) -> 236 | V198: =VLOOKUP(A198,'TIER SCH'!$A$2:$D$324,4,FALSE) -> T2 | W198: 86.86440678
A199: 4691 | B199: Jane Roberts K-8 Center | C199: 3 | D199: Opinion | E199: 83 | F199: 1.88 | G199: 31 | H199: 45 | I199: 6 | J199: 1 | K199: 0 | L199: 36 | M199: 41 | N199: 5 | O199: 1 | P199: 0 | Q199: 42 | R199: 40 | S199: 1 | U199: =IFERROR(VLOOKUP(TEXT($A199,"0000"),'Mem11-14-2014'!$A$3:$O$500,'Mem11-14-2014'!G$1,FALSE),0) -> 81 | V199: =VLOOKUP(A199,'TIER SCH'!$A$2:$D$324,4,FALSE) -> T1 | W199: 102.4691358
A200: 4721 | B200: Rockway Elementary | C200: 3 | D200: Opinion | E200: =SUM(G200:K200) -> 56 | F200: 5.94 | G200: 12 | H200: 8 | I200: 15 | J200: 18 | K200: 3 | L200: 15 | M200: 7 | N200: 29 | O200: 5 | P200: 0 | Q200: 8 | R200: 32 | S200: 16 | U200: =IFERROR(VLOOKUP(TEXT($A200,"0000"),'Mem11-14-2014'!$A$3:$O$500,'Mem11-14-2014'!G$1,FALSE),0) -> 59 | V200: =VLOOKUP(A200,'TIER SCH'!$A$2:$D$324,4,FALSE) -> T1 | W200: 94.91525424
... 72 more rows

Sheet PRE G4 (hidden)
A1: =COLUMN() -> 1 | B1: =COLUMN() -> 2 | C1: =COLUMN() -> 3 | D1: =COLUMN() -> 4 | E1: =COLUMN() -> 5 | F1: =COLUMN() -> 6 | G1: =COLUMN() -> 7 | H1: =COLUMN() -> 8 | I1: =COLUMN() -> 9 | J1: =COLUMN() -> 10 | K1: =COLUMN() -> 11 | L1: =COLUMN() -> 12 | M1: =COLUMN() -> 13 | N1: =COLUMN() -> 14 | O1: =COLUMN() -> 15 | P1: =COLUMN() -> 16 | Q1: =COLUMN() -> 17 | R1: =COLUMN() -> 18 | S1: =COLUMN() -> 19 | U1: =COLUMN() -> 21 | V1: =COLUMN() -> 22
A2: SchoolID | B2: SchoolName1 | C2: Grade1 | D2: Prompt11 | E2: StudentCount | F2: Textbox138 | G2: Domain1Score0 | H2: Domain1Score1 | I2: Domain1Score2 | J2: Domain1Score3 | K2: Domain1Score4 | L2: Domain2Score0 | M2: Domain2Score1 | N2: Domain2Score2 | O2: Domain2Score3 | P2: Domain2Score4 | Q2: Domain3Score0 | R2: Domain3Score1 | S2: Domain3Score2 | U2: Enrollment | V2: Tier | W2: % Tested
A3: 41 | B3: Air Base Elementary | C3: 4 | D3: Opinion | E3: 95 | F3: 3.17 | G3: 14 | H3: 54 | I3: 27 | J3: 0 | K3: 0 | L3: 9 | M3: 62 | N3: 24 | O3: 0 | P3: 0 | Q3: 29 | R3: 49 | S3: 17 | U3: =IFERROR(VLOOKUP(TEXT($A3,"0000"),'Mem11-14-2014'!$A$3:$O$500,'Mem11-14-2014'!H$1,FALSE),0) -> 127 | V3: =VLOOKUP(A3,'TIER SCH'!$A$2:$D$324,4,FALSE) -> T1 | W3: =E3/U3*100 -> 74.80314961
A4: 71 | B4: Eugenia B. Thomas K-8 Center | C4: 4 | D4: Opinion | E4: 168 | F4: 2.67 | G4: 27 | H4: 95 | I4: 37 | J4: 9 | K4: 0 | L4: 65 | M4: 74 | N4: 21 | O4: 8 | P4: 0 | Q4: 65 | R4: 94 | S4: 9 | U4: =IFERROR(VLOOKUP(TEXT($A4,"0000"),'Mem11-14-2014'!$A$3:$O$500,'Mem11-14-2014'!H$1,FALSE),0) -> 173 | V4: =VLOOKUP(A4,'TIER SCH'!$A$2:$D$324,4,FALSE) -> T1 | W4: =E4/U4*100 -> 97.10982659
A5: 72 | B5: Summerville Charter School | C5: 4 | D5: Opinion | E5: 88 | F5: 5.31 | G5: 2 | H5: 15 | I5: 49 | J5: 21 | K5: 1 | L5: 2 | M5: 23 | N5: 48 | O5: 15 | P5: 0 | Q5: 2 | R5: 49 | S5: 37 | U5: =IFERROR(VLOOKUP(TEXT($A5,"0000"),'Mem11-14-2014'!$A$3:$O$500,'Mem11-14-2014'!H$1,FALSE),0) -> 88 | V5: =VLOOKUP(A5,'TIER SCH'!$A$2:$D$324,4,FALSE) ->  | W5: 100
A6: 73 | B6: Mandarin Lakes K-8 Center | C6: 4 | D6: Opinion | E6: 101 | F6: 2.74 | G6: 32 | H6: 40 | I6: 22 | J6: 7 | K6: 0 | L6: 41 | M6: 36 | N6: 20 | O6: 4 | P6: 0 | Q6: 37 | R6: 44 | S6: 20 | U6: =IFERROR(VLOOKUP(TEXT($A6,"0000"),'Mem11-14-2014'!$A$3:$O$500,'Mem11-14-2014'!H$1,FALSE),0) -> 116 | V6: =VLOOKUP(A6,'TIER SCH'!$A$2:$D$324,4,FALSE) -> T3 | W6: 87.06896552
A7: 81 | B7: Lenora B. Smith Elementary | C7: 4 | D7: Opinion | E7: 53 | F7: 4.75 | G7: 5 | H7: 20 | I7: 19 | J7: 8 | K7: 1 | L7: 4 | M7: 18 | N7: 23 | O7: 7 | P7: 1 | Q7: 2 | R7: 25 | S7: 26 | U7: =IFERROR(VLOOKUP(TEXT($A7,"0000"),'Mem11-14-2014'!$A$3:$O$500,'Mem11-14-2014'!H$1,FALSE),0) -> 53 | V7: =VLOOKUP(A7,'TIER SCH'!$A$2:$D$324,4,FALSE) -> T3 | W7: 100
A8: 91 | B8: Bob Graham Education Ctr | C8: 4 | D8: Opinion | E8: 190 | F8: 3.33 | G8: 16 | H8: 126 | I8: 41 | J8: 7 | K8: 0 | L8: 16 | M8: 128 | N8: 46 | O8: 0 | P8: 0 | Q8: 18 | R8: 160 | S8: 12 | U8: =IFERROR(VLOOKUP(TEXT($A8,"0000"),'Mem11-14-2014'!$A$3:$O$500,'Mem11-14-2014'!H$1,FALSE),0) -> 196 | V8: =VLOOKUP(A8,'TIER SCH'!$A$2:$D$324,4,FALSE) -> T1 | W8: 96.93877551
A9: 92 | B9: Norman S. Edelcup/sunny Isles | C9: 4 | D9: Opinion | E9: 243 | F9: 4.33 | G9: 4 | H9: 113 | I9: 92 | J9: 30 | K9: 4 | L9: 5 | M9: 118 | N9: 88 | O9: 30 | P9: 2 | Q9: 23 | R9: 182 | S9: 38 | U9: =IFERROR(VLOOKUP(TEXT($A9,"0000"),'Mem11-14-2014'!$A$3:$O$500,'Mem11-14-2014'!H$1,FALSE),0) -> 248 | V9: =VLOOKUP(A9,'TIER SCH'!$A$2:$D$324,4,FALSE) -> T1 | W9: 97.98387097
A10: 100 | B10: Mater Academy | C10: 4 | D10: Opinion | E10: 155 | F10: 4.93 | G10: 13 | H10: 43 | I10: 65 | J10: 27 | K10: 7 | L10: 16 | M10: 47 | N10: 57 | O10: 30 | P10: 5 | Q10: 16 | R10: 67 | S10: 72 | U10: =IFERROR(VLOOKUP(TEXT($A10,"0000"),'Mem11-14-2014'!$A$3:$O$500,'Mem11-14-2014'!H$1,FALSE),0) -> 154 | V10: =VLOOKUP(A10,'TIER SCH'!$A$2:$D$324,4,FALSE) ->  | W10: 100.6493506
A11: 101 | B11: Arcola Lake Elementary | C11: 4 | D11: Opinion | E11: 52 | F11: 3.69 | G11: 9 | H11: 23 | I11: 12 | J11: 8 | K11: 0 | L11: 9 | M11: 27 | N11: 11 | O11: 5 | P11: 0 | Q11: 11 | R11: 25 | S11: 16 | U11: =IFERROR(VLOOKUP(TEXT($A11,"0000"),'Mem11-14-2014'!$A$3:$O$500,'Mem11-14-2014'!H$1,FALSE),0) -> 52 | V11: =VLOOKUP(A11,'TIER SCH'!$A$2:$D$324,4,FALSE) -> T3 | W11: 100
A12: 102 | B12: Miami Community Charter School | C12: 4 | D12: Opinion | E12: 81 | F12: 4.57 | G12: 9 | H12: 40 | I12: 9 | J12: 12 | K12: 11 | L12: 6 | M12: 41 | N12: 11 | O12: 14 | P12: 9 | Q12: 10 | R12: 51 | S12: 20 | U12: =IFERROR(VLOOKUP(TEXT($A12,"0000"),'Mem11-14-2014'!$A$3:$O$500,'Mem11-14-2014'!H$1,FALSE),0) -> 81 | V12: =VLOOKUP(A12,'TIER SCH'!$A$2:$D$324,4,FALSE) ->  | W12: 100
A13: 111 | B13: Maya Angelou Elementary | C13: 4 | D13: Opinion | E13: 75 | F13: 4.19 | G13: 8 | H13: 36 | I13: 27 | J13: 2 | K13: 2 | L13: 7 | M13: 30 | N13: 33 | O13: 4 | P13: 1 | Q13: 8 | R13: 36 | S13: 31 | U13: =IFERROR(VLOOKUP(TEXT($A13,"0000"),'Mem11-14-2014'!$A$3:$O$500,'Mem11-14-2014'!H$1,FALSE),0) -> 98 | V13: =VLOOKUP(A13,'TIER SCH'!$A$2:$D$324,4,FALSE) -> R | W13: 76.53061224
A14: 121 | B14: Auburndale Elementary | C14: 4 | D14: Opinion | E14: 140 | F14: 3.76 | G14: 18 | H14: 45 | I14: 73 | J14: 4 | K14: 0 | L14: 30 | M14: 53 | N14: 54 | O14: 3 | P14: 0 | Q14: 18 | R14: 90 | S14: 32 | U14: =IFERROR(VLOOKUP(TEXT($A14,"0000"),'Mem11-14-2014'!$A$3:$O$500,'Mem11-14-2014'!H$1,FALSE),0) -> 146 | V14: =VLOOKUP(A14,'TIER SCH'!$A$2:$D$324,4,FALSE) -> WL | W14: 95.89041096
A15: 122 | B15: Dr Rolando Espinosa K-8 | C15: 4 | D15: Opinion | E15: 182 | F15: 2.68 | G15: 50 | H15: 85 | I15: 45 | J15: 2 | K15: 0 | L15: 63 | M15: 77 | N15: 38 | O15: 4 | P15: 0 | Q15: 53 | R15: 116 | S15: 13 | U15: =IFERROR(VLOOKUP(TEXT($A15,"0000"),'Mem11-14-2014'!$A$3:$O$500,'Mem11-14-2014'!H$1,FALSE),0) -> 201 | V15: =VLOOKUP(A15,'TIER SCH'!$A$2:$D$324,4,FALSE) -> T1 | W15: 90.54726368
A16: 125 | B16: Norma Butler Bossard Elem | C16: 4 | D16: Opinion | E16: 182 | F16: 4.37 | G16: 10 | H16: 52 | I16: 103 | J16: 17 | K16: 0 | L16: 10 | M16: 92 | N16: 67 | O16: 12 | P16: 1 | Q16: 10 | R16: 123 | S16: 49 | U16: =IFERROR(VLOOKUP(TEXT($A16,"0000"),'Mem11-14-2014'!$A$3:$O$500,'Mem11-14-2014'!H$1,FALSE),0) -> 182 | V16: =VLOOKUP(A16,'TIER SCH'!$A$2:$D$324,4,FALSE) -> T1 | W16: 100
A17: 201 | B17: Banyan Elementary | C17: 4 | D17: Opinion | E17: 58 | F17: 1.28 | G17: 31 | H17: 18 | I17: 9 | J17: 0 | K17: 0 | L17: 33 | M17: 15 | N17: 10 | O17: 0 | P17: 0 | Q17: 55 | R17: 3 | S17: 0 | U17: =IFERROR(VLOOKUP(TEXT($A17,"0000"),'Mem11-14-2014'!$A$3:$O$500,'Mem11-14-2014'!H$1,FALSE),0) -> 66 | V17: =VLOOKUP(A17,'TIER SCH'!$A$2:$D$324,4,FALSE) -> T1 | W17: 87.87878788
A18: 211 | B18: Dr. Manuel C. Barreiro Elem | C18: 4 | D18: Opinion | E18: 124 | F18: 4.01 | G18: 5 | H18: 43 | I18: 63 | J18: 13 | K18: 0 | L18: 5 | M18: 67 | N18: 45 | O18: 7 | P18: 0 | Q18: 23 | R18: 91 | S18: 10 | U18: =IFERROR(VLOOKUP(TEXT($A18,"0000"),'Mem11-14-2014'!$A$3:$O$500,'Mem11-14-2014'!H$1,FALSE),0) -> 130 | V18: =VLOOKUP(A18,'TIER SCH'!$A$2:$D$324,4,FALSE) -> T1 | W18: 95.38461538
A19: 231 | B19: Aventura Waterways K-8 Center | C19: 4 | D19: Opinion | E19: 234 | F19: 4.21 | G19: 19 | H19: 85 | I19: 75 | J19: 55 | K19: 0 | L19: 23 | M19: 93 | N19: 88 | O19: 30 | P19: 0 | Q19: 71 | R19: 99 | S19: 64 | U19: =IFERROR(VLOOKUP(TEXT($A19,"0000"),'Mem11-14-2014'!$A$3:$O$500,'Mem11-14-2014'!H$1,FALSE),0) -> 239 | V19: =VLOOKUP(A19,'TIER SCH'!$A$2:$D$324,4,FALSE) -> T1 | W19: 97.90794979
A20: 241 | B20: Ruth K Broad/bay Harbor K-8 | C20: 4 | D20: Opinion | E20: 151 | F20: 3.72 | G20: 30 | H20: 56 | I20: 44 | J20: 19 | K20: 2 | L20: 23 | M20: 78 | N20: 37 | O20: 10 | P20: 3 | Q20: 23 | R20: 97 | S20: 31 | U20: =IFERROR(VLOOKUP(TEXT($A20,"0000"),'Mem11-14-2014'!$A$3:$O$500,'Mem11-14-2014'!H$1,FALSE),0) -> 154 | V20: =VLOOKUP(A20,'TIER SCH'!$A$2:$D$324,4,FALSE) -> T1 | W20: 98.05194805
A21: 251 | B21: Ethel Koger Beckham Elementary | C21: 4 | D21: Opinion | E21: 122 | F21: 3.47 | G21: 6 | H21: 71 | I21: 44 | J21: 1 | K21: 0 | L21: 6 | M21: 80 | N21: 36 | O21: 0 | P21: 0 | Q21: 19 | R21: 97 | S21: 6 | U21: =IFERROR(VLOOKUP(TEXT($A21,"0000"),'Mem11-14-2014'!$A$3:$O$500,'Mem11-14-2014'!H$1,FALSE),0) -> 123 | V21: =VLOOKUP(A21,'TIER SCH'!$A$2:$D$324,4,FALSE) -> T1 | W21: 99.18699187
A22: 261 | B22: Bel-Aire Elementary | C22: 4 | D22: Opinion | E22: 46 | F22: 3.72 | G22: 0 | H22: 25 | I22: 21 | J22: 0 | K22: 0 | L22: 1 | M22: 28 | N22: 17 | O22: 0 | P22: 0 | Q22: 10 | R22: 30 | S22: 6 | U22: =IFERROR(VLOOKUP(TEXT($A22,"0000"),'Mem11-14-2014'!$A$3:$O$500,'Mem11-14-2014'!H$1,FALSE),0) -> 51 | V22: =VLOOKUP(A22,'TIER SCH'!$A$2:$D$324,4,FALSE) -> R | W22: 90.19607843
A23: 271 | B23: Bent Tree Elementary | C23: 4 | D23: Opinion | E23: 61 | F23: 0.64 | G23: 53 | H23: 5 | I23: 3 | J23: 0 | K23: 0 | L23: 47 | M23: 8 | N23: 6 | O23: 0 | P23: 0 | Q23: 53 | R23: 8 | S23: 0 | U23: =IFERROR(VLOOKUP(TEXT($A23,"0000"),'Mem11-14-2014'!$A$3:$O$500,'Mem11-14-2014'!H$1,FALSE),0) -> 81 | V23: =VLOOKUP(A23,'TIER SCH'!$A$2:$D$324,4,FALSE) -> T1 | W23: 75.30864198
A24: 311 | B24: Goulds Elementary | C24: 4 | D24: Opinion | E24: 72 | F24: 4.89 | G24: 0 | H24: 8 | I24: 60 | J24: 4 | K24: 0 | L24: 0 | M24: 9 | N24: 63 | O24: 0 | P24: 0 | Q24: 0 | R24: 67 | S24: 5 | U24: =IFERROR(VLOOKUP(TEXT($A24,"0000"),'Mem11-14-2014'!$A$3:$O$500,'Mem11-14-2014'!H$1,FALSE),0) -> 93 | V24: =VLOOKUP(A24,'TIER SCH'!$A$2:$D$324,4,FALSE) -> T2 | W24: 77.41935484
A25: 312 | B25: Mater Gardens Academy | C25: 4 | D25: Opinion | E25: 94 | F25: 4.59 | G25: 1 | H25: 22 | I25: 44 | J25: 27 | K25: 0 | L25: 2 | M25: 54 | N25: 35 | O25: 3 | P25: 0 | Q25: 5 | R25: 71 | S25: 18 | U25: =IFERROR(VLOOKUP(TEXT($A25,"0000"),'Mem11-14-2014'!$A$3:$O$500,'Mem11-14-2014'!H$1,FALSE),0) -> 94 | V25: =VLOOKUP(A25,'TIER SCH'!$A$2:$D$324,4,FALSE) ->  | W25: 100
A26: 321 | B26: Biscayne Elementary | C26: 4 | D26: Opinion | E26: 82 | F26: 3.37 | G26: 15 | H26: 41 | I26: 24 | J26: 1 | K26: 1 | L26: 7 | M26: 54 | N26: 20 | O26: 1 | P26: 0 | Q26: 9 | R26: 63 | S26: 10 | U26: =IFERROR(VLOOKUP(TEXT($A26,"0000"),'Mem11-14-2014'!$A$3:$O$500,'Mem11-14-2014'!H$1,FALSE),0) -> 86 | V26: =VLOOKUP(A26,'TIER SCH'!$A$2:$D$324,4,FALSE) -> WL | W26: 95.34883721
A27: 332 | B27: Somerset Academy(silver Palms) | C27: 4 | D27: Opinion | E27: 73 | F27: 4.03 | G27: 0 | H27: 41 | I27: 26 | J27: 6 | K27: 0 | L27: 0 | M27: 54 | N27: 18 | O27: 1 | P27: 0 | Q27: 0 | R27: 56 | S27: 17 | U27: =IFERROR(VLOOKUP(TEXT($A27,"0000"),'Mem11-14-2014'!$A$3:$O$500,'Mem11-14-2014'!H$1,FALSE),0) -> 73 | V27: =VLOOKUP(A27,'TIER SCH'!$A$2:$D$324,4,FALSE) ->  | W27: 100
A28: 339 | B28: Somerset Academy Charter Elem | C28: 4 | D28: Opinion | E28: 80 | F28: 4.3 | G28: 2 | H28: 26 | I28: 34 | J28: 18 | K28: 0 | L28: 2 | M28: 40 | N28: 32 | O28: 5 | P28: 1 | Q28: 15 | R28: 57 | S28: 8 | U28: =IFERROR(VLOOKUP(TEXT($A28,"0000"),'Mem11-14-2014'!$A$3:$O$500,'Mem11-14-2014'!H$1,FALSE),0) -> 79 | V28: =VLOOKUP(A28,'TIER SCH'!$A$2:$D$324,4,FALSE) ->  | W28: 101.2658228
A29: 341 | B29: Arch Creek Elementary School | C29: 4 | D29: Opinion | E29: 93 | F29: 2.11 | G29: 18 | H29: 55 | I29: 14 | J29: 6 | K29: 0 | L29: 54 | M29: 25 | N29: 13 | O29: 1 | P29: 0 | Q29: 65 | R29: 15 | S29: 13 | U29: =IFERROR(VLOOKUP(TEXT($A29,"0000"),'Mem11-14-2014'!$A$3:$O$500,'Mem11-14-2014'!H$1,FALSE),0) -> 97 | V29: =VLOOKUP(A29,'TIER SCH'!$A$2:$D$324,4,FALSE) -> R | W29: 95.87628866
A30: 342 | B30: Pinecrest Academy South Campus | C30: 4 | D30: Opinion | E30: 95 | F30: 6.02 | G30: 3 | H30: 10 | I30: 32 | J30: 47 | K30: 3 | L30: 1 | M30: 6 | N30: 56 | O30: 32 | P30: 0 | Q30: 10 | R30: 39 | S30: 46 | U30: =IFERROR(VLOOKUP(TEXT($A30,"0000"),'Mem11-14-2014'!$A$3:$O$500,'Mem11-14-2014'!H$1,FALSE),0) -> 105 | V30: =VLOOKUP(A30,'TIER SCH'!$A$2:$D$324,4,FALSE) ->  | W30: 90.47619048
A31: 361 | B31: Biscayne Gardens Elementary | C31: 4 | D31: Opinion | E31: 52 | F31: 4.21 | G31: 3 | H31: 18 | I31: 26 | J31: 5 | K31: 0 | L31: 3 | M31: 23 | N31: 21 | O31: 5 | P31: 0 | Q31: 3 | R31: 44 | S31: 5 | U31: =IFERROR(VLOOKUP(TEXT($A31,"0000"),'Mem11-14-2014'!$A$3:$O$500,'Mem11-14-2014'!H$1,FALSE),0) -> 60 | V31: =VLOOKUP(A31,'TIER SCH'!$A$2:$D$324,4,FALSE) -> T3 | W31: 86.66666667
A32: 401 | B32: Van E. Blanton Elementary | C32: 4 | D32: Opinion | E32: 75 | F32: 0.52 | G32: 57 | H32: 17 | I32: 1 | J32: 0 | K32: 0 | L32: 67 | M32: 8 | N32: 0 | O32: 0 | P32: 0 | Q32: 64 | R32: 10 | S32: 1 | U32: =IFERROR(VLOOKUP(TEXT($A32,"0000"),'Mem11-14-2014'!$A$3:$O$500,'Mem11-14-2014'!H$1,FALSE),0) -> 84 | V32: =VLOOKUP(A32,'TIER SCH'!$A$2:$D$324,4,FALSE) -> WL | W32: 89.28571429
A33: 410 | B33: Academir Charter School West | C33: 4 | D33: Opinion | E33: 95 | F33: 4.94 | G33: 3 | H33: 26 | I33: 44 | J33: 21 | K33: 1 | L33: 6 | M33: 38 | N33: 37 | O33: 13 | P33: 1 | Q33: 1 | R33: 55 | S33: 39 | U33: =IFERROR(VLOOKUP(TEXT($A33,"0000"),'Mem11-14-2014'!$A$3:$O$500,'Mem11-14-2014'!H$1,FALSE),0) -> 99 | V33: =VLOOKUP(A33,'TIER SCH'!$A$2:$D$324,4,FALSE) ->  | W33: 95.95959596
A34: 441 | B34: Blue Lakes Elementary | C34: 4 | D34: Opinion | E34: 62 | F34: 4.82 | G34: 2 | H34: 11 | I34: 31 | J34: 18 | K34: 0 | L34: 10 | M34: 17 | N34: 32 | O34: 3 | P34: 0 | Q34: 5 | R34: 32 | S34: 25 | U34: =IFERROR(VLOOKUP(TEXT($A34,"0000"),'Mem11-14-2014'!$A$3:$O$500,'Mem11-14-2014'!H$1,FALSE),0) -> 65 | V34: =VLOOKUP(A34,'TIER SCH'!$A$2:$D$324,4,FALSE) -> T1 | W34: 95.38461538
A35: 451 | B35: Bowman Ashe/doolin K-8 Acad | C35: 4 | D35: Opinion | E35: 117 | F35: 3.49 | G35: 13 | H35: 46 | I35: 56 | J35: 2 | K35: 0 | L35: 14 | M35: 73 | N35: 29 | O35: 1 | P35: 0 | Q35: 14 | R35: 96 | S35: 7 | U35: =IFERROR(VLOOKUP(TEXT($A35,"0000"),'Mem11-14-2014'!$A$3:$O$500,'Mem11-14-2014'!H$1,FALSE),0) -> 119 | V35: =VLOOKUP(A35,'TIER SCH'!$A$2:$D$324,4,FALSE) -> T1 | W35: 98.31932773
A36: 461 | B36: Brentwood Elementary | C36: 4 | D36: Opinion | E36: 100 | F36: 3.25 | G36: 16 | H36: 48 | I36: 33 | J36: 3 | K36: 0 | L36: 22 | M36: 58 | N36: 19 | O36: 1 | P36: 0 | Q36: 20 | R36: 57 | S36: 23 | U36: =IFERROR(VLOOKUP(TEXT($A36,"0000"),'Mem11-14-2014'!$A$3:$O$500,'Mem11-14-2014'!H$1,FALSE),0) -> 103 | V36: =VLOOKUP(A36,'TIER SCH'!$A$2:$D$324,4,FALSE) -> T3 | W36: 97.08737864
A37: 481 | B37: James H. Bright/jw Johnson Es | C37: 4 | D37: Opinion | E37: 88 | F37: 3.27 | G37: 13 | H37: 49 | I37: 25 | J37: 1 | K37: 0 | L37: 15 | M37: 56 | N37: 16 | O37: 1 | P37: 0 | Q37: 16 | R37: 49 | S37: 23 | U37: =IFERROR(VLOOKUP(TEXT($A37,"0000"),'Mem11-14-2014'!$A$3:$O$500,'Mem11-14-2014'!H$1,FALSE),0) -> 111 | V37: =VLOOKUP(A37,'TIER SCH'!$A$2:$D$324,4,FALSE) -> WL | W37: 79.27927928
A38: 510 | B38: Archimedean Academy | C38: 4 | D38: Opinion | E38: 100 | F38: 3 | G38: 0 | H38: 100 | I38: 0 | J38: 0 | K38: 0 | L38: 0 | M38: 100 | N38: 0 | O38: 0 | P38: 0 | Q38: 0 | R38: 100 | S38: 0 | U38: =IFERROR(VLOOKUP(TEXT($A38,"0000"),'Mem11-14-2014'!$A$3:$O$500,'Mem11-14-2014'!H$1,FALSE),0) -> 99 | V38: =VLOOKUP(A38,'TIER SCH'!$A$2:$D$324,4,FALSE) ->  | W38: 101.010101
A39: 520 | B39: Somerset Academy | C39: 4 | D39: Opinion | E39: 88 | F39: 6.07 | G39: 1 | H39: 22 | I39: 30 | J39: 20 | K39: 15 | L39: 1 | M39: 29 | N39: 28 | O39: 16 | P39: 14 | Q39: 1 | R39: 31 | S39: 56 | U39: =IFERROR(VLOOKUP(TEXT($A39,"0000"),'Mem11-14-2014'!$A$3:$O$500,'Mem11-14-2014'!H$1,FALSE),0) -> 87 | V39: =VLOOKUP(A39,'TIER SCH'!$A$2:$D$324,4,FALSE) ->  | W39: 101.1494253
A40: 521 | B40: Broadmoor Elementary | C40: 4 | D40: Opinion | E40: 67 | F40: 4.28 | G40: 7 | H40: 37 | I40: 16 | J40: 7 | K40: 0 | L40: 5 | M40: 14 | N40: 43 | O40: 5 | P40: 0 | Q40: 6 | R40: 40 | S40: 21 | U40: =IFERROR(VLOOKUP(TEXT($A40,"0000"),'Mem11-14-2014'!$A$3:$O$500,'Mem11-14-2014'!H$1,FALSE),0) -> 68 | V40: =VLOOKUP(A40,'TIER SCH'!$A$2:$D$324,4,FALSE) -> T3 | W40: 98.52941176
A41: 561 | B41: W.j. Bryan Elementary | C41: 4 | D41: Opinion | E41: 99 | F41: 4.08 | G41: 10 | H41: 40 | I41: 37 | J41: 12 | K41: 0 | L41: 17 | M41: 42 | N41: 34 | O41: 6 | P41: 0 | Q41: 14 | R41: 44 | S41: 41 | U41: =IFERROR(VLOOKUP(TEXT($A41,"0000"),'Mem11-14-2014'!$A$3:$O$500,'Mem11-14-2014'!H$1,FALSE),0) -> 99 | V41: =VLOOKUP(A41,'TIER SCH'!$A$2:$D$324,4,FALSE) -> T3 | W41: 100
A42: 600 | B42: Pinecrest Prep Academy | C42: 4 | D42: Opinion | E42: 115 | F42: 4.87 | G42: 0 | H42: 34 | I42: 55 | J42: 26 | K42: 0 | L42: 0 | M42: 53 | N42: 51 | O42: 11 | P42: 0 | Q42: 6 | R42: 68 | S42: 41 | U42: =IFERROR(VLOOKUP(TEXT($A42,"0000"),'Mem11-14-2014'!$A$3:$O$500,'Mem11-14-2014'!H$1,FALSE),0) -> 114 | V42: =VLOOKUP(A42,'TIER SCH'!$A$2:$D$324,4,FALSE) ->  | W42: 100.877193
A43: 641 | B43: Bunche Park Elementary | C43: 4 | D43: Opinion | E43: 32 | F43: 4.12 | G43: 0 | H43: 20 | I43: 6 | J43: 6 | K43: 0 | L43: 0 | M43: 21 | N43: 9 | O43: 2 | P43: 0 | Q43: 10 | R43: 7 | S43: 15 | U43: =IFERROR(VLOOKUP(TEXT($A43,"0000"),'Mem11-14-2014'!$A$3:$O$500,'Mem11-14-2014'!H$1,FALSE),0) -> 32 | V43: =VLOOKUP(A43,'TIER SCH'!$A$2:$D$324,4,FALSE) -> R | W43: 100
A44: 651 | B44: Campbell Drive K-8 Center | C44: 4 | D44: Opinion | E44: 92 | F44: 3.01 | G44: 28 | H44: 32 | I44: 26 | J44: 5 | K44: 1 | L44: 31 | M44: 30 | N44: 23 | O44: 7 | P44: 1 | Q44: 26 | R44: 59 | S44: 7 | U44: =IFERROR(VLOOKUP(TEXT($A44,"0000"),'Mem11-14-2014'!$A$3:$O$500,'Mem11-14-2014'!H$1,FALSE),0) -> 97 | V44: =VLOOKUP(A44,'TIER SCH'!$A$2:$D$324,4,FALSE) -> R | W44: 94.84536082
A45: 661 | B45: Caribbean Elementary | C45: 4 | D45: Opinion | E45: 86 | F45: 4.43 | G45: 1 | H45: 20 | I45: 43 | J45: 22 | K45: 0 | L45: 2 | M45: 40 | N45: 43 | O45: 1 | P45: 0 | Q45: 7 | R45: 78 | S45: 1 | U45: =IFERROR(VLOOKUP(TEXT($A45,"0000"),'Mem11-14-2014'!$A$3:$O$500,'Mem11-14-2014'!H$1,FALSE),0) -> 86 | V45: =VLOOKUP(A45,'TIER SCH'!$A$2:$D$324,4,FALSE) -> T3 | W45: 100
A46: 671 | B46: Calusa Elementary | C46: 4 | D46: Opinion | E46: 98 | F46: 4.33 | G46: 2 | H46: 39 | I46: 52 | J46: 5 | K46: 0 | L46: 3 | M46: 43 | N46: 49 | O46: 3 | P46: 0 | Q46: 9 | R46: 62 | S46: 27 | U46: =IFERROR(VLOOKUP(TEXT($A46,"0000"),'Mem11-14-2014'!$A$3:$O$500,'Mem11-14-2014'!H$1,FALSE),0) -> 129 | V46: =VLOOKUP(A46,'TIER SCH'!$A$2:$D$324,4,FALSE) -> T1 | W46: 75.96899225
A47: 681 | B47: Carol City Elementary | C47: 4 | D47: Opinion | E47: 63 | F47: 3.17 | G47: 12 | H47: 30 | I47: 16 | J47: 5 | K47: 0 | L47: 13 | M47: 30 | N47: 15 | O47: 5 | P47: 0 | Q47: 16 | R47: 46 | S47: 1 | U47: =IFERROR(VLOOKUP(TEXT($A47,"0000"),'Mem11-14-2014'!$A$3:$O$500,'Mem11-14-2014'!H$1,FALSE),0) -> 74 | V47: =VLOOKUP(A47,'TIER SCH'!$A$2:$D$324,4,FALSE) -> T3 | W47: 85.13513514
A48: 721 | B48: George Washington Carver Elem | C48: 4 | D48: Opinion | E48: 55 | F48: 3.6 | G48: 0 | H48: 33 | I48: 20 | J48: 2 | K48: 0 | L48: 0 | M48: 42 | N48: 11 | O48: 2 | P48: 0 | Q48: 19 | R48: 23 | S48: 13 | U48: =IFERROR(VLOOKUP(TEXT($A48,"0000"),'Mem11-14-2014'!$A$3:$O$500,'Mem11-14-2014'!H$1,FALSE),0) -> 61 | V48: =VLOOKUP(A48,'TIER SCH'!$A$2:$D$324,4,FALSE) -> T1 | W48: 90.16393443
A49: 761 | B49: Fienberg/fisher K-8 Center | C49: 4 | D49: Opinion | E49: 72 | F49: 3.44 | G49: 17 | H49: 27 | I49: 14 | J49: 12 | K49: 2 | L49: 14 | M49: 32 | N49: 16 | O49: 10 | P49: 0 | Q49: 33 | R49: 23 | S49: 16 | U49: =IFERROR(VLOOKUP(TEXT($A49,"0000"),'Mem11-14-2014'!$A$3:$O$500,'Mem11-14-2014'!H$1,FALSE),0) -> 77 | V49: =VLOOKUP(A49,'TIER SCH'!$A$2:$D$324,4,FALSE) -> WL | W49: 93.50649351
A50: 771 | B50: William A. Chapman Elementary | C50: 4 | D50: Opinion | E50: 68 | F50: 2.16 | G50: 18 | H50: 35 | I50: 13 | J50: 2 | K50: 0 | L50: 19 | M50: 38 | N50: 11 | O50: 0 | P50: 0 | Q50: 48 | R50: 20 | S50: 0 | U50: =IFERROR(VLOOKUP(TEXT($A50,"0000"),'Mem11-14-2014'!$A$3:$O$500,'Mem11-14-2014'!H$1,FALSE),0) -> 71 | V50: =VLOOKUP(A50,'TIER SCH'!$A$2:$D$324,4,FALSE) -> T2 | W50: 95.77464789
A51: 801 | B51: Citrus Grove Elementary | C51: 4 | D51: Opinion | E51: 111 | F51: 2.37 | G51: 46 | H51: 37 | I51: 25 | J51: 3 | K51: 0 | L51: 46 | M51: 43 | N51: 20 | O51: 2 | P51: 0 | Q51: 54 | R51: 36 | S51: 21 | U51: =IFERROR(VLOOKUP(TEXT($A51,"0000"),'Mem11-14-2014'!$A$3:$O$500,'Mem11-14-2014'!H$1,FALSE),0) -> 113 | V51: =VLOOKUP(A51,'TIER SCH'!$A$2:$D$324,4,FALSE) -> R | W51: 98.2300885
A52: 831 | B52: Claude Pepper Elementary | C52: 4 | D52: Opinion | E52: 100 | F52: 3.43 | G52: 8 | H52: 48 | I52: 38 | J52: 5 | K52: 1 | L52: 43 | M52: 24 | N52: 28 | O52: 5 | P52: 0 | Q52: 17 | R52: 61 | S52: 22 | U52: =IFERROR(VLOOKUP(TEXT($A52,"0000"),'Mem11-14-2014'!$A$3:$O$500,'Mem11-14-2014'!H$1,FALSE),0) -> 99 | V52: =VLOOKUP(A52,'TIER SCH'!$A$2:$D$324,4,FALSE) -> T1 | W52: 101.010101
A53: 841 | B53: Coconut Grove Elementary | C53: 4 | D53: Opinion | E53: 61 | F53: 4.46 | G53: 6 | H53: 14 | I53: 30 | J53: 11 | K53: 0 | L53: 9 | M53: 20 | N53: 31 | O53: 1 | P53: 0 | Q53: 14 | R53: 14 | S53: 33 | U53: =IFERROR(VLOOKUP(TEXT($A53,"0000"),'Mem11-14-2014'!$A$3:$O$500,'Mem11-14-2014'!H$1,FALSE),0) -> 63 | V53: =VLOOKUP(A53,'TIER SCH'!$A$2:$D$324,4,FALSE) -> T1 | W53: 96.82539683
A54: 861 | B54: Colonial Drive Elementary | C54: 4 | D54: Opinion | E54: 31 | F54: 4.35 | G54: 2 | H54: 7 | I54: 17 | J54: 5 | K54: 0 | L54: 2 | M54: 14 | N54: 13 | O54: 2 | P54: 0 | Q54: 5 | R54: 19 | S54: 7 | U54: =IFERROR(VLOOKUP(TEXT($A54,"0000"),'Mem11-14-2014'!$A$3:$O$500,'Mem11-14-2014'!H$1,FALSE),0) -> 35 | V54: =VLOOKUP(A54,'TIER SCH'!$A$2:$D$324,4,FALSE) -> R | W54: 88.57142857
A55: 881 | B55: Comstock Elementary | C55: 4 | D55: Opinion | E55: 72 | F55: 3.39 | G55: 7 | H55: 44 | I55: 11 | J55: 7 | K55: 3 | L55: 10 | M55: 43 | N55: 11 | O55: 8 | P55: 0 | Q55: 28 | R55: 32 | S55: 12 | U55: =IFERROR(VLOOKUP(TEXT($A55,"0000"),'Mem11-14-2014'!$A$3:$O$500,'Mem11-14-2014'!H$1,FALSE),0) -> 73 | V55: =VLOOKUP(A55,'TIER SCH'!$A$2:$D$324,4,FALSE) -> R | W55: 98.63013699
A56: 950 | B56: Aventura City Of Excellence | C56: 4 | D56: Opinion | E56: 112 | F56: 6.45 | G56: 0 | H56: 5 | I56: 47 | J56: 39 | K56: 21 | L56: 0 | M56: 37 | N56: 39 | O56: 35 | P56: 1 | Q56: 1 | R56: 24 | S56: 87 | U56: =IFERROR(VLOOKUP(TEXT($A56,"0000"),'Mem11-14-2014'!$A$3:$O$500,'Mem11-14-2014'!H$1,FALSE),0) -> 111 | V56: =VLOOKUP(A56,'TIER SCH'!$A$2:$D$324,4,FALSE) ->  | W56: 100.9009009
A57: 961 | B57: Coral Gables Preparatory Acad | C57: 4 | D57: Opinion | E57: 77 | F57: 2.79 | G57: 11 | H57: 27 | I57: 35 | J57: 4 | K57: 0 | L57: 26 | M57: 33 | N57: 17 | O57: 1 | P57: 0 | Q57: 48 | R57: 22 | S57: 7 | U57: =IFERROR(VLOOKUP(TEXT($A57,"0000"),'Mem11-14-2014'!$A$3:$O$500,'Mem11-14-2014'!H$1,FALSE),0) -> 77 | V57: =VLOOKUP(A57,'TIER SCH'!$A$2:$D$324,4,FALSE) -> T1 | W57: 100
A58: 1001 | B58: Coral Park Elementary | C58: 4 | D58: Opinion | E58: 110 | F58: 3.59 | G58: 18 | H58: 38 | I58: 45 | J58: 9 | K58: 0 | L58: 20 | M58: 47 | N58: 42 | O58: 0 | P58: 1 | Q58: 26 | R58: 63 | S58: 21 | U58: =IFERROR(VLOOKUP(TEXT($A58,"0000"),'Mem11-14-2014'!$A$3:$O$500,'Mem11-14-2014'!H$1,FALSE),0) -> 152 | V58: =VLOOKUP(A58,'TIER SCH'!$A$2:$D$324,4,FALSE) -> T1 | W58: 72.36842105
A59: 1010 | B59: Charter School At Waterstone | C59: 4 | D59: Opinion | E59: 192 | F59: 4.06 | G59: 10 | H59: 84 | I59: 66 | J59: 31 | K59: 1 | L59: 23 | M59: 98 | N59: 58 | O59: 11 | P59: 2 | Q59: 25 | R59: 122 | S59: 45 | U59: =IFERROR(VLOOKUP(TEXT($A59,"0000"),'Mem11-14-2014'!$A$3:$O$500,'Mem11-14-2014'!H$1,FALSE),0) -> 191 | V59: =VLOOKUP(A59,'TIER SCH'!$A$2:$D$324,4,FALSE) ->  | W59: 100.5235602
A60: 1014 | B60: Hive Preparatory School | C60: 4 | D60: Opinion | E60: 83 | F60: 3.86 | G60: 24 | H60: 22 | I60: 15 | J60: 11 | K60: 11 | L60: 23 | M60: 31 | N60: 23 | O60: 6 | P60: 0 | Q60: 11 | R60: 48 | S60: 24 | U60: =IFERROR(VLOOKUP(TEXT($A60,"0000"),'Mem11-14-2014'!$A$3:$O$500,'Mem11-14-2014'!H$1,FALSE),0) -> 87 | V60: =VLOOKUP(A60,'TIER SCH'!$A$2:$D$324,4,FALSE) ->  | W60: 95.40229885
A61: 1017 | B61: Mater Academy Of Intl Studies | C61: 4 | D61: Opinion | E61: 76 | F61: 3.75 | G61: 7 | H61: 35 | I61: 24 | J61: 9 | K61: 1 | L61: 11 | M61: 55 | N61: 8 | O61: 2 | P61: 0 | Q61: 7 | R61: 44 | S61: 25 | U61: =IFERROR(VLOOKUP(TEXT($A61,"0000"),'Mem11-14-2014'!$A$3:$O$500,'Mem11-14-2014'!H$1,FALSE),0) -> 76 | V61: =VLOOKUP(A61,'TIER SCH'!$A$2:$D$324,4,FALSE) ->  | W61: 100
A62: 1020 | B62: Youth Co-Op Charter School | C62: 4 | D62: Opinion | E62: 84 | F62: 3.95 | G62: 21 | H62: 29 | I62: 17 | J62: 14 | K62: 3 | L62: 23 | M62: 26 | N62: 20 | O62: 13 | P62: 2 | Q62: 26 | R62: 14 | S62: 44 | U62: =IFERROR(VLOOKUP(TEXT($A62,"0000"),'Mem11-14-2014'!$A$3:$O$500,'Mem11-14-2014'!H$1,FALSE),0) -> 84 | V62: =VLOOKUP(A62,'TIER SCH'!$A$2:$D$324,4,FALSE) ->  | W62: 100
A63: 1041 | B63: Coral Reef Elementary | C63: 4 | D63: Opinion | E63: 142 | F63: 3.14 | G63: 19 | H63: 78 | I63: 35 | J63: 10 | K63: 0 | L63: 21 | M63: 95 | N63: 20 | O63: 6 | P63: 0 | Q63: 50 | R63: 69 | S63: 23 | U63: =IFERROR(VLOOKUP(TEXT($A63,"0000"),'Mem11-14-2014'!$A$3:$O$500,'Mem11-14-2014'!H$1,FALSE),0) -> 145 | V63: =VLOOKUP(A63,'TIER SCH'!$A$2:$D$324,4,FALSE) -> T1 | W63: 97.93103448
A64: 1081 | B64: Coral Terrace Elementary | C64: 4 | D64: Opinion | E64: 81 | F64: 5.37 | G64: 8 | H64: 11 | I64: 28 | J64: 28 | K64: 6 | L64: 7 | M64: 18 | N64: 31 | O64: 24 | P64: 1 | Q64: 13 | R64: 32 | S64: 36 | U64: =IFERROR(VLOOKUP(TEXT($A64,"0000"),'Mem11-14-2014'!$A$3:$O$500,'Mem11-14-2014'!H$1,FALSE),0) -> 81 | V64: =VLOOKUP(A64,'TIER SCH'!$A$2:$D$324,4,FALSE) -> T1 | W64: 100
A65: 1121 | B65: Coral Way K-8 Center | C65: 4 | D65: Opinion | E65: 161 | F65: 3.84 | G65: 13 | H65: 56 | I65: 66 | J65: 26 | K65: 0 | L65: 41 | M65: 82 | N65: 32 | O65: 6 | P65: 0 | Q65: 31 | R65: 71 | S65: 59 | U65: =IFERROR(VLOOKUP(TEXT($A65,"0000"),'Mem11-14-2014'!$A$3:$O$500,'Mem11-14-2014'!H$1,FALSE),0) -> 167 | V65: =VLOOKUP(A65,'TIER SCH'!$A$2:$D$324,4,FALSE) -> T1 | W65: 96.40718563
A66: 1161 | B66: Crestview Elementary | C66: 4 | D66: Opinion | E66: 46 | F66: 3.76 | G66: 5 | H66: 23 | I66: 13 | J66: 5 | K66: 0 | L66: 4 | M66: 25 | N66: 14 | O66: 3 | P66: 0 | Q66: 9 | R66: 27 | S66: 10 | U66: =IFERROR(VLOOKUP(TEXT($A66,"0000"),'Mem11-14-2014'!$A$3:$O$500,'Mem11-14-2014'!H$1,FALSE),0) -> 46 | V66: =VLOOKUP(A66,'TIER SCH'!$A$2:$D$324,4,FALSE) -> R | W66: 100
A67: 1241 | B67: Cutler Ridge Elementary | C67: 4 | D67: Opinion | E67: 102 | F67: 2.74 | G67: 14 | H67: 73 | I67: 15 | J67: 0 | K67: 0 | L67: 24 | M67: 67 | N67: 11 | O67: 0 | P67: 0 | Q67: 21 | R67: 75 | S67: 6 | U67: =IFERROR(VLOOKUP(TEXT($A67,"0000"),'Mem11-14-2014'!$A$3:$O$500,'Mem11-14-2014'!H$1,FALSE),0) -> 107 | V67: =VLOOKUP(A67,'TIER SCH'!$A$2:$D$324,4,FALSE) -> WL | W67: 95.3271028
A68: 1281 | B68: Cypress Elementary | C68: 4 | D68: Opinion | E68: 40 | F68: 3.02 | G68: 7 | H68: 19 | I68: 14 | J68: 0 | K68: 0 | L68: 9 | M68: 27 | N68: 4 | O68: 0 | P68: 0 | Q68: 7 | R68: 27 | S68: 6 | U68: =IFERROR(VLOOKUP(TEXT($A68,"0000"),'Mem11-14-2014'!$A$3:$O$500,'Mem11-14-2014'!H$1,FALSE),0) -> 42 | V68: =VLOOKUP(A68,'TIER SCH'!$A$2:$D$324,4,FALSE) -> T1 | W68: =E68/U68*100 -> 95.23809524
A69: 1331 | B69: Devon Aire K-8 Center | C69: 4 | D69: Opinion | E69: 170 | F69: 4.63 | G69: 7 | H69: 55 | I69: 83 | J69: 25 | K69: 0 | L69: 6 | M69: 74 | N69: 71 | O69: 19 | P69: 0 | Q69: 21 | R69: 80 | S69: 69 | U69: =IFERROR(VLOOKUP(TEXT($A69,"0000"),'Mem11-14-2014'!$A$3:$O$500,'Mem11-14-2014'!H$1,FALSE),0) -> 172 | V69: =VLOOKUP(A69,'TIER SCH'!$A$2:$D$324,4,FALSE) -> T1 | W69: 98.8372093
A70: 1361 | B70: Frederick Douglass Elementary | C70: 4 | D70: Opinion | E70: 29 | F70: 2.03 | G70: 18 | H70: 7 | I70: 2 | J70: 2 | K70: 0 | L70: 18 | M70: 10 | N70: 1 | O70: 0 | P70: 0 | Q70: 4 | R70: 20 | S70: 5 | U70: =IFERROR(VLOOKUP(TEXT($A70,"0000"),'Mem11-14-2014'!$A$3:$O$500,'Mem11-14-2014'!H$1,FALSE),0) -> 32 | V70: =VLOOKUP(A70,'TIER SCH'!$A$2:$D$324,4,FALSE) -> T3 | W70: 90.625
A71: 1371 | B71: Marjory Stoneman Douglas Elem | C71: 4 | D71: Opinion | E71: 159 | F71: 3.49 | G71: 14 | H71: 87 | I71: 50 | J71: 8 | K71: 0 | L71: 22 | M71: 100 | N71: 30 | O71: 7 | P71: 0 | Q71: 40 | R71: 75 | S71: 44 | U71: =IFERROR(VLOOKUP(TEXT($A71,"0000"),'Mem11-14-2014'!$A$3:$O$500,'Mem11-14-2014'!H$1,FALSE),0) -> 162 | V71: =VLOOKUP(A71,'TIER SCH'!$A$2:$D$324,4,FALSE) -> T1 | W71: 98.14814815
A72: 1401 | B72: Charles R. Drew K-8 Center | C72: 4 | D72: Opinion | E72: 30 | F72: 4.33 | G72: 3 | H72: 10 | I72: 12 | J72: 5 | K72: 0 | L72: 4 | M72: 9 | N72: 15 | O72: 2 | P72: 0 | Q72: 4 | R72: 16 | S72: 10 | U72: =IFERROR(VLOOKUP(TEXT($A72,"0000"),'Mem11-14-2014'!$A$3:$O$500,'Mem11-14-2014'!H$1,FALSE),0) -> 31 | V72: =VLOOKUP(A72,'TIER SCH'!$A$2:$D$324,4,FALSE) -> T3 | W72: 96.77419355
A73: 1441 | B73: Paul Laurence Dunbar K-8 Ctr | C73: 4 | D73: Opinion | E73: 51 | F73: 2.47 | G73: 0 | H73: 50 | I73: 0 | J73: 1 | K73: 0 | L73: 0 | M73: 48 | N73: 3 | O73: 0 | P73: 0 | Q73: 33 | R73: 17 | S73: 1 | U73: =IFERROR(VLOOKUP(TEXT($A73,"0000"),'Mem11-14-2014'!$A$3:$O$500,'Mem11-14-2014'!H$1,FALSE),0) -> 48 | V73: =VLOOKUP(A73,'TIER SCH'!$A$2:$D$324,4,FALSE) -> T3 | W73: 106.25
A74: 1481 | B74: John G. Dupuis Elementary | C74: 4 | D74: Opinion | E74: 117 | F74: 2.93 | G74: 27 | H74: 47 | I74: 43 | J74: 0 | K74: 0 | L74: 22 | M74: 62 | N74: 32 | O74: 1 | P74: 0 | Q74: 44 | R74: 65 | S74: 8 | U74: =IFERROR(VLOOKUP(TEXT($A74,"0000"),'Mem11-14-2014'!$A$3:$O$500,'Mem11-14-2014'!H$1,FALSE),0) -> 116 | V74: =VLOOKUP(A74,'TIER SCH'!$A$2:$D$324,4,FALSE) -> WL | W74: 100.862069
A75: 1521 | B75: Amelia Earhart Elementary | C75: 4 | D75: Opinion | E75: 66 | F75: 4.64 | G75: 7 | H75: 19 | I75: 26 | J75: 13 | K75: 1 | L75: 12 | M75: 13 | N75: 24 | O75: 16 | P75: 1 | Q75: 7 | R75: 39 | S75: 20 | U75: =IFERROR(VLOOKUP(TEXT($A75,"0000"),'Mem11-14-2014'!$A$3:$O$500,'Mem11-14-2014'!H$1,FALSE),0) -> 65 | V75: =VLOOKUP(A75,'TIER SCH'!$A$2:$D$324,4,FALSE) -> T1 | W75: 101.5384615
A76: 1561 | B76: Earlington Heights Elementary | C76: 4 | D76: Opinion | E76: 61 | F76: 2.61 | G76: 14 | H76: 31 | I76: 14 | J76: 2 | K76: 0 | L76: 18 | M76: 38 | N76: 4 | O76: 1 | P76: 0 | Q76: 19 | R76: 39 | S76: 3 | U76: =IFERROR(VLOOKUP(TEXT($A76,"0000"),'Mem11-14-2014'!$A$3:$O$500,'Mem11-14-2014'!H$1,FALSE),0) -> 60 | V76: =VLOOKUP(A76,'TIER SCH'!$A$2:$D$324,4,FALSE) -> T3 | W76: 101.6666667
A77: 1601 | B77: Edison Park K-8 Center | C77: 4 | D77: Opinion | E77: 49 | F77: 3.47 | G77: 1 | H77: 29 | I77: 16 | J77: 3 | K77: 0 | L77: 3 | M77: 39 | N77: 5 | O77: 2 | P77: 0 | Q77: 6 | R77: 41 | S77: 2 | U77: =IFERROR(VLOOKUP(TEXT($A77,"0000"),'Mem11-14-2014'!$A$3:$O$500,'Mem11-14-2014'!H$1,FALSE),0) -> 53 | V77: =VLOOKUP(A77,'TIER SCH'!$A$2:$D$324,4,FALSE) -> T3 | W77: 92.45283019
A78: 1641 | B78: Emerson Elementary | C78: 4 | D78: Opinion | E78: 46 | F78: 3.41 | G78: 4 | H78: 20 | I78: 22 | J78: 0 | K78: 0 | L78: 10 | M78: 22 | N78: 14 | O78: 0 | P78: 0 | Q78: 4 | R78: 41 | S78: 1 | U78: =IFERROR(VLOOKUP(TEXT($A78,"0000"),'Mem11-14-2014'!$A$3:$O$500,'Mem11-14-2014'!H$1,FALSE),0) -> 45 | V78: =VLOOKUP(A78,'TIER SCH'!$A$2:$D$324,4,FALSE) -> T1 | W78: 102.2222222
A79: 1681 | B79: Lillie C. Evans K-8 Center | C79: 4 | D79: Opinion | E79: 47 | F79: 0.83 | G79: 24 | H79: 20 | I79: 3 | J79: 0 | K79: 0 | L79: 36 | M79: 10 | N79: 1 | O79: 0 | P79: 0 | Q79: 46 | R79: 1 | S79: 0 | U79: =IFERROR(VLOOKUP(TEXT($A79,"0000"),'Mem11-14-2014'!$A$3:$O$500,'Mem11-14-2014'!H$1,FALSE),0) -> 50 | V79: =VLOOKUP(A79,'TIER SCH'!$A$2:$D$324,4,FALSE) -> T2 | W79: 94
A80: 1691 | B80: Christina M. Eve Elementary | C80: 4 | D80: Opinion | E80: 140 | F80: 2.76 | G80: 36 | H80: 67 | I80: 36 | J80: 1 | K80: 0 | L80: 42 | M80: 62 | N80: 36 | O80: 0 | P80: 0 | Q80: 43 | R80: 83 | S80: 14 | U80: =IFERROR(VLOOKUP(TEXT($A80,"0000"),'Mem11-14-2014'!$A$3:$O$500,'Mem11-14-2014'!H$1,FALSE),0) -> 142 | V80: =VLOOKUP(A80,'TIER SCH'!$A$2:$D$324,4,FALSE) -> T1 | W80: 98.5915493
A81: 1721 | B81: Everglades K-8 Center | C81: 4 | D81: Opinion | E81: 110 | F81: 3.09 | G81: 16 | H81: 68 | I81: 22 | J81: 4 | K81: 0 | L81: 14 | M81: 82 | N81: 11 | O81: 3 | P81: 0 | Q81: 38 | R81: 41 | S81: 31 | U81: =IFERROR(VLOOKUP(TEXT($A81,"0000"),'Mem11-14-2014'!$A$3:$O$500,'Mem11-14-2014'!H$1,FALSE),0) -> 109 | V81: =VLOOKUP(A81,'TIER SCH'!$A$2:$D$324,4,FALSE) -> T1 | W81: 100.9174312
A82: 1761 | B82: David Fairchild Elementary | C82: 4 | D82: Opinion | E82: 102 | F82: 5.39 | G82: 3 | H82: 27 | I82: 33 | J82: 37 | K82: 2 | L82: 4 | M82: 31 | N82: 53 | O82: 14 | P82: 0 | Q82: 5 | R82: 35 | S82: 62 | U82: =IFERROR(VLOOKUP(TEXT($A82,"0000"),'Mem11-14-2014'!$A$3:$O$500,'Mem11-14-2014'!H$1,FALSE),0) -> 103 | V82: =VLOOKUP(A82,'TIER SCH'!$A$2:$D$324,4,FALSE) -> T1 | W82: 99.02912621
A83: 1801 | B83: Fairlawn Elementary | C83: 4 | D83: Opinion | E83: 95 | F83: 2.93 | G83: 26 | H83: 43 | I83: 23 | J83: 3 | K83: 0 | L83: 22 | M83: 43 | N83: 30 | O83: 0 | P83: 0 | Q83: 26 | R83: 61 | S83: 8 | U83: =IFERROR(VLOOKUP(TEXT($A83,"0000"),'Mem11-14-2014'!$A$3:$O$500,'Mem11-14-2014'!H$1,FALSE),0) -> 99 | V83: =VLOOKUP(A83,'TIER SCH'!$A$2:$D$324,4,FALSE) -> T1 | W83: 95.95959596
A84: 1811 | B84: Dante B. Fascell Elementary | C84: 4 | D84: Opinion | E84: 78 | F84: 3.08 | G84: 5 | H84: 46 | I84: 26 | J84: 1 | K84: 0 | L84: 9 | M84: 56 | N84: 13 | O84: 0 | P84: 0 | Q84: 26 | R84: 47 | S84: 5 | U84: =IFERROR(VLOOKUP(TEXT($A84,"0000"),'Mem11-14-2014'!$A$3:$O$500,'Mem11-14-2014'!H$1,FALSE),0) -> 77 | V84: =VLOOKUP(A84,'TIER SCH'!$A$2:$D$324,4,FALSE) -> T1 | W84: 101.2987013
A85: 1841 | B85: Flagami Elementary | C85: 4 | D85: Opinion | E85: 62 | F85: 2.74 | G85: 18 | H85: 30 | I85: 9 | J85: 5 | K85: 0 | L85: 20 | M85: 33 | N85: 7 | O85: 2 | P85: 0 | Q85: 12 | R85: 46 | S85: 4 | U85: =IFERROR(VLOOKUP(TEXT($A85,"0000"),'Mem11-14-2014'!$A$3:$O$500,'Mem11-14-2014'!H$1,FALSE),0) -> 64 | V85: =VLOOKUP(A85,'TIER SCH'!$A$2:$D$324,4,FALSE) -> T1 | W85: 96.875
A86: 1881 | B86: Henry M. Flagler Elementary | C86: 4 | D86: Opinion | E86: 120 | F86: 1.93 | G86: 47 | H86: 50 | I86: 19 | J86: 4 | K86: 0 | L86: 62 | M86: 48 | N86: 9 | O86: 1 | P86: 0 | Q86: 60 | R86: 57 | S86: 3 | U86: =IFERROR(VLOOKUP(TEXT($A86,"0000"),'Mem11-14-2014'!$A$3:$O$500,'Mem11-14-2014'!H$1,FALSE),0) -> 121 | V86: =VLOOKUP(A86,'TIER SCH'!$A$2:$D$324,4,FALSE) -> WL | W86: 99.17355372
A87: 1921 | B87: Flamingo Elementary | C87: 4 | D87: Opinion | E87: 105 | F87: 2.92 | G87: 17 | H87: 68 | I87: 20 | J87: 0 | K87: 0 | L87: 25 | M87: 66 | N87: 13 | O87: 1 | P87: 0 | Q87: 21 | R87: 64 | S87: 20 | U87: =IFERROR(VLOOKUP(TEXT($A87,"0000"),'Mem11-14-2014'!$A$3:$O$500,'Mem11-14-2014'!H$1,FALSE),0) -> 102 | V87: =VLOOKUP(A87,'TIER SCH'!$A$2:$D$324,4,FALSE) -> T1 | W87: 102.9411765
A88: 2001 | B88: Florida City Elementary | C88: 4 | D88: Opinion | E88: 102 | F88: 4.83 | G88: 3 | H88: 31 | I88: 33 | J88: 35 | K88: 0 | L88: 4 | M88: 36 | N88: 53 | O88: 9 | P88: 0 | Q88: 21 | R88: 40 | S88: 41 | U88: =IFERROR(VLOOKUP(TEXT($A88,"0000"),'Mem11-14-2014'!$A$3:$O$500,'Mem11-14-2014'!H$1,FALSE),0) -> 102 | V88: =VLOOKUP(A88,'TIER SCH'!$A$2:$D$324,4,FALSE) -> R | W88: 100
A89: 2003 | B89: Bridgeprep Academy South | C89: 4 | D89: Opinion | E89: 69 | F89: 4.62 | G89: 0 | H89: 21 | I89: 44 | J89: 4 | K89: 0 | L89: 0 | M89: 45 | N89: 22 | O89: 2 | P89: 0 | Q89: 0 | R89: 35 | S89: 34 | U89: =IFERROR(VLOOKUP(TEXT($A89,"0000"),'Mem11-14-2014'!$A$3:$O$500,'Mem11-14-2014'!H$1,FALSE),0) -> 71 | V89: =VLOOKUP(A89,'TIER SCH'!$A$2:$D$324,4,FALSE) ->  | W89: 97.18309859
A90: 2007 | B90: Somerset Academy Elementary | C90: 4 | D90: Opinion | E90: 103 | F90: 3.8 | G90: 6 | H90: 56 | I90: 37 | J90: 4 | K90: 0 | L90: 29 | M90: 44 | N90: 22 | O90: 8 | P90: 0 | Q90: 14 | R90: 41 | S90: 48 | U90: =IFERROR(VLOOKUP(TEXT($A90,"0000"),'Mem11-14-2014'!$A$3:$O$500,'Mem11-14-2014'!H$1,FALSE),0) -> 102 | V90: =VLOOKUP(A90,'TIER SCH'!$A$2:$D$324,4,FALSE) ->  | W90: 100.9803922
A91: 2012 | B91: Somerset Arts Academy | C91: 4 | D91: Opinion | E91: 31 | F91: 4.52 | G91: 0 | H91: 11 | I91: 13 | J91: 7 | K91: 0 | L91: 0 | M91: 16 | N91: 14 | O91: 1 | P91: 0 | Q91: 0 | R91: 27 | S91: 4 | U91: =IFERROR(VLOOKUP(TEXT($A91,"0000"),'Mem11-14-2014'!$A$3:$O$500,'Mem11-14-2014'!H$1,FALSE),0) -> 31 | V91: =VLOOKUP(A91,'TIER SCH'!$A$2:$D$324,4,FALSE) ->  | W91: 100
A92: 2013 | B92: Bridgeprep Acad Greater Miami | C92: 4 | D92: Opinion | E92: 26 | F92: 5.08 | G92: 0 | H92: 11 | I92: 5 | J92: 10 | K92: 0 | L92: 0 | M92: 13 | N92: 8 | O92: 5 | P92: 0 | Q92: 0 | R92: 15 | S92: 11 | U92: =IFERROR(VLOOKUP(TEXT($A92,"0000"),'Mem11-14-2014'!$A$3:$O$500,'Mem11-14-2014'!H$1,FALSE),0) -> 28 | V92: =VLOOKUP(A92,'TIER SCH'!$A$2:$D$324,4,FALSE) ->  | W92: 92.85714286
A93: 2021 | B93: Gloria Floyd Elementary | C93: 4 | D93: Opinion | E93: 73 | F93: 2.84 | G93: 27 | H93: 31 | I93: 12 | J93: 3 | K93: 0 | L93: 17 | M93: 36 | N93: 17 | O93: 3 | P93: 0 | Q93: 13 | R93: 56 | S93: 4 | U93: =IFERROR(VLOOKUP(TEXT($A93,"0000"),'Mem11-14-2014'!$A$3:$O$500,'Mem11-14-2014'!H$1,FALSE),0) -> 78 | V93: =VLOOKUP(A93,'TIER SCH'!$A$2:$D$324,4,FALSE) -> T1 | W93: 93.58974359
A94: 2041 | B94: Benjamin Franklin K-8 Center | C94: 4 | D94: Opinion | E94: 60 | F94: 2.82 | G94: 15 | H94: 30 | I94: 9 | J94: 5 | K94: 1 | L94: 15 | M94: 41 | N94: 4 | O94: 0 | P94: 0 | Q94: 21 | R94: 25 | S94: 14 | U94: =IFERROR(VLOOKUP(TEXT($A94,"0000"),'Mem11-14-2014'!$A$3:$O$500,'Mem11-14-2014'!H$1,FALSE),0) -> 61 | V94: =VLOOKUP(A94,'TIER SCH'!$A$2:$D$324,4,FALSE) -> R | W94: 98.36065574
A95: 2060 | B95: Gibson Charter School | C95: 4 | D95: Opinion | E95: 23 | F95: 4.65 | G95: 5 | H95: 5 | I95: 7 | J95: 3 | K95: 3 | L95: 3 | M95: 9 | N95: 7 | O95: 4 | P95: 0 | Q95: 3 | R95: 8 | S95: 12 | U95: =IFERROR(VLOOKUP(TEXT($A95,"0000"),'Mem11-14-2014'!$A$3:$O$500,'Mem11-14-2014'!H$1,FALSE),0) -> 28 | V95: =VLOOKUP(A95,'TIER SCH'!$A$2:$D$324,4,FALSE) ->  | W95: 82.14285714
A96: 2081 | B96: Fulford Elementary | C96: 4 | D96: Opinion | E96: 89 | F96: 2.18 | G96: 31 | H96: 34 | I96: 20 | J96: 4 | K96: 0 | L96: 36 | M96: 41 | N96: 11 | O96: 1 | P96: 0 | Q96: 51 | R96: 34 | S96: 4 | U96: =IFERROR(VLOOKUP(TEXT($A96,"0000"),'Mem11-14-2014'!$A$3:$O$500,'Mem11-14-2014'!H$1,FALSE),0) -> 91 | V96: =VLOOKUP(A96,'TIER SCH'!$A$2:$D$324,4,FALSE) -> T2 | W96: 97.8021978
A97: 2111 | B97: Hialeah Gardens Elementary | C97: 4 | D97: Opinion | E97: 133 | F97: 4.47 | G97: 12 | H97: 49 | I97: 49 | J97: 23 | K97: 0 | L97: 14 | M97: 52 | N97: 55 | O97: 12 | P97: 0 | Q97: 8 | R97: 69 | S97: 56 | U97: =IFERROR(VLOOKUP(TEXT($A97,"0000"),'Mem11-14-2014'!$A$3:$O$500,'Mem11-14-2014'!H$1,FALSE),0) -> 137 | V97: =VLOOKUP(A97,'TIER SCH'!$A$2:$D$324,4,FALSE) -> T1 | W97: 97.08029197
A98: 2151 | B98: Jack D. Gordon Elementary | C98: 4 | D98: Opinion | E98: 143 | F98: 4.37 | G98: 1 | H98: 63 | I98: 67 | J98: 12 | K98: 0 | L98: 1 | M98: 76 | N98: 59 | O98: 7 | P98: 0 | Q98: 2 | R98: 105 | S98: 36 | U98: =IFERROR(VLOOKUP(TEXT($A98,"0000"),'Mem11-14-2014'!$A$3:$O$500,'Mem11-14-2014'!H$1,FALSE),0) -> 181 | V98: =VLOOKUP(A98,'TIER SCH'!$A$2:$D$324,4,FALSE) -> T1 | W98: 79.00552486
A99: 2161 | B99: Golden Glades Elementary | C99: 4 | D99: Opinion | E99: 18 | F99: 2.83 | G99: 2 | H99: 7 | I99: 9 | J99: 0 | K99: 0 | L99: 5 | M99: 13 | N99: 0 | O99: 0 | P99: 0 | Q99: 6 | R99: 11 | S99: 1 | U99: =IFERROR(VLOOKUP(TEXT($A99,"0000"),'Mem11-14-2014'!$A$3:$O$500,'Mem11-14-2014'!H$1,FALSE),0) -> 26 | V99: =VLOOKUP(A99,'TIER SCH'!$A$2:$D$324,4,FALSE) -> T3 | W99: 69.23076923
A100: 2181 | B100: Joella C. Good Elementary | C100: 4 | D100: Opinion | E100: 146 | F100: 4.3 | G100: 8 | H100: 50 | I100: 74 | J100: 14 | K100: 0 | L100: 10 | M100: 76 | N100: 52 | O100: 8 | P100: 0 | Q100: 15 | R100: 78 | S100: 53 | U100: =IFERROR(VLOOKUP(TEXT($A100,"0000"),'Mem11-14-2014'!$A$3:$O$500,'Mem11-14-2014'!H$1,FALSE),0) -> 150 | V100: =VLOOKUP(A100,'TIER SCH'!$A$2:$D$324,4,FALSE) -> WL | W100: 97.33333333
A101: 2191 | B101: Spanish Lake Elementary | C101: 4 | D101: Opinion | E101: 277 | F101: 3.29 | G101: 28 | H101: 163 | I101: 83 | J101: 3 | K101: 0 | L101: 47 | M101: 193 | N101: 36 | O101: 1 | P101: 0 | Q101: 36 | R101: 176 | S101: 65 | U101: =IFERROR(VLOOKUP(TEXT($A101,"0000"),'Mem11-14-2014'!$A$3:$O$500,'Mem11-14-2014'!H$1,FALSE),0) -> 280 | V101: =VLOOKUP(A101,'TIER SCH'!$A$2:$D$324,4,FALSE) -> T1 | W101: 98.92857143
A102: 2241 | B102: Gratigny Elementary | C102: 4 | D102: Opinion | E102: 77 | F102: 3.26 | G102: 18 | H102: 30 | I102: 15 | J102: 8 | K102: 6 | L102: 24 | M102: 28 | N102: 17 | O102: 8 | P102: 0 | Q102: 35 | R102: 27 | S102: 15 | U102: =IFERROR(VLOOKUP(TEXT($A102,"0000"),'Mem11-14-2014'!$A$3:$O$500,'Mem11-14-2014'!H$1,FALSE),0) -> 78 | V102: =VLOOKUP(A102,'TIER SCH'!$A$2:$D$324,4,FALSE) -> R | W102: 98.71794872
A103: 2261 | B103: Greenglade Elementary | C103: 4 | D103: Opinion | E103: 61 | F103: 4.23 | G103: 7 | H103: 19 | I103: 24 | J103: 11 | K103: 0 | L103: 5 | M103: 29 | N103: 24 | O103: 3 | P103: 0 | Q103: 9 | R103: 32 | S103: 20 | U103: =IFERROR(VLOOKUP(TEXT($A103,"0000"),'Mem11-14-2014'!$A$3:$O$500,'Mem11-14-2014'!H$1,FALSE),0) -> 69 | V103: =VLOOKUP(A103,'TIER SCH'!$A$2:$D$324,4,FALSE) -> T1 | W103: 88.4057971
A104: 2281 | B104: Greynolds Park Elementary | C104: 4 | D104: Opinion | E104: 88 | F104: 3.27 | G104: 8 | H104: 53 | I104: 22 | J104: 5 | K104: 0 | L104: 16 | M104: 45 | N104: 27 | O104: 0 | P104: 0 | Q104: 26 | R104: 47 | S104: 15 | U104: =IFERROR(VLOOKUP(TEXT($A104,"0000"),'Mem11-14-2014'!$A$3:$O$500,'Mem11-14-2014'!H$1,FALSE),0) -> 95 | V104: =VLOOKUP(A104,'TIER SCH'!$A$2:$D$324,4,FALSE) -> T3 | W104: 92.63157895
A105: 2321 | B105: Gulfstream Elementary | C105: 4 | D105: Opinion | E105: 64 | F105: 4.19 | G105: 6 | H105: 32 | I105: 20 | J105: 6 | K105: 0 | L105: 6 | M105: 30 | N105: 22 | O105: 5 | P105: 1 | Q105: 6 | R105: 31 | S105: 27 | U105: =IFERROR(VLOOKUP(TEXT($A105,"0000"),'Mem11-14-2014'!$A$3:$O$500,'Mem11-14-2014'!H$1,FALSE),0) -> 68 | V105: =VLOOKUP(A105,'TIER SCH'!$A$2:$D$324,4,FALSE) -> T1 | W105: 94.11764706
A106: 2331 | B106: Charles R. Hadley Elementary | C106: 4 | D106: Opinion | E106: 146 | F106: 3.9 | G106: 8 | H106: 71 | I106: 61 | J106: 6 | K106: 0 | L106: 8 | M106: 89 | N106: 45 | O106: 4 | P106: 0 | Q106: 17 | R106: 90 | S106: 39 | U106: =IFERROR(VLOOKUP(TEXT($A106,"0000"),'Mem11-14-2014'!$A$3:$O$500,'Mem11-14-2014'!H$1,FALSE),0) -> 147 | V106: =VLOOKUP(A106,'TIER SCH'!$A$2:$D$324,4,FALSE) -> T1 | W106: 99.31972789
A107: 2341 | B107: Joe Hall Elementary | C107: 4 | D107: Opinion | E107: 95 | F107: 3.33 | G107: 20 | H107: 40 | I107: 30 | J107: 5 | K107: 0 | L107: 21 | M107: 45 | N107: 28 | O107: 1 | P107: 0 | Q107: 11 | R107: 71 | S107: 13 | U107: =IFERROR(VLOOKUP(TEXT($A107,"0000"),'Mem11-14-2014'!$A$3:$O$500,'Mem11-14-2014'!H$1,FALSE),0) -> 96 | V107: =VLOOKUP(A107,'TIER SCH'!$A$2:$D$324,4,FALSE) -> T1 | W107: 98.95833333
A108: 2351 | B108: Eneida Massas Hartner Elem | C108: 4 | D108: Opinion | E108: 66 | F108: 2.33 | G108: 10 | H108: 49 | I108: 6 | J108: 1 | K108: 0 | L108: 10 | M108: 45 | N108: 11 | O108: 0 | P108: 0 | Q108: 50 | R108: 9 | S108: 7 | U108: =IFERROR(VLOOKUP(TEXT($A108,"0000"),'Mem11-14-2014'!$A$3:$O$500,'Mem11-14-2014'!H$1,FALSE),0) -> 65 | V108: =VLOOKUP(A108,'TIER SCH'!$A$2:$D$324,4,FALSE) -> WL | W108: 101.5384615
A109: 2361 | B109: Hialeah Elementary | C109: 4 | D109: Opinion | E109: 114 | F109: 3.61 | G109: 16 | H109: 44 | I109: 40 | J109: 14 | K109: 0 | L109: 18 | M109: 56 | N109: 34 | O109: 6 | P109: 0 | Q109: 27 | R109: 70 | S109: 17 | U109: =IFERROR(VLOOKUP(TEXT($A109,"0000"),'Mem11-14-2014'!$A$3:$O$500,'Mem11-14-2014'!H$1,FALSE),0) -> 111 | V109: =VLOOKUP(A109,'TIER SCH'!$A$2:$D$324,4,FALSE) -> WL | W109: 102.7027027
A110: 2371 | B110: West Hialeah Gardens Elem | C110: 4 | D110: Opinion | E110: 220 | F110: 2.6 | G110: 68 | H110: 79 | I110: 52 | J110: 21 | K110: 0 | L110: 111 | M110: 75 | N110: 25 | O110: 8 | P110: 1 | Q110: 100 | R110: 68 | S110: 52 | U110: =IFERROR(VLOOKUP(TEXT($A110,"0000"),'Mem11-14-2014'!$A$3:$O$500,'Mem11-14-2014'!H$1,FALSE),0) -> 228 | V110: =VLOOKUP(A110,'TIER SCH'!$A$2:$D$324,4,FALSE) -> T1 | W110: 96.49122807
A111: 2401 | B111: Hibiscus Elementary | C111: 4 | D111: Opinion | E111: 75 | F111: 3.24 | G111: 15 | H111: 41 | I111: 14 | J111: 5 | K111: 0 | L111: 13 | M111: 40 | N111: 18 | O111: 4 | P111: 0 | Q111: 24 | R111: 31 | S111: 20 | U111: =IFERROR(VLOOKUP(TEXT($A111,"0000"),'Mem11-14-2014'!$A$3:$O$500,'Mem11-14-2014'!H$1,FALSE),0) -> 76 | V111: =VLOOKUP(A111,'TIER SCH'!$A$2:$D$324,4,FALSE) -> R | W111: 98.68421053
A112: 2441 | B112: Virginia A Boone/highland Oaks | C112: 4 | D112: Opinion | E112: 110 | F112: 2.46 | G112: 34 | H112: 63 | I112: 12 | J112: 1 | K112: 0 | L112: 47 | M112: 53 | N112: 10 | O112: 0 | P112: 0 | Q112: 25 | R112: 62 | S112: 23 | U112: =IFERROR(VLOOKUP(TEXT($A112,"0000"),'Mem11-14-2014'!$A$3:$O$500,'Mem11-14-2014'!H$1,FALSE),0) -> 110 | V112: =VLOOKUP(A112,'TIER SCH'!$A$2:$D$324,4,FALSE) -> T1 | W112: 100
A113: 2501 | B113: Holmes Elementary | C113: 4 | D113: Opinion | E113: 49 | F113: 4.22 | G113: 3 | H113: 17 | I113: 28 | J113: 1 | K113: 0 | L113: 3 | M113: 26 | N113: 19 | O113: 1 | P113: 0 | Q113: 5 | R113: 24 | S113: 20 | U113: =IFERROR(VLOOKUP(TEXT($A113,"0000"),'Mem11-14-2014'!$A$3:$O$500,'Mem11-14-2014'!H$1,FALSE),0) -> 64 | V113: =VLOOKUP(A113,'TIER SCH'!$A$2:$D$324,4,FALSE) -> T3 | W113: 76.5625
A114: 2511 | B114: Zora Neale Hurston Elementary | C114: 4 | D114: Opinion | E114: 100 | F114: 3.62 | G114: 0 | H114: 66 | I114: 32 | J114: 1 | K114: 1 | L114: 0 | M114: 75 | N114: 20 | O114: 4 | P114: 1 | Q114: 30 | R114: 46 | S114: 24 | U114: =IFERROR(VLOOKUP(TEXT($A114,"0000"),'Mem11-14-2014'!$A$3:$O$500,'Mem11-14-2014'!H$1,FALSE),0) -> 110 | V114: =VLOOKUP(A114,'TIER SCH'!$A$2:$D$324,4,FALSE) -> T1 | W114: 90.90909091
A115: 2521 | B115: Oliver Hoover Elementary | C115: 4 | D115: Opinion | E115: 123 | F115: 4.65 | G115: 8 | H115: 27 | I115: 51 | J115: 35 | K115: 2 | L115: 9 | M115: 34 | N115: 72 | O115: 8 | P115: 0 | Q115: 27 | R115: 64 | S115: 32 | U115: =IFERROR(VLOOKUP(TEXT($A115,"0000"),'Mem11-14-2014'!$A$3:$O$500,'Mem11-14-2014'!H$1,FALSE),0) -> 123 | V115: =VLOOKUP(A115,'TIER SCH'!$A$2:$D$324,4,FALSE) -> T1 | W115: 100
A116: 2541 | B116: Howard Drive Elementary | C116: 4 | D116: Opinion | E116: 107 | F116: 4.19 | G116: 13 | H116: 39 | I116: 37 | J116: 11 | K116: 7 | L116: 11 | M116: 45 | N116: 35 | O116: 14 | P116: 2 | Q116: 23 | R116: 59 | S116: 25 | U116: =IFERROR(VLOOKUP(TEXT($A116,"0000"),'Mem11-14-2014'!$A$3:$O$500,'Mem11-14-2014'!H$1,FALSE),0) -> 108 | V116: =VLOOKUP(A116,'TIER SCH'!$A$2:$D$324,4,FALSE) -> T1 | W116: 99.07407407
A117: 2581 | B117: Madie Ives Elementary | C117: 4 | D117: Opinion | E117: 99 | F117: 4.51 | G117: 6 | H117: 36 | I117: 42 | J117: 14 | K117: 1 | L117: 10 | M117: 36 | N117: 43 | O117: 10 | P117: 0 | Q117: 5 | R117: 60 | S117: 34 | U117: =IFERROR(VLOOKUP(TEXT($A117,"0000"),'Mem11-14-2014'!$A$3:$O$500,'Mem11-14-2014'!H$1,FALSE),0) -> 108 | V117: =VLOOKUP(A117,'TIER SCH'!$A$2:$D$324,4,FALSE) -> T3 | W117: 91.66666667
A118: 2641 | B118: Kendale Elementary | C118: 4 | D118: Opinion | E118: 82 | F118: 4.3 | G118: 3 | H118: 38 | I118: 31 | J118: 10 | K118: 0 | L118: 3 | M118: 45 | N118: 30 | O118: 4 | P118: 0 | Q118: 9 | R118: 40 | S118: 33 | U118: =IFERROR(VLOOKUP(TEXT($A118,"0000"),'Mem11-14-2014'!$A$3:$O$500,'Mem11-14-2014'!H$1,FALSE),0) -> 86 | V118: =VLOOKUP(A118,'TIER SCH'!$A$2:$D$324,4,FALSE) -> T1 | W118: 95.34883721
A119: 2651 | B119: Kendale Lakes Elementary | C119: 4 | D119: Opinion | E119: 97 | F119: 2.79 | G119: 19 | H119: 42 | I119: 35 | J119: 1 | K119: 0 | L119: 22 | M119: 65 | N119: 10 | O119: 0 | P119: 0 | Q119: 29 | R119: 65 | S119: 3 | U119: =IFERROR(VLOOKUP(TEXT($A119,"0000"),'Mem11-14-2014'!$A$3:$O$500,'Mem11-14-2014'!H$1,FALSE),0) -> 100 | V119: =VLOOKUP(A119,'TIER SCH'!$A$2:$D$324,4,FALSE) -> T1 | W119: 97
A120: 2661 | B120: Kensington Park Elementary | C120: 4 | D120: Opinion | E120: 166 | F120: 3.36 | G120: 29 | H120: 65 | I120: 64 | J120: 7 | K120: 1 | L120: 25 | M120: 81 | N120: 57 | O120: 3 | P120: 0 | Q120: 50 | R120: 96 | S120: 20 | U120: =IFERROR(VLOOKUP(TEXT($A120,"0000"),'Mem11-14-2014'!$A$3:$O$500,'Mem11-14-2014'!H$1,FALSE),0) -> 165 | V120: =VLOOKUP(A120,'TIER SCH'!$A$2:$D$324,4,FALSE) -> T3 | W120: 100.6060606
A121: 2701 | B121: Kenwood K-8 Center | C121: 4 | D121: Opinion | E121: 111 | F121: 2.92 | G121: 13 | H121: 62 | I121: 36 | J121: 0 | K121: 0 | L121: 13 | M121: 78 | N121: 19 | O121: 1 | P121: 0 | Q121: 42 | R121: 67 | S121: 2 | U121: =IFERROR(VLOOKUP(TEXT($A121,"0000"),'Mem11-14-2014'!$A$3:$O$500,'Mem11-14-2014'!H$1,FALSE),0) -> 108 | V121: =VLOOKUP(A121,'TIER SCH'!$A$2:$D$324,4,FALSE) -> T1 | W121: 102.7777778
A122: 2741 | B122: Key Biscayne K-8 Center | C122: 4 | D122: Opinion | E122: 154 | F122: 3.39 | G122: 18 | H122: 72 | I122: 51 | J122: 13 | K122: 0 | L122: 39 | M122: 69 | N122: 38 | O122: 7 | P122: 1 | Q122: 42 | R122: 85 | S122: 27 | U122: =IFERROR(VLOOKUP(TEXT($A122,"0000"),'Mem11-14-2014'!$A$3:$O$500,'Mem11-14-2014'!H$1,FALSE),0) -> 181 | V122: =VLOOKUP(A122,'TIER SCH'!$A$2:$D$324,4,FALSE) -> T1 | W122: 85.08287293
A123: 2781 | B123: Kinloch Park Elementary | C123: 4 | D123: Opinion | E123: 110 | F123: 3.74 | G123: 10 | H123: 37 | I123: 53 | J123: 10 | K123: 0 | L123: 12 | M123: 49 | N123: 46 | O123: 3 | P123: 0 | Q123: 38 | R123: 56 | S123: 16 | U123: =IFERROR(VLOOKUP(TEXT($A123,"0000"),'Mem11-14-2014'!$A$3:$O$500,'Mem11-14-2014'!H$1,FALSE),0) -> 114 | V123: =VLOOKUP(A123,'TIER SCH'!$A$2:$D$324,4,FALSE) -> T1 | W123: 96.49122807
A124: 2801 | B124: Lake Stevens Elementary | C124: 4 | D124: Opinion | E124: 47 | F124: 4.13 | G124: 5 | H124: 18 | I124: 20 | J124: 0 | K124: 4 | L124: 3 | M124: 19 | N124: 16 | O124: 7 | P124: 2 | Q124: 18 | R124: 18 | S124: 11 | U124: =IFERROR(VLOOKUP(TEXT($A124,"0000"),'Mem11-14-2014'!$A$3:$O$500,'Mem11-14-2014'!H$1,FALSE),0) -> 46 | V124: =VLOOKUP(A124,'TIER SCH'!$A$2:$D$324,4,FALSE) -> R | W124: 102.173913
A125: 2821 | B125: Lakeview Elementary | C125: 4 | D125: Opinion | E125: 34 | F125: 0.5 | G125: 18 | H125: 15 | I125: 1 | J125: 0 | K125: 0 | L125: 34 | M125: 0 | N125: 0 | O125: 0 | P125: 0 | Q125: 34 | R125: 0 | S125: 0 | U125: =IFERROR(VLOOKUP(TEXT($A125,"0000"),'Mem11-14-2014'!$A$3:$O$500,'Mem11-14-2014'!H$1,FALSE),0) -> 53 | V125: =VLOOKUP(A125,'TIER SCH'!$A$2:$D$324,4,FALSE) -> T3 | W125: 64.1509434
A126: 2881 | B126: Leewood K-8 Center | C126: 4 | D126: Opinion | E126: 92 | F126: 4.98 | G126: 3 | H126: 27 | I126: 35 | J126: 26 | K126: 1 | L126: 3 | M126: 33 | N126: 51 | O126: 5 | P126: 0 | Q126: 11 | R126: 33 | S126: 48 | U126: =IFERROR(VLOOKUP(TEXT($A126,"0000"),'Mem11-14-2014'!$A$3:$O$500,'Mem11-14-2014'!H$1,FALSE),0) -> 93 | V126: =VLOOKUP(A126,'TIER SCH'!$A$2:$D$324,4,FALSE) -> T1 | W126: 98.92473118
A127: 2891 | B127: William Lehman Elementary | C127: 4 | D127: Opinion | E127: 93 | F127: 4.02 | G127: 13 | H127: 33 | I127: 20 | J127: 20 | K127: 7 | L127: 14 | M127: 33 | N127: 44 | O127: 2 | P127: 0 | Q127: 25 | R127: 50 | S127: 18 | U127: =IFERROR(VLOOKUP(TEXT($A127,"0000"),'Mem11-14-2014'!$A$3:$O$500,'Mem11-14-2014'!H$1,FALSE),0) -> 97 | V127: =VLOOKUP(A127,'TIER SCH'!$A$2:$D$324,4,FALSE) -> T1 | W127: 95.87628866
A128: 2901 | B128: Leisure City K-8 Center | C128: 4 | D128: Opinion | E128: 90 | F128: 4.11 | G128: 7 | H128: 33 | I128: 41 | J128: 9 | K128: 0 | L128: 7 | M128: 44 | N128: 36 | O128: 3 | P128: 0 | Q128: 17 | R128: 43 | S128: 30 | U128: =IFERROR(VLOOKUP(TEXT($A128,"0000"),'Mem11-14-2014'!$A$3:$O$500,'Mem11-14-2014'!H$1,FALSE),0) -> 95 | V128: =VLOOKUP(A128,'TIER SCH'!$A$2:$D$324,4,FALSE) -> T2 | W128: 94.73684211
A129: 2911 | B129: Linda Lentin K-8 Center | C129: 4 | D129: Opinion | E129: 90 | F129: 2.64 | G129: 23 | H129: 39 | I129: 21 | J129: 7 | K129: 0 | L129: 36 | M129: 29 | N129: 21 | O129: 4 | P129: 0 | Q129: 41 | R129: 45 | S129: 4 | U129: =IFERROR(VLOOKUP(TEXT($A129,"0000"),'Mem11-14-2014'!$A$3:$O$500,'Mem11-14-2014'!H$1,FALSE),0) -> 95 | V129: =VLOOKUP(A129,'TIER SCH'!$A$2:$D$324,4,FALSE) -> T3 | W129: 94.73684211
A130: 2941 | B130: Laura C. Saunders Elementary | C130: 4 | D130: Opinion | E130: 78 | F130: 3.96 | G130: 9 | H130: 33 | I130: 25 | J130: 10 | K130: 1 | L130: 12 | M130: 35 | N130: 22 | O130: 9 | P130: 0 | Q130: 13 | R130: 44 | S130: 21 | U130: =IFERROR(VLOOKUP(TEXT($A130,"0000"),'Mem11-14-2014'!$A$3:$O$500,'Mem11-14-2014'!H$1,FALSE),0) -> 89 | V130: =VLOOKUP(A130,'TIER SCH'!$A$2:$D$324,4,FALSE) -> T3 | W130: 87.64044944
A131: 2981 | B131: Liberty City Elementary | C131: 4 | D131: Opinion | E131: 38 | F131: 3.66 | G131: 0 | H131: 25 | I131: 12 | J131: 1 | K131: 0 | L131: 0 | M131: 21 | N131: 15 | O131: 2 | P131: 0 | Q131: 8 | R131: 30 | S131: 0 | U131: =IFERROR(VLOOKUP(TEXT($A131,"0000"),'Mem11-14-2014'!$A$3:$O$500,'Mem11-14-2014'!H$1,FALSE),0) -> 38 | V131: =VLOOKUP(A131,'TIER SCH'!$A$2:$D$324,4,FALSE) -> T3 | W131: 100
A132: 3021 | B132: Jesse J Mccrary Jr Elementary | C132: 4 | D132: Opinion | E132: 80 | F132: 4.25 | G132: 5 | H132: 32 | I132: 24 | J132: 16 | K132: 3 | L132: 9 | M132: 35 | N132: 34 | O132: 2 | P132: 0 | Q132: 10 | R132: 49 | S132: 21 | U132: =IFERROR(VLOOKUP(TEXT($A132,"0000"),'Mem11-14-2014'!$A$3:$O$500,'Mem11-14-2014'!H$1,FALSE),0) -> 81 | V132: =VLOOKUP(A132,'TIER SCH'!$A$2:$D$324,4,FALSE) -> T3 | W132: =E132/U132*100 -> 98.7654321
A133: 3025 | B133: Advantage Academy Santa Fe | C133: 4 | D133: Opinion | E133: 45 | F133: 4.73 | G133: 0 | H133: 20 | I133: 15 | J133: 10 | K133: 0 | L133: 0 | M133: 22 | N133: 11 | O133: 10 | P133: 2 | Q133: 9 | R133: 21 | S133: 15 | U133: =IFERROR(VLOOKUP(TEXT($A133,"0000"),'Mem11-14-2014'!$A$3:$O$500,'Mem11-14-2014'!H$1,FALSE),0) -> 45 | V133: =VLOOKUP(A133,'TIER SCH'!$A$2:$D$324,4,FALSE) ->  | W133: 100
A134: 3030 | B134: Doral Academy | C134: 4 | D134: Opinion | E134: 176 | F134: 5.32 | G134: 4 | H134: 36 | I134: 93 | J134: 37 | K134: 6 | L134: 4 | M134: 61 | N134: 87 | O134: 24 | P134: 0 | Q134: 6 | R134: 67 | S134: 103 | U134: =IFERROR(VLOOKUP(TEXT($A134,"0000"),'Mem11-14-2014'!$A$3:$O$500,'Mem11-14-2014'!H$1,FALSE),0) -> 177 | V134: =VLOOKUP(A134,'TIER SCH'!$A$2:$D$324,4,FALSE) ->  | W134: 99.43502825
A135: 3033 | B135: Somerset Oaks Academy | C135: 4 | D135: Opinion | E135: 45 | F135: 3.78 | G135: 1 | H135: 29 | I135: 14 | J135: 1 | K135: 0 | L135: 1 | M135: 35 | N135: 9 | O135: 0 | P135: 0 | Q135: 6 | R135: 21 | S135: 18 | U135: =IFERROR(VLOOKUP(TEXT($A135,"0000"),'Mem11-14-2014'!$A$3:$O$500,'Mem11-14-2014'!H$1,FALSE),0) -> 43 | V135: =VLOOKUP(A135,'TIER SCH'!$A$2:$D$324,4,FALSE) ->  | W135: 104.6511628
A136: 3034 | B136: Bridgeprep Acad Village Green | C136: 4 | D136: Opinion | E136: 16 | F136: 4.5 | G136: 0 | H136: 9 | I136: 4 | J136: 3 | K136: 0 | L136: 0 | M136: 11 | N136: 4 | O136: 1 | P136: 0 | Q136: 0 | R136: 8 | S136: 8 | U136: =IFERROR(VLOOKUP(TEXT($A136,"0000"),'Mem11-14-2014'!$A$3:$O$500,'Mem11-14-2014'!H$1,FALSE),0) -> 16 | V136: =VLOOKUP(A136,'TIER SCH'!$A$2:$D$324,4,FALSE) ->  | W136: 100
A137: 3035 | B137: Ramz Academy Elem Miami Campus | C137: 4 | D137: Opinion | E137: 22 | F137: 1.09 | G137: 9 | H137: 11 | I137: 2 | J137: 0 | K137: 0 | L137: 15 | M137: 7 | N137: 0 | O137: 0 | P137: 0 | Q137: 20 | R137: 2 | S137: 0 | U137: =IFERROR(VLOOKUP(TEXT($A137,"0000"),'Mem11-14-2014'!$A$3:$O$500,'Mem11-14-2014'!H$1,FALSE),0) -> 23 | V137: =VLOOKUP(A137,'TIER SCH'!$A$2:$D$324,4,FALSE) ->  | W137: 95.65217391
A138: 3041 | B138: Lorah Park Elementary | C138: 4 | D138: Opinion | E138: 87 | F138: 3.52 | G138: 10 | H138: 47 | I138: 27 | J138: 3 | K138: 0 | L138: 10 | M138: 52 | N138: 23 | O138: 2 | P138: 0 | Q138: 10 | R138: 62 | S138: 15 | U138: =IFERROR(VLOOKUP(TEXT($A138,"0000"),'Mem11-14-2014'!$A$3:$O$500,'Mem11-14-2014'!H$1,FALSE),0) -> 85 | V138: =VLOOKUP(A138,'TIER SCH'!$A$2:$D$324,4,FALSE) -> T3 | W138: 102.3529412
A139: 3051 | B139: Toussaint L''ouverture Elem | C139: 4 | D139: Opinion | E139: 62 | F139: 2.39 | G139: 7 | H139: 43 | I139: 12 | J139: 0 | K139: 0 | L139: 26 | M139: 27 | N139: 9 | O139: 0 | P139: 0 | Q139: 30 | R139: 28 | S139: 4 | U139: =IFERROR(VLOOKUP(TEXT($A139,"0000"),'Mem11-14-2014'!$A$3:$O$500,'Mem11-14-2014'!H$1,FALSE),0) -> 63 | V139: =VLOOKUP(A139,'TIER SCH'!$A$2:$D$324,4,FALSE) -> T3 | W139: 98.41269841
A140: 3061 | B140: Ludlam Elementary | C140: 4 | D140: Opinion | E140: 57 | F140: 4.04 | G140: 6 | H140: 28 | I140: 21 | J140: 2 | K140: 0 | L140: 7 | M140: 24 | N140: 19 | O140: 7 | P140: 0 | Q140: 4 | R140: 35 | S140: 18 | U140: =IFERROR(VLOOKUP(TEXT($A140,"0000"),'Mem11-14-2014'!$A$3:$O$500,'Mem11-14-2014'!H$1,FALSE),0) -> 59 | V140: =VLOOKUP(A140,'TIER SCH'!$A$2:$D$324,4,FALSE) -> T1 | W140: 96.61016949
A141: 3100 | B141: Mater Academy East Charter | C141: 4 | D141: Opinion | E141: 72 | F141: 5.17 | G141: 0 | H141: 14 | I141: 40 | J141: 16 | K141: 2 | L141: 0 | M141: 39 | N141: 32 | O141: 1 | P141: 0 | Q141: 0 | R141: 28 | S141: 44 | U141: =IFERROR(VLOOKUP(TEXT($A141,"0000"),'Mem11-14-2014'!$A$3:$O$500,'Mem11-14-2014'!H$1,FALSE),0) -> 73 | V141: =VLOOKUP(A141,'TIER SCH'!$A$2:$D$324,4,FALSE) ->  | W141: 98.63013699
A142: 3101 | B142: Frank C. Martin K-8 Center | C142: 4 | D142: Opinion | E142: 118 | F142: 3.93 | G142: 2 | H142: 49 | I142: 63 | J142: 4 | K142: 0 | L142: 3 | M142: 73 | N142: 42 | O142: 0 | P142: 0 | Q142: 21 | R142: 74 | S142: 23 | U142: =IFERROR(VLOOKUP(TEXT($A142,"0000"),'Mem11-14-2014'!$A$3:$O$500,'Mem11-14-2014'!H$1,FALSE),0) -> 119 | V142: =VLOOKUP(A142,'TIER SCH'!$A$2:$D$324,4,FALSE) -> T1 | W142: 99.15966387
A143: 3111 | B143: Wesley Matthews Elementary | C143: 4 | D143: Opinion | E143: 77 | F143: 4.61 | G143: 7 | H143: 28 | I143: 29 | J143: 13 | K143: 0 | L143: 14 | M143: 18 | N143: 36 | O143: 9 | P143: 0 | Q143: 4 | R143: 33 | S143: 40 | U143: =IFERROR(VLOOKUP(TEXT($A143,"0000"),'Mem11-14-2014'!$A$3:$O$500,'Mem11-14-2014'!H$1,FALSE),0) -> 78 | V143: =VLOOKUP(A143,'TIER SCH'!$A$2:$D$324,4,FALSE) -> T1 | W143: 98.71794872
A144: 3141 | B144: Meadowlane Elementary | C144: 4 | D144: Opinion | E144: 165 | F144: 2.96 | G144: 46 | H144: 61 | I144: 39 | J144: 19 | K144: 0 | L144: 54 | M144: 69 | N144: 38 | O144: 4 | P144: 0 | Q144: 48 | R144: 99 | S144: 18 | U144: =IFERROR(VLOOKUP(TEXT($A144,"0000"),'Mem11-14-2014'!$A$3:$O$500,'Mem11-14-2014'!H$1,FALSE),0) -> 168 | V144: =VLOOKUP(A144,'TIER SCH'!$A$2:$D$324,4,FALSE) -> T1 | W144: 98.21428571
A145: 3181 | B145: Melrose Elementary | C145: 4 | D145: Opinion | E145: 80 | F145: 3.54 | G145: 17 | H145: 25 | I145: 28 | J145: 10 | K145: 0 | L145: 16 | M145: 34 | N145: 25 | O145: 5 | P145: 0 | Q145: 24 | R145: 39 | S145: 17 | U145: =IFERROR(VLOOKUP(TEXT($A145,"0000"),'Mem11-14-2014'!$A$3:$O$500,'Mem11-14-2014'!H$1,FALSE),0) -> 81 | V145: =VLOOKUP(A145,'TIER SCH'!$A$2:$D$324,4,FALSE) -> T2 | W145: 98.7654321
A146: 3191 | B146: Ada Merritt K-8 Center | C146: 4 | D146: Opinion | E146: 42 | F146: 3.86 | G146: 1 | H146: 25 | I146: 16 | J146: 0 | K146: 0 | L146: 1 | M146: 25 | N146: 16 | O146: 0 | P146: 0 | Q146: 7 | R146: 22 | S146: 13 | U146: =IFERROR(VLOOKUP(TEXT($A146,"0000"),'Mem11-14-2014'!$A$3:$O$500,'Mem11-14-2014'!H$1,FALSE),0) -> 80 | V146: =VLOOKUP(A146,'TIER SCH'!$A$2:$D$324,4,FALSE) -> T1 | W146: 52.5
A147: 3241 | B147: Miami Gardens Elementary | C147: 4 | D147: Opinion | E147: 40 | F147: 1.55 | G147: 16 | H147: 23 | I147: 1 | J147: 0 | K147: 0 | L147: 20 | M147: 20 | N147: 0 | O147: 0 | P147: 0 | Q147: 23 | R147: 17 | S147: 0 | U147: =IFERROR(VLOOKUP(TEXT($A147,"0000"),'Mem11-14-2014'!$A$3:$O$500,'Mem11-14-2014'!H$1,FALSE),0) -> 40 | V147: =VLOOKUP(A147,'TIER SCH'!$A$2:$D$324,4,FALSE) -> R | W147: 100
A148: 3261 | B148: Miami Heights Elementary | C148: 4 | D148: Opinion | E148: 143 | F148: 3.62 | G148: 20 | H148: 52 | I148: 56 | J148: 15 | K148: 0 | L148: 21 | M148: 72 | N148: 41 | O148: 9 | P148: 0 | Q148: 41 | R148: 76 | S148: 26 | U148: =IFERROR(VLOOKUP(TEXT($A148,"0000"),'Mem11-14-2014'!$A$3:$O$500,'Mem11-14-2014'!H$1,FALSE),0) -> 142 | V148: =VLOOKUP(A148,'TIER SCH'!$A$2:$D$324,4,FALSE) -> R | W148: 100.7042254
A149: 3281 | B149: Miami Lakes K-8 Center | C149: 4 | D149: Opinion | E149: 136 | F149: 3.66 | G149: 18 | H149: 51 | I149: 52 | J149: 15 | K149: 0 | L149: 22 | M149: 73 | N149: 39 | O149: 2 | P149: 0 | Q149: 23 | R149: 85 | S149: 28 | U149: =IFERROR(VLOOKUP(TEXT($A149,"0000"),'Mem11-14-2014'!$A$3:$O$500,'Mem11-14-2014'!H$1,FALSE),0) -> 136 | V149: =VLOOKUP(A149,'TIER SCH'!$A$2:$D$324,4,FALSE) -> T1 | W149: 100
A150: 3301 | B150: Miami Park Elementary | C150: 4 | D150: Opinion | E150: 45 | F150: 2.11 | G150: 13 | H150: 19 | I150: 13 | J150: 0 | K150: 0 | L150: 18 | M150: 22 | N150: 5 | O150: 0 | P150: 0 | Q150: 28 | R150: 16 | S150: 1 | U150: =IFERROR(VLOOKUP(TEXT($A150,"0000"),'Mem11-14-2014'!$A$3:$O$500,'Mem11-14-2014'!H$1,FALSE),0) -> 50 | V150: =VLOOKUP(A150,'TIER SCH'!$A$2:$D$324,4,FALSE) -> T3 | W150: 90
A151: 3341 | B151: Miami Shores Elementary | C151: 4 | D151: Opinion | E151: 107 | F151: 3.04 | G151: 15 | H151: 64 | I151: 22 | J151: 6 | K151: 0 | L151: 25 | M151: 61 | N151: 17 | O151: 4 | P151: 0 | Q151: 33 | R151: 56 | S151: 18 | U151: =IFERROR(VLOOKUP(TEXT($A151,"0000"),'Mem11-14-2014'!$A$3:$O$500,'Mem11-14-2014'!H$1,FALSE),0) -> 107 | V151: =VLOOKUP(A151,'TIER SCH'!$A$2:$D$324,4,FALSE) -> T1 | W151: 100
A152: 3381 | B152: Miami Springs Elementary | C152: 4 | D152: Opinion | E152: 68 | F152: 3.18 | G152: 12 | H152: 41 | I152: 15 | J152: 0 | K152: 0 | L152: 8 | M152: 47 | N152: 13 | O152: 0 | P152: 0 | Q152: 14 | R152: 36 | S152: 18 | U152: =IFERROR(VLOOKUP(TEXT($A152,"0000"),'Mem11-14-2014'!$A$3:$O$500,'Mem11-14-2014'!H$1,FALSE),0) -> 70 | V152: =VLOOKUP(A152,'TIER SCH'!$A$2:$D$324,4,FALSE) -> WL | W152: 97.14285714
A153: 3421 | B153: M.a. Milam K-8 Center | C153: 4 | D153: Opinion | E153: 69 | F153: 3.26 | G153: 2 | H153: 50 | I153: 17 | J153: 0 | K153: 0 | L153: 6 | M153: 59 | N153: 3 | O153: 1 | P153: 0 | Q153: 2 | R153: 61 | S153: 6 | U153: =IFERROR(VLOOKUP(TEXT($A153,"0000"),'Mem11-14-2014'!$A$3:$O$500,'Mem11-14-2014'!H$1,FALSE),0) -> 75 | V153: =VLOOKUP(A153,'TIER SCH'!$A$2:$D$324,4,FALSE) -> WL | W153: 92
A154: 3431 | B154: Phyllis Ruth Miller Elementary | C154: 4 | D154: Opinion | E154: 92 | F154: 4.87 | G154: 2 | H154: 28 | I154: 53 | J154: 9 | K154: 0 | L154: 2 | M154: 37 | N154: 49 | O154: 4 | P154: 0 | Q154: 3 | R154: 38 | S154: 51 | U154: =IFERROR(VLOOKUP(TEXT($A154,"0000"),'Mem11-14-2014'!$A$3:$O$500,'Mem11-14-2014'!H$1,FALSE),0) -> 94 | V154: =VLOOKUP(A154,'TIER SCH'!$A$2:$D$324,4,FALSE) -> R | W154: 97.87234043
A155: 3501 | B155: Morningside K-8 Academy | C155: 4 | D155: Opinion | E155: 67 | F155: 2.76 | G155: 13 | H155: 30 | I155: 23 | J155: 1 | K155: 0 | L155: 16 | M155: 37 | N155: 14 | O155: 0 | P155: 0 | Q155: 36 | R155: 21 | S155: 10 | U155: =IFERROR(VLOOKUP(TEXT($A155,"0000"),'Mem11-14-2014'!$A$3:$O$500,'Mem11-14-2014'!H$1,FALSE),0) -> 65 | V155: =VLOOKUP(A155,'TIER SCH'!$A$2:$D$324,4,FALSE) -> T3 | W155: 103.0769231
A156: 3541 | B156: Robert Russa Moton Elementary | C156: 4 | D156: Opinion | E156: 40 | F156: 3.85 | G156: 2 | H156: 17 | I156: 14 | J156: 6 | K156: 1 | L156: 8 | M156: 14 | N156: 18 | O156: 0 | P156: 0 | Q156: 12 | R156: 19 | S156: 9 | U156: =IFERROR(VLOOKUP(TEXT($A156,"0000"),'Mem11-14-2014'!$A$3:$O$500,'Mem11-14-2014'!H$1,FALSE),0) -> 41 | V156: =VLOOKUP(A156,'TIER SCH'!$A$2:$D$324,4,FALSE) -> T3 | W156: 97.56097561
A157: 3581 | B157: Myrtle Grove K-8 Center | C157: 4 | D157: Opinion | E157: 55 | F157: 3.13 | G157: 8 | H157: 17 | I157: 23 | J157: 7 | K157: 0 | L157: 19 | M157: 27 | N157: 9 | O157: 0 | P157: 0 | Q157: 27 | R157: 13 | S157: 15 | U157: =IFERROR(VLOOKUP(TEXT($A157,"0000"),'Mem11-14-2014'!$A$3:$O$500,'Mem11-14-2014'!H$1,FALSE),0) -> 61 | V157: =VLOOKUP(A157,'TIER SCH'!$A$2:$D$324,4,FALSE) -> T3 | W157: 90.16393443
A158: 3610 | B158: Keys Gate Charter School | C158: 4 | D158: Opinion | E158: 4 | F158: 2.75 | G158: 0 | H158: 3 | I158: 1 | J158: 0 | K158: 0 | L158: 1 | M158: 3 | N158: 0 | O158: 0 | P158: 0 | Q158: 2 | R158: 1 | S158: 1 | U158: =IFERROR(VLOOKUP(TEXT($A158,"0000"),'Mem11-14-2014'!$A$3:$O$500,'Mem11-14-2014'!H$1,FALSE),0) -> 262 | V158: =VLOOKUP(A158,'TIER SCH'!$A$2:$D$324,4,FALSE) ->  | W158: 1.526717557
A159: 3621 | B159: Coconut Palm K-8 Academy | C159: 4 | D159: Opinion | E159: 164 | F159: 4.68 | G159: 16 | H159: 49 | I159: 43 | J159: 42 | K159: 14 | L159: 20 | M159: 53 | N159: 50 | O159: 35 | P159: 6 | Q159: 33 | R159: 94 | S159: 37 | U159: =IFERROR(VLOOKUP(TEXT($A159,"0000"),'Mem11-14-2014'!$A$3:$O$500,'Mem11-14-2014'!H$1,FALSE),0) -> 173 | V159: =VLOOKUP(A159,'TIER SCH'!$A$2:$D$324,4,FALSE) -> T3 | W159: 94.79768786
A160: 3661 | B160: Natural Bridge Elementary | C160: 4 | D160: Opinion | E160: 86 | F160: 3.93 | G160: 14 | H160: 38 | I160: 22 | J160: 12 | K160: 0 | L160: 14 | M160: 44 | N160: 22 | O160: 6 | P160: 0 | Q160: 7 | R160: 44 | S160: 35 | U160: =IFERROR(VLOOKUP(TEXT($A160,"0000"),'Mem11-14-2014'!$A$3:$O$500,'Mem11-14-2014'!H$1,FALSE),0) -> 96 | V160: =VLOOKUP(A160,'TIER SCH'!$A$2:$D$324,4,FALSE) -> T2 | W160: 89.58333333
A161: 3701 | B161: Norland Elementary | C161: 4 | D161: Opinion | E161: 93 | F161: 4.09 | G161: 8 | H161: 27 | I161: 51 | J161: 7 | K161: 0 | L161: 8 | M161: 39 | N161: 40 | O161: 6 | P161: 0 | Q161: 24 | R161: 45 | S161: 24 | U161: =IFERROR(VLOOKUP(TEXT($A161,"0000"),'Mem11-14-2014'!$A$3:$O$500,'Mem11-14-2014'!H$1,FALSE),0) -> 91 | V161: =VLOOKUP(A161,'TIER SCH'!$A$2:$D$324,4,FALSE) -> T3 | W161: 102.1978022
A162: 3741 | B162: North Beach Elementary | C162: 4 | D162: Opinion | E162: 159 | F162: 3.32 | G162: 0 | H162: 106 | I162: 49 | J162: 4 | K162: 0 | L162: 0 | M162: 136 | N162: 22 | O162: 1 | P162: 0 | Q162: 57 | R162: 75 | S162: 27 | U162: =IFERROR(VLOOKUP(TEXT($A162,"0000"),'Mem11-14-2014'!$A$3:$O$500,'Mem11-14-2014'!H$1,FALSE),0) -> 169 | V162: =VLOOKUP(A162,'TIER SCH'!$A$2:$D$324,4,FALSE) -> T1 | W162: 94.08284024
A163: 3781 | B163: Barbara Hawkins Elementary | C163: 4 | D163: Opinion | E163: 41 | F163: 3.73 | G163: 0 | H163: 28 | I163: 12 | J163: 1 | K163: 0 | L163: 1 | M163: 29 | N163: 10 | O163: 1 | P163: 0 | Q163: 3 | R163: 30 | S163: 8 | U163: =IFERROR(VLOOKUP(TEXT($A163,"0000"),'Mem11-14-2014'!$A$3:$O$500,'Mem11-14-2014'!H$1,FALSE),0) -> 45 | V163: =VLOOKUP(A163,'TIER SCH'!$A$2:$D$324,4,FALSE) -> T3 | W163: 91.11111111
A164: 3821 | B164: North County K-8 Center | C164: 4 | D164: Opinion | E164: 44 | F164: 2.73 | G164: 3 | H164: 40 | I164: 1 | J164: 0 | K164: 0 | L164: 6 | M164: 37 | N164: 1 | O164: 0 | P164: 0 | Q164: 5 | R164: 39 | S164: 0 | U164: =IFERROR(VLOOKUP(TEXT($A164,"0000"),'Mem11-14-2014'!$A$3:$O$500,'Mem11-14-2014'!H$1,FALSE),0) -> 53 | V164: =VLOOKUP(A164,'TIER SCH'!$A$2:$D$324,4,FALSE) -> R | W164: 83.01886792
A165: 3861 | B165: North Glade Elementary | C165: 4 | D165: Opinion | E165: 12 | F165: 4.75 | G165: 1 | H165: 8 | I165: 2 | J165: 1 | K165: 0 | L165: 0 | M165: 7 | N165: 0 | O165: 2 | P165: 3 | Q165: 2 | R165: 3 | S165: 7 | U165: =IFERROR(VLOOKUP(TEXT($A165,"0000"),'Mem11-14-2014'!$A$3:$O$500,'Mem11-14-2014'!H$1,FALSE),0) -> 55 | V165: =VLOOKUP(A165,'TIER SCH'!$A$2:$D$324,4,FALSE) -> R | W165: 21.81818182
A166: 3901 | B166: North Hialeah Elementary | C166: 4 | D166: Opinion | E166: 101 | F166: 3.67 | G166: 18 | H166: 29 | I166: 36 | J166: 14 | K166: 4 | L166: 22 | M166: 40 | N166: 32 | O166: 7 | P166: 0 | Q166: 30 | R166: 55 | S166: 16 | U166: =IFERROR(VLOOKUP(TEXT($A166,"0000"),'Mem11-14-2014'!$A$3:$O$500,'Mem11-14-2014'!H$1,FALSE),0) -> 101 | V166: =VLOOKUP(A166,'TIER SCH'!$A$2:$D$324,4,FALSE) -> T3 | W166: 100
A167: 3941 | B167: North Miami Elementary | C167: 4 | D167: Opinion | E167: 68 | F167: 2.81 | G167: 10 | H167: 9 | I167: 32 | J167: 17 | K167: 0 | L167: 44 | M167: 16 | N167: 8 | O167: 0 | P167: 0 | Q167: 33 | R167: 35 | S167: 0 | U167: =IFERROR(VLOOKUP(TEXT($A167,"0000"),'Mem11-14-2014'!$A$3:$O$500,'Mem11-14-2014'!H$1,FALSE),0) -> 71 | V167: =VLOOKUP(A167,'TIER SCH'!$A$2:$D$324,4,FALSE) -> T3 | W167: 95.77464789
A168: 3981 | B168: North Twin Lakes Elementary | C168: 4 | D168: Opinion | E168: 72 | F168: 2.71 | G168: 28 | H168: 20 | I168: 17 | J168: 7 | K168: 0 | L168: 41 | M168: 6 | N168: 18 | O168: 7 | P168: 0 | Q168: 41 | R168: 5 | S168: 26 | U168: =IFERROR(VLOOKUP(TEXT($A168,"0000"),'Mem11-14-2014'!$A$3:$O$500,'Mem11-14-2014'!H$1,FALSE),0) -> 72 | V168: =VLOOKUP(A168,'TIER SCH'!$A$2:$D$324,4,FALSE) -> T1 | W168: 100
A169: 4001 | B169: Norwood Elementary | C169: 4 | D169: Opinion | E169: 90 | F169: 3.08 | G169: 30 | H169: 31 | I169: 17 | J169: 11 | K169: 1 | L169: 31 | M169: 36 | N169: 16 | O169: 6 | P169: 1 | Q169: 31 | R169: 33 | S169: 26 | U169: =IFERROR(VLOOKUP(TEXT($A169,"0000"),'Mem11-14-2014'!$A$3:$O$500,'Mem11-14-2014'!H$1,FALSE),0) -> 88 | V169: =VLOOKUP(A169,'TIER SCH'!$A$2:$D$324,4,FALSE) -> T1 | W169: 102.2727273
A170: 4012 | B170: Somerset Acad At Silver Palms | C170: 4 | D170: Opinion | E170: 73 | F170: 4.01 | G170: 0 | H170: 36 | I170: 30 | J170: 7 | K170: 0 | L170: 0 | M170: 51 | N170: 22 | O170: 0 | P170: 0 | Q170: 0 | R170: 65 | S170: 8 | U170: =IFERROR(VLOOKUP(TEXT($A170,"0000"),'Mem11-14-2014'!$A$3:$O$500,'Mem11-14-2014'!H$1,FALSE),0) -> 74 | V170: =VLOOKUP(A170,'TIER SCH'!$A$2:$D$324,4,FALSE) ->  | W170: 98.64864865
A171: 4021 | B171: Oak Grove Elementary | C171: 4 | D171: Opinion | E171: 79 | F171: 3.16 | G171: 7 | H171: 39 | I171: 30 | J171: 3 | K171: 0 | L171: 11 | M171: 50 | N171: 17 | O171: 1 | P171: 0 | Q171: 27 | R171: 49 | S171: 3 | U171: =IFERROR(VLOOKUP(TEXT($A171,"0000"),'Mem11-14-2014'!$A$3:$O$500,'Mem11-14-2014'!H$1,FALSE),0) -> 84 | V171: =VLOOKUP(A171,'TIER SCH'!$A$2:$D$324,4,FALSE) -> R | W171: 94.04761905
A172: 4031 | B172: Gateway Environmental K-8 | C172: 4 | D172: Opinion | E172: 191 | F172: 2.58 | G172: 52 | H172: 104 | I172: 32 | J172: 3 | K172: 0 | L172: 54 | M172: 108 | N172: 27 | O172: 2 | P172: 0 | Q172: 58 | R172: 119 | S172: 14 | U172: =IFERROR(VLOOKUP(TEXT($A172,"0000"),'Mem11-14-2014'!$A$3:$O$500,'Mem11-14-2014'!H$1,FALSE),0) -> 209 | V172: =VLOOKUP(A172,'TIER SCH'!$A$2:$D$324,4,FALSE) -> T2 | W172: 91.38755981
A173: 4061 | B173: Ojus Elementary | C173: 4 | D173: Opinion | E173: 130 | F173: 3.34 | G173: 23 | H173: 59 | I173: 30 | J173: 18 | K173: 0 | L173: 23 | M173: 77 | N173: 24 | O173: 6 | P173: 0 | Q173: 43 | R173: 56 | S173: 31 | U173: =IFERROR(VLOOKUP(TEXT($A173,"0000"),'Mem11-14-2014'!$A$3:$O$500,'Mem11-14-2014'!H$1,FALSE),0) -> 134 | V173: =VLOOKUP(A173,'TIER SCH'!$A$2:$D$324,4,FALSE) -> T1 | W173: 97.01492537
A174: 4071 | B174: Agenoria S. Paschal/olinda El | C174: 4 | D174: Opinion | E174: 56 | F174: 3.3 | G174: 1 | H174: 27 | I174: 24 | J174: 4 | K174: 0 | L174: 1 | M174: 36 | N174: 17 | O174: 2 | P174: 0 | Q174: 36 | R174: 18 | S174: 2 | U174: =IFERROR(VLOOKUP(TEXT($A174,"0000"),'Mem11-14-2014'!$A$3:$O$500,'Mem11-14-2014'!H$1,FALSE),0) -> 54 | V174: =VLOOKUP(A174,'TIER SCH'!$A$2:$D$324,4,FALSE) -> T3 | W174: 103.7037037
A175: 4081 | B175: Primary Learning Center | C175: 4 | D175: Opinion | E175: 40 | F175: 4.8 | G175: 0 | H175: 18 | I175: 16 | J175: 6 | K175: 0 | L175: 0 | M175: 21 | N175: 15 | O175: 4 | P175: 0 | Q175: 1 | R175: 17 | S175: 22 | U175: =IFERROR(VLOOKUP(TEXT($A175,"0000"),'Mem11-14-2014'!$A$3:$O$500,'Mem11-14-2014'!H$1,FALSE),0) -> 42 | V175: =VLOOKUP(A175,'TIER SCH'!$A$2:$D$324,4,FALSE) -> T1 | W175: 95.23809524
A176: 4091 | B176: Olympia Heights Elementary | C176: 4 | D176: Opinion | E176: 90 | F176: 2.83 | G176: 20 | H176: 44 | I176: 24 | J176: 2 | K176: 0 | L176: 30 | M176: 36 | N176: 19 | O176: 5 | P176: 0 | Q176: 29 | R176: 54 | S176: 7 | U176: =IFERROR(VLOOKUP(TEXT($A176,"0000"),'Mem11-14-2014'!$A$3:$O$500,'Mem11-14-2014'!H$1,FALSE),0) -> 91 | V176: =VLOOKUP(A176,'TIER SCH'!$A$2:$D$324,4,FALSE) -> T1 | W176: 98.9010989
A177: 4121 | B177: Dr. Robert B. Ingram El | C177: 4 | D177: Opinion | E177: 46 | F177: 3.15 | G177: 11 | H177: 22 | I177: 11 | J177: 2 | K177: 0 | L177: 12 | M177: 22 | N177: 9 | O177: 3 | P177: 0 | Q177: 7 | R177: 32 | S177: 7 | U177: =IFERROR(VLOOKUP(TEXT($A177,"0000"),'Mem11-14-2014'!$A$3:$O$500,'Mem11-14-2014'!H$1,FALSE),0) -> 50 | V177: =VLOOKUP(A177,'TIER SCH'!$A$2:$D$324,4,FALSE) -> T3 | W177: 92
